Workbook

Sheet ACCUEIL
F7: 2021-02-28

Sheet Accueilagence
A1: Accueil
E7: =ACCUEIL!F7 -> 2021-02-28

Sheet Accueilsecteur
A1: Accueil
E7: =ACCUEIL!F7 -> 2021-02-28

Sheet AccueilDircom
A1: Accueil
E7: =ACCUEIL!F7 -> 2021-02-28

Sheet DC_FICHE
A1: Accueil
A2: BAROMETRE BDD
A4: UNITE: | B4: DIRECTION REGIONALE | E4: ETP perf : | F4: =VLOOKUP(A5,'RECAP DIRCOM'!$G$6:$I$12,3,FALSE) -> 268.24
A5: =VLOOKUP(B5,LISTES!$M$6:$N$12,2,FALSE) -> 262 | B5: BAS-RHIN
C6: Coefficient du critére | E6: Résultats | I6: Ecart au 1ier | M6: Evolution | O6: Rang
E7: du 1ier | G7: DIRECTION | I7: Du mois | K7: Au 31/12/2019
A9: RANG au CLASSEMENT GENERAL | K9: =VLOOKUP($A$5,'RECAP DIRCOM AN'!$G$6:$FS$312,168,FALSE) -> 6 | M9: =+K9-O9 ->  | O9: =VLOOKUP($A$5,'RECAP DIRCOM'!$G$6:$DG$312,168,FALSE) -> 
A11: CRITERE CLIENTS | C11: 15% | O11: =VLOOKUP($A$5,'RECAP DIRCOM'!$G$6:$DG$312,23,FALSE) -> 7.720778284
B12: PNB Evolution nette Clients BP | C12: 4% | E12: ='RECAP DIRCOM'!#REF! ->  | G12: =VLOOKUP($A$5,'RECAP DIRCOM'!$G$6:$DG$312,6,FALSE) -> 1.3 | I12: =VLOOKUP($A$5,'RECAP DIRCOM'!$G$6:$DG$312,7,FALSE) -> 600% | K12: =VLOOKUP($A$5,'RECAP DIRCOM AN'!$G$6:$FS$312,7,FALSE) -> 130% | M12: =+K12-I12 -> -470% | O12: =VLOOKUP($A$5,'RECAP DIRCOM'!$G$6:$DG$312,8,FALSE) -> 0.4158
B13: PNB Evolution nette Clients PREMIUM | C13: 5% | E13: ='RECAP DIRCOM'!#REF! ->  | G13: =VLOOKUP($A$5,'RECAP DIRCOM'!$G$6:$DG$312,10,FALSE) -> 6.0 | I13: =VLOOKUP($A$5,'RECAP DIRCOM'!$G$6:$DG$312,11,FALSE) -> 79% | K13: =VLOOKUP($A$5,'RECAP DIRCOM AN'!$G$6:$FS$312,11,FALSE) -> 1% | M13: =+K13-I13 -> -79% | O13: =VLOOKUP($A$5,'RECAP DIRCOM'!$G$6:$DG$312,12,FALSE) -> 0.7936126374
B14: PNB Evolution nette Clients Jeunes Equipés | C14: 3% | E14: ='RECAP DIRCOM'!#REF! ->  | G14: =VLOOKUP($A$5,'RECAP DIRCOM'!$G$6:$DG$312,14,FALSE) -> 0.0 | I14: =VLOOKUP($A$5,'RECAP DIRCOM'!$G$6:$DG$312,15,FALSE) -> 0% | K14: =VLOOKUP($A$5,'RECAP DIRCOM AN'!$G$6:$FS$312,15,FALSE) -> 69% | M14: =+K14-I14 -> 69% | O14: =VLOOKUP($A$5,'RECAP DIRCOM'!$G$6:$DG$312,16,FALSE) -> 0
B15: PNB Evolution nette Clients Pro Actifs Equipés | C15: 3% | E15: ='RECAP DIRCOM'!W4 -> 0.0 | G15: =VLOOKUP($A$5,'RECAP DIRCOM'!$G$6:$DG$312,18,FALSE) -> 3171.1 | I15: =VLOOKUP($A$5,'RECAP DIRCOM'!$G$6:$DG$312,19,FALSE) -> 1182% | K15: =VLOOKUP($A$5,'RECAP DIRCOM AN'!$G$6:$FS$312,19,FALSE) -> 0% | M15: =+K15-I15 -> -1182% | O15: =VLOOKUP($A$5,'RECAP DIRCOM'!$G$6:$DG$312,20,FALSE) -> 0
A17: CRITERE BANCARISATION | C17: 15% | O17: =VLOOKUP($A$5,'RECAP DIRCOM'!$G$6:$DG$312,48,FALSE) -> 2
B18: PNB Ventes nettes forfaits | C18: 4% | E18: ='RECAP DIRCOM'!X4 -> 11.8 | G18: =VLOOKUP($A$5,'RECAP DIRCOM'!$G$6:$DG$312,31,FALSE) -> -0.3 | I18: =VLOOKUP($A$5,'RECAP DIRCOM'!$G$6:$DG$312,32,FALSE) -> 23% | K18: =VLOOKUP($A$5,'RECAP DIRCOM AN'!$G$6:$FS$312,32,FALSE) -> 126% | M18: =+K18-I18 -> 103% | O18: =VLOOKUP($A$5,'RECAP DIRCOM'!$G$6:$DG$312,33,FALSE) -> 7
B19: PNB Ventes nettes IZICARTES Débit Différé | C19: 4% | E19: ='RECAP DIRCOM'!AB4 -> 9.1 | G19: =VLOOKUP($A$5,'RECAP DIRCOM'!$G$6:$DG$312,35,FALSE) -> 0.0 | I19: =VLOOKUP($A$5,'RECAP DIRCOM'!$G$6:$DG$312,36,FALSE) -> 100% | K19: =VLOOKUP($A$5,'RECAP DIRCOM AN'!$G$6:$FS$312,36,FALSE) -> 0% | M19: =+K19-I19 -> -100% | O19: =VLOOKUP($A$5,'RECAP DIRCOM'!$G$6:$DG$312,37,FALSE) -> 0
B20: PNB Ventes nettes cartes HDG Débit Différé | C20: 4% | E20: ='RECAP DIRCOM'!AF4 -> 2.4 | G20: =VLOOKUP($A$5,'RECAP DIRCOM'!$G$6:$DG$312,39,FALSE) -> 0.0 | I20: =VLOOKUP($A$5,'RECAP DIRCOM'!$G$6:$DG$312,40,FALSE) -> 0% | K20: =VLOOKUP($A$5,'RECAP DIRCOM AN'!$G$6:$FS$312,40,FALSE) -> 0% | M20: =+K20-I20 -> 0% | O20: =VLOOKUP($A$5,'RECAP DIRCOM'!$G$6:$DG$312,41,FALSE) -> 38682.55123
B21: PNB Ventes nettes Forfaits Pro, Carte pro | C21: 3% | E21: ='RECAP DIRCOM'!AJ4 -> -0.2 | G21: =VLOOKUP($A$5,'RECAP DIRCOM'!$G$6:$DG$312,43,FALSE) -> 0.1 | I21: =VLOOKUP($A$5,'RECAP DIRCOM'!$G$6:$DG$312,44,FALSE) -> 200% | K21: =VLOOKUP($A$5,'RECAP DIRCOM AN'!$G$6:$FS$312,44,FALSE) -> 44% | M21: =+K21-I21 -> -156% | O21: =VLOOKUP($A$5,'RECAP DIRCOM'!$G$6:$DG$312,45,FALSE) -> 1318
A23: CRITERE EPARGNE | C23: 10% | O23: =VLOOKUP($A$5,'RECAP DIRCOM'!$G$6:$DG$312,69,FALSE) -> 0.3112243059
B24: PNB Epargne Liquide | C24: 3% | E24: ='RECAP DIRCOM'!AU4 -> 165.8 | G24: =VLOOKUP($A$5,'RECAP DIRCOM'!$G$6:$DG$312,56,FALSE) -> 2594.8 | I24: =VLOOKUP($A$5,'RECAP DIRCOM'!$G$6:$DG$312,57,FALSE) -> 967% | K24: =VLOOKUP($A$5,'RECAP DIRCOM AN'!$G$6:$FS$312,57,FALSE) -> 23% | M24: =+K24-I24 -> -944% | O24: =VLOOKUP($A$5,'RECAP DIRCOM'!$G$6:$DG$312,58,FALSE) -> 0.5230684813
B25: PNB CA UC + arbitrage | C25: 4% | E25: ='RECAP DIRCOM'!AY4 -> 5.5 | G25: =VLOOKUP($A$5,'RECAP DIRCOM'!$G$6:$DG$312,60,FALSE) -> 2073.1 | I25: =VLOOKUP($A$5,'RECAP DIRCOM'!$G$6:$DG$312,61,FALSE) -> 773% | K25: =VLOOKUP($A$5,'RECAP DIRCOM AN'!$G$6:$FS$312,61,FALSE) -> 0% | M25: =+K25-I25 -> -773% | O25: =VLOOKUP($A$5,'RECAP DIRCOM'!$G$6:$DG$312,62,FALSE) -> 0.08753501551
B26: PNB Excédent assurance vie | C26: 3% | E26: ='RECAP DIRCOM'!#REF! ->  | G26: =VLOOKUP($A$5,'RECAP DIRCOM'!$G$6:$DG$312,64,FALSE) -> 657.0 | I26: =VLOOKUP($A$5,'RECAP DIRCOM'!$G$6:$DG$312,65,FALSE) -> 245% | K26: =VLOOKUP($A$5,'RECAP DIRCOM AN'!$G$6:$FS$312,65,FALSE) -> 63% | M26: =+K26-I26 -> -182% | O26: =VLOOKUP($A$5,'RECAP DIRCOM'!$G$6:$DG$312,66,FALSE) -> 0.3744716821
A28: CRITERE CREDITS | C28: 15% | O28: =VLOOKUP($A$5,'RECAP DIRCOM'!$G$6:$DG$312,102,FALSE) -> 0.227582131
B29: PNB crédit conso | C29: 4% | E29: ='RECAP DIRCOM'!BJ4 -> 20.3 | G29: =VLOOKUP($A$5,'RECAP DIRCOM'!$G$6:$DG$312,77,FALSE) -> 0.0 | I29: =VLOOKUP($A$5,'RECAP DIRCOM'!$G$6:$DG$312,78,FALSE) -> 100% | K29: =VLOOKUP($A$5,'RECAP DIRCOM AN'!$G$6:$FS$312,78,FALSE) -> 29% | M29: =+K29-I29 -> -71% | O29: =VLOOKUP($A$5,'RECAP DIRCOM'!$G$6:$DG$312,79,FALSE) -> 1999
B30: PNB ADE crédit conso | C30: 1% | E30: ='RECAP DIRCOM'!#REF! ->  | G30: =VLOOKUP($A$5,'RECAP DIRCOM'!$G$6:$DG$312,81,FALSE) -> 0.1 | I30: =VLOOKUP($A$5,'RECAP DIRCOM'!$G$6:$DG$312,82,FALSE) -> 200% | K30: =VLOOKUP($A$5,'RECAP DIRCOM AN'!$G$6:$FS$312,82,FALSE) -> 29% | M30: -171% | O30: =VLOOKUP($A$5,'RECAP DIRCOM'!$G$6:$DG$312,83,FALSE) -> 0.03726084214
B31: PNB crédit immo | C31: 4% | E31: ='RECAP DIRCOM'!BN4 -> 8.5 | G31: =VLOOKUP($A$5,'RECAP DIRCOM'!$G$6:$DG$312,85,FALSE) -> 2.0 | I31: =VLOOKUP($A$5,'RECAP DIRCOM'!$G$6:$DG$312,86,FALSE) -> 0% | K31: =VLOOKUP($A$5,'RECAP DIRCOM AN'!$G$6:$FS$312,86,FALSE) -> 33% | M31: 33% | O31: =VLOOKUP($A$5,'RECAP DIRCOM'!$G$6:$DG$312,87,FALSE) -> 0
B32: PNB ADE crédit immo | C32: 2% | E32: ='RECAP DIRCOM'!#REF! ->  | G32: =VLOOKUP($A$5,'RECAP DIRCOM'!$G$6:$DG$312,89,FALSE) -> 0.0 | I32: =VLOOKUP($A$5,'RECAP DIRCOM'!$G$6:$DG$312,90,FALSE) -> 0% | K32: =VLOOKUP($A$5,'RECAP DIRCOM AN'!$G$6:$FS$312,90,FALSE) -> 47% | M32: 47% | O32: =VLOOKUP($A$5,'RECAP DIRCOM'!$G$6:$DG$312,91,FALSE) -> 0
B33: PNB SACCEF | C33: 2% | E33: ='RECAP DIRCOM'!#REF! ->  | G33: =VLOOKUP($A$5,'RECAP DIRCOM'!$G$6:$DG$312,93,FALSE) -> 0.0 | I33: =VLOOKUP($A$5,'RECAP DIRCOM'!$G$6:$DG$312,94,FALSE) -> 0% | K33: =VLOOKUP($A$5,'RECAP DIRCOM AN'!$G$6:$FS$312,94,FALSE) -> 36% | M33: 36% | O33: =VLOOKUP($A$5,'RECAP DIRCOM'!$G$6:$DG$312,95,FALSE) -> 0
B34: PNB Crédit MLT + Crédit Bail | C34: 2% | E34: ='RECAP DIRCOM'!BR4 -> 3.9 | G34: =VLOOKUP($A$5,'RECAP DIRCOM'!$G$6:$DG$312,97,FALSE) -> 0.0 | I34: =VLOOKUP($A$5,'RECAP DIRCOM'!$G$6:$DG$312,98,FALSE) -> 0% | K34: =VLOOKUP($A$5,'RECAP DIRCOM AN'!$G$6:$FS$312,98,FALSE) -> 0% | M34: 0% | O34: =VLOOKUP($A$5,'RECAP DIRCOM'!$G$6:$DG$312,99,FALSE) -> 0
A36: CRITERE IARD PREVOYANCE | C36: 15% | O36: =VLOOKUP($A$5,'RECAP DIRCOM'!$G$6:$DG$312,119,FALSE) -> 
B37: PNB Ventes nettes IARD | C37: 9% | E37: ='RECAP DIRCOM'!CC4 -> 45.7 | G37: =VLOOKUP($A$5,'RECAP DIRCOM'!$G$6:$DG$312,110,FALSE) ->  | I37: =VLOOKUP($A$5,'RECAP DIRCOM'!$G$6:$DG$312,111,FALSE) ->  | K37: =VLOOKUP($A$5,'RECAP DIRCOM AN'!$G$6:$FS$312,111,FALSE) -> 69% | M37: =+K37-I37 ->  | O37: =VLOOKUP($A$5,'RECAP DIRCOM'!$G$6:$DG$312,112,FALSE) -> 
B38: PNB Ventes nettes Prévoyance | C38: 6% | E38: ='RECAP DIRCOM'!CG4 -> 8.5 | G38: =VLOOKUP($A$5,'RECAP DIRCOM'!$G$6:$DG$312,114,FALSE) ->  | I38: =VLOOKUP($A$5,'RECAP DIRCOM'!$G$6:$DG$312,115,FALSE) ->  | K38: =VLOOKUP($A$5,'RECAP DIRCOM AN'!$G$6:$FS$312,115,FALSE) -> 42% | M38: =+K38-I38 ->  | O38: =VLOOKUP($A$5,'RECAP DIRCOM'!$G$6:$DG$312,116,FALSE) -> 
A40: CRITERE ACCELERATEURS PNB | C40: 15% | O40: =VLOOKUP($A$5,'RECAP DIRCOM'!$G$6:$DG$312,144,FALSE) -> 
B41: PNB Ventes brutes SED Finalisées | C41: 6% | E41: ='RECAP DIRCOM'!#REF! ->  | G41: =VLOOKUP($A$5,'RECAP DIRCOM'!$G$6:$DG$312,127,FALSE) ->  | I41: =VLOOKUP($A$5,'RECAP DIRCOM'!$G$6:$DG$312,128,FALSE) ->  | K41: =VLOOKUP($A$5,'RECAP DIRCOM AN'!$G$6:$FS$312,128,FALSE) -> 11% | M41: =+K41-I41 ->  | O41: =VLOOKUP($A$5,'RECAP DIRCOM'!$G$6:$DG$312,129,FALSE) -> 
B42: PNB clients équipés E documents | C42: 3% | E42: ='RECAP DIRCOM'!#REF! ->  | G42: =VLOOKUP($A$5,'RECAP DIRCOM'!$G$6:$DG$312,131,FALSE) ->  | I42: =VLOOKUP($A$5,'RECAP DIRCOM'!$G$6:$DG$312,132,FALSE) ->  | K42: =VLOOKUP($A$5,'RECAP DIRCOM AN'!$G$6:$FS$312,132,FALSE) -> 0% | M42: =+K42-I42 ->  | O42: =VLOOKUP($A$5,'RECAP DIRCOM'!$G$6:$DG$312,133,FALSE) -> 
B43: Economie opt'in | C43: 3% | E43: ='RECAP DIRCOM'!#REF! ->  | G43: =VLOOKUP($A$5,'RECAP DIRCOM'!$G$6:$DG$312,135,FALSE) ->  | I43: =VLOOKUP($A$5,'RECAP DIRCOM'!$G$6:$DG$312,136,FALSE) ->  | K43: =VLOOKUP($A$5,'RECAP DIRCOM AN'!$G$6:$FS$312,136,FALSE) -> 2% | M43: =+K43-I43 ->  | O43: =VLOOKUP($A$5,'RECAP DIRCOM'!$G$6:$DG$312,137,FALSE) -> 
B44: Remises commerciales | C44: 3% | E44: ='RECAP DIRCOM'!#REF! ->  | G44: =VLOOKUP($A$5,'RECAP DIRCOM'!$G$6:$DG$312,139,FALSE) ->  | I44: =VLOOKUP($A$5,'RECAP DIRCOM'!$G$6:$DG$312,140,FALSE) ->  | K44: =VLOOKUP($A$5,'RECAP DIRCOM AN'!$G$6:$FS$312,140,FALSE) -> 17% | M44: =+K44-I44 ->  | O44: =VLOOKUP($A$5,'RECAP DIRCOM'!$G$6:$DG$312,141,FALSE) -> 
A46: CRITERE Qualité-Satisfaction Clients | C46: 15% | O46: =VLOOKUP($A$5,'RECAP DIRCOM'!$G$6:$DG$312,159,FALSE) -> 
B47: Objectifs NPS* | C47: 8% | E47: ='RECAP DIRCOM'!K4 -> -7 | G47: =VLOOKUP($A$5,'RECAP DIRCOM'!$G$6:$DG$312,151,FALSE) ->  | I47: =VLOOKUP($A$5,'RECAP DIRCOM'!$G$6:$DG$312,152,FALSE) ->  | K47: =VLOOKUP($A$5,'RECAP DIRCOM AN'!$G$6:$FS$312,152,FALSE) -> 150% | M47: =+K47-I47 ->  | O47: =VLOOKUP($A$5,'RECAP DIRCOM'!$G$6:$DG$312,153,FALSE) -> 
B48: Enquête Qualité Haute Définition | C48: 7% | E48: ='RECAP DIRCOM'!N4 -> 57% | G48: =VLOOKUP($A$5,'RECAP DIRCOM'!$G$6:$DG$312,154,FALSE) ->  | I48: =VLOOKUP($A$5,'RECAP DIRCOM'!$G$6:$DG$312,155,FALSE) ->  | K48: =VLOOKUP($A$5,'RECAP DIRCOM AN'!$G$6:$FS$312,155,FALSE) -> 8% | M48: =+K48-I48 ->  | O48: =VLOOKUP($A$5,'RECAP DIRCOM'!$G$6:$DG$312,156,FALSE) -> 

Sheet DC_TOTAL
B1: Accueil | D1: BAROMETRE BDD - DIRECTIONS REGIONALES
D2: TOTAL GENERAL
D3: =ACCUEIL!F7 -> 2021-02-28
D7: TOTAL GENERAL | G7: Total Satisfaction Clients | J7: Total Bancarisation | M7: Total Epargne | P7: Total IARD Prévoyance | S7: Total Crédits
E8: coef | F8: 100% | H8: coef | I8: =DC_SATISFACTION!L8 -> 20% | K8: coef | L8: =DC_BANCA!V8 -> 20% | N8: coef | O8: =DC_EPARGNE!N8 -> 20% | Q8: coef | R8: =DC_IARD!N8 -> 20% | T8: coef | U8: =DC_CREDIT!R8 -> 20%
A9: eds | B9: Direction | C9: ="ETP perf "&DATEMAJ!$C$28 -> ETP perf 31-janv | D9: Moyenne ecart au 1er | E9: % Ecart au 1er | F9: Rang CEGEE | G9: Moyenne ecart au 1er | H9: % Ecart au 1er | I9: Rang CEGEE | J9: Moyenne ecart au 1er | K9: % Ecart au 1er | L9: Rang CEGEE | M9: Moyenne ecart au 1er | N9: % Ecart au 1er | O9: Rang CEGEE | P9: Moyenne ecart au 1er | Q9: % Ecart au 1er | R9: Rang CEGEE | S9: Moyenne ecart au 1er | T9: % Ecart au 1er | U9: Rang CEGEE
A10: 50 | B10: Meurthe et Moselle Meuse | C10: 249 | D10: 9% | E10: 0% | F10: 1 | G10: 26% | H10: 26% | I10: 3 | J10: 15% | K10: 1% | L10: 2 | M10: 31% | N10: 19% | O10: 4 | P10: 0% | Q10: 0% | R10: 1 | S10: 4% | T10: 0% | U10: 1
A11: 262 | B11: Marne-Ardennes | C11: 232 | D11: 18% | E11: 9% | F11: 2 | G11: 0% | H11: 0% | I11: 1 | J11: 18% | K11: 5% | L11: 3 | M11: 49% | N11: 36% | O11: 6 | P11: 36% | Q11: 35% | R11: 7 | S11: 18% | T11: 14% | U11: 2
A12: 264 | B12: Vosges | C12: 137 | D12: 18% | E12: 9% | F12: 3 | G12: 20% | H12: 20% | I12: 2 | J12: 35% | K12: 21% | L12: 6 | M12: 13% | N12: 1% | O12: 2 | P12: 17% | Q12: 16% | R12: 4 | S12: 37% | T12: 33% | U12: 5
A13: 30 | B13: Moselle | C13: 280 | D13: 21% | E13: 11% | F13: 4 | G13: 33% | H13: 33% | I13: 5 | J13: 27% | K13: 13% | L13: 5 | M13: 30% | N13: 17% | O13: 3 | P13: 14% | Q13: 13% | R13: 3 | S13: 30% | T13: 26% | U13: 3
A14: 110 | B14: Bas-Rhin | C14: 268 | D14: 23% | E14: 14% | F14: 5 | G14: 79% | H14: 79% | I14: 6 | J14: 14% | K14: 0% | L14: 1 | M14: 12% | N14: 0% | O14: 1 | P14: 4% | Q14: 3% | R14: 2 | S14: 35% | T14: 31% | U14: 4
A15: 160 | B15: Aube Haute Marne | C15: 132 | D15: 30% | E15: 21% | F15: 6 | G15: 31% | H15: 31% | I15: 4 | J15: 25% | K15: 11% | L15: 4 | M15: 63% | N15: 51% | O15: 7 | P15: 25% | Q15: 24% | R15: 6 | S15: 38% | T15: 34% | U15: 6
A16: 80 | B16: Haut-Rhin | C16: 162 | D16: 49% | E16: 40% | F16: 7 | G16: 90% | H16: 90% | I16: 7 | J16: 58% | K16: 45% | L16: 7 | M16: 49% | N16: 36% | O16: 5 | P16: 24% | Q16: 24% | R16: 5 | S16: 53% | T16: 50% | U16: 7
B17: Total CEGEE Directions Régionales | C17: =SUM(C10:C16) -> 1460

Sheet DC_BANCA
B1: Accueil | D1: BAROMETRE BDD - DIRECTIONS REGIONALES
D2: BANCARISATION
D3: =ACCUEIL!F7 -> 2021-02-28
D7: Ventes Nettes produits pondérés | H7: Ventes sur client non détenteur de l’univers | L7: Mobilité Macron | P7: Remises commerciales | T7: Total Bancarisation
D8: =DATEMAJ!C8 -> au 28/02 | F8: coef | G8: ='RECAP DIRCOM'!AA4 -> 10% | H8: =DATEMAJ!C9 -> au 28/02 | J8: coef | K8: ='RECAP DIRCOM'!AE4 -> 4% | L8: =DATEMAJ!C10 -> au 28/02 | N8: coef | O8: ='RECAP DIRCOM'!AI4 -> 3% | P8: =DATEMAJ!C11 -> au 31/01 | R8: coef | S8: ='RECAP DIRCOM'!AM4 -> 3% | U8: coef | V8: ='RECAP DIRCOM'!AP4 -> 20%
B9: Direction | C9: ="ETP perf "&DATEMAJ!$C$28 -> ETP perf 31-janv | D9: VN | E9: VN / ETP | F9: % Ecart au 1er | G9: Rang | H9: VB | I9: VB / ETP | J9: % Ecart au 1er | K9: Rang | L9: Nb | M9: Nb / ETP | N9: % Ecart au 1er | O9: Rang | P9: Montant | Q9: Montant / ETP | R9: % Ecart au 1er | S9: Rang | T9: Moyenne ecart au 1er | U9: % Ecart au 1er | V9: Rang CEGEE
A10: 50 | B10: Aube Haute Marne | C10: =VLOOKUP($A10,'RECAP DIRCOM'!$G$6:$DC$12,3,FALSE) -> 132 | D10: =VLOOKUP($A10,'RECAP DIRCOM'!$G$6:$DC$12,18,FALSE) -> 1,195 | E10: =VLOOKUP($A10,'RECAP DIRCOM'!$G$6:$DC$12,19,FALSE) -> 9.08 | F10: =VLOOKUP($A10,'RECAP DIRCOM'!$G$6:$DC$12,20,FALSE) -> 23% | G10: =VLOOKUP($A10,'RECAP DIRCOM'!$G$6:$DC$12,21,FALSE) -> 2 | H10: =VLOOKUP($A10,'RECAP DIRCOM'!$G$6:$DC$12,22,FALSE) -> 951 | I10: =VLOOKUP($A10,'RECAP DIRCOM'!$G$6:$DC$12,23,FALSE) -> 7.22 | J10: =VLOOKUP($A10,'RECAP DIRCOM'!$G$6:$DC$12,24,FALSE) -> 21% | K10: =VLOOKUP($A10,'RECAP DIRCOM'!$G$6:$DC$12,25,FALSE) -> 4 | L10: =VLOOKUP($A10,'RECAP DIRCOM'!$G$6:$DC$12,26,FALSE) -> 128 | M10: =VLOOKUP($A10,'RECAP DIRCOM'!$G$6:$DC$12,27,FALSE) -> 0.97 | N10: =VLOOKUP($A10,'RECAP DIRCOM'!$G$6:$DC$12,28,FALSE) -> 59% | O10: =VLOOKUP($A10,'RECAP DIRCOM'!$G$6:$DC$12,29,FALSE) -> 5 | P10: =VLOOKUP($A10,'RECAP DIRCOM'!$G$6:$DC$12,30,FALSE) -> -32 | Q10: =VLOOKUP($A10,'RECAP DIRCOM'!$G$6:$DC$12,31,FALSE) -> -0.25 | R10: =VLOOKUP($A10,'RECAP DIRCOM'!$G$6:$DC$12,32,FALSE) -> 0% | S10: =VLOOKUP($A10,'RECAP DIRCOM'!$G$6:$DC$12,33,FALSE) -> 1 | T10: =VLOOKUP($A10,'RECAP DIRCOM'!$G$6:$DC$12,34,FALSE) -> 25% | U10: =VLOOKUP($A10,'RECAP DIRCOM'!$G$6:$DC$12,35,FALSE) -> 11% | V10: =VLOOKUP($A10,'RECAP DIRCOM'!$G$6:$DC$12,36,FALSE) -> 4
A11: 262 | B11: Bas-Rhin | C11: =VLOOKUP($A11,'RECAP DIRCOM'!$G$6:$DC$12,3,FALSE) -> 268 | D11: =VLOOKUP($A11,'RECAP DIRCOM'!$G$6:$DC$12,18,FALSE) -> 3,171 | E11: =VLOOKUP($A11,'RECAP DIRCOM'!$G$6:$DC$12,19,FALSE) -> 11.82 | F11: =VLOOKUP($A11,'RECAP DIRCOM'!$G$6:$DC$12,20,FALSE) -> 0% | G11: =VLOOKUP($A11,'RECAP DIRCOM'!$G$6:$DC$12,21,FALSE) -> 1 | H11: =VLOOKUP($A11,'RECAP DIRCOM'!$G$6:$DC$12,22,FALSE) -> 2,071 | I11: =VLOOKUP($A11,'RECAP DIRCOM'!$G$6:$DC$12,23,FALSE) -> 7.72 | J11: =VLOOKUP($A11,'RECAP DIRCOM'!$G$6:$DC$12,24,FALSE) -> 15% | K11: =VLOOKUP($A11,'RECAP DIRCOM'!$G$6:$DC$12,25,FALSE) -> 3 | L11: =VLOOKUP($A11,'RECAP DIRCOM'!$G$6:$DC$12,26,FALSE) -> 332 | M11: =VLOOKUP($A11,'RECAP DIRCOM'!$G$6:$DC$12,27,FALSE) -> 1.24 | N11: =VLOOKUP($A11,'RECAP DIRCOM'!$G$6:$DC$12,28,FALSE) -> 48% | O11: =VLOOKUP($A11,'RECAP DIRCOM'!$G$6:$DC$12,29,FALSE) -> 3 | P11: =VLOOKUP($A11,'RECAP DIRCOM'!$G$6:$DC$12,30,FALSE) -> -81 | Q11: =VLOOKUP($A11,'RECAP DIRCOM'!$G$6:$DC$12,31,FALSE) -> -0.30 | R11: =VLOOKUP($A11,'RECAP DIRCOM'!$G$6:$DC$12,32,FALSE) -> 23% | S11: =VLOOKUP($A11,'RECAP DIRCOM'!$G$6:$DC$12,33,FALSE) -> 7 | T11: =VLOOKUP($A11,'RECAP DIRCOM'!$G$6:$DC$12,34,FALSE) -> 14% | U11: =VLOOKUP($A11,'RECAP DIRCOM'!$G$6:$DC$12,35,FALSE) -> 0% | V11: =VLOOKUP($A11,'RECAP DIRCOM'!$G$6:$DC$12,36,FALSE) -> 1
A12: 264 | B12: Haut-Rhin | C12: =VLOOKUP($A12,'RECAP DIRCOM'!$G$6:$DC$12,3,FALSE) -> 162 | D12: =VLOOKUP($A12,'RECAP DIRCOM'!$G$6:$DC$12,18,FALSE) -> 537 | E12: =VLOOKUP($A12,'RECAP DIRCOM'!$G$6:$DC$12,19,FALSE) -> 3.32 | F12: =VLOOKUP($A12,'RECAP DIRCOM'!$G$6:$DC$12,20,FALSE) -> 72% | G12: =VLOOKUP($A12,'RECAP DIRCOM'!$G$6:$DC$12,21,FALSE) -> 7 | H12: =VLOOKUP($A12,'RECAP DIRCOM'!$G$6:$DC$12,22,FALSE) -> 899 | I12: =VLOOKUP($A12,'RECAP DIRCOM'!$G$6:$DC$12,23,FALSE) -> 5.56 | J12: =VLOOKUP($A12,'RECAP DIRCOM'!$G$6:$DC$12,24,FALSE) -> 39% | K12: =VLOOKUP($A12,'RECAP DIRCOM'!$G$6:$DC$12,25,FALSE) -> 7 | L12: =VLOOKUP($A12,'RECAP DIRCOM'!$G$6:$DC$12,26,FALSE) -> 77 | M12: =VLOOKUP($A12,'RECAP DIRCOM'!$G$6:$DC$12,27,FALSE) -> 0.48 | N12: =VLOOKUP($A12,'RECAP DIRCOM'!$G$6:$DC$12,28,FALSE) -> 80% | O12: =VLOOKUP($A12,'RECAP DIRCOM'!$G$6:$DC$12,29,FALSE) -> 7 | P12: =VLOOKUP($A12,'RECAP DIRCOM'!$G$6:$DC$12,30,FALSE) -> -47 | Q12: =VLOOKUP($A12,'RECAP DIRCOM'!$G$6:$DC$12,31,FALSE) -> -0.29 | R12: =VLOOKUP($A12,'RECAP DIRCOM'!$G$6:$DC$12,32,FALSE) -> 18% | S12: =VLOOKUP($A12,'RECAP DIRCOM'!$G$6:$DC$12,33,FALSE) -> 6 | T12: =VLOOKUP($A12,'RECAP DIRCOM'!$G$6:$DC$12,34,FALSE) -> 58% | U12: =VLOOKUP($A12,'RECAP DIRCOM'!$G$6:$DC$12,35,FALSE) -> 45% | V12: =VLOOKUP($A12,'RECAP DIRCOM'!$G$6:$DC$12,36,FALSE) -> 7
A13: 30 | B13: Marne-Ardennes | C13: =VLOOKUP($A13,'RECAP DIRCOM'!$G$6:$DC$12,3,FALSE) -> 232 | D13: =VLOOKUP($A13,'RECAP DIRCOM'!$G$6:$DC$12,18,FALSE) -> 2,000 | E13: =VLOOKUP($A13,'RECAP DIRCOM'!$G$6:$DC$12,19,FALSE) -> 8.61 | F13: =VLOOKUP($A13,'RECAP DIRCOM'!$G$6:$DC$12,20,FALSE) -> 27% | G13: =VLOOKUP($A13,'RECAP DIRCOM'!$G$6:$DC$12,21,FALSE) -> 5 | H13: =VLOOKUP($A13,'RECAP DIRCOM'!$G$6:$DC$12,22,FALSE) -> 1,927 | I13: =VLOOKUP($A13,'RECAP DIRCOM'!$G$6:$DC$12,23,FALSE) -> 8.30 | J13: =VLOOKUP($A13,'RECAP DIRCOM'!$G$6:$DC$12,24,FALSE) -> 9% | K13: =VLOOKUP($A13,'RECAP DIRCOM'!$G$6:$DC$12,25,FALSE) -> 2 | L13: =VLOOKUP($A13,'RECAP DIRCOM'!$G$6:$DC$12,26,FALSE) -> 485 | M13: =VLOOKUP($A13,'RECAP DIRCOM'!$G$6:$DC$12,27,FALSE) -> 2.09 | N13: =VLOOKUP($A13,'RECAP DIRCOM'!$G$6:$DC$12,28,FALSE) -> 13% | O13: =VLOOKUP($A13,'RECAP DIRCOM'!$G$6:$DC$12,29,FALSE) -> 2 | P13: =VLOOKUP($A13,'RECAP DIRCOM'!$G$6:$DC$12,30,FALSE) -> -61 | Q13: =VLOOKUP($A13,'RECAP DIRCOM'!$G$6:$DC$12,31,FALSE) -> -0.26 | R13: =VLOOKUP($A13,'RECAP DIRCOM'!$G$6:$DC$12,32,FALSE) -> 7% | S13: =VLOOKUP($A13,'RECAP DIRCOM'!$G$6:$DC$12,33,FALSE) -> 3 | T13: =VLOOKUP($A13,'RECAP DIRCOM'!$G$6:$DC$12,34,FALSE) -> 18% | U13: =VLOOKUP($A13,'RECAP DIRCOM'!$G$6:$DC$12,35,FALSE) -> 5% | V13: =VLOOKUP($A13,'RECAP DIRCOM'!$G$6:$DC$12,36,FALSE) -> 3
A14: 110 | B14: Meurthe et Moselle Meuse | C14: =VLOOKUP($A14,'RECAP DIRCOM'!$G$6:$DC$12,3,FALSE) -> 249 | D14: =VLOOKUP($A14,'RECAP DIRCOM'!$G$6:$DC$12,18,FALSE) -> 2,200 | E14: =VLOOKUP($A14,'RECAP DIRCOM'!$G$6:$DC$12,19,FALSE) -> 8.83 | F14: =VLOOKUP($A14,'RECAP DIRCOM'!$G$6:$DC$12,20,FALSE) -> 25% | G14: =VLOOKUP($A14,'RECAP DIRCOM'!$G$6:$DC$12,21,FALSE) -> 4 | H14: =VLOOKUP($A14,'RECAP DIRCOM'!$G$6:$DC$12,22,FALSE) -> 2,272 | I14: =VLOOKUP($A14,'RECAP DIRCOM'!$G$6:$DC$12,23,FALSE) -> 9.12 | J14: =VLOOKUP($A14,'RECAP DIRCOM'!$G$6:$DC$12,24,FALSE) -> 0% | K14: =VLOOKUP($A14,'RECAP DIRCOM'!$G$6:$DC$12,25,FALSE) -> 1 | L14: =VLOOKUP($A14,'RECAP DIRCOM'!$G$6:$DC$12,26,FALSE) -> 597 | M14: =VLOOKUP($A14,'RECAP DIRCOM'!$G$6:$DC$12,27,FALSE) -> 2.40 | N14: =VLOOKUP($A14,'RECAP DIRCOM'!$G$6:$DC$12,28,FALSE) -> 0% | O14: =VLOOKUP($A14,'RECAP DIRCOM'!$G$6:$DC$12,29,FALSE) -> 1 | P14: =VLOOKUP($A14,'RECAP DIRCOM'!$G$6:$DC$12,30,FALSE) -> -69 | Q14: =VLOOKUP($A14,'RECAP DIRCOM'!$G$6:$DC$12,31,FALSE) -> -0.28 | R14: =VLOOKUP($A14,'RECAP DIRCOM'!$G$6:$DC$12,32,FALSE) -> 13% | S14: =VLOOKUP($A14,'RECAP DIRCOM'!$G$6:$DC$12,33,FALSE) -> 5 | T14: =VLOOKUP($A14,'RECAP DIRCOM'!$G$6:$DC$12,34,FALSE) -> 15% | U14: =VLOOKUP($A14,'RECAP DIRCOM'!$G$6:$DC$12,35,FALSE) -> 1% | V14: =VLOOKUP($A14,'RECAP DIRCOM'!$G$6:$DC$12,36,FALSE) -> 2
A15: 160 | B15: Moselle | C15: =VLOOKUP($A15,'RECAP DIRCOM'!$G$6:$DC$12,3,FALSE) -> 280 | D15: =VLOOKUP($A15,'RECAP DIRCOM'!$G$6:$DC$12,18,FALSE) -> 2,469 | E15: =VLOOKUP($A15,'RECAP DIRCOM'!$G$6:$DC$12,19,FALSE) -> 8.83 | F15: =VLOOKUP($A15,'RECAP DIRCOM'!$G$6:$DC$12,20,FALSE) -> 25% | G15: =VLOOKUP($A15,'RECAP DIRCOM'!$G$6:$DC$12,21,FALSE) -> 3 | H15: =VLOOKUP($A15,'RECAP DIRCOM'!$G$6:$DC$12,22,FALSE) -> 2,006 | I15: =VLOOKUP($A15,'RECAP DIRCOM'!$G$6:$DC$12,23,FALSE) -> 7.17 | J15: =VLOOKUP($A15,'RECAP DIRCOM'!$G$6:$DC$12,24,FALSE) -> 21% | K15: =VLOOKUP($A15,'RECAP DIRCOM'!$G$6:$DC$12,25,FALSE) -> 5 | L15: =VLOOKUP($A15,'RECAP DIRCOM'!$G$6:$DC$12,26,FALSE) -> 251 | M15: =VLOOKUP($A15,'RECAP DIRCOM'!$G$6:$DC$12,27,FALSE) -> 0.90 | N15: =VLOOKUP($A15,'RECAP DIRCOM'!$G$6:$DC$12,28,FALSE) -> 63% | O15: =VLOOKUP($A15,'RECAP DIRCOM'!$G$6:$DC$12,29,FALSE) -> 6 | P15: =VLOOKUP($A15,'RECAP DIRCOM'!$G$6:$DC$12,30,FALSE) -> -73 | Q15: =VLOOKUP($A15,'RECAP DIRCOM'!$G$6:$DC$12,31,FALSE) -> -0.26 | R15: =VLOOKUP($A15,'RECAP DIRCOM'!$G$6:$DC$12,32,FALSE) -> 5% | S15: =VLOOKUP($A15,'RECAP DIRCOM'!$G$6:$DC$12,33,FALSE) -> 2 | T15: =VLOOKUP($A15,'RECAP DIRCOM'!$G$6:$DC$12,34,FALSE) -> 27% | U15: =VLOOKUP($A15,'RECAP DIRCOM'!$G$6:$DC$12,35,FALSE) -> 13% | V15: =VLOOKUP($A15,'RECAP DIRCOM'!$G$6:$DC$12,36,FALSE) -> 5
A16: 80 | B16: Vosges | C16: =VLOOKUP($A16,'RECAP DIRCOM'!$G$6:$DC$12,3,FALSE) -> 137 | D16: =VLOOKUP($A16,'RECAP DIRCOM'!$G$6:$DC$12,18,FALSE) -> 968 | E16: =VLOOKUP($A16,'RECAP DIRCOM'!$G$6:$DC$12,19,FALSE) -> 7.06 | F16: =VLOOKUP($A16,'RECAP DIRCOM'!$G$6:$DC$12,20,FALSE) -> 40% | G16: =VLOOKUP($A16,'RECAP DIRCOM'!$G$6:$DC$12,21,FALSE) -> 6 | H16: =VLOOKUP($A16,'RECAP DIRCOM'!$G$6:$DC$12,22,FALSE) -> 942 | I16: =VLOOKUP($A16,'RECAP DIRCOM'!$G$6:$DC$12,23,FALSE) -> 6.87 | J16: =VLOOKUP($A16,'RECAP DIRCOM'!$G$6:$DC$12,24,FALSE) -> 25% | K16: =VLOOKUP($A16,'RECAP DIRCOM'!$G$6:$DC$12,25,FALSE) -> 6 | L16: =VLOOKUP($A16,'RECAP DIRCOM'!$G$6:$DC$12,26,FALSE) -> 150 | M16: =VLOOKUP($A16,'RECAP DIRCOM'!$G$6:$DC$12,27,FALSE) -> 1.09 | N16: =VLOOKUP($A16,'RECAP DIRCOM'!$G$6:$DC$12,28,FALSE) -> 54% | O16: =VLOOKUP($A16,'RECAP DIRCOM'!$G$6:$DC$12,29,FALSE) -> 4 | P16: =VLOOKUP($A16,'RECAP DIRCOM'!$G$6:$DC$12,30,FALSE) -> -37 | Q16: =VLOOKUP($A16,'RECAP DIRCOM'!$G$6:$DC$12,31,FALSE) -> -0.27 | R16: =VLOOKUP($A16,'RECAP DIRCOM'!$G$6:$DC$12,32,FALSE) -> 9% | S16: =VLOOKUP($A16,'RECAP DIRCOM'!$G$6:$DC$12,33,FALSE) -> 4 | T16: =VLOOKUP($A16,'RECAP DIRCOM'!$G$6:$DC$12,34,FALSE) -> 35% | U16: =VLOOKUP($A16,'RECAP DIRCOM'!$G$6:$DC$12,35,FALSE) -> 21% | V16: =VLOOKUP($A16,'RECAP DIRCOM'!$G$6:$DC$12,36,FALSE) -> 6
B17: Total CEGEE Directions Régionales | C17: =SUM(C10:C16) -> 1460

Sheet DC_EPARGNE
B1: Accueil | D1: BAROMETRE BDD - DIRECTIONS REGIONALES
D2: EPARGNE
D3: =ACCUEIL!F7 -> 2021-02-28
D7: Excédent Epargne y/c DAV pondéré | H7: Ventes sur client non détenteur de l’univers | L7: Total Epargne
D8: =DATEMAJ!C14 -> au 28/02 | F8: coef | G8: ='RECAP DIRCOM'!AX4 -> 14% | H8: =DATEMAJ!C15 -> au 28/02 | J8: coef | K8: ='RECAP DIRCOM'!BB4 -> 6% | M8: coef | N8: ='RECAP DIRCOM'!BE4 -> 20%
B9: Direction | C9: ="ETP perf "&DATEMAJ!$C$28 -> ETP perf 31-janv | D9: Excédent | E9: Excédent / ETP | F9: % Ecart au 1er | G9: Rang | H9: VB | I9: VB / ETP | J9: % Ecart au 1er | K9: Rang | L9: Moyenne ecart au 1er | M9: % Ecart au 1er | N9: Rang CEGEE
A10: 50 | B10: Aube Haute Marne | C10: =VLOOKUP($A10,'RECAP DIRCOM'!$G$6:$DC$12,3,FALSE) -> 132 | D10: =VLOOKUP($A10,'RECAP DIRCOM'!$G$6:$DC$12,41,FALSE) -> 4,687 | E10: =VLOOKUP($A10,'RECAP DIRCOM'!$G$6:$DC$12,42,FALSE) -> 35.59 | F10: =VLOOKUP($A10,'RECAP DIRCOM'!$G$6:$DC$12,43,FALSE) -> 79% | G10: =VLOOKUP($A10,'RECAP DIRCOM'!$G$6:$DC$12,44,FALSE) -> 7 | H10: =VLOOKUP($A10,'RECAP DIRCOM'!$G$6:$DC$12,45,FALSE) -> 532 | I10: =VLOOKUP($A10,'RECAP DIRCOM'!$G$6:$DC$12,46,FALSE) -> 4.04 | J10: =VLOOKUP($A10,'RECAP DIRCOM'!$G$6:$DC$12,47,FALSE) -> 27% | K10: =VLOOKUP($A10,'RECAP DIRCOM'!$G$6:$DC$12,48,FALSE) -> 6 | L10: =VLOOKUP($A10,'RECAP DIRCOM'!$G$6:$DC$12,49,FALSE) -> 63% | M10: =VLOOKUP($A10,'RECAP DIRCOM'!$G$6:$DC$12,50,FALSE) -> 51% | N10: =VLOOKUP($A10,'RECAP DIRCOM'!$G$6:$DC$12,51,FALSE) -> 7
A11: 262 | B11: Bas-Rhin | C11: =VLOOKUP($A11,'RECAP DIRCOM'!$G$6:$DC$12,3,FALSE) -> 268 | D11: =VLOOKUP($A11,'RECAP DIRCOM'!$G$6:$DC$12,41,FALSE) -> 38,683 | E11: =VLOOKUP($A11,'RECAP DIRCOM'!$G$6:$DC$12,42,FALSE) -> 144.21 | F11: =VLOOKUP($A11,'RECAP DIRCOM'!$G$6:$DC$12,43,FALSE) -> 13% | G11: =VLOOKUP($A11,'RECAP DIRCOM'!$G$6:$DC$12,44,FALSE) -> 2 | H11: =VLOOKUP($A11,'RECAP DIRCOM'!$G$6:$DC$12,45,FALSE) -> 1,318 | I11: =VLOOKUP($A11,'RECAP DIRCOM'!$G$6:$DC$12,46,FALSE) -> 4.91 | J11: =VLOOKUP($A11,'RECAP DIRCOM'!$G$6:$DC$12,47,FALSE) -> 11% | K11: =VLOOKUP($A11,'RECAP DIRCOM'!$G$6:$DC$12,48,FALSE) -> 2 | L11: =VLOOKUP($A11,'RECAP DIRCOM'!$G$6:$DC$12,49,FALSE) -> 12% | M11: =VLOOKUP($A11,'RECAP DIRCOM'!$G$6:$DC$12,50,FALSE) -> 0% | N11: =VLOOKUP($A11,'RECAP DIRCOM'!$G$6:$DC$12,51,FALSE) -> 1
A12: 264 | B12: Haut-Rhin | C12: =VLOOKUP($A12,'RECAP DIRCOM'!$G$6:$DC$12,3,FALSE) -> 162 | D12: =VLOOKUP($A12,'RECAP DIRCOM'!$G$6:$DC$12,41,FALSE) -> 10,597 | E12: =VLOOKUP($A12,'RECAP DIRCOM'!$G$6:$DC$12,42,FALSE) -> 65.58 | F12: =VLOOKUP($A12,'RECAP DIRCOM'!$G$6:$DC$12,43,FALSE) -> 60% | G12: =VLOOKUP($A12,'RECAP DIRCOM'!$G$6:$DC$12,44,FALSE) -> 5 | H12: =VLOOKUP($A12,'RECAP DIRCOM'!$G$6:$DC$12,45,FALSE) -> 708 | I12: =VLOOKUP($A12,'RECAP DIRCOM'!$G$6:$DC$12,46,FALSE) -> 4.38 | J12: =VLOOKUP($A12,'RECAP DIRCOM'!$G$6:$DC$12,47,FALSE) -> 21% | K12: =VLOOKUP($A12,'RECAP DIRCOM'!$G$6:$DC$12,48,FALSE) -> 4 | L12: =VLOOKUP($A12,'RECAP DIRCOM'!$G$6:$DC$12,49,FALSE) -> 49% | M12: =VLOOKUP($A12,'RECAP DIRCOM'!$G$6:$DC$12,50,FALSE) -> 36% | N12: =VLOOKUP($A12,'RECAP DIRCOM'!$G$6:$DC$12,51,FALSE) -> 5
A13: 30 | B13: Marne-Ardennes | C13: =VLOOKUP($A13,'RECAP DIRCOM'!$G$6:$DC$12,3,FALSE) -> 232 | D13: =VLOOKUP($A13,'RECAP DIRCOM'!$G$6:$DC$12,41,FALSE) -> 11,620 | E13: =VLOOKUP($A13,'RECAP DIRCOM'!$G$6:$DC$12,42,FALSE) -> 50.05 | F13: =VLOOKUP($A13,'RECAP DIRCOM'!$G$6:$DC$12,43,FALSE) -> 70% | G13: =VLOOKUP($A13,'RECAP DIRCOM'!$G$6:$DC$12,44,FALSE) -> 6 | H13: =VLOOKUP($A13,'RECAP DIRCOM'!$G$6:$DC$12,45,FALSE) -> 1,282 | I13: =VLOOKUP($A13,'RECAP DIRCOM'!$G$6:$DC$12,46,FALSE) -> 5.52 | J13: =VLOOKUP($A13,'RECAP DIRCOM'!$G$6:$DC$12,47,FALSE) -> 0% | K13: =VLOOKUP($A13,'RECAP DIRCOM'!$G$6:$DC$12,48,FALSE) -> 1 | L13: =VLOOKUP($A13,'RECAP DIRCOM'!$G$6:$DC$12,49,FALSE) -> 49% | M13: =VLOOKUP($A13,'RECAP DIRCOM'!$G$6:$DC$12,50,FALSE) -> 36% | N13: =VLOOKUP($A13,'RECAP DIRCOM'!$G$6:$DC$12,51,FALSE) -> 6
A14: 110 | B14: Meurthe et Moselle Meuse | C14: =VLOOKUP($A14,'RECAP DIRCOM'!$G$6:$DC$12,3,FALSE) -> 249 | D14: =VLOOKUP($A14,'RECAP DIRCOM'!$G$6:$DC$12,41,FALSE) -> 25,116 | E14: =VLOOKUP($A14,'RECAP DIRCOM'!$G$6:$DC$12,42,FALSE) -> 100.76 | F14: =VLOOKUP($A14,'RECAP DIRCOM'!$G$6:$DC$12,43,FALSE) -> 39% | G14: =VLOOKUP($A14,'RECAP DIRCOM'!$G$6:$DC$12,44,FALSE) -> 4 | H14: =VLOOKUP($A14,'RECAP DIRCOM'!$G$6:$DC$12,45,FALSE) -> 1,197 | I14: =VLOOKUP($A14,'RECAP DIRCOM'!$G$6:$DC$12,46,FALSE) -> 4.80 | J14: =VLOOKUP($A14,'RECAP DIRCOM'!$G$6:$DC$12,47,FALSE) -> 13% | K14: =VLOOKUP($A14,'RECAP DIRCOM'!$G$6:$DC$12,48,FALSE) -> 3 | L14: =VLOOKUP($A14,'RECAP DIRCOM'!$G$6:$DC$12,49,FALSE) -> 31% | M14: =VLOOKUP($A14,'RECAP DIRCOM'!$G$6:$DC$12,50,FALSE) -> 19% | N14: =VLOOKUP($A14,'RECAP DIRCOM'!$G$6:$DC$12,51,FALSE) -> 4
A15: 160 | B15: Moselle | C15: =VLOOKUP($A15,'RECAP DIRCOM'!$G$6:$DC$12,3,FALSE) -> 280 | D15: =VLOOKUP($A15,'RECAP DIRCOM'!$G$6:$DC$12,41,FALSE) -> 31,894 | E15: =VLOOKUP($A15,'RECAP DIRCOM'!$G$6:$DC$12,42,FALSE) -> 114.07 | F15: =VLOOKUP($A15,'RECAP DIRCOM'!$G$6:$DC$12,43,FALSE) -> 31% | G15: =VLOOKUP($A15,'RECAP DIRCOM'!$G$6:$DC$12,44,FALSE) -> 3 | H15: =VLOOKUP($A15,'RECAP DIRCOM'!$G$6:$DC$12,45,FALSE) -> 1,145 | I15: =VLOOKUP($A15,'RECAP DIRCOM'!$G$6:$DC$12,46,FALSE) -> 4.10 | J15: =VLOOKUP($A15,'RECAP DIRCOM'!$G$6:$DC$12,47,FALSE) -> 26% | K15: =VLOOKUP($A15,'RECAP DIRCOM'!$G$6:$DC$12,48,FALSE) -> 5 | L15: =VLOOKUP($A15,'RECAP DIRCOM'!$G$6:$DC$12,49,FALSE) -> 30% | M15: =VLOOKUP($A15,'RECAP DIRCOM'!$G$6:$DC$12,50,FALSE) -> 17% | N15: =VLOOKUP($A15,'RECAP DIRCOM'!$G$6:$DC$12,51,FALSE) -> 3
A16: 80 | B16: Vosges | C16: =VLOOKUP($A16,'RECAP DIRCOM'!$G$6:$DC$12,3,FALSE) -> 137 | D16: =VLOOKUP($A16,'RECAP DIRCOM'!$G$6:$DC$12,41,FALSE) -> 22,750 | E16: =VLOOKUP($A16,'RECAP DIRCOM'!$G$6:$DC$12,42,FALSE) -> 165.84 | F16: =VLOOKUP($A16,'RECAP DIRCOM'!$G$6:$DC$12,43,FALSE) -> 0% | G16: =VLOOKUP($A16,'RECAP DIRCOM'!$G$6:$DC$12,44,FALSE) -> 1 | H16: =VLOOKUP($A16,'RECAP DIRCOM'!$G$6:$DC$12,45,FALSE) -> 427 | I16: =VLOOKUP($A16,'RECAP DIRCOM'!$G$6:$DC$12,46,FALSE) -> 3.11 | J16: =VLOOKUP($A16,'RECAP DIRCOM'!$G$6:$DC$12,47,FALSE) -> 44% | K16: =VLOOKUP($A16,'RECAP DIRCOM'!$G$6:$DC$12,48,FALSE) -> 7 | L16: =VLOOKUP($A16,'RECAP DIRCOM'!$G$6:$DC$12,49,FALSE) -> 13% | M16: =VLOOKUP($A16,'RECAP DIRCOM'!$G$6:$DC$12,50,FALSE) -> 1% | N16: =VLOOKUP($A16,'RECAP DIRCOM'!$G$6:$DC$12,51,FALSE) -> 2
B17: Total CEGEE Directions Régionales | C17: =SUM(C10:C16) -> 1460

Sheet DC_CREDIT
B1: Accueil | D1: BAROMETRE BDD - DIRECTIONS REGIONALES
D2: CREDITS
D3: =ACCUEIL!F7 -> 2021-02-28
D7: Engagements et ventes accessoires pondérés Immo | H7: Engagements et ventes accessoires pondérés Conso | L7: Ventes sur client non détenteur de l’univers | P7: Total Crédits
D8: =DATEMAJ!C18 -> au 28/02 | F8: coef | G8: ='RECAP DIRCOM'!BM4 -> 8% | H8: =DATEMAJ!C19 -> au 28/02 | J8: coef | K8: ='RECAP DIRCOM'!BQ4 -> 6% | L8: =DATEMAJ!C20 -> au 28/02 | N8: coef | O8: ='RECAP DIRCOM'!BU4 -> 6% | Q8: coef | R8: ='RECAP DIRCOM'!BX4 -> 20%
B9: Direction | C9: ="ETP perf "&DATEMAJ!$C$28 -> ETP perf 31-janv | D9: PNB | E9: PNB / ETP | F9: % Ecart au 1er | G9: Rang | H9: PNB | I9: PNB / ETP | J9: % Ecart au 1er | K9: Rang | L9: VB | M9: VB / ETP | N9: % Ecart au 1er | O9: Rang | P9: Moyenne ecart au 1er | Q9: % Ecart au 1er | R9: Rang CEGEE
A10: 50 | B10: Aube Haute Marne | C10: =VLOOKUP($A10,'RECAP DIRCOM'!$G$6:$DC$12,3,FALSE) -> 132 | D10: =VLOOKUP($A10,'RECAP DIRCOM'!$G$6:$DC$12,56,FALSE) -> 979 | E10: =VLOOKUP($A10,'RECAP DIRCOM'!$G$6:$DC$12,57,FALSE) -> 7.43 | F10: =VLOOKUP($A10,'RECAP DIRCOM'!$G$6:$DC$12,58,FALSE) -> 63% | G10: =VLOOKUP($A10,'RECAP DIRCOM'!$G$6:$DC$12,59,FALSE) -> 6 | H10: =VLOOKUP($A10,'RECAP DIRCOM'!$G$6:$DC$12,60,FALSE) -> 1,021 | I10: =VLOOKUP($A10,'RECAP DIRCOM'!$G$6:$DC$12,61,FALSE) -> 7.75 | J10: =VLOOKUP($A10,'RECAP DIRCOM'!$G$6:$DC$12,62,FALSE) -> 8% | K10: =VLOOKUP($A10,'RECAP DIRCOM'!$G$6:$DC$12,63,FALSE) -> 2 | L10: =VLOOKUP($A10,'RECAP DIRCOM'!$G$6:$DC$12,64,FALSE) -> 346 | M10: =VLOOKUP($A10,'RECAP DIRCOM'!$G$6:$DC$12,65,FALSE) -> 2.63 | N10: =VLOOKUP($A10,'RECAP DIRCOM'!$G$6:$DC$12,66,FALSE) -> 33% | O10: =VLOOKUP($A10,'RECAP DIRCOM'!$G$6:$DC$12,67,FALSE) -> 5 | P10: =VLOOKUP($A10,'RECAP DIRCOM'!$G$6:$DC$12,68,FALSE) -> 38% | Q10: =VLOOKUP($A10,'RECAP DIRCOM'!$G$6:$DC$12,69,FALSE) -> 34% | R10: =VLOOKUP($A10,'RECAP DIRCOM'!$G$6:$DC$12,70,FALSE) -> 6
A11: 262 | B11: Bas-Rhin | C11: =VLOOKUP($A11,'RECAP DIRCOM'!$G$6:$DC$12,3,FALSE) -> 268 | D11: =VLOOKUP($A11,'RECAP DIRCOM'!$G$6:$DC$12,56,FALSE) -> 2,595 | E11: =VLOOKUP($A11,'RECAP DIRCOM'!$G$6:$DC$12,57,FALSE) -> 9.67 | F11: =VLOOKUP($A11,'RECAP DIRCOM'!$G$6:$DC$12,58,FALSE) -> 52% | G11: =VLOOKUP($A11,'RECAP DIRCOM'!$G$6:$DC$12,59,FALSE) -> 5 | H11: =VLOOKUP($A11,'RECAP DIRCOM'!$G$6:$DC$12,60,FALSE) -> 2,073 | I11: =VLOOKUP($A11,'RECAP DIRCOM'!$G$6:$DC$12,61,FALSE) -> 7.73 | J11: =VLOOKUP($A11,'RECAP DIRCOM'!$G$6:$DC$12,62,FALSE) -> 9% | K11: =VLOOKUP($A11,'RECAP DIRCOM'!$G$6:$DC$12,63,FALSE) -> 3 | L11: =VLOOKUP($A11,'RECAP DIRCOM'!$G$6:$DC$12,64,FALSE) -> 657 | M11: =VLOOKUP($A11,'RECAP DIRCOM'!$G$6:$DC$12,65,FALSE) -> 2.45 | N11: =VLOOKUP($A11,'RECAP DIRCOM'!$G$6:$DC$12,66,FALSE) -> 37% | O11: =VLOOKUP($A11,'RECAP DIRCOM'!$G$6:$DC$12,67,FALSE) -> 6 | P11: =VLOOKUP($A11,'RECAP DIRCOM'!$G$6:$DC$12,68,FALSE) -> 35% | Q11: =VLOOKUP($A11,'RECAP DIRCOM'!$G$6:$DC$12,69,FALSE) -> 31% | R11: =VLOOKUP($A11,'RECAP DIRCOM'!$G$6:$DC$12,70,FALSE) -> 4
A12: 264 | B12: Haut-Rhin | C12: =VLOOKUP($A12,'RECAP DIRCOM'!$G$6:$DC$12,3,FALSE) -> 162 | D12: =VLOOKUP($A12,'RECAP DIRCOM'!$G$6:$DC$12,56,FALSE) -> 828 | E12: =VLOOKUP($A12,'RECAP DIRCOM'!$G$6:$DC$12,57,FALSE) -> 5.12 | F12: =VLOOKUP($A12,'RECAP DIRCOM'!$G$6:$DC$12,58,FALSE) -> 75% | G12: =VLOOKUP($A12,'RECAP DIRCOM'!$G$6:$DC$12,59,FALSE) -> 7 | H12: =VLOOKUP($A12,'RECAP DIRCOM'!$G$6:$DC$12,60,FALSE) -> 1,042 | I12: =VLOOKUP($A12,'RECAP DIRCOM'!$G$6:$DC$12,61,FALSE) -> 6.45 | J12: =VLOOKUP($A12,'RECAP DIRCOM'!$G$6:$DC$12,62,FALSE) -> 24% | K12: =VLOOKUP($A12,'RECAP DIRCOM'!$G$6:$DC$12,63,FALSE) -> 6 | L12: =VLOOKUP($A12,'RECAP DIRCOM'!$G$6:$DC$12,64,FALSE) -> 287 | M12: =VLOOKUP($A12,'RECAP DIRCOM'!$G$6:$DC$12,65,FALSE) -> 1.78 | N12: =VLOOKUP($A12,'RECAP DIRCOM'!$G$6:$DC$12,66,FALSE) -> 55% | O12: =VLOOKUP($A12,'RECAP DIRCOM'!$G$6:$DC$12,67,FALSE) -> 7 | P12: =VLOOKUP($A12,'RECAP DIRCOM'!$G$6:$DC$12,68,FALSE) -> 53% | Q12: =VLOOKUP($A12,'RECAP DIRCOM'!$G$6:$DC$12,69,FALSE) -> 50% | R12: =VLOOKUP($A12,'RECAP DIRCOM'!$G$6:$DC$12,70,FALSE) -> 7
A13: 30 | B13: Marne-Ardennes | C13: =VLOOKUP($A13,'RECAP DIRCOM'!$G$6:$DC$12,3,FALSE) -> 232 | D13: =VLOOKUP($A13,'RECAP DIRCOM'!$G$6:$DC$12,56,FALSE) -> 3,764 | E13: =VLOOKUP($A13,'RECAP DIRCOM'!$G$6:$DC$12,57,FALSE) -> 16.21 | F13: =VLOOKUP($A13,'RECAP DIRCOM'!$G$6:$DC$12,58,FALSE) -> 20% | G13: =VLOOKUP($A13,'RECAP DIRCOM'!$G$6:$DC$12,59,FALSE) -> 2 | H13: =VLOOKUP($A13,'RECAP DIRCOM'!$G$6:$DC$12,60,FALSE) -> 1,671 | I13: =VLOOKUP($A13,'RECAP DIRCOM'!$G$6:$DC$12,61,FALSE) -> 7.20 | J13: =VLOOKUP($A13,'RECAP DIRCOM'!$G$6:$DC$12,62,FALSE) -> 15% | K13: =VLOOKUP($A13,'RECAP DIRCOM'!$G$6:$DC$12,63,FALSE) -> 5 | L13: =VLOOKUP($A13,'RECAP DIRCOM'!$G$6:$DC$12,64,FALSE) -> 754 | M13: =VLOOKUP($A13,'RECAP DIRCOM'!$G$6:$DC$12,65,FALSE) -> 3.25 | N13: =VLOOKUP($A13,'RECAP DIRCOM'!$G$6:$DC$12,66,FALSE) -> 17% | O13: =VLOOKUP($A13,'RECAP DIRCOM'!$G$6:$DC$12,67,FALSE) -> 2 | P13: =VLOOKUP($A13,'RECAP DIRCOM'!$G$6:$DC$12,68,FALSE) -> 18% | Q13: =VLOOKUP($A13,'RECAP DIRCOM'!$G$6:$DC$12,69,FALSE) -> 14% | R13: =VLOOKUP($A13,'RECAP DIRCOM'!$G$6:$DC$12,70,FALSE) -> 2
A14: 110 | B14: Meurthe et Moselle Meuse | C14: =VLOOKUP($A14,'RECAP DIRCOM'!$G$6:$DC$12,3,FALSE) -> 249 | D14: =VLOOKUP($A14,'RECAP DIRCOM'!$G$6:$DC$12,56,FALSE) -> 5,056 | E14: =VLOOKUP($A14,'RECAP DIRCOM'!$G$6:$DC$12,57,FALSE) -> 20.28 | F14: =VLOOKUP($A14,'RECAP DIRCOM'!$G$6:$DC$12,58,FALSE) -> 0% | G14: =VLOOKUP($A14,'RECAP DIRCOM'!$G$6:$DC$12,59,FALSE) -> 1 | H14: =VLOOKUP($A14,'RECAP DIRCOM'!$G$6:$DC$12,60,FALSE) -> 1,854 | I14: =VLOOKUP($A14,'RECAP DIRCOM'!$G$6:$DC$12,61,FALSE) -> 7.44 | J14: =VLOOKUP($A14,'RECAP DIRCOM'!$G$6:$DC$12,62,FALSE) -> 12% | K14: =VLOOKUP($A14,'RECAP DIRCOM'!$G$6:$DC$12,63,FALSE) -> 4 | L14: =VLOOKUP($A14,'RECAP DIRCOM'!$G$6:$DC$12,64,FALSE) -> 976 | M14: =VLOOKUP($A14,'RECAP DIRCOM'!$G$6:$DC$12,65,FALSE) -> 3.92 | N14: =VLOOKUP($A14,'RECAP DIRCOM'!$G$6:$DC$12,66,FALSE) -> 0% | O14: =VLOOKUP($A14,'RECAP DIRCOM'!$G$6:$DC$12,67,FALSE) -> 1 | P14: =VLOOKUP($A14,'RECAP DIRCOM'!$G$6:$DC$12,68,FALSE) -> 4% | Q14: =VLOOKUP($A14,'RECAP DIRCOM'!$G$6:$DC$12,69,FALSE) -> 0% | R14: =VLOOKUP($A14,'RECAP DIRCOM'!$G$6:$DC$12,70,FALSE) -> 1
A15: 160 | B15: Moselle | C15: =VLOOKUP($A15,'RECAP DIRCOM'!$G$6:$DC$12,3,FALSE) -> 280 | D15: =VLOOKUP($A15,'RECAP DIRCOM'!$G$6:$DC$12,56,FALSE) -> 2,795 | E15: =VLOOKUP($A15,'RECAP DIRCOM'!$G$6:$DC$12,57,FALSE) -> 10.00 | F15: =VLOOKUP($A15,'RECAP DIRCOM'!$G$6:$DC$12,58,FALSE) -> 51% | G15: =VLOOKUP($A15,'RECAP DIRCOM'!$G$6:$DC$12,59,FALSE) -> 3 | H15: =VLOOKUP($A15,'RECAP DIRCOM'!$G$6:$DC$12,60,FALSE) -> 2,368 | I15: =VLOOKUP($A15,'RECAP DIRCOM'!$G$6:$DC$12,61,FALSE) -> 8.47 | J15: =VLOOKUP($A15,'RECAP DIRCOM'!$G$6:$DC$12,62,FALSE) -> 0% | K15: =VLOOKUP($A15,'RECAP DIRCOM'!$G$6:$DC$12,63,FALSE) -> 1 | L15: =VLOOKUP($A15,'RECAP DIRCOM'!$G$6:$DC$12,64,FALSE) -> 737 | M15: =VLOOKUP($A15,'RECAP DIRCOM'!$G$6:$DC$12,65,FALSE) -> 2.64 | N15: =VLOOKUP($A15,'RECAP DIRCOM'!$G$6:$DC$12,66,FALSE) -> 33% | O15: =VLOOKUP($A15,'RECAP DIRCOM'!$G$6:$DC$12,67,FALSE) -> 4 | P15: =VLOOKUP($A15,'RECAP DIRCOM'!$G$6:$DC$12,68,FALSE) -> 30% | Q15: =VLOOKUP($A15,'RECAP DIRCOM'!$G$6:$DC$12,69,FALSE) -> 26% | R15: =VLOOKUP($A15,'RECAP DIRCOM'!$G$6:$DC$12,70,FALSE) -> 3
A16: 80 | B16: Vosges | C16: =VLOOKUP($A16,'RECAP DIRCOM'!$G$6:$DC$12,3,FALSE) -> 137 | D16: =VLOOKUP($A16,'RECAP DIRCOM'!$G$6:$DC$12,56,FALSE) -> 1,355 | E16: =VLOOKUP($A16,'RECAP DIRCOM'!$G$6:$DC$12,57,FALSE) -> 9.88 | F16: =VLOOKUP($A16,'RECAP DIRCOM'!$G$6:$DC$12,58,FALSE) -> 51% | G16: =VLOOKUP($A16,'RECAP DIRCOM'!$G$6:$DC$12,59,FALSE) -> 4 | H16: =VLOOKUP($A16,'RECAP DIRCOM'!$G$6:$DC$12,60,FALSE) -> 882 | I16: =VLOOKUP($A16,'RECAP DIRCOM'!$G$6:$DC$12,61,FALSE) -> 6.43 | J16: =VLOOKUP($A16,'RECAP DIRCOM'!$G$6:$DC$12,62,FALSE) -> 24% | K16: =VLOOKUP($A16,'RECAP DIRCOM'!$G$6:$DC$12,63,FALSE) -> 7 | L16: =VLOOKUP($A16,'RECAP DIRCOM'!$G$6:$DC$12,64,FALSE) -> 369 | M16: =VLOOKUP($A16,'RECAP DIRCOM'!$G$6:$DC$12,65,FALSE) -> 2.69 | N16: =VLOOKUP($A16,'RECAP DIRCOM'!$G$6:$DC$12,66,FALSE) -> 31% | O16: =VLOOKUP($A16,'RECAP DIRCOM'!$G$6:$DC$12,67,FALSE) -> 3 | P16: =VLOOKUP($A16,'RECAP DIRCOM'!$G$6:$DC$12,68,FALSE) -> 37% | Q16: =VLOOKUP($A16,'RECAP DIRCOM'!$G$6:$DC$12,69,FALSE) -> 33% | R16: =VLOOKUP($A16,'RECAP DIRCOM'!$G$6:$DC$12,70,FALSE) -> 5
B17: Total CEGEE Directions Régionales | C17: =SUM(C10:C16) -> 1460

Sheet DC_IARD
B1: Accueil | D1: BAROMETRE BDD - DIRECTIONS REGIONALES
D2: IARD ET PREVOYANCE
D3: =ACCUEIL!F7 -> 2021-02-28
D7: Ventes Nettes produits pondérés | H7: Ventes sur client non détenteur de l’univers | L7: Total IARD Prévoyance
D8: =DATEMAJ!C23 -> au 28/02 | F8: coef | G8: ='RECAP DIRCOM'!CF4 -> 14% | H8: =DATEMAJ!C24 -> au 28/02 | J8: coef | K8: ='RECAP DIRCOM'!CJ4 -> 6% | M8: coef | N8: ='RECAP DIRCOM'!CM4 -> 20%
B9: Direction | C9: ="ETP perf "&DATEMAJ!$C$28 -> ETP perf 31-janv | D9: VN | E9: VN / ETP | F9: % Ecart au 1er | G9: Rang | H9: VB | I9: VB / ETP | J9: % Ecart au 1er | K9: Rang | L9: Moyenne ecart au 1er | M9: % Ecart au 1er | N9: Rang CEGEE
A10: 50 | B10: Aube Haute Marne | C10: =VLOOKUP($A10,'RECAP DIRCOM'!$G$6:$DC$12,3,FALSE) -> 132 | D10: =VLOOKUP($A10,'RECAP DIRCOM'!$G$6:$DC$12,75,FALSE) -> 4,433 | E10: =VLOOKUP($A10,'RECAP DIRCOM'!$G$6:$DC$12,76,FALSE) -> 33.66 | F10: =VLOOKUP($A10,'RECAP DIRCOM'!$G$6:$DC$12,77,FALSE) -> 26% | G10: =VLOOKUP($A10,'RECAP DIRCOM'!$G$6:$DC$12,78,FALSE) -> 6 | H10: =VLOOKUP($A10,'RECAP DIRCOM'!$G$6:$DC$12,79,FALSE) -> 891 | I10: =VLOOKUP($A10,'RECAP DIRCOM'!$G$6:$DC$12,80,FALSE) -> 6.77 | J10: =VLOOKUP($A10,'RECAP DIRCOM'!$G$6:$DC$12,81,FALSE) -> 20% | K10: =VLOOKUP($A10,'RECAP DIRCOM'!$G$6:$DC$12,82,FALSE) -> 4 | L10: =VLOOKUP($A10,'RECAP DIRCOM'!$G$6:$DC$12,83,FALSE) -> 25% | M10: =VLOOKUP($A10,'RECAP DIRCOM'!$G$6:$DC$12,84,FALSE) -> 24% | N10: =VLOOKUP($A10,'RECAP DIRCOM'!$G$6:$DC$12,85,FALSE) -> 6
A11: 262 | B11: Bas-Rhin | C11: =VLOOKUP($A11,'RECAP DIRCOM'!$G$6:$DC$12,3,FALSE) -> 268 | D11: =VLOOKUP($A11,'RECAP DIRCOM'!$G$6:$DC$12,75,FALSE) -> 12,263 | E11: =VLOOKUP($A11,'RECAP DIRCOM'!$G$6:$DC$12,76,FALSE) -> 45.72 | F11: =VLOOKUP($A11,'RECAP DIRCOM'!$G$6:$DC$12,77,FALSE) -> 0% | G11: =VLOOKUP($A11,'RECAP DIRCOM'!$G$6:$DC$12,78,FALSE) -> 1 | H11: =VLOOKUP($A11,'RECAP DIRCOM'!$G$6:$DC$12,79,FALSE) -> 1,999 | I11: =VLOOKUP($A11,'RECAP DIRCOM'!$G$6:$DC$12,80,FALSE) -> 7.45 | J11: =VLOOKUP($A11,'RECAP DIRCOM'!$G$6:$DC$12,81,FALSE) -> 12% | K11: =VLOOKUP($A11,'RECAP DIRCOM'!$G$6:$DC$12,82,FALSE) -> 2 | L11: =VLOOKUP($A11,'RECAP DIRCOM'!$G$6:$DC$12,83,FALSE) -> 4% | M11: =VLOOKUP($A11,'RECAP DIRCOM'!$G$6:$DC$12,84,FALSE) -> 3% | N11: =VLOOKUP($A11,'RECAP DIRCOM'!$G$6:$DC$12,85,FALSE) -> 2
A12: 264 | B12: Haut-Rhin | C12: =VLOOKUP($A12,'RECAP DIRCOM'!$G$6:$DC$12,3,FALSE) -> 162 | D12: =VLOOKUP($A12,'RECAP DIRCOM'!$G$6:$DC$12,75,FALSE) -> 5,791 | E12: =VLOOKUP($A12,'RECAP DIRCOM'!$G$6:$DC$12,76,FALSE) -> 35.84 | F12: =VLOOKUP($A12,'RECAP DIRCOM'!$G$6:$DC$12,77,FALSE) -> 22% | G12: =VLOOKUP($A12,'RECAP DIRCOM'!$G$6:$DC$12,78,FALSE) -> 5 | H12: =VLOOKUP($A12,'RECAP DIRCOM'!$G$6:$DC$12,79,FALSE) -> 958 | I12: =VLOOKUP($A12,'RECAP DIRCOM'!$G$6:$DC$12,80,FALSE) -> 5.93 | J12: =VLOOKUP($A12,'RECAP DIRCOM'!$G$6:$DC$12,81,FALSE) -> 30% | K12: =VLOOKUP($A12,'RECAP DIRCOM'!$G$6:$DC$12,82,FALSE) -> 7 | L12: =VLOOKUP($A12,'RECAP DIRCOM'!$G$6:$DC$12,83,FALSE) -> 24% | M12: =VLOOKUP($A12,'RECAP DIRCOM'!$G$6:$DC$12,84,FALSE) -> 24% | N12: =VLOOKUP($A12,'RECAP DIRCOM'!$G$6:$DC$12,85,FALSE) -> 5
A13: 30 | B13: Marne-Ardennes | C13: =VLOOKUP($A13,'RECAP DIRCOM'!$G$6:$DC$12,3,FALSE) -> 232 | D13: =VLOOKUP($A13,'RECAP DIRCOM'!$G$6:$DC$12,75,FALSE) -> 6,423 | E13: =VLOOKUP($A13,'RECAP DIRCOM'!$G$6:$DC$12,76,FALSE) -> 27.67 | F13: =VLOOKUP($A13,'RECAP DIRCOM'!$G$6:$DC$12,77,FALSE) -> 39% | G13: =VLOOKUP($A13,'RECAP DIRCOM'!$G$6:$DC$12,78,FALSE) -> 7 | H13: =VLOOKUP($A13,'RECAP DIRCOM'!$G$6:$DC$12,79,FALSE) -> 1,454 | I13: =VLOOKUP($A13,'RECAP DIRCOM'!$G$6:$DC$12,80,FALSE) -> 6.26 | J13: =VLOOKUP($A13,'RECAP DIRCOM'!$G$6:$DC$12,81,FALSE) -> 26% | K13: =VLOOKUP($A13,'RECAP DIRCOM'!$G$6:$DC$12,82,FALSE) -> 6 | L13: =VLOOKUP($A13,'RECAP DIRCOM'!$G$6:$DC$12,83,FALSE) -> 36% | M13: =VLOOKUP($A13,'RECAP DIRCOM'!$G$6:$DC$12,84,FALSE) -> 35% | N13: =VLOOKUP($A13,'RECAP DIRCOM'!$G$6:$DC$12,85,FALSE) -> 7
A14: 110 | B14: Meurthe et Moselle Meuse | C14: =VLOOKUP($A14,'RECAP DIRCOM'!$G$6:$DC$12,3,FALSE) -> 249 | D14: =VLOOKUP($A14,'RECAP DIRCOM'!$G$6:$DC$12,75,FALSE) -> 11,327 | E14: =VLOOKUP($A14,'RECAP DIRCOM'!$G$6:$DC$12,76,FALSE) -> 45.44 | F14: =VLOOKUP($A14,'RECAP DIRCOM'!$G$6:$DC$12,77,FALSE) -> 1% | G14: =VLOOKUP($A14,'RECAP DIRCOM'!$G$6:$DC$12,78,FALSE) -> 2 | H14: =VLOOKUP($A14,'RECAP DIRCOM'!$G$6:$DC$12,79,FALSE) -> 2,121 | I14: =VLOOKUP($A14,'RECAP DIRCOM'!$G$6:$DC$12,80,FALSE) -> 8.51 | J14: =VLOOKUP($A14,'RECAP DIRCOM'!$G$6:$DC$12,81,FALSE) -> 0% | K14: =VLOOKUP($A14,'RECAP DIRCOM'!$G$6:$DC$12,82,FALSE) -> 1 | L14: =VLOOKUP($A14,'RECAP DIRCOM'!$G$6:$DC$12,83,FALSE) -> 0% | M14: =VLOOKUP($A14,'RECAP DIRCOM'!$G$6:$DC$12,84,FALSE) -> 0% | N14: =VLOOKUP($A14,'RECAP DIRCOM'!$G$6:$DC$12,85,FALSE) -> 1
A15: 160 | B15: Moselle | C15: =VLOOKUP($A15,'RECAP DIRCOM'!$G$6:$DC$12,3,FALSE) -> 280 | D15: =VLOOKUP($A15,'RECAP DIRCOM'!$G$6:$DC$12,75,FALSE) -> 11,307 | E15: =VLOOKUP($A15,'RECAP DIRCOM'!$G$6:$DC$12,76,FALSE) -> 40.44 | F15: =VLOOKUP($A15,'RECAP DIRCOM'!$G$6:$DC$12,77,FALSE) -> 12% | G15: =VLOOKUP($A15,'RECAP DIRCOM'!$G$6:$DC$12,78,FALSE) -> 3 | H15: =VLOOKUP($A15,'RECAP DIRCOM'!$G$6:$DC$12,79,FALSE) -> 1,929 | I15: =VLOOKUP($A15,'RECAP DIRCOM'!$G$6:$DC$12,80,FALSE) -> 6.90 | J15: =VLOOKUP($A15,'RECAP DIRCOM'!$G$6:$DC$12,81,FALSE) -> 19% | K15: =VLOOKUP($A15,'RECAP DIRCOM'!$G$6:$DC$12,82,FALSE) -> 3 | L15: =VLOOKUP($A15,'RECAP DIRCOM'!$G$6:$DC$12,83,FALSE) -> 14% | M15: =VLOOKUP($A15,'RECAP DIRCOM'!$G$6:$DC$12,84,FALSE) -> 13% | N15: =VLOOKUP($A15,'RECAP DIRCOM'!$G$6:$DC$12,85,FALSE) -> 3
A16: 80 | B16: Vosges | C16: =VLOOKUP($A16,'RECAP DIRCOM'!$G$6:$DC$12,3,FALSE) -> 137 | D16: =VLOOKUP($A16,'RECAP DIRCOM'!$G$6:$DC$12,75,FALSE) -> 5,473 | E16: =VLOOKUP($A16,'RECAP DIRCOM'!$G$6:$DC$12,76,FALSE) -> 39.90 | F16: =VLOOKUP($A16,'RECAP DIRCOM'!$G$6:$DC$12,77,FALSE) -> 13% | G16: =VLOOKUP($A16,'RECAP DIRCOM'!$G$6:$DC$12,78,FALSE) -> 4 | H16: =VLOOKUP($A16,'RECAP DIRCOM'!$G$6:$DC$12,79,FALSE) -> 864 | I16: =VLOOKUP($A16,'RECAP DIRCOM'!$G$6:$DC$12,80,FALSE) -> 6.30 | J16: =VLOOKUP($A16,'RECAP DIRCOM'!$G$6:$DC$12,81,FALSE) -> 26% | K16: =VLOOKUP($A16,'RECAP DIRCOM'!$G$6:$DC$12,82,FALSE) -> 5 | L16: =VLOOKUP($A16,'RECAP DIRCOM'!$G$6:$DC$12,83,FALSE) -> 17% | M16: =VLOOKUP($A16,'RECAP DIRCOM'!$G$6:$DC$12,84,FALSE) -> 16% | N16: =VLOOKUP($A16,'RECAP DIRCOM'!$G$6:$DC$12,85,FALSE) -> 4
B17: Total CEGEE Directions Régionales | C17: =SUM(C10:C16) -> 1460

Sheet DC_SATISFACTION
B1: Accueil | D1: BAROMETRE BDD - DIRECTIONS REGIONALES
D2: SATISFACTION
D3: =ACCUEIL!F7 -> 2021-02-28
D7: NPS à froid (SAE) | G7: NPS à chaud (QHD) | J7: Total Satisfaction Clients
D8: =DATEMAJ!C4 -> au 31/12 | E8: coef | F8: ='RECAP DIRCOM'!M4 -> 10% | G8: =DATEMAJ!C5 -> au 31/12 | H8: coef | I8: ='RECAP DIRCOM'!P4 -> 10% | K8: coef | L8: ='RECAP DIRCOM'!S4 -> 20%
B9: Direction | C9: ="ETP perf "&DATEMAJ!$C$28 -> ETP perf 31-janv | E9: % Ecart au 1er | F9: Rang | H9: % Ecart au 1er | I9: Rang | J9: Moyenne ecart au 1er | K9: % Ecart au 1er | L9: Rang CEGEE
A10: 50 | B10: Aube Haute Marne | C10: =VLOOKUP($A10,'RECAP DIRCOM'!$G$6:$DC$12,3,FALSE) -> 132 | D10: =VLOOKUP($A10,'RECAP DIRCOM'!$G$6:$DC$12,5,FALSE) -> -11 | E10: =VLOOKUP($A10,'RECAP DIRCOM'!$G$6:$DC$12,6,FALSE) -> 38% | F10: =VLOOKUP($A10,'RECAP DIRCOM'!$G$6:$DC$12,7,FALSE) -> 2 | G10: =VLOOKUP($A10,'RECAP DIRCOM'!$G$6:$DC$12,8,FALSE) -> 44% | H10: =VLOOKUP($A10,'RECAP DIRCOM'!$G$6:$DC$12,9,FALSE) -> 24% | I10: =VLOOKUP($A10,'RECAP DIRCOM'!$G$6:$DC$12,10,FALSE) -> 5 | J10: =VLOOKUP($A10,'RECAP DIRCOM'!$G$6:$DC$12,11,FALSE) -> 31% | K10: =VLOOKUP($A10,'RECAP DIRCOM'!$G$6:$DC$12,12,FALSE) -> 31% | L10: =VLOOKUP($A10,'RECAP DIRCOM'!$G$6:$DC$12,13,FALSE) -> 4
A11: 262 | B11: Bas-Rhin | C11: =VLOOKUP($A11,'RECAP DIRCOM'!$G$6:$DC$12,3,FALSE) -> 268 | D11: =VLOOKUP($A11,'RECAP DIRCOM'!$G$6:$DC$12,5,FALSE) -> -21 | E11: =VLOOKUP($A11,'RECAP DIRCOM'!$G$6:$DC$12,6,FALSE) -> 131% | F11: =VLOOKUP($A11,'RECAP DIRCOM'!$G$6:$DC$12,7,FALSE) -> 6 | G11: =VLOOKUP($A11,'RECAP DIRCOM'!$G$6:$DC$12,8,FALSE) -> 42% | H11: =VLOOKUP($A11,'RECAP DIRCOM'!$G$6:$DC$12,9,FALSE) -> 27% | I11: =VLOOKUP($A11,'RECAP DIRCOM'!$G$6:$DC$12,10,FALSE) -> 6 | J11: =VLOOKUP($A11,'RECAP DIRCOM'!$G$6:$DC$12,11,FALSE) -> 79% | K11: =VLOOKUP($A11,'RECAP DIRCOM'!$G$6:$DC$12,12,FALSE) -> 79% | L11: =VLOOKUP($A11,'RECAP DIRCOM'!$G$6:$DC$12,13,FALSE) -> 6
A12: 264 | B12: Haut-Rhin | C12: =VLOOKUP($A12,'RECAP DIRCOM'!$G$6:$DC$12,3,FALSE) -> 162 | D12: =VLOOKUP($A12,'RECAP DIRCOM'!$G$6:$DC$12,5,FALSE) -> -23 | E12: =VLOOKUP($A12,'RECAP DIRCOM'!$G$6:$DC$12,6,FALSE) -> 150% | F12: =VLOOKUP($A12,'RECAP DIRCOM'!$G$6:$DC$12,7,FALSE) -> 7 | G12: =VLOOKUP($A12,'RECAP DIRCOM'!$G$6:$DC$12,8,FALSE) -> 40% | H12: =VLOOKUP($A12,'RECAP DIRCOM'!$G$6:$DC$12,9,FALSE) -> 31% | I12: =VLOOKUP($A12,'RECAP DIRCOM'!$G$6:$DC$12,10,FALSE) -> 7 | J12: =VLOOKUP($A12,'RECAP DIRCOM'!$G$6:$DC$12,11,FALSE) -> 90% | K12: =VLOOKUP($A12,'RECAP DIRCOM'!$G$6:$DC$12,12,FALSE) -> 90% | L12: =VLOOKUP($A12,'RECAP DIRCOM'!$G$6:$DC$12,13,FALSE) -> 7
A13: 30 | B13: Marne-Ardennes | C13: =VLOOKUP($A13,'RECAP DIRCOM'!$G$6:$DC$12,3,FALSE) -> 232 | D13: =VLOOKUP($A13,'RECAP DIRCOM'!$G$6:$DC$12,5,FALSE) -> -7 | E13: =VLOOKUP($A13,'RECAP DIRCOM'!$G$6:$DC$12,6,FALSE) -> 0% | F13: =VLOOKUP($A13,'RECAP DIRCOM'!$G$6:$DC$12,7,FALSE) -> 1 | G13: =VLOOKUP($A13,'RECAP DIRCOM'!$G$6:$DC$12,8,FALSE) -> 57% | H13: =VLOOKUP($A13,'RECAP DIRCOM'!$G$6:$DC$12,9,FALSE) -> 0% | I13: =VLOOKUP($A13,'RECAP DIRCOM'!$G$6:$DC$12,10,FALSE) -> 1 | J13: =VLOOKUP($A13,'RECAP DIRCOM'!$G$6:$DC$12,11,FALSE) -> 0% | K13: =VLOOKUP($A13,'RECAP DIRCOM'!$G$6:$DC$12,12,FALSE) -> 0% | L13: =VLOOKUP($A13,'RECAP DIRCOM'!$G$6:$DC$12,13,FALSE) -> 1
A14: 110 | B14: Meurthe et Moselle Meuse | C14: =VLOOKUP($A14,'RECAP DIRCOM'!$G$6:$DC$12,3,FALSE) -> 249 | D14: =VLOOKUP($A14,'RECAP DIRCOM'!$G$6:$DC$12,5,FALSE) -> -11 | E14: =VLOOKUP($A14,'RECAP DIRCOM'!$G$6:$DC$12,6,FALSE) -> 38% | F14: =VLOOKUP($A14,'RECAP DIRCOM'!$G$6:$DC$12,7,FALSE) -> 2 | G14: =VLOOKUP($A14,'RECAP DIRCOM'!$G$6:$DC$12,8,FALSE) -> 49% | H14: =VLOOKUP($A14,'RECAP DIRCOM'!$G$6:$DC$12,9,FALSE) -> 15% | I14: =VLOOKUP($A14,'RECAP DIRCOM'!$G$6:$DC$12,10,FALSE) -> 3 | J14: =VLOOKUP($A14,'RECAP DIRCOM'!$G$6:$DC$12,11,FALSE) -> 26% | K14: =VLOOKUP($A14,'RECAP DIRCOM'!$G$6:$DC$12,12,FALSE) -> 26% | L14: =VLOOKUP($A14,'RECAP DIRCOM'!$G$6:$DC$12,13,FALSE) -> 3
A15: 160 | B15: Moselle | C15: =VLOOKUP($A15,'RECAP DIRCOM'!$G$6:$DC$12,3,FALSE) -> 280 | D15: =VLOOKUP($A15,'RECAP DIRCOM'!$G$6:$DC$12,5,FALSE) -> -12 | E15: =VLOOKUP($A15,'RECAP DIRCOM'!$G$6:$DC$12,6,FALSE) -> 47% | F15: =VLOOKUP($A15,'RECAP DIRCOM'!$G$6:$DC$12,7,FALSE) -> 5 | G15: =VLOOKUP($A15,'RECAP DIRCOM'!$G$6:$DC$12,8,FALSE) -> 47% | H15: =VLOOKUP($A15,'RECAP DIRCOM'!$G$6:$DC$12,9,FALSE) -> 18% | I15: =VLOOKUP($A15,'RECAP DIRCOM'!$G$6:$DC$12,10,FALSE) -> 4 | J15: =VLOOKUP($A15,'RECAP DIRCOM'!$G$6:$DC$12,11,FALSE) -> 33% | K15: =VLOOKUP($A15,'RECAP DIRCOM'!$G$6:$DC$12,12,FALSE) -> 33% | L15: =VLOOKUP($A15,'RECAP DIRCOM'!$G$6:$DC$12,13,FALSE) -> 5
A16: 80 | B16: Vosges | C16: =VLOOKUP($A16,'RECAP DIRCOM'!$G$6:$DC$12,3,FALSE) -> 137 | D16: =VLOOKUP($A16,'RECAP DIRCOM'!$G$6:$DC$12,5,FALSE) -> -11 | E16: =VLOOKUP($A16,'RECAP DIRCOM'!$G$6:$DC$12,6,FALSE) -> 38% | F16: =VLOOKUP($A16,'RECAP DIRCOM'!$G$6:$DC$12,7,FALSE) -> 2 | G16: =VLOOKUP($A16,'RECAP DIRCOM'!$G$6:$DC$12,8,FALSE) -> 56% | H16: =VLOOKUP($A16,'RECAP DIRCOM'!$G$6:$DC$12,9,FALSE) -> 2% | I16: =VLOOKUP($A16,'RECAP DIRCOM'!$G$6:$DC$12,10,FALSE) -> 2 | J16: =VLOOKUP($A16,'RECAP DIRCOM'!$G$6:$DC$12,11,FALSE) -> 20% | K16: =VLOOKUP($A16,'RECAP DIRCOM'!$G$6:$DC$12,12,FALSE) -> 20% | L16: =VLOOKUP($A16,'RECAP DIRCOM'!$G$6:$DC$12,13,FALSE) -> 2
B17: Total CEGEE Directions Régionales | C17: =SUM(C10:C16) -> 1460

Sheet SE_FICHE
A1: Accueil
A2: BAROMETRE BDD
A4: UNITE: | B4: TERRITOIRE | E4: ETP perf : | F4: =VLOOKUP(A5,'RECAP SECT'!$G$6:$I$23,3,FALSE) -> 65.10
A5: =VLOOKUP(B5,LISTES!$H$6:$I$23,2,FALSE) -> 5130 | B5: COLMAR
C6: Coefficient du critére | E6: Résultats | I6: Ecart au 1ier | M6: Evolution | O6: Rang
E7: du 1ier | G7: du territoire | I7: Du mois | K7: Au 31/12/2019
A9: RANG au CLASSEMENT GENERAL | K9: =VLOOKUP($A$5,'RECAP SECT AN'!$G$6:$FS$312,168,FALSE) -> 17 | M9: =+K9-O9 ->  | O9: =VLOOKUP($A$5,'RECAP SECT'!$G$6:$DG$312,168,FALSE) ->  | S9: =VLOOKUP($A$5,'RECAP SECT AN'!$G$6:$FE$312,154,FALSE) -> 1 | U9: =+S9-O9 -> 
A11: CRITERE CONQUETE | C11: 15% | O11: =VLOOKUP($A$5,'RECAP SECT'!$G$6:$DG$312,23,FALSE) -> 6.589682546
B12: PNB Evolution nette Clients BP | C12: 4% | E12: ='RECAP SECT'!#REF! ->  | G12: =VLOOKUP($A$5,'RECAP SECT'!$G$6:$DG$312,6,FALSE) -> 1.0 | I12: =VLOOKUP($A$5,'RECAP SECT'!$G$6:$DG$312,7,FALSE) -> 1400% | K12: =VLOOKUP($A$5,'RECAP SECT AN'!$G$6:$FS$312,7,FALSE) -> 134% | M12: =+K12-I12 -> -1266% | O12: =VLOOKUP($A$5,'RECAP SECT'!$G$6:$DG$312,8,FALSE) -> 0.459 | S12: =VLOOKUP($A$5,'RECAP SECT AN'!$G$6:$FE$312,6,FALSE) -> -181% | U12: =+S12-I12 -> -1581%
B13: PNB Evolution nette Clients PREMIUM | C13: 5% | E13: ='RECAP SECT'!#REF! ->  | G13: =VLOOKUP($A$5,'RECAP SECT'!$G$6:$DG$312,10,FALSE) -> 12.0 | I13: =VLOOKUP($A$5,'RECAP SECT'!$G$6:$DG$312,11,FALSE) -> 66% | K13: =VLOOKUP($A$5,'RECAP SECT AN'!$G$6:$FS$312,11,FALSE) -> 20% | M13: =+K13-I13 -> -46% | O13: =VLOOKUP($A$5,'RECAP SECT'!$G$6:$DG$312,12,FALSE) -> 0.664318168 | S13: =VLOOKUP($A$5,'RECAP SECT AN'!$G$6:$FE$312,9,FALSE) -> 287% | U13: =+S13-I13 -> 220%
B14: PNB Evolution nette Clients Jeunes Equipés | C14: 3% | E14: ='RECAP SECT'!#REF! ->  | G14: =VLOOKUP($A$5,'RECAP SECT'!$G$6:$DG$312,14,FALSE) -> 0.0 | I14: =VLOOKUP($A$5,'RECAP SECT'!$G$6:$DG$312,15,FALSE) -> 0% | K14: =VLOOKUP($A$5,'RECAP SECT AN'!$G$6:$FS$312,15,FALSE) -> -99% | M14: =+K14-I14 -> -99% | O14: =VLOOKUP($A$5,'RECAP SECT'!$G$6:$DG$312,16,FALSE) -> 0 | S14: =VLOOKUP($A$5,'RECAP SECT AN'!$G$6:$FE$312,12,FALSE) -> 1300% | U14: =+S14-I14 -> 1300%
B15: PNB Evolution nette Clients Pro Actifs Equipés | C15: 3% | E15: ='RECAP SECT'!W4 -> 0.0 | G15: =VLOOKUP($A$5,'RECAP SECT'!$G$6:$DG$312,18,FALSE) -> 390.8 | I15: =VLOOKUP($A$5,'RECAP SECT'!$G$6:$DG$312,19,FALSE) -> 600% | K15: =VLOOKUP($A$5,'RECAP SECT AN'!$G$6:$FS$312,19,FALSE) -> 54% | M15: =+K15-I15 -> -546% | O15: =VLOOKUP($A$5,'RECAP SECT'!$G$6:$DG$312,20,FALSE) -> 0.6981969408 | S15: =VLOOKUP($A$5,'RECAP SECT AN'!$G$6:$FE$312,15,FALSE) -> -99% | U15: =+S15-I15 -> -699%
A17: CRITERE BANCARISATION | C17: 15% | O17: =VLOOKUP($A$5,'RECAP SECT'!$G$6:$DG$312,48,FALSE) -> 11
B18: PNB Ventes nettes forfaits | C18: 4% | E18: ='RECAP SECT'!X4 -> 19.9 | G18: =VLOOKUP($A$5,'RECAP SECT'!$G$6:$DG$312,31,FALSE) -> -0.4 | I18: =VLOOKUP($A$5,'RECAP SECT'!$G$6:$DG$312,32,FALSE) -> 36% | K18: =VLOOKUP($A$5,'RECAP SECT AN'!$G$6:$FS$312,32,FALSE) -> 117% | M18: =+K18-I18 -> 80% | O18: =VLOOKUP($A$5,'RECAP SECT'!$G$6:$DG$312,33,FALSE) -> 13 | S18: =VLOOKUP($A$5,'RECAP SECT AN'!$G$6:$FE$312,27,FALSE) -> 0% | U18: =+S18-I18 -> -36%
B19: PNB Ventes nettes IZICARTES Débit Différé | C19: 4% | E19: ='RECAP SECT'!AB4 -> 12.6 | G19: =VLOOKUP($A$5,'RECAP SECT'!$G$6:$DG$312,35,FALSE) -> 0.4 | I19: =VLOOKUP($A$5,'RECAP SECT'!$G$6:$DG$312,36,FALSE) -> 1700% | K19: =VLOOKUP($A$5,'RECAP SECT AN'!$G$6:$FS$312,36,FALSE) -> 27% | M19: =+K19-I19 -> -1673% | O19: =VLOOKUP($A$5,'RECAP SECT'!$G$6:$DG$312,37,FALSE) -> 0 | S19: =VLOOKUP($A$5,'RECAP SECT AN'!$G$6:$FE$312,30,FALSE) -> 430% | U19: =+S19-I19 -> -1270%
B20: PNB Ventes nettes cartes HDG Débit Différé | C20: 4% | E20: ='RECAP SECT'!AF4 -> 4.3 | G20: =VLOOKUP($A$5,'RECAP SECT'!$G$6:$DG$312,39,FALSE) -> 0.0 | I20: =VLOOKUP($A$5,'RECAP SECT'!$G$6:$DG$312,40,FALSE) -> 0% | K20: =VLOOKUP($A$5,'RECAP SECT AN'!$G$6:$FS$312,40,FALSE) -> 35% | M20: =+K20-I20 -> 35% | O20: =VLOOKUP($A$5,'RECAP SECT'!$G$6:$DG$312,41,FALSE) -> 5293.681503 | S20: =VLOOKUP($A$5,'RECAP SECT AN'!$G$6:$FE$312,33,FALSE) -> 1600% | U20: =+S20-I20 -> 1600%
B21: PNB Ventes nettes Forfaits Pro, Carte pro | C21: 3% | E21: ='RECAP SECT'!AJ4 -> -0.3 | G21: =VLOOKUP($A$5,'RECAP SECT'!$G$6:$DG$312,43,FALSE) -> 0.6 | I21: =VLOOKUP($A$5,'RECAP SECT'!$G$6:$DG$312,44,FALSE) -> 1300% | K21: =VLOOKUP($A$5,'RECAP SECT AN'!$G$6:$FS$312,44,FALSE) -> 87% | M21: =+K21-I21 -> -1213% | O21: =VLOOKUP($A$5,'RECAP SECT'!$G$6:$DG$312,45,FALSE) -> 331 | S21: =VLOOKUP($A$5,'RECAP SECT AN'!$G$6:$FE$312,39,FALSE) -> 467% | U21: =+S21-I21 -> -833%
A23: CRITERE EPARGNE | C23: 10% | O23: =VLOOKUP($A$5,'RECAP SECT'!$G$6:$DG$312,69,FALSE) -> 0.5299100034
B24: PNB Epargne Liquide | C24: 3% | E24: ='RECAP SECT'!AU4 -> 216.6 | G24: =VLOOKUP($A$5,'RECAP SECT'!$G$6:$DG$312,56,FALSE) -> 428.4 | I24: =VLOOKUP($A$5,'RECAP SECT'!$G$6:$DG$312,57,FALSE) -> 658% | K24: =VLOOKUP($A$5,'RECAP SECT AN'!$G$6:$FS$312,57,FALSE) -> 25% | M24: =+K24-I24 -> -633% | O24: =VLOOKUP($A$5,'RECAP SECT'!$G$6:$DG$312,58,FALSE) -> 0.7750935634 | S24: =VLOOKUP($A$5,'RECAP SECT AN'!$G$6:$FE$312,51,FALSE) -> 0% | U24: =+S24-I24 -> -658%
B25: PNB CA UC + arbitrage | C25: 4% | E25: ='RECAP SECT'!AY4 -> 8.7 | G25: =VLOOKUP($A$5,'RECAP SECT'!$G$6:$DG$312,60,FALSE) -> 473.3 | I25: =VLOOKUP($A$5,'RECAP SECT'!$G$6:$DG$312,61,FALSE) -> 727% | K25: =VLOOKUP($A$5,'RECAP SECT AN'!$G$6:$FS$312,61,FALSE) -> 23% | M25: =+K25-I25 -> -705% | O25: =VLOOKUP($A$5,'RECAP SECT'!$G$6:$DG$312,62,FALSE) -> 0.3783214485 | S25: =VLOOKUP($A$5,'RECAP SECT AN'!$G$6:$FE$312,57,FALSE) -> 25% | U25: =+S25-I25 -> -702%
B26: PNB Excédent assurance vie | C26: 3% | E26: ='RECAP SECT'!#REF! ->  | G26: =VLOOKUP($A$5,'RECAP SECT'!$G$6:$DG$312,64,FALSE) -> 140.0 | I26: =VLOOKUP($A$5,'RECAP SECT'!$G$6:$DG$312,65,FALSE) -> 215% | K26: =VLOOKUP($A$5,'RECAP SECT AN'!$G$6:$FS$312,65,FALSE) -> 114% | M26: =+K26-I26 -> -101% | O26: =VLOOKUP($A$5,'RECAP SECT'!$G$6:$DG$312,66,FALSE) -> 0.6330406121 | S26: =VLOOKUP($A$5,'RECAP SECT AN'!$G$6:$FE$312,60,FALSE) -> 107% | U26: =+S26-I26 -> -108%
A28: CRITERE CREDITS | C28: 15% | O28: =VLOOKUP($A$5,'RECAP SECT'!$G$6:$DG$312,102,FALSE) -> 0.4362589567
B29: PNB crédit conso | C29: 4% | E29: ='RECAP SECT'!BJ4 -> 29.3 | G29: =VLOOKUP($A$5,'RECAP SECT'!$G$6:$DG$312,77,FALSE) -> 0.1 | I29: =VLOOKUP($A$5,'RECAP SECT'!$G$6:$DG$312,78,FALSE) -> 300% | K29: =VLOOKUP($A$5,'RECAP SECT AN'!$G$6:$FS$312,78,FALSE) -> 37% | M29: =+K29-I29 -> -263% | O29: =VLOOKUP($A$5,'RECAP SECT'!$G$6:$DG$312,79,FALSE) -> 463 | S29: =VLOOKUP($A$5,'RECAP SECT AN'!$G$6:$FE$312,75,FALSE) -> 0% | U29: =+S29-I29 -> -300%
B30: PNB ADE crédit conso | C30: 1% | E30: ='RECAP SECT'!#REF! ->  | G30: =VLOOKUP($A$5,'RECAP SECT'!$G$6:$DG$312,81,FALSE) -> 0.4 | I30: =VLOOKUP($A$5,'RECAP SECT'!$G$6:$DG$312,82,FALSE) -> 1700% | K30: =VLOOKUP($A$5,'RECAP SECT AN'!$G$6:$FS$312,82,FALSE) -> 44% | M30: -1656% | O30: =VLOOKUP($A$5,'RECAP SECT'!$G$6:$DG$312,83,FALSE) -> 0.1953502907 | S30: =VLOOKUP($A$5,'RECAP SECT AN'!$G$6:$FE$312,78,FALSE) -> 37% | U30: -1663%
B31: PNB crédit immo | C31: 4% | E31: ='RECAP SECT'!BN4 -> 11.7 | G31: =VLOOKUP($A$5,'RECAP SECT'!$G$6:$DG$312,85,FALSE) -> 6.0 | I31: =VLOOKUP($A$5,'RECAP SECT'!$G$6:$DG$312,86,FALSE) -> 0% | K31: =VLOOKUP($A$5,'RECAP SECT AN'!$G$6:$FS$312,86,FALSE) -> 38% | M31: 38% | O31: =VLOOKUP($A$5,'RECAP SECT'!$G$6:$DG$312,87,FALSE) -> 0 | S31: =VLOOKUP($A$5,'RECAP SECT AN'!$G$6:$FE$312,81,FALSE) -> 782% | U31: 782%
B32: PNB ADE crédit immo | C32: 2% | E32: ='RECAP SECT'!#REF! ->  | G32: =VLOOKUP($A$5,'RECAP SECT'!$G$6:$DG$312,89,FALSE) -> 0.0 | I32: =VLOOKUP($A$5,'RECAP SECT'!$G$6:$DG$312,90,FALSE) -> 0% | K32: =VLOOKUP($A$5,'RECAP SECT AN'!$G$6:$FS$312,90,FALSE) -> 49% | M32: 49% | O32: =VLOOKUP($A$5,'RECAP SECT'!$G$6:$DG$312,91,FALSE) -> 0 | S32: =VLOOKUP($A$5,'RECAP SECT AN'!$G$6:$FE$312,84,FALSE) -> 139312% | U32: 139312%
B33: PNB SACCEF | C33: 2% | E33: ='RECAP SECT'!#REF! ->  | G33: =VLOOKUP($A$5,'RECAP SECT'!$G$6:$DG$312,93,FALSE) -> 0.0 | I33: =VLOOKUP($A$5,'RECAP SECT'!$G$6:$DG$312,94,FALSE) -> 0% | K33: =VLOOKUP($A$5,'RECAP SECT AN'!$G$6:$FS$312,94,FALSE) -> 51% | M33: 51% | O33: =VLOOKUP($A$5,'RECAP SECT'!$G$6:$DG$312,95,FALSE) -> 0 | S33: =VLOOKUP($A$5,'RECAP SECT AN'!$G$6:$FE$312,87,FALSE) -> 1100% | U33: 1100%
B34: PNB Crédit MLT + Crédit Bail | C34: 2% | E34: ='RECAP SECT'!BR4 -> 5.9 | G34: =VLOOKUP($A$5,'RECAP SECT'!$G$6:$DG$312,97,FALSE) -> 0.0 | I34: =VLOOKUP($A$5,'RECAP SECT'!$G$6:$DG$312,98,FALSE) -> 0% | K34: =VLOOKUP($A$5,'RECAP SECT AN'!$G$6:$FS$312,98,FALSE) -> 74% | M34: 74% | O34: =VLOOKUP($A$5,'RECAP SECT'!$G$6:$DG$312,99,FALSE) -> 0 | S34: =VLOOKUP($A$5,'RECAP SECT AN'!$G$6:$FE$312,90,FALSE) -> 49% | U34: 49%
A36: CRITERE IARD PREVOYANCE | C36: 15% | O36: =VLOOKUP($A$5,'RECAP SECT'!$G$6:$DG$312,119,FALSE) -> 
B37: PNB Ventes nettes IARD | C37: 9% | E37: ='RECAP SECT'!CC4 -> 66.6 | G37: =VLOOKUP($A$5,'RECAP SECT'!$G$6:$DG$312,110,FALSE) ->  | I37: =VLOOKUP($A$5,'RECAP SECT'!$G$6:$DG$312,111,FALSE) ->  | K37: =VLOOKUP($A$5,'RECAP SECT AN'!$G$6:$FS$312,111,FALSE) -> 75% | M37: =+K37-I37 ->  | O37: =VLOOKUP($A$5,'RECAP SECT'!$G$6:$DG$312,112,FALSE) ->  | S37: =VLOOKUP($A$5,'RECAP SECT AN'!$G$6:$FE$312,102,FALSE) -> 1800% | U37: =+S37-I37 -> 
B38: PNB Ventes nettes Prévoyance | C38: 6% | E38: ='RECAP SECT'!CG4 -> 11.6 | G38: =VLOOKUP($A$5,'RECAP SECT'!$G$6:$DG$312,114,FALSE) ->  | I38: =VLOOKUP($A$5,'RECAP SECT'!$G$6:$DG$312,115,FALSE) ->  | K38: =VLOOKUP($A$5,'RECAP SECT AN'!$G$6:$FS$312,115,FALSE) -> 62% | M38: =+K38-I38 ->  | O38: =VLOOKUP($A$5,'RECAP SECT'!$G$6:$DG$312,116,FALSE) ->  | S38: =VLOOKUP($A$5,'RECAP SECT AN'!$G$6:$FE$312,105,FALSE) -> 0% | U38: =+S38-I38 -> 
A40: CRITERE ACCELERATEURS PNB | C40: 15% | O40: =VLOOKUP($A$5,'RECAP SECT'!$G$6:$DG$312,144,FALSE) -> 
B41: PNB Ventes brutes SED Finalisées | C41: 6% | E41: ='RECAP SECT'!#REF! ->  | G41: =VLOOKUP($A$5,'RECAP SECT'!$G$6:$DG$312,127,FALSE) ->  | I41: =VLOOKUP($A$5,'RECAP SECT'!$G$6:$DG$312,128,FALSE) ->  | K41: =VLOOKUP($A$5,'RECAP SECT AN'!$G$6:$FS$312,128,FALSE) -> 45% | M41: =+K41-I41 ->  | O41: =VLOOKUP($A$5,'RECAP SECT'!$G$6:$DG$312,129,FALSE) ->  | S41: =VLOOKUP($A$5,'RECAP SECT AN'!$G$6:$FE$312,120,FALSE) -> 0% | U41: =+S41-I41 -> 
B42: PNB clients équipés E documents | C42: 3% | E42: ='RECAP SECT'!#REF! ->  | G42: =VLOOKUP($A$5,'RECAP SECT'!$G$6:$DG$312,131,FALSE) ->  | I42: =VLOOKUP($A$5,'RECAP SECT'!$G$6:$DG$312,132,FALSE) ->  | K42: =VLOOKUP($A$5,'RECAP SECT AN'!$G$6:$FS$312,132,FALSE) -> 43% | M42: =+K42-I42 ->  | O42: =VLOOKUP($A$5,'RECAP SECT'!$G$6:$DG$312,133,FALSE) ->  | S42: =VLOOKUP($A$5,'RECAP SECT AN'!$G$6:$FE$312,123,FALSE) -> 0% | U42: =+S42-I42 -> 
B43: Economie opt'in | C43: 3% | E43: ='RECAP SECT'!#REF! ->  | G43: =VLOOKUP($A$5,'RECAP SECT'!$G$6:$DG$312,135,FALSE) ->  | I43: =VLOOKUP($A$5,'RECAP SECT'!$G$6:$DG$312,136,FALSE) ->  | K43: =VLOOKUP($A$5,'RECAP SECT AN'!$G$6:$FS$312,136,FALSE) -> 55% | M43: =+K43-I43 ->  | O43: =VLOOKUP($A$5,'RECAP SECT'!$G$6:$DG$312,137,FALSE) -> 
B44: Remises commerciales | C44: 3% | E44: ='RECAP SECT'!#REF! ->  | G44: =VLOOKUP($A$5,'RECAP SECT'!$G$6:$DG$312,139,FALSE) ->  | I44: =VLOOKUP($A$5,'RECAP SECT'!$G$6:$DG$312,140,FALSE) ->  | K44: =VLOOKUP($A$5,'RECAP SECT AN'!$G$6:$FS$312,140,FALSE) -> 45% | M44: =+K44-I44 ->  | O44: =VLOOKUP($A$5,'RECAP SECT'!$G$6:$DG$312,141,FALSE) ->  | S44: =VLOOKUP($A$5,'RECAP SECT AN'!$G$6:$FE$312,126,FALSE) -> 2124% | U44: =+S44-I44 -> 
A46: CRITERE Satisfaction Clients | C46: 15% | O46: =VLOOKUP($A$5,'RECAP SECT'!$G$6:$DG$312,159,FALSE) -> 
B47: Objectifs NPS* | C47: 8% | E47: ='RECAP SECT'!K4 -> -3 | G47: =VLOOKUP($A$5,'RECAP SECT'!$G$6:$DG$312,151,FALSE) ->  | I47: =VLOOKUP($A$5,'RECAP SECT'!$G$6:$DG$312,152,FALSE) ->  | K47: =VLOOKUP($A$5,'RECAP SECT AN'!$G$6:$FS$312,152,FALSE) -> 110% | M47: =+K47-I47 ->  | O47: =VLOOKUP($A$5,'RECAP SECT'!$G$6:$DG$312,153,FALSE) ->  | S47: =VLOOKUP($A$5,'RECAP SECT AN'!$G$6:$FE$312,138,FALSE) -> -33048% | U47: =+S47-I47 -> 
B48: Enquête Qualité Haute Définition | C48: 7% | E48: ='RECAP SECT'!N4 -> 64% | G48: =VLOOKUP($A$5,'RECAP SECT'!$G$6:$DG$312,154,FALSE) ->  | I48: =VLOOKUP($A$5,'RECAP SECT'!$G$6:$DG$312,155,FALSE) ->  | K48: =VLOOKUP($A$5,'RECAP SECT AN'!$G$6:$FS$312,155,FALSE) -> 7% | M48: =+K48-I48 ->  | O48: =VLOOKUP($A$5,'RECAP SECT'!$G$6:$DG$312,156,FALSE) ->  | S48: =VLOOKUP($A$5,'RECAP SECT AN'!$G$6:$FE$312,141,FALSE) -> 1000% | U48: =+S48-I48 -> 

Sheet SE_TOTAL
B1: Accueil | F1: BAROMETRE BDD - TERRITOIRES
F2: TOTAL GENERAL
F3: =ACCUEIL!F7 -> 2021-02-28
F7: TOTAL GENERAL | I7: Total Satisfaction Clients | L7: Total Bancarisation | O7: Total Epargne | R7: Total IARD Prévoyance | U7: Total Crédits
G8: coef | H8: 100% | J8: coef | K8: =SE_SATISFACTION!N8 -> 20% | M8: coef | N8: =SE_BANCA!X8 -> 20% | P8: coef | Q8: =SE_EPARGNE!P8 -> 20% | S8: coef | T8: =SE_IARD!P8 -> 20% | V8: coef | W8: =SE_CREDIT!T8 -> 20%
B9: Direction | C9: eds | D9: Territoire | E9: ="ETP perf "&DATEMAJ!$C$28 -> ETP perf 31-janv | F9: Moyenne ecart au 1er | G9: % Ecart au 1er | H9: Rang CEGEE | I9: Moyenne ecart au 1er | J9: % Ecart au 1er | K9: Rang CEGEE | L9: Moyenne ecart au 1er | M9: % Ecart au 1er | N9: Rang CEGEE | O9: Moyenne ecart au 1er | P9: % Ecart au 1er | Q9: Rang CEGEE | R9: Moyenne ecart au 1er | S9: % Ecart au 1er | T9: Rang CEGEE | U9: Moyenne ecart au 1er | V9: % Ecart au 1er | W9: Rang CEGEE
A10: 50 | B10: MEURTHE ET MOSELLE MEUSE | C10: 26 | D10: NANCY | E10: 67.6 | F10: 12% | G10: 0% | H10: 1 | I10: 42% | J10: 42% | K10: 10 | L10: 26% | M10: 1% | N10: 2 | O10: 32% | P10: 16% | Q10: 7 | R10: 0% | S10: 0% | T10: 1 | U10: 8% | V10: 0% | W10: 1
A11: 50 | B11: MEURTHE ET MOSELLE MEUSE | C11: 27 | D11: PONT A MOUSSON | E11: 77.5 | F11: 19% | G11: 7% | H11: 2 | I11: 51% | J11: 51% | K11: 12 | L11: 35% | M11: 11% | N11: 5 | O11: 24% | P11: 9% | Q11: 4 | R11: 19% | S11: 19% | T11: 5 | U11: 14% | V11: 6% | W11: 2
A12: 262 | B12: AUBE HAUTE MARNE | C12: 21 | D12: CHAUMONT | E12: 34.0 | F12: 25% | G12: 13% | H12: 3 | I12: 14% | J12: 14% | K12: 3 | L12: 44% | M12: 19% | N12: 11 | O12: 62% | P12: 47% | Q12: 15 | R12: 12% | S12: 12% | T12: 2 | U12: 41% | V12: 32% | W12: 10
A13: 262 | B13: VOSGES | C13: 57 | D13: EPINAL | E13: 61.5 | F13: 25% | G13: 13% | H13: 4 | I13: 39% | J13: 39% | K13: 9 | L13: 48% | M13: 24% | N13: 13 | O13: 18% | P13: 2% | Q13: 2 | R13: 28% | S13: 28% | T13: 10 | U13: 40% | V13: 32% | W13: 9
A14: 262 | B14: MARNE-ARDENNES | C14: 2 | D14: CHARLEVILLE MEZIERES | E14: 56.0 | F14: 26% | G14: 14% | H14: 5 | I14: 28% | J14: 28% | K14: 7 | L14: 38% | M14: 14% | N14: 8 | O14: 42% | P14: 27% | Q14: 11 | R14: 43% | S14: 43% | T14: 16 | U14: 24% | V14: 16% | W14: 4
A15: 264 | B15: MARNE-ARDENNES | C15: 6 | D15: CHALONS EN CHAMPAGNE | E15: 45.4 | F15: 26% | G15: 14% | H15: 6 | I15: 0% | J15: 0% | K15: 1 | L15: 36% | M15: 12% | N15: 6 | O15: 56% | P15: 40% | Q15: 13 | R15: 46% | S15: 46% | T15: 18 | U15: 40% | V15: 31% | W15: 7
A16: 264 | B16: BAS-RHIN | C16: 5101 | D16: SELESTAT | E16: 63.5 | F16: 26% | G16: 14% | H16: 7 | I16: 79% | J16: 79% | K16: 15 | L16: 24% | M16: 0% | N16: 1 | O16: 15% | P16: 0% | Q16: 1 | R16: 13% | S16: 13% | T16: 3 | U16: 47% | V16: 39% | W16: 14
A17: 30 | B17: MOSELLE | C17: 45 | D17: METZ | E17: 89.1 | F17: 27% | G17: 15% | H17: 8 | I17: 22% | J17: 22% | K17: 5 | L17: 49% | M17: 25% | N17: 14 | O17: 41% | P17: 26% | Q17: 9 | R17: 29% | S17: 29% | T17: 12 | U17: 40% | V17: 31% | W17: 8
A18: 30 | B18: VOSGES | C18: 55 | D18: SAINT DIE | E18: 50.2 | F18: 27% | G18: 15% | H18: 9 | I18: 26% | J18: 26% | K18: 6 | L18: 51% | M18: 27% | N18: 16 | O18: 25% | P18: 9% | Q18: 5 | R18: 29% | S18: 29% | T18: 11 | U18: 53% | V18: 45% | W18: 16
A19: 30 | B19: MARNE-ARDENNES | C19: 11 | D19: REIMS | E19: 83.2 | F19: 28% | G19: 16% | H19: 10 | I19: 21% | J19: 21% | K19: 4 | L19: 35% | M19: 11% | N19: 4 | O19: 65% | P19: 49% | Q19: 16 | R19: 41% | S19: 41% | T19: 14 | U19: 24% | V19: 16% | W19: 3
A20: 110 | B20: MEURTHE ET MOSELLE MEUSE | C20: 31 | D20: VERDUN | E20: 58.4 | F20: 28% | G20: 16% | H20: 11 | I20: 12% | J20: 12% | K20: 2 | L20: 44% | M20: 20% | N20: 12 | O20: 70% | P20: 54% | Q20: 17 | R20: 26% | S20: 26% | T20: 9 | U20: 34% | V20: 26% | W20: 5
A21: 110 | B21: BAS-RHIN | C21: 5060 | D21: HAGUENAU | E21: 74.1 | F21: 28% | G21: 16% | H21: 12 | I21: 44% | J21: 44% | K21: 11 | L21: 51% | M21: 26% | N21: 15 | O21: 21% | P21: 6% | Q21: 3 | R21: 25% | S21: 25% | T21: 8 | U21: 45% | V21: 37% | W21: 12
A22: 110 | B22: MOSELLE | C22: 42 | D22: MOSELLE EST | E22: 72.5 | F22: 30% | G22: 19% | H22: 13 | I22: 33% | J22: 33% | K22: 8 | L22: 42% | M22: 18% | N22: 10 | O22: 42% | P22: 26% | Q22: 10 | R22: 36% | S22: 36% | T22: 13 | U22: 48% | V22: 40% | W22: 15
A23: 160 | B23: BAS-RHIN | C23: 5006 | D23: STRASBOURG | E23: 83.0 | F23: 33% | G23: 21% | H23: 14 | I23: 98% | J23: 98% | K23: 17 | L23: 30% | M23: 5% | N23: 3 | O23: 29% | P23: 14% | Q23: 6 | R23: 16% | S23: 16% | T23: 4 | U23: 42% | V23: 33% | W23: 11
A24: 160 | B24: MOSELLE | C24: 44 | D24: MOSELLE NORD | E24: 74.2 | F24: 34% | G24: 22% | H24: 15 | I24: 83% | J24: 83% | K24: 16 | L24: 41% | M24: 16% | N24: 9 | O24: 35% | P24: 20% | Q24: 8 | R24: 21% | S24: 21% | T24: 7 | U24: 38% | V24: 30% | W24: 6
A25: 160 | B25: AUBE HAUTE MARNE | C25: 14 | D25: TROYES | E25: 68.9 | F25: 41% | G25: 29% | H25: 16 | I25: 56% | J25: 56% | K25: 13 | L25: 38% | M25: 14% | N25: 7 | O25: 70% | P25: 54% | Q25: 18 | R25: 42% | S25: 42% | T25: 15 | U25: 46% | V25: 38% | W25: 13
A26: 80 | B26: HAUT-RHIN | C26: 5130 | D26: COLMAR | E26: 65.1 | F26: 44% | G26: 32% | H26: 17 | I26: 66% | J26: 66% | K26: 14 | L26: 63% | M26: 39% | N26: 17 | O26: 56% | P26: 41% | Q26: 14 | R26: 20% | S26: 20% | T26: 6 | U26: 61% | V26: 53% | W26: 18
A27: 80 | B27: HAUT-RHIN | C27: 5169 | D27: MULHOUSE | E27: 61.5 | F27: 55% | G27: 43% | H27: 18 | I27: 99% | J27: 99% | K27: 18 | L27: 72% | M27: 48% | N27: 18 | O27: 51% | P27: 35% | Q27: 12 | R27: 46% | S27: 46% | T27: 17 | U27: 55% | V27: 47% | W27: 17
A28: Total CEGEE Directions Régionales | E28: =SUM(E10:E27) -> 1186

Sheet SE_BANCA
B1: Accueil | F1: BAROMETRE BDD - TERRITOIRES
F2: BANCARISATION
F3: =ACCUEIL!F7 -> 2021-02-28
F7: Ventes Nettes produits pondérés | J7: Ventes sur client non détenteur de l’univers | N7: Mobilité Macron | R7: Remises commerciales | V7: Total Bancarisation
F8: =DATEMAJ!C8 -> au 28/02 | H8: coef | I8: ='RECAP DIRCOM'!AA4 -> 10% | J8: =DATEMAJ!C9 -> au 28/02 | L8: coef | M8: ='RECAP DIRCOM'!AE4 -> 4% | N8: =DATEMAJ!C10 -> au 28/02 | P8: coef | Q8: ='RECAP DIRCOM'!AI4 -> 3% | R8: =DATEMAJ!C11 -> au 31/01 | T8: coef | U8: ='RECAP DIRCOM'!AM4 -> 3% | W8: coef | X8: ='RECAP DIRCOM'!AP4 -> 20%
B9: Direction | C9: eds | D9: Territoire | E9: ="ETP perf "&DATEMAJ!$C$28 -> ETP perf 31-janv | F9: VN | G9: VN / ETP | H9: % Ecart au 1er | I9: Rang | J9: VB | K9: VB / ETP | L9: % Ecart au 1er | M9: Rang | N9: Nb | O9: Nb / ETP | P9: % Ecart au 1er | Q9: Rang | R9: Montant | S9: Montant / ETP | T9: % Ecart au 1er | U9: Rang | V9: Moyenne ecart au 1er | W9: % Ecart au 1er | X9: Rang CEGEE
A10: 50 | B10: AUBE HAUTE MARNE | C10: 21 | D10: CHAUMONT | E10: =VLOOKUP($C10,'RECAP SECT'!$G$6:$DC$253,3,FALSE) -> 34.0 | F10: =VLOOKUP($C10,'RECAP SECT'!$G$6:$DC$253,18,FALSE) -> 312 | G10: =VLOOKUP($C10,'RECAP SECT'!$G$6:$DC$253,19,FALSE) -> 9.18 | H10: =VLOOKUP($C10,'RECAP SECT'!$G$6:$DC$253,20,FALSE) -> 54% | I10: =VLOOKUP($C10,'RECAP SECT'!$G$6:$DC$253,21,FALSE) -> 11 | J10: =VLOOKUP($C10,'RECAP SECT'!$G$6:$DC$253,22,FALSE) -> 322 | K10: =VLOOKUP($C10,'RECAP SECT'!$G$6:$DC$253,23,FALSE) -> 9.47 | L10: =VLOOKUP($C10,'RECAP SECT'!$G$6:$DC$253,24,FALSE) -> 25% | M10: =VLOOKUP($C10,'RECAP SECT'!$G$6:$DC$253,25,FALSE) -> 7 | N10: =VLOOKUP($C10,'RECAP SECT'!$G$6:$DC$253,26,FALSE) -> 42 | O10: =VLOOKUP($C10,'RECAP SECT'!$G$6:$DC$253,27,FALSE) -> 1.24 | P10: =VLOOKUP($C10,'RECAP SECT'!$G$6:$DC$253,28,FALSE) -> 71% | Q10: =VLOOKUP($C10,'RECAP SECT'!$G$6:$DC$253,29,FALSE) -> 11 | R10: =VLOOKUP($C10,'RECAP SECT'!$G$6:$DC$253,30,FALSE) -> -9.5 | S10: =VLOOKUP($C10,'RECAP SECT'!$G$6:$DC$253,31,FALSE) -> -0.28 | T10: =VLOOKUP($C10,'RECAP SECT'!$G$6:$DC$253,32,FALSE) -> 7% | U10: =VLOOKUP($C10,'RECAP SECT'!$G$6:$DC$253,33,FALSE) -> 3 | V10: =VLOOKUP($C10,'RECAP SECT'!$G$6:$DC$253,34,FALSE) -> 44% | W10: =VLOOKUP($C10,'RECAP SECT'!$G$6:$DC$253,35,FALSE) -> 19% | X10: =VLOOKUP($C10,'RECAP SECT'!$G$6:$DC$253,36,FALSE) -> 11
A11: 50 | B11: AUBE HAUTE MARNE | C11: 14 | D11: TROYES | E11: =VLOOKUP($C11,'RECAP SECT'!$G$6:$DC$253,3,FALSE) -> 68.9 | F11: =VLOOKUP($C11,'RECAP SECT'!$G$6:$DC$253,18,FALSE) -> 883 | G11: =VLOOKUP($C11,'RECAP SECT'!$G$6:$DC$253,19,FALSE) -> 12.83 | H11: =VLOOKUP($C11,'RECAP SECT'!$G$6:$DC$253,20,FALSE) -> 35% | I11: =VLOOKUP($C11,'RECAP SECT'!$G$6:$DC$253,21,FALSE) -> 3 | J11: =VLOOKUP($C11,'RECAP SECT'!$G$6:$DC$253,22,FALSE) -> 629 | K11: =VLOOKUP($C11,'RECAP SECT'!$G$6:$DC$253,23,FALSE) -> 9.14 | L11: =VLOOKUP($C11,'RECAP SECT'!$G$6:$DC$253,24,FALSE) -> 28% | M11: =VLOOKUP($C11,'RECAP SECT'!$G$6:$DC$253,25,FALSE) -> 10 | N11: =VLOOKUP($C11,'RECAP SECT'!$G$6:$DC$253,26,FALSE) -> 86 | O11: =VLOOKUP($C11,'RECAP SECT'!$G$6:$DC$253,27,FALSE) -> 1.25 | P11: =VLOOKUP($C11,'RECAP SECT'!$G$6:$DC$253,28,FALSE) -> 71% | Q11: =VLOOKUP($C11,'RECAP SECT'!$G$6:$DC$253,29,FALSE) -> 10 | R11: =VLOOKUP($C11,'RECAP SECT'!$G$6:$DC$253,30,FALSE) -> -23.0 | S11: =VLOOKUP($C11,'RECAP SECT'!$G$6:$DC$253,31,FALSE) -> -0.33 | T11: =VLOOKUP($C11,'RECAP SECT'!$G$6:$DC$253,32,FALSE) -> 29% | U11: =VLOOKUP($C11,'RECAP SECT'!$G$6:$DC$253,33,FALSE) -> 9 | V11: =VLOOKUP($C11,'RECAP SECT'!$G$6:$DC$253,34,FALSE) -> 38% | W11: =VLOOKUP($C11,'RECAP SECT'!$G$6:$DC$253,35,FALSE) -> 14% | X11: =VLOOKUP($C11,'RECAP SECT'!$G$6:$DC$253,36,FALSE) -> 7
A12: 262 | B12: BAS-RHIN | C12: 5060 | D12: HAGUENAU | E12: =VLOOKUP($C12,'RECAP SECT'!$G$6:$DC$253,3,FALSE) -> 74.1 | F12: =VLOOKUP($C12,'RECAP SECT'!$G$6:$DC$253,18,FALSE) -> 702 | G12: =VLOOKUP($C12,'RECAP SECT'!$G$6:$DC$253,19,FALSE) -> 9.47 | H12: =VLOOKUP($C12,'RECAP SECT'!$G$6:$DC$253,20,FALSE) -> 52% | I12: =VLOOKUP($C12,'RECAP SECT'!$G$6:$DC$253,21,FALSE) -> 10 | J12: =VLOOKUP($C12,'RECAP SECT'!$G$6:$DC$253,22,FALSE) -> 547 | K12: =VLOOKUP($C12,'RECAP SECT'!$G$6:$DC$253,23,FALSE) -> 7.38 | L12: =VLOOKUP($C12,'RECAP SECT'!$G$6:$DC$253,24,FALSE) -> 42% | M12: =VLOOKUP($C12,'RECAP SECT'!$G$6:$DC$253,25,FALSE) -> 17 | N12: =VLOOKUP($C12,'RECAP SECT'!$G$6:$DC$253,26,FALSE) -> 79 | O12: =VLOOKUP($C12,'RECAP SECT'!$G$6:$DC$253,27,FALSE) -> 1.07 | P12: =VLOOKUP($C12,'RECAP SECT'!$G$6:$DC$253,28,FALSE) -> 75% | Q12: =VLOOKUP($C12,'RECAP SECT'!$G$6:$DC$253,29,FALSE) -> 13 | R12: =VLOOKUP($C12,'RECAP SECT'!$G$6:$DC$253,30,FALSE) -> -25.3 | S12: =VLOOKUP($C12,'RECAP SECT'!$G$6:$DC$253,31,FALSE) -> -0.34 | T12: =VLOOKUP($C12,'RECAP SECT'!$G$6:$DC$253,32,FALSE) -> 32% | U12: =VLOOKUP($C12,'RECAP SECT'!$G$6:$DC$253,33,FALSE) -> 10 | V12: =VLOOKUP($C12,'RECAP SECT'!$G$6:$DC$253,34,FALSE) -> 51% | W12: =VLOOKUP($C12,'RECAP SECT'!$G$6:$DC$253,35,FALSE) -> 26% | X12: =VLOOKUP($C12,'RECAP SECT'!$G$6:$DC$253,36,FALSE) -> 15
A13: 262 | B13: BAS-RHIN | C13: 5101 | D13: SELESTAT | E13: =VLOOKUP($C13,'RECAP SECT'!$G$6:$DC$253,3,FALSE) -> 63.5 | F13: =VLOOKUP($C13,'RECAP SECT'!$G$6:$DC$253,18,FALSE) -> 1,262 | G13: =VLOOKUP($C13,'RECAP SECT'!$G$6:$DC$253,19,FALSE) -> 19.89 | H13: =VLOOKUP($C13,'RECAP SECT'!$G$6:$DC$253,20,FALSE) -> 0% | I13: =VLOOKUP($C13,'RECAP SECT'!$G$6:$DC$253,21,FALSE) -> 1 | J13: =VLOOKUP($C13,'RECAP SECT'!$G$6:$DC$253,22,FALSE) -> 557 | K13: =VLOOKUP($C13,'RECAP SECT'!$G$6:$DC$253,23,FALSE) -> 8.78 | L13: =VLOOKUP($C13,'RECAP SECT'!$G$6:$DC$253,24,FALSE) -> 31% | M13: =VLOOKUP($C13,'RECAP SECT'!$G$6:$DC$253,25,FALSE) -> 12 | N13: =VLOOKUP($C13,'RECAP SECT'!$G$6:$DC$253,26,FALSE) -> 76 | O13: =VLOOKUP($C13,'RECAP SECT'!$G$6:$DC$253,27,FALSE) -> 1.20 | P13: =VLOOKUP($C13,'RECAP SECT'!$G$6:$DC$253,28,FALSE) -> 72% | Q13: =VLOOKUP($C13,'RECAP SECT'!$G$6:$DC$253,29,FALSE) -> 12 | R13: =VLOOKUP($C13,'RECAP SECT'!$G$6:$DC$253,30,FALSE) -> -24.6 | S13: =VLOOKUP($C13,'RECAP SECT'!$G$6:$DC$253,31,FALSE) -> -0.39 | T13: =VLOOKUP($C13,'RECAP SECT'!$G$6:$DC$253,32,FALSE) -> 50% | U13: =VLOOKUP($C13,'RECAP SECT'!$G$6:$DC$253,33,FALSE) -> 16 | V13: =VLOOKUP($C13,'RECAP SECT'!$G$6:$DC$253,34,FALSE) -> 24% | W13: =VLOOKUP($C13,'RECAP SECT'!$G$6:$DC$253,35,FALSE) -> 0% | X13: =VLOOKUP($C13,'RECAP SECT'!$G$6:$DC$253,36,FALSE) -> 1
A14: 262 | B14: BAS-RHIN | C14: 5006 | D14: STRASBOURG | E14: =VLOOKUP($C14,'RECAP SECT'!$G$6:$DC$253,3,FALSE) -> 83.0 | F14: =VLOOKUP($C14,'RECAP SECT'!$G$6:$DC$253,18,FALSE) -> 1,208 | G14: =VLOOKUP($C14,'RECAP SECT'!$G$6:$DC$253,19,FALSE) -> 14.54 | H14: =VLOOKUP($C14,'RECAP SECT'!$G$6:$DC$253,20,FALSE) -> 27% | I14: =VLOOKUP($C14,'RECAP SECT'!$G$6:$DC$253,21,FALSE) -> 2 | J14: =VLOOKUP($C14,'RECAP SECT'!$G$6:$DC$253,22,FALSE) -> 967 | K14: =VLOOKUP($C14,'RECAP SECT'!$G$6:$DC$253,23,FALSE) -> 11.64 | L14: =VLOOKUP($C14,'RECAP SECT'!$G$6:$DC$253,24,FALSE) -> 8% | M14: =VLOOKUP($C14,'RECAP SECT'!$G$6:$DC$253,25,FALSE) -> 2 | N14: =VLOOKUP($C14,'RECAP SECT'!$G$6:$DC$253,26,FALSE) -> 177 | O14: =VLOOKUP($C14,'RECAP SECT'!$G$6:$DC$253,27,FALSE) -> 2.13 | P14: =VLOOKUP($C14,'RECAP SECT'!$G$6:$DC$253,28,FALSE) -> 50% | Q14: =VLOOKUP($C14,'RECAP SECT'!$G$6:$DC$253,29,FALSE) -> 6 | R14: =VLOOKUP($C14,'RECAP SECT'!$G$6:$DC$253,30,FALSE) -> -31.5 | S14: =VLOOKUP($C14,'RECAP SECT'!$G$6:$DC$253,31,FALSE) -> -0.38 | T14: =VLOOKUP($C14,'RECAP SECT'!$G$6:$DC$253,32,FALSE) -> 47% | U14: =VLOOKUP($C14,'RECAP SECT'!$G$6:$DC$253,33,FALSE) -> 14 | V14: =VLOOKUP($C14,'RECAP SECT'!$G$6:$DC$253,34,FALSE) -> 30% | W14: =VLOOKUP($C14,'RECAP SECT'!$G$6:$DC$253,35,FALSE) -> 5% | X14: =VLOOKUP($C14,'RECAP SECT'!$G$6:$DC$253,36,FALSE) -> 3
A15: 264 | B15: HAUT-RHIN | C15: 5130 | D15: COLMAR | E15: =VLOOKUP($C15,'RECAP SECT'!$G$6:$DC$253,3,FALSE) -> 65.1 | F15: =VLOOKUP($C15,'RECAP SECT'!$G$6:$DC$253,18,FALSE) -> 391 | G15: =VLOOKUP($C15,'RECAP SECT'!$G$6:$DC$253,19,FALSE) -> 6.00 | H15: =VLOOKUP($C15,'RECAP SECT'!$G$6:$DC$253,20,FALSE) -> 70% | I15: =VLOOKUP($C15,'RECAP SECT'!$G$6:$DC$253,21,FALSE) -> 17 | J15: =VLOOKUP($C15,'RECAP SECT'!$G$6:$DC$253,22,FALSE) -> 429 | K15: =VLOOKUP($C15,'RECAP SECT'!$G$6:$DC$253,23,FALSE) -> 6.59 | L15: =VLOOKUP($C15,'RECAP SECT'!$G$6:$DC$253,24,FALSE) -> 48% | M15: =VLOOKUP($C15,'RECAP SECT'!$G$6:$DC$253,25,FALSE) -> 18 | N15: =VLOOKUP($C15,'RECAP SECT'!$G$6:$DC$253,26,FALSE) -> 38 | O15: =VLOOKUP($C15,'RECAP SECT'!$G$6:$DC$253,27,FALSE) -> 0.58 | P15: =VLOOKUP($C15,'RECAP SECT'!$G$6:$DC$253,28,FALSE) -> 86% | Q15: =VLOOKUP($C15,'RECAP SECT'!$G$6:$DC$253,29,FALSE) -> 18 | R15: =VLOOKUP($C15,'RECAP SECT'!$G$6:$DC$253,30,FALSE) -> -23.0 | S15: =VLOOKUP($C15,'RECAP SECT'!$G$6:$DC$253,31,FALSE) -> -0.35 | T15: =VLOOKUP($C15,'RECAP SECT'!$G$6:$DC$253,32,FALSE) -> 36% | U15: =VLOOKUP($C15,'RECAP SECT'!$G$6:$DC$253,33,FALSE) -> 13 | V15: =VLOOKUP($C15,'RECAP SECT'!$G$6:$DC$253,34,FALSE) -> 63% | W15: =VLOOKUP($C15,'RECAP SECT'!$G$6:$DC$253,35,FALSE) -> 39% | X15: =VLOOKUP($C15,'RECAP SECT'!$G$6:$DC$253,36,FALSE) -> 17
A16: 264 | B16: HAUT-RHIN | C16: 5169 | D16: MULHOUSE | E16: =VLOOKUP($C16,'RECAP SECT'!$G$6:$DC$253,3,FALSE) -> 61.5 | F16: =VLOOKUP($C16,'RECAP SECT'!$G$6:$DC$253,18,FALSE) -> 146 | G16: =VLOOKUP($C16,'RECAP SECT'!$G$6:$DC$253,19,FALSE) -> 2.37 | H16: =VLOOKUP($C16,'RECAP SECT'!$G$6:$DC$253,20,FALSE) -> 88% | I16: =VLOOKUP($C16,'RECAP SECT'!$G$6:$DC$253,21,FALSE) -> 18 | J16: =VLOOKUP($C16,'RECAP SECT'!$G$6:$DC$253,22,FALSE) -> 470 | K16: =VLOOKUP($C16,'RECAP SECT'!$G$6:$DC$253,23,FALSE) -> 7.64 | L16: =VLOOKUP($C16,'RECAP SECT'!$G$6:$DC$253,24,FALSE) -> 40% | M16: =VLOOKUP($C16,'RECAP SECT'!$G$6:$DC$253,25,FALSE) -> 15 | N16: =VLOOKUP($C16,'RECAP SECT'!$G$6:$DC$253,26,FALSE) -> 39 | O16: =VLOOKUP($C16,'RECAP SECT'!$G$6:$DC$253,27,FALSE) -> 0.63 | P16: =VLOOKUP($C16,'RECAP SECT'!$G$6:$DC$253,28,FALSE) -> 85% | Q16: =VLOOKUP($C16,'RECAP SECT'!$G$6:$DC$253,29,FALSE) -> 17 | R16: =VLOOKUP($C16,'RECAP SECT'!$G$6:$DC$253,30,FALSE) -> -23.9 | S16: =VLOOKUP($C16,'RECAP SECT'!$G$6:$DC$253,31,FALSE) -> -0.39 | T16: =VLOOKUP($C16,'RECAP SECT'!$G$6:$DC$253,32,FALSE) -> 50% | U16: =VLOOKUP($C16,'RECAP SECT'!$G$6:$DC$253,33,FALSE) -> 17 | V16: =VLOOKUP($C16,'RECAP SECT'!$G$6:$DC$253,34,FALSE) -> 72% | W16: =VLOOKUP($C16,'RECAP SECT'!$G$6:$DC$253,35,FALSE) -> 48% | X16: =VLOOKUP($C16,'RECAP SECT'!$G$6:$DC$253,36,FALSE) -> 18
A17: 30 | B17: MARNE-ARDENNES | C17: 6 | D17: CHALONS EN CHAMPAGNE | E17: =VLOOKUP($C17,'RECAP SECT'!$G$6:$DC$253,3,FALSE) -> 45.4 | F17: =VLOOKUP($C17,'RECAP SECT'!$G$6:$DC$253,18,FALSE) -> 461 | G17: =VLOOKUP($C17,'RECAP SECT'!$G$6:$DC$253,19,FALSE) -> 10.16 | H17: =VLOOKUP($C17,'RECAP SECT'!$G$6:$DC$253,20,FALSE) -> 49% | I17: =VLOOKUP($C17,'RECAP SECT'!$G$6:$DC$253,21,FALSE) -> 9 | J17: =VLOOKUP($C17,'RECAP SECT'!$G$6:$DC$253,22,FALSE) -> 427 | K17: =VLOOKUP($C17,'RECAP SECT'!$G$6:$DC$253,23,FALSE) -> 9.40 | L17: =VLOOKUP($C17,'RECAP SECT'!$G$6:$DC$253,24,FALSE) -> 26% | M17: =VLOOKUP($C17,'RECAP SECT'!$G$6:$DC$253,25,FALSE) -> 8 | N17: =VLOOKUP($C17,'RECAP SECT'!$G$6:$DC$253,26,FALSE) -> 124 | O17: =VLOOKUP($C17,'RECAP SECT'!$G$6:$DC$253,27,FALSE) -> 2.73 | P17: =VLOOKUP($C17,'RECAP SECT'!$G$6:$DC$253,28,FALSE) -> 36% | Q17: =VLOOKUP($C17,'RECAP SECT'!$G$6:$DC$253,29,FALSE) -> 3 | R17: =VLOOKUP($C17,'RECAP SECT'!$G$6:$DC$253,30,FALSE) -> -12.7 | S17: =VLOOKUP($C17,'RECAP SECT'!$G$6:$DC$253,31,FALSE) -> -0.28 | T17: =VLOOKUP($C17,'RECAP SECT'!$G$6:$DC$253,32,FALSE) -> 8% | U17: =VLOOKUP($C17,'RECAP SECT'!$G$6:$DC$253,33,FALSE) -> 4 | V17: =VLOOKUP($C17,'RECAP SECT'!$G$6:$DC$253,34,FALSE) -> 36% | W17: =VLOOKUP($C17,'RECAP SECT'!$G$6:$DC$253,35,FALSE) -> 12% | X17: =VLOOKUP($C17,'RECAP SECT'!$G$6:$DC$253,36,FALSE) -> 6
A18: 30 | B18: MARNE-ARDENNES | C18: 2 | D18: CHARLEVILLE MEZIERES | E18: =VLOOKUP($C18,'RECAP SECT'!$G$6:$DC$253,3,FALSE) -> 56.0 | F18: =VLOOKUP($C18,'RECAP SECT'!$G$6:$DC$253,18,FALSE) -> 496 | G18: =VLOOKUP($C18,'RECAP SECT'!$G$6:$DC$253,19,FALSE) -> 8.86 | H18: =VLOOKUP($C18,'RECAP SECT'!$G$6:$DC$253,20,FALSE) -> 55% | I18: =VLOOKUP($C18,'RECAP SECT'!$G$6:$DC$253,21,FALSE) -> 13 | J18: =VLOOKUP($C18,'RECAP SECT'!$G$6:$DC$253,22,FALSE) -> 593 | K18: =VLOOKUP($C18,'RECAP SECT'!$G$6:$DC$253,23,FALSE) -> 10.59 | L18: =VLOOKUP($C18,'RECAP SECT'!$G$6:$DC$253,24,FALSE) -> 16% | M18: =VLOOKUP($C18,'RECAP SECT'!$G$6:$DC$253,25,FALSE) -> 5 | N18: =VLOOKUP($C18,'RECAP SECT'!$G$6:$DC$253,26,FALSE) -> 122 | O18: =VLOOKUP($C18,'RECAP SECT'!$G$6:$DC$253,27,FALSE) -> 2.18 | P18: =VLOOKUP($C18,'RECAP SECT'!$G$6:$DC$253,28,FALSE) -> 49% | Q18: =VLOOKUP($C18,'RECAP SECT'!$G$6:$DC$253,29,FALSE) -> 5 | R18: =VLOOKUP($C18,'RECAP SECT'!$G$6:$DC$253,30,FALSE) -> -14.5 | S18: =VLOOKUP($C18,'RECAP SECT'!$G$6:$DC$253,31,FALSE) -> -0.26 | T18: =VLOOKUP($C18,'RECAP SECT'!$G$6:$DC$253,32,FALSE) -> 0% | U18: =VLOOKUP($C18,'RECAP SECT'!$G$6:$DC$253,33,FALSE) -> 1 | V18: =VLOOKUP($C18,'RECAP SECT'!$G$6:$DC$253,34,FALSE) -> 38% | W18: =VLOOKUP($C18,'RECAP SECT'!$G$6:$DC$253,35,FALSE) -> 14% | X18: =VLOOKUP($C18,'RECAP SECT'!$G$6:$DC$253,36,FALSE) -> 8
A19: 30 | B19: MARNE-ARDENNES | C19: 11 | D19: REIMS | E19: =VLOOKUP($C19,'RECAP SECT'!$G$6:$DC$253,3,FALSE) -> 83.2 | F19: =VLOOKUP($C19,'RECAP SECT'!$G$6:$DC$253,18,FALSE) -> 1,043 | G19: =VLOOKUP($C19,'RECAP SECT'!$G$6:$DC$253,19,FALSE) -> 12.54 | H19: =VLOOKUP($C19,'RECAP SECT'!$G$6:$DC$253,20,FALSE) -> 37% | I19: =VLOOKUP($C19,'RECAP SECT'!$G$6:$DC$253,21,FALSE) -> 4 | J19: =VLOOKUP($C19,'RECAP SECT'!$G$6:$DC$253,22,FALSE) -> 907 | K19: =VLOOKUP($C19,'RECAP SECT'!$G$6:$DC$253,23,FALSE) -> 10.91 | L19: =VLOOKUP($C19,'RECAP SECT'!$G$6:$DC$253,24,FALSE) -> 14% | M19: =VLOOKUP($C19,'RECAP SECT'!$G$6:$DC$253,25,FALSE) -> 4 | N19: =VLOOKUP($C19,'RECAP SECT'!$G$6:$DC$253,26,FALSE) -> 239 | O19: =VLOOKUP($C19,'RECAP SECT'!$G$6:$DC$253,27,FALSE) -> 2.87 | P19: =VLOOKUP($C19,'RECAP SECT'!$G$6:$DC$253,28,FALSE) -> 33% | Q19: =VLOOKUP($C19,'RECAP SECT'!$G$6:$DC$253,29,FALSE) -> 2 | R19: =VLOOKUP($C19,'RECAP SECT'!$G$6:$DC$253,30,FALSE) -> -34.1 | S19: =VLOOKUP($C19,'RECAP SECT'!$G$6:$DC$253,31,FALSE) -> -0.41 | T19: =VLOOKUP($C19,'RECAP SECT'!$G$6:$DC$253,32,FALSE) -> 58% | U19: =VLOOKUP($C19,'RECAP SECT'!$G$6:$DC$253,33,FALSE) -> 18 | V19: =VLOOKUP($C19,'RECAP SECT'!$G$6:$DC$253,34,FALSE) -> 35% | W19: =VLOOKUP($C19,'RECAP SECT'!$G$6:$DC$253,35,FALSE) -> 11% | X19: =VLOOKUP($C19,'RECAP SECT'!$G$6:$DC$253,36,FALSE) -> 4
A20: 110 | B20: MEURTHE ET MOSELLE MEUSE | C20: 26 | D20: NANCY | E20: =VLOOKUP($C20,'RECAP SECT'!$G$6:$DC$253,3,FALSE) -> 67.6 | F20: =VLOOKUP($C20,'RECAP SECT'!$G$6:$DC$253,18,FALSE) -> 846 | G20: =VLOOKUP($C20,'RECAP SECT'!$G$6:$DC$253,19,FALSE) -> 12.52 | H20: =VLOOKUP($C20,'RECAP SECT'!$G$6:$DC$253,20,FALSE) -> 37% | I20: =VLOOKUP($C20,'RECAP SECT'!$G$6:$DC$253,21,FALSE) -> 5 | J20: =VLOOKUP($C20,'RECAP SECT'!$G$6:$DC$253,22,FALSE) -> 854 | K20: =VLOOKUP($C20,'RECAP SECT'!$G$6:$DC$253,23,FALSE) -> 12.64 | L20: =VLOOKUP($C20,'RECAP SECT'!$G$6:$DC$253,24,FALSE) -> 0% | M20: =VLOOKUP($C20,'RECAP SECT'!$G$6:$DC$253,25,FALSE) -> 1 | N20: =VLOOKUP($C20,'RECAP SECT'!$G$6:$DC$253,26,FALSE) -> 289 | O20: =VLOOKUP($C20,'RECAP SECT'!$G$6:$DC$253,27,FALSE) -> 4.28 | P20: =VLOOKUP($C20,'RECAP SECT'!$G$6:$DC$253,28,FALSE) -> 0% | Q20: =VLOOKUP($C20,'RECAP SECT'!$G$6:$DC$253,29,FALSE) -> 1 | R20: =VLOOKUP($C20,'RECAP SECT'!$G$6:$DC$253,30,FALSE) -> -25.7 | S20: =VLOOKUP($C20,'RECAP SECT'!$G$6:$DC$253,31,FALSE) -> -0.38 | T20: =VLOOKUP($C20,'RECAP SECT'!$G$6:$DC$253,32,FALSE) -> 47% | U20: =VLOOKUP($C20,'RECAP SECT'!$G$6:$DC$253,33,FALSE) -> 15 | V20: =VLOOKUP($C20,'RECAP SECT'!$G$6:$DC$253,34,FALSE) -> 26% | W20: =VLOOKUP($C20,'RECAP SECT'!$G$6:$DC$253,35,FALSE) -> 1% | X20: =VLOOKUP($C20,'RECAP SECT'!$G$6:$DC$253,36,FALSE) -> 2
A21: 110 | B21: MEURTHE ET MOSELLE MEUSE | C21: 27 | D21: PONT A MOUSSON | E21: =VLOOKUP($C21,'RECAP SECT'!$G$6:$DC$253,3,FALSE) -> 77.5 | F21: =VLOOKUP($C21,'RECAP SECT'!$G$6:$DC$253,18,FALSE) -> 851 | G21: =VLOOKUP($C21,'RECAP SECT'!$G$6:$DC$253,19,FALSE) -> 10.97 | H21: =VLOOKUP($C21,'RECAP SECT'!$G$6:$DC$253,20,FALSE) -> 45% | I21: =VLOOKUP($C21,'RECAP SECT'!$G$6:$DC$253,21,FALSE) -> 8 | J21: =VLOOKUP($C21,'RECAP SECT'!$G$6:$DC$253,22,FALSE) -> 863 | K21: =VLOOKUP($C21,'RECAP SECT'!$G$6:$DC$253,23,FALSE) -> 11.13 | L21: =VLOOKUP($C21,'RECAP SECT'!$G$6:$DC$253,24,FALSE) -> 12% | M21: =VLOOKUP($C21,'RECAP SECT'!$G$6:$DC$253,25,FALSE) -> 3 | N21: =VLOOKUP($C21,'RECAP SECT'!$G$6:$DC$253,26,FALSE) -> 201 | O21: =VLOOKUP($C21,'RECAP SECT'!$G$6:$DC$253,27,FALSE) -> 2.59 | P21: =VLOOKUP($C21,'RECAP SECT'!$G$6:$DC$253,28,FALSE) -> 39% | Q21: =VLOOKUP($C21,'RECAP SECT'!$G$6:$DC$253,29,FALSE) -> 4 | R21: =VLOOKUP($C21,'RECAP SECT'!$G$6:$DC$253,30,FALSE) -> -25.9 | S21: =VLOOKUP($C21,'RECAP SECT'!$G$6:$DC$253,31,FALSE) -> -0.33 | T21: =VLOOKUP($C21,'RECAP SECT'!$G$6:$DC$253,32,FALSE) -> 29% | U21: =VLOOKUP($C21,'RECAP SECT'!$G$6:$DC$253,33,FALSE) -> 8 | V21: =VLOOKUP($C21,'RECAP SECT'!$G$6:$DC$253,34,FALSE) -> 35% | W21: =VLOOKUP($C21,'RECAP SECT'!$G$6:$DC$253,35,FALSE) -> 11% | X21: =VLOOKUP($C21,'RECAP SECT'!$G$6:$DC$253,36,FALSE) -> 5
A22: 110 | B22: MEURTHE ET MOSELLE MEUSE | C22: 31 | D22: VERDUN | E22: =VLOOKUP($C22,'RECAP SECT'!$G$6:$DC$253,3,FALSE) -> 58.4 | F22: =VLOOKUP($C22,'RECAP SECT'!$G$6:$DC$253,18,FALSE) -> 504 | G22: =VLOOKUP($C22,'RECAP SECT'!$G$6:$DC$253,19,FALSE) -> 8.63 | H22: =VLOOKUP($C22,'RECAP SECT'!$G$6:$DC$253,20,FALSE) -> 57% | I22: =VLOOKUP($C22,'RECAP SECT'!$G$6:$DC$253,21,FALSE) -> 15 | J22: =VLOOKUP($C22,'RECAP SECT'!$G$6:$DC$253,22,FALSE) -> 555 | K22: =VLOOKUP($C22,'RECAP SECT'!$G$6:$DC$253,23,FALSE) -> 9.51 | L22: =VLOOKUP($C22,'RECAP SECT'!$G$6:$DC$253,24,FALSE) -> 25% | M22: =VLOOKUP($C22,'RECAP SECT'!$G$6:$DC$253,25,FALSE) -> 6 | N22: =VLOOKUP($C22,'RECAP SECT'!$G$6:$DC$253,26,FALSE) -> 107 | O22: =VLOOKUP($C22,'RECAP SECT'!$G$6:$DC$253,27,FALSE) -> 1.83 | P22: =VLOOKUP($C22,'RECAP SECT'!$G$6:$DC$253,28,FALSE) -> 57% | Q22: =VLOOKUP($C22,'RECAP SECT'!$G$6:$DC$253,29,FALSE) -> 7 | R22: =VLOOKUP($C22,'RECAP SECT'!$G$6:$DC$253,30,FALSE) -> -17.6 | S22: =VLOOKUP($C22,'RECAP SECT'!$G$6:$DC$253,31,FALSE) -> -0.30 | T22: =VLOOKUP($C22,'RECAP SECT'!$G$6:$DC$253,32,FALSE) -> 17% | U22: =VLOOKUP($C22,'RECAP SECT'!$G$6:$DC$253,33,FALSE) -> 6 | V22: =VLOOKUP($C22,'RECAP SECT'!$G$6:$DC$253,34,FALSE) -> 44% | W22: =VLOOKUP($C22,'RECAP SECT'!$G$6:$DC$253,35,FALSE) -> 20% | X22: =VLOOKUP($C22,'RECAP SECT'!$G$6:$DC$253,36,FALSE) -> 12
A23: 160 | B23: MOSELLE | C23: 45 | D23: METZ | E23: =VLOOKUP($C23,'RECAP SECT'!$G$6:$DC$253,3,FALSE) -> 89.1 | F23: =VLOOKUP($C23,'RECAP SECT'!$G$6:$DC$253,18,FALSE) -> 797 | G23: =VLOOKUP($C23,'RECAP SECT'!$G$6:$DC$253,19,FALSE) -> 8.95 | H23: =VLOOKUP($C23,'RECAP SECT'!$G$6:$DC$253,20,FALSE) -> 55% | I23: =VLOOKUP($C23,'RECAP SECT'!$G$6:$DC$253,21,FALSE) -> 12 | J23: =VLOOKUP($C23,'RECAP SECT'!$G$6:$DC$253,22,FALSE) -> 795 | K23: =VLOOKUP($C23,'RECAP SECT'!$G$6:$DC$253,23,FALSE) -> 8.92 | L23: =VLOOKUP($C23,'RECAP SECT'!$G$6:$DC$253,24,FALSE) -> 29% | M23: =VLOOKUP($C23,'RECAP SECT'!$G$6:$DC$253,25,FALSE) -> 11 | N23: =VLOOKUP($C23,'RECAP SECT'!$G$6:$DC$253,26,FALSE) -> 115 | O23: =VLOOKUP($C23,'RECAP SECT'!$G$6:$DC$253,27,FALSE) -> 1.29 | P23: =VLOOKUP($C23,'RECAP SECT'!$G$6:$DC$253,28,FALSE) -> 70% | Q23: =VLOOKUP($C23,'RECAP SECT'!$G$6:$DC$253,29,FALSE) -> 9 | R23: =VLOOKUP($C23,'RECAP SECT'!$G$6:$DC$253,30,FALSE) -> -31.0 | S23: =VLOOKUP($C23,'RECAP SECT'!$G$6:$DC$253,31,FALSE) -> -0.35 | T23: =VLOOKUP($C23,'RECAP SECT'!$G$6:$DC$253,32,FALSE) -> 35% | U23: =VLOOKUP($C23,'RECAP SECT'!$G$6:$DC$253,33,FALSE) -> 12 | V23: =VLOOKUP($C23,'RECAP SECT'!$G$6:$DC$253,34,FALSE) -> 49% | W23: =VLOOKUP($C23,'RECAP SECT'!$G$6:$DC$253,35,FALSE) -> 25% | X23: =VLOOKUP($C23,'RECAP SECT'!$G$6:$DC$253,36,FALSE) -> 14
A24: 160 | B24: MOSELLE | C24: 42 | D24: MOSELLE EST | E24: =VLOOKUP($C24,'RECAP SECT'!$G$6:$DC$253,3,FALSE) -> 72.5 | F24: =VLOOKUP($C24,'RECAP SECT'!$G$6:$DC$253,18,FALSE) -> 834 | G24: =VLOOKUP($C24,'RECAP SECT'!$G$6:$DC$253,19,FALSE) -> 11.51 | H24: =VLOOKUP($C24,'RECAP SECT'!$G$6:$DC$253,20,FALSE) -> 42% | I24: =VLOOKUP($C24,'RECAP SECT'!$G$6:$DC$253,21,FALSE) -> 6 | J24: =VLOOKUP($C24,'RECAP SECT'!$G$6:$DC$253,22,FALSE) -> 595 | K24: =VLOOKUP($C24,'RECAP SECT'!$G$6:$DC$253,23,FALSE) -> 8.21 | L24: =VLOOKUP($C24,'RECAP SECT'!$G$6:$DC$253,24,FALSE) -> 35% | M24: =VLOOKUP($C24,'RECAP SECT'!$G$6:$DC$253,25,FALSE) -> 14 | N24: =VLOOKUP($C24,'RECAP SECT'!$G$6:$DC$253,26,FALSE) -> 67 | O24: =VLOOKUP($C24,'RECAP SECT'!$G$6:$DC$253,27,FALSE) -> 0.92 | P24: =VLOOKUP($C24,'RECAP SECT'!$G$6:$DC$253,28,FALSE) -> 78% | Q24: =VLOOKUP($C24,'RECAP SECT'!$G$6:$DC$253,29,FALSE) -> 16 | R24: =VLOOKUP($C24,'RECAP SECT'!$G$6:$DC$253,30,FALSE) -> -21.7 | S24: =VLOOKUP($C24,'RECAP SECT'!$G$6:$DC$253,31,FALSE) -> -0.30 | T24: =VLOOKUP($C24,'RECAP SECT'!$G$6:$DC$253,32,FALSE) -> 16% | U24: =VLOOKUP($C24,'RECAP SECT'!$G$6:$DC$253,33,FALSE) -> 5 | V24: =VLOOKUP($C24,'RECAP SECT'!$G$6:$DC$253,34,FALSE) -> 42% | W24: =VLOOKUP($C24,'RECAP SECT'!$G$6:$DC$253,35,FALSE) -> 18% | X24: =VLOOKUP($C24,'RECAP SECT'!$G$6:$DC$253,36,FALSE) -> 10
A25: 160 | B25: MOSELLE | C25: 44 | D25: MOSELLE NORD | E25: =VLOOKUP($C25,'RECAP SECT'!$G$6:$DC$253,3,FALSE) -> 74.2 | F25: =VLOOKUP($C25,'RECAP SECT'!$G$6:$DC$253,18,FALSE) -> 837 | G25: =VLOOKUP($C25,'RECAP SECT'!$G$6:$DC$253,19,FALSE) -> 11.29 | H25: =VLOOKUP($C25,'RECAP SECT'!$G$6:$DC$253,20,FALSE) -> 43% | I25: =VLOOKUP($C25,'RECAP SECT'!$G$6:$DC$253,21,FALSE) -> 7 | J25: =VLOOKUP($C25,'RECAP SECT'!$G$6:$DC$253,22,FALSE) -> 616 | K25: =VLOOKUP($C25,'RECAP SECT'!$G$6:$DC$253,23,FALSE) -> 8.31 | L25: =VLOOKUP($C25,'RECAP SECT'!$G$6:$DC$253,24,FALSE) -> 34% | M25: =VLOOKUP($C25,'RECAP SECT'!$G$6:$DC$253,25,FALSE) -> 13 | N25: =VLOOKUP($C25,'RECAP SECT'!$G$6:$DC$253,26,FALSE) -> 69 | O25: =VLOOKUP($C25,'RECAP SECT'!$G$6:$DC$253,27,FALSE) -> 0.93 | P25: =VLOOKUP($C25,'RECAP SECT'!$G$6:$DC$253,28,FALSE) -> 78% | Q25: =VLOOKUP($C25,'RECAP SECT'!$G$6:$DC$253,29,FALSE) -> 15 | R25: =VLOOKUP($C25,'RECAP SECT'!$G$6:$DC$253,30,FALSE) -> -19.9 | S25: =VLOOKUP($C25,'RECAP SECT'!$G$6:$DC$253,31,FALSE) -> -0.27 | T25: =VLOOKUP($C25,'RECAP SECT'!$G$6:$DC$253,32,FALSE) -> 3% | U25: =VLOOKUP($C25,'RECAP SECT'!$G$6:$DC$253,33,FALSE) -> 2 | V25: =VLOOKUP($C25,'RECAP SECT'!$G$6:$DC$253,34,FALSE) -> 41% | W25: =VLOOKUP($C25,'RECAP SECT'!$G$6:$DC$253,35,FALSE) -> 16% | X25: =VLOOKUP($C25,'RECAP SECT'!$G$6:$DC$253,36,FALSE) -> 9
A26: 80 | B26: VOSGES | C26: 57 | D26: EPINAL | E26: =VLOOKUP($C26,'RECAP SECT'!$G$6:$DC$253,3,FALSE) -> 61.5 | F26: =VLOOKUP($C26,'RECAP SECT'!$G$6:$DC$253,18,FALSE) -> 528 | G26: =VLOOKUP($C26,'RECAP SECT'!$G$6:$DC$253,19,FALSE) -> 8.59 | H26: =VLOOKUP($C26,'RECAP SECT'!$G$6:$DC$253,20,FALSE) -> 57% | I26: =VLOOKUP($C26,'RECAP SECT'!$G$6:$DC$253,21,FALSE) -> 16 | J26: =VLOOKUP($C26,'RECAP SECT'!$G$6:$DC$253,22,FALSE) -> 570 | K26: =VLOOKUP($C26,'RECAP SECT'!$G$6:$DC$253,23,FALSE) -> 9.28 | L26: =VLOOKUP($C26,'RECAP SECT'!$G$6:$DC$253,24,FALSE) -> 27% | M26: =VLOOKUP($C26,'RECAP SECT'!$G$6:$DC$253,25,FALSE) -> 9 | N26: =VLOOKUP($C26,'RECAP SECT'!$G$6:$DC$253,26,FALSE) -> 103 | O26: =VLOOKUP($C26,'RECAP SECT'!$G$6:$DC$253,27,FALSE) -> 1.68 | P26: =VLOOKUP($C26,'RECAP SECT'!$G$6:$DC$253,28,FALSE) -> 61% | Q26: =VLOOKUP($C26,'RECAP SECT'!$G$6:$DC$253,29,FALSE) -> 8 | R26: =VLOOKUP($C26,'RECAP SECT'!$G$6:$DC$253,30,FALSE) -> -21.3 | S26: =VLOOKUP($C26,'RECAP SECT'!$G$6:$DC$253,31,FALSE) -> -0.35 | T26: =VLOOKUP($C26,'RECAP SECT'!$G$6:$DC$253,32,FALSE) -> 34% | U26: =VLOOKUP($C26,'RECAP SECT'!$G$6:$DC$253,33,FALSE) -> 11 | V26: =VLOOKUP($C26,'RECAP SECT'!$G$6:$DC$253,34,FALSE) -> 48% | W26: =VLOOKUP($C26,'RECAP SECT'!$G$6:$DC$253,35,FALSE) -> 24% | X26: =VLOOKUP($C26,'RECAP SECT'!$G$6:$DC$253,36,FALSE) -> 13
A27: 80 | B27: VOSGES | C27: 55 | D27: SAINT DIE | E27: =VLOOKUP($C27,'RECAP SECT'!$G$6:$DC$253,3,FALSE) -> 50.2 | F27: =VLOOKUP($C27,'RECAP SECT'!$G$6:$DC$253,18,FALSE) -> 441 | G27: =VLOOKUP($C27,'RECAP SECT'!$G$6:$DC$253,19,FALSE) -> 8.77 | H27: =VLOOKUP($C27,'RECAP SECT'!$G$6:$DC$253,20,FALSE) -> 56% | I27: =VLOOKUP($C27,'RECAP SECT'!$G$6:$DC$253,21,FALSE) -> 14 | J27: =VLOOKUP($C27,'RECAP SECT'!$G$6:$DC$253,22,FALSE) -> 372 | K27: =VLOOKUP($C27,'RECAP SECT'!$G$6:$DC$253,23,FALSE) -> 7.40 | L27: =VLOOKUP($C27,'RECAP SECT'!$G$6:$DC$253,24,FALSE) -> 41% | M27: =VLOOKUP($C27,'RECAP SECT'!$G$6:$DC$253,25,FALSE) -> 16 | N27: =VLOOKUP($C27,'RECAP SECT'!$G$6:$DC$253,26,FALSE) -> 47 | O27: =VLOOKUP($C27,'RECAP SECT'!$G$6:$DC$253,27,FALSE) -> 0.94 | P27: =VLOOKUP($C27,'RECAP SECT'!$G$6:$DC$253,28,FALSE) -> 78% | Q27: =VLOOKUP($C27,'RECAP SECT'!$G$6:$DC$253,29,FALSE) -> 14 | R27: =VLOOKUP($C27,'RECAP SECT'!$G$6:$DC$253,30,FALSE) -> -15.7 | S27: =VLOOKUP($C27,'RECAP SECT'!$G$6:$DC$253,31,FALSE) -> -0.31 | T27: =VLOOKUP($C27,'RECAP SECT'!$G$6:$DC$253,32,FALSE) -> 21% | U27: =VLOOKUP($C27,'RECAP SECT'!$G$6:$DC$253,33,FALSE) -> 7 | V27: =VLOOKUP($C27,'RECAP SECT'!$G$6:$DC$253,34,FALSE) -> 51% | W27: =VLOOKUP($C27,'RECAP SECT'!$G$6:$DC$253,35,FALSE) -> 27% | X27: =VLOOKUP($C27,'RECAP SECT'!$G$6:$DC$253,36,FALSE) -> 16
A28: Total CEGEE Directions Régionales | E28: =SUM(E10:E27) -> 1186

Sheet SE_EPARGNE
B1: Accueil | F1: BAROMETRE BDD - TERRITOIRES
F2: EPARGNE
F3: =ACCUEIL!F7 -> 2021-02-28
F7: Excédent Epargne y/c DAV pondéré | J7: Ventes sur client non détenteur de l’univers | N7: Total Epargne
F8: =DATEMAJ!C14 -> au 28/02 | H8: coef | I8: ='RECAP DIRCOM'!AX4 -> 14% | J8: =DATEMAJ!C15 -> au 28/02 | L8: coef | M8: ='RECAP DIRCOM'!BB4 -> 6% | O8: coef | P8: ='RECAP DIRCOM'!BE4 -> 20%
A9: eds | B9: Direction | C9: eds | D9: Territoire | E9: ="ETP perf "&DATEMAJ!$C$28 -> ETP perf 31-janv | F9: Excédent | G9: Excédent / ETP | H9: % Ecart au 1er | I9: Rang | J9: VB | K9: VB / ETP | L9: % Ecart au 1er | M9: Rang | N9: Moyenne ecart au 1er | O9: % Ecart au 1er | P9: Rang CEGEE
A10: 50 | B10: AUBE HAUTE MARNE | C10: 21 | D10: CHAUMONT | E10: =VLOOKUP($C10,'RECAP SECT'!$G$6:$DC$253,3,FALSE) -> 34.0 | F10: =VLOOKUP($C10,'RECAP SECT'!$G$6:$DC$253,41,FALSE) -> 1,949 | G10: =VLOOKUP($C10,'RECAP SECT'!$G$6:$DC$253,42,FALSE) -> 57.32 | H10: =VLOOKUP($C10,'RECAP SECT'!$G$6:$DC$253,43,FALSE) -> 74% | I10: =VLOOKUP($C10,'RECAP SECT'!$G$6:$DC$253,44,FALSE) -> 14 | J10: =VLOOKUP($C10,'RECAP SECT'!$G$6:$DC$253,45,FALSE) -> 188 | K10: =VLOOKUP($C10,'RECAP SECT'!$G$6:$DC$253,46,FALSE) -> 5.53 | L10: =VLOOKUP($C10,'RECAP SECT'!$G$6:$DC$253,47,FALSE) -> 36% | M10: =VLOOKUP($C10,'RECAP SECT'!$G$6:$DC$253,48,FALSE) -> 10 | N10: =VLOOKUP($C10,'RECAP SECT'!$G$6:$DC$253,49,FALSE) -> 62% | O10: =VLOOKUP($C10,'RECAP SECT'!$G$6:$DC$253,50,FALSE) -> 47% | P10: =VLOOKUP($C10,'RECAP SECT'!$G$6:$DC$253,51,FALSE) -> 15
A11: 50 | B11: AUBE HAUTE MARNE | C11: 14 | D11: TROYES | E11: =VLOOKUP($C11,'RECAP SECT'!$G$6:$DC$253,3,FALSE) -> 68.9 | F11: =VLOOKUP($C11,'RECAP SECT'!$G$6:$DC$253,41,FALSE) -> 2,738 | G11: =VLOOKUP($C11,'RECAP SECT'!$G$6:$DC$253,42,FALSE) -> 39.76 | H11: =VLOOKUP($C11,'RECAP SECT'!$G$6:$DC$253,43,FALSE) -> 82% | I11: =VLOOKUP($C11,'RECAP SECT'!$G$6:$DC$253,44,FALSE) -> 18 | J11: =VLOOKUP($C11,'RECAP SECT'!$G$6:$DC$253,45,FALSE) -> 344 | K11: =VLOOKUP($C11,'RECAP SECT'!$G$6:$DC$253,46,FALSE) -> 5.00 | L11: =VLOOKUP($C11,'RECAP SECT'!$G$6:$DC$253,47,FALSE) -> 42% | M11: =VLOOKUP($C11,'RECAP SECT'!$G$6:$DC$253,48,FALSE) -> 13 | N11: =VLOOKUP($C11,'RECAP SECT'!$G$6:$DC$253,49,FALSE) -> 70% | O11: =VLOOKUP($C11,'RECAP SECT'!$G$6:$DC$253,50,FALSE) -> 54% | P11: =VLOOKUP($C11,'RECAP SECT'!$G$6:$DC$253,51,FALSE) -> 18
A12: 262 | B12: BAS-RHIN | C12: 5060 | D12: HAGUENAU | E12: =VLOOKUP($C12,'RECAP SECT'!$G$6:$DC$253,3,FALSE) -> 74.1 | F12: =VLOOKUP($C12,'RECAP SECT'!$G$6:$DC$253,41,FALSE) -> 14,059 | G12: =VLOOKUP($C12,'RECAP SECT'!$G$6:$DC$253,42,FALSE) -> 189.78 | H12: =VLOOKUP($C12,'RECAP SECT'!$G$6:$DC$253,43,FALSE) -> 12% | I12: =VLOOKUP($C12,'RECAP SECT'!$G$6:$DC$253,44,FALSE) -> 2 | J12: =VLOOKUP($C12,'RECAP SECT'!$G$6:$DC$253,45,FALSE) -> 372 | K12: =VLOOKUP($C12,'RECAP SECT'!$G$6:$DC$253,46,FALSE) -> 5.02 | L12: =VLOOKUP($C12,'RECAP SECT'!$G$6:$DC$253,47,FALSE) -> 42% | M12: =VLOOKUP($C12,'RECAP SECT'!$G$6:$DC$253,48,FALSE) -> 12 | N12: =VLOOKUP($C12,'RECAP SECT'!$G$6:$DC$253,49,FALSE) -> 21% | O12: =VLOOKUP($C12,'RECAP SECT'!$G$6:$DC$253,50,FALSE) -> 6% | P12: =VLOOKUP($C12,'RECAP SECT'!$G$6:$DC$253,51,FALSE) -> 3
A13: 262 | B13: BAS-RHIN | C13: 5101 | D13: SELESTAT | E13: =VLOOKUP($C13,'RECAP SECT'!$G$6:$DC$253,3,FALSE) -> 63.5 | F13: =VLOOKUP($C13,'RECAP SECT'!$G$6:$DC$253,41,FALSE) -> 11,811 | G13: =VLOOKUP($C13,'RECAP SECT'!$G$6:$DC$253,42,FALSE) -> 186.14 | H13: =VLOOKUP($C13,'RECAP SECT'!$G$6:$DC$253,43,FALSE) -> 14% | I13: =VLOOKUP($C13,'RECAP SECT'!$G$6:$DC$253,44,FALSE) -> 4 | J13: =VLOOKUP($C13,'RECAP SECT'!$G$6:$DC$253,45,FALSE) -> 447 | K13: =VLOOKUP($C13,'RECAP SECT'!$G$6:$DC$253,46,FALSE) -> 7.04 | L13: =VLOOKUP($C13,'RECAP SECT'!$G$6:$DC$253,47,FALSE) -> 19% | M13: =VLOOKUP($C13,'RECAP SECT'!$G$6:$DC$253,48,FALSE) -> 3 | N13: =VLOOKUP($C13,'RECAP SECT'!$G$6:$DC$253,49,FALSE) -> 15% | O13: =VLOOKUP($C13,'RECAP SECT'!$G$6:$DC$253,50,FALSE) -> 0% | P13: =VLOOKUP($C13,'RECAP SECT'!$G$6:$DC$253,51,FALSE) -> 1
A14: 262 | B14: BAS-RHIN | C14: 5006 | D14: STRASBOURG | E14: =VLOOKUP($C14,'RECAP SECT'!$G$6:$DC$253,3,FALSE) -> 83.0 | F14: =VLOOKUP($C14,'RECAP SECT'!$G$6:$DC$253,41,FALSE) -> 12,813 | G14: =VLOOKUP($C14,'RECAP SECT'!$G$6:$DC$253,42,FALSE) -> 154.29 | H14: =VLOOKUP($C14,'RECAP SECT'!$G$6:$DC$253,43,FALSE) -> 29% | I14: =VLOOKUP($C14,'RECAP SECT'!$G$6:$DC$253,44,FALSE) -> 7 | J14: =VLOOKUP($C14,'RECAP SECT'!$G$6:$DC$253,45,FALSE) -> 499 | K14: =VLOOKUP($C14,'RECAP SECT'!$G$6:$DC$253,46,FALSE) -> 6.01 | L14: =VLOOKUP($C14,'RECAP SECT'!$G$6:$DC$253,47,FALSE) -> 31% | M14: =VLOOKUP($C14,'RECAP SECT'!$G$6:$DC$253,48,FALSE) -> 7 | N14: =VLOOKUP($C14,'RECAP SECT'!$G$6:$DC$253,49,FALSE) -> 29% | O14: =VLOOKUP($C14,'RECAP SECT'!$G$6:$DC$253,50,FALSE) -> 14% | P14: =VLOOKUP($C14,'RECAP SECT'!$G$6:$DC$253,51,FALSE) -> 6
A15: 264 | B15: HAUT-RHIN | C15: 5130 | D15: COLMAR | E15: =VLOOKUP($C15,'RECAP SECT'!$G$6:$DC$253,3,FALSE) -> 65.1 | F15: =VLOOKUP($C15,'RECAP SECT'!$G$6:$DC$253,41,FALSE) -> 5,294 | G15: =VLOOKUP($C15,'RECAP SECT'!$G$6:$DC$253,42,FALSE) -> 81.31 | H15: =VLOOKUP($C15,'RECAP SECT'!$G$6:$DC$253,43,FALSE) -> 62% | I15: =VLOOKUP($C15,'RECAP SECT'!$G$6:$DC$253,44,FALSE) -> 13 | J15: =VLOOKUP($C15,'RECAP SECT'!$G$6:$DC$253,45,FALSE) -> 331 | K15: =VLOOKUP($C15,'RECAP SECT'!$G$6:$DC$253,46,FALSE) -> 5.08 | L15: =VLOOKUP($C15,'RECAP SECT'!$G$6:$DC$253,47,FALSE) -> 41% | M15: =VLOOKUP($C15,'RECAP SECT'!$G$6:$DC$253,48,FALSE) -> 11 | N15: =VLOOKUP($C15,'RECAP SECT'!$G$6:$DC$253,49,FALSE) -> 56% | O15: =VLOOKUP($C15,'RECAP SECT'!$G$6:$DC$253,50,FALSE) -> 41% | P15: =VLOOKUP($C15,'RECAP SECT'!$G$6:$DC$253,51,FALSE) -> 14
A16: 264 | B16: HAUT-RHIN | C16: 5169 | D16: MULHOUSE | E16: =VLOOKUP($C16,'RECAP SECT'!$G$6:$DC$253,3,FALSE) -> 61.5 | F16: =VLOOKUP($C16,'RECAP SECT'!$G$6:$DC$253,41,FALSE) -> 5,303 | G16: =VLOOKUP($C16,'RECAP SECT'!$G$6:$DC$253,42,FALSE) -> 86.16 | H16: =VLOOKUP($C16,'RECAP SECT'!$G$6:$DC$253,43,FALSE) -> 60% | I16: =VLOOKUP($C16,'RECAP SECT'!$G$6:$DC$253,44,FALSE) -> 12 | J16: =VLOOKUP($C16,'RECAP SECT'!$G$6:$DC$253,45,FALSE) -> 377 | K16: =VLOOKUP($C16,'RECAP SECT'!$G$6:$DC$253,46,FALSE) -> 6.13 | L16: =VLOOKUP($C16,'RECAP SECT'!$G$6:$DC$253,47,FALSE) -> 29% | M16: =VLOOKUP($C16,'RECAP SECT'!$G$6:$DC$253,48,FALSE) -> 6 | N16: =VLOOKUP($C16,'RECAP SECT'!$G$6:$DC$253,49,FALSE) -> 51% | O16: =VLOOKUP($C16,'RECAP SECT'!$G$6:$DC$253,50,FALSE) -> 35% | P16: =VLOOKUP($C16,'RECAP SECT'!$G$6:$DC$253,51,FALSE) -> 12
A17: 30 | B17: MARNE-ARDENNES | C17: 6 | D17: CHALONS EN CHAMPAGNE | E17: =VLOOKUP($C17,'RECAP SECT'!$G$6:$DC$253,3,FALSE) -> 45.4 | F17: =VLOOKUP($C17,'RECAP SECT'!$G$6:$DC$253,41,FALSE) -> 2,021 | G17: =VLOOKUP($C17,'RECAP SECT'!$G$6:$DC$253,42,FALSE) -> 44.49 | H17: =VLOOKUP($C17,'RECAP SECT'!$G$6:$DC$253,43,FALSE) -> 79% | I17: =VLOOKUP($C17,'RECAP SECT'!$G$6:$DC$253,44,FALSE) -> 17 | J17: =VLOOKUP($C17,'RECAP SECT'!$G$6:$DC$253,45,FALSE) -> 394 | K17: =VLOOKUP($C17,'RECAP SECT'!$G$6:$DC$253,46,FALSE) -> 8.67 | L17: =VLOOKUP($C17,'RECAP SECT'!$G$6:$DC$253,47,FALSE) -> 0% | M17: =VLOOKUP($C17,'RECAP SECT'!$G$6:$DC$253,48,FALSE) -> 1 | N17: =VLOOKUP($C17,'RECAP SECT'!$G$6:$DC$253,49,FALSE) -> 56% | O17: =VLOOKUP($C17,'RECAP SECT'!$G$6:$DC$253,50,FALSE) -> 40% | P17: =VLOOKUP($C17,'RECAP SECT'!$G$6:$DC$253,51,FALSE) -> 13
A18: 30 | B18: MARNE-ARDENNES | C18: 2 | D18: CHARLEVILLE MEZIERES | E18: =VLOOKUP($C18,'RECAP SECT'!$G$6:$DC$253,3,FALSE) -> 56.0 | F18: =VLOOKUP($C18,'RECAP SECT'!$G$6:$DC$253,41,FALSE) -> 5,434 | G18: =VLOOKUP($C18,'RECAP SECT'!$G$6:$DC$253,42,FALSE) -> 97.07 | H18: =VLOOKUP($C18,'RECAP SECT'!$G$6:$DC$253,43,FALSE) -> 55% | I18: =VLOOKUP($C18,'RECAP SECT'!$G$6:$DC$253,44,FALSE) -> 11 | J18: =VLOOKUP($C18,'RECAP SECT'!$G$6:$DC$253,45,FALSE) -> 426 | K18: =VLOOKUP($C18,'RECAP SECT'!$G$6:$DC$253,46,FALSE) -> 7.61 | L18: =VLOOKUP($C18,'RECAP SECT'!$G$6:$DC$253,47,FALSE) -> 12% | M18: =VLOOKUP($C18,'RECAP SECT'!$G$6:$DC$253,48,FALSE) -> 2 | N18: =VLOOKUP($C18,'RECAP SECT'!$G$6:$DC$253,49,FALSE) -> 42% | O18: =VLOOKUP($C18,'RECAP SECT'!$G$6:$DC$253,50,FALSE) -> 27% | P18: =VLOOKUP($C18,'RECAP SECT'!$G$6:$DC$253,51,FALSE) -> 11
A19: 30 | B19: MARNE-ARDENNES | C19: 11 | D19: REIMS | E19: =VLOOKUP($C19,'RECAP SECT'!$G$6:$DC$253,3,FALSE) -> 83.2 | F19: =VLOOKUP($C19,'RECAP SECT'!$G$6:$DC$253,41,FALSE) -> 4,165 | G19: =VLOOKUP($C19,'RECAP SECT'!$G$6:$DC$253,42,FALSE) -> 50.08 | H19: =VLOOKUP($C19,'RECAP SECT'!$G$6:$DC$253,43,FALSE) -> 77% | I19: =VLOOKUP($C19,'RECAP SECT'!$G$6:$DC$253,44,FALSE) -> 15 | J19: =VLOOKUP($C19,'RECAP SECT'!$G$6:$DC$253,45,FALSE) -> 462 | K19: =VLOOKUP($C19,'RECAP SECT'!$G$6:$DC$253,46,FALSE) -> 5.55 | L19: =VLOOKUP($C19,'RECAP SECT'!$G$6:$DC$253,47,FALSE) -> 36% | M19: =VLOOKUP($C19,'RECAP SECT'!$G$6:$DC$253,48,FALSE) -> 9 | N19: =VLOOKUP($C19,'RECAP SECT'!$G$6:$DC$253,49,FALSE) -> 65% | O19: =VLOOKUP($C19,'RECAP SECT'!$G$6:$DC$253,50,FALSE) -> 49% | P19: =VLOOKUP($C19,'RECAP SECT'!$G$6:$DC$253,51,FALSE) -> 16
A20: 110 | B20: MEURTHE ET MOSELLE MEUSE | C20: 26 | D20: NANCY | E20: =VLOOKUP($C20,'RECAP SECT'!$G$6:$DC$253,3,FALSE) -> 67.6 | F20: =VLOOKUP($C20,'RECAP SECT'!$G$6:$DC$253,41,FALSE) -> 9,302 | G20: =VLOOKUP($C20,'RECAP SECT'!$G$6:$DC$253,42,FALSE) -> 137.66 | H20: =VLOOKUP($C20,'RECAP SECT'!$G$6:$DC$253,43,FALSE) -> 36% | I20: =VLOOKUP($C20,'RECAP SECT'!$G$6:$DC$253,44,FALSE) -> 8 | J20: =VLOOKUP($C20,'RECAP SECT'!$G$6:$DC$253,45,FALSE) -> 465 | K20: =VLOOKUP($C20,'RECAP SECT'!$G$6:$DC$253,46,FALSE) -> 6.88 | L20: =VLOOKUP($C20,'RECAP SECT'!$G$6:$DC$253,47,FALSE) -> 21% | M20: =VLOOKUP($C20,'RECAP SECT'!$G$6:$DC$253,48,FALSE) -> 4 | N20: =VLOOKUP($C20,'RECAP SECT'!$G$6:$DC$253,49,FALSE) -> 32% | O20: =VLOOKUP($C20,'RECAP SECT'!$G$6:$DC$253,50,FALSE) -> 16% | P20: =VLOOKUP($C20,'RECAP SECT'!$G$6:$DC$253,51,FALSE) -> 7
A21: 110 | B21: MEURTHE ET MOSELLE MEUSE | C21: 27 | D21: PONT A MOUSSON | E21: =VLOOKUP($C21,'RECAP SECT'!$G$6:$DC$253,3,FALSE) -> 77.5 | F21: =VLOOKUP($C21,'RECAP SECT'!$G$6:$DC$253,41,FALSE) -> 13,025 | G21: =VLOOKUP($C21,'RECAP SECT'!$G$6:$DC$253,42,FALSE) -> 168.04 | H21: =VLOOKUP($C21,'RECAP SECT'!$G$6:$DC$253,43,FALSE) -> 22% | I21: =VLOOKUP($C21,'RECAP SECT'!$G$6:$DC$253,44,FALSE) -> 5 | J21: =VLOOKUP($C21,'RECAP SECT'!$G$6:$DC$253,45,FALSE) -> 481 | K21: =VLOOKUP($C21,'RECAP SECT'!$G$6:$DC$253,46,FALSE) -> 6.21 | L21: =VLOOKUP($C21,'RECAP SECT'!$G$6:$DC$253,47,FALSE) -> 28% | M21: =VLOOKUP($C21,'RECAP SECT'!$G$6:$DC$253,48,FALSE) -> 5 | N21: =VLOOKUP($C21,'RECAP SECT'!$G$6:$DC$253,49,FALSE) -> 24% | O21: =VLOOKUP($C21,'RECAP SECT'!$G$6:$DC$253,50,FALSE) -> 9% | P21: =VLOOKUP($C21,'RECAP SECT'!$G$6:$DC$253,51,FALSE) -> 4
A22: 110 | B22: MEURTHE ET MOSELLE MEUSE | C22: 31 | D22: VERDUN | E22: =VLOOKUP($C22,'RECAP SECT'!$G$6:$DC$253,3,FALSE) -> 58.4 | F22: =VLOOKUP($C22,'RECAP SECT'!$G$6:$DC$253,41,FALSE) -> 2,789 | G22: =VLOOKUP($C22,'RECAP SECT'!$G$6:$DC$253,42,FALSE) -> 47.77 | H22: =VLOOKUP($C22,'RECAP SECT'!$G$6:$DC$253,43,FALSE) -> 78% | I22: =VLOOKUP($C22,'RECAP SECT'!$G$6:$DC$253,44,FALSE) -> 16 | J22: =VLOOKUP($C22,'RECAP SECT'!$G$6:$DC$253,45,FALSE) -> 251 | K22: =VLOOKUP($C22,'RECAP SECT'!$G$6:$DC$253,46,FALSE) -> 4.30 | L22: =VLOOKUP($C22,'RECAP SECT'!$G$6:$DC$253,47,FALSE) -> 50% | M22: =VLOOKUP($C22,'RECAP SECT'!$G$6:$DC$253,48,FALSE) -> 15 | N22: =VLOOKUP($C22,'RECAP SECT'!$G$6:$DC$253,49,FALSE) -> 70% | O22: =VLOOKUP($C22,'RECAP SECT'!$G$6:$DC$253,50,FALSE) -> 54% | P22: =VLOOKUP($C22,'RECAP SECT'!$G$6:$DC$253,51,FALSE) -> 17
A23: 160 | B23: MOSELLE | C23: 45 | D23: METZ | E23: =VLOOKUP($C23,'RECAP SECT'!$G$6:$DC$253,3,FALSE) -> 89.1 | F23: =VLOOKUP($C23,'RECAP SECT'!$G$6:$DC$253,41,FALSE) -> 11,738 | G23: =VLOOKUP($C23,'RECAP SECT'!$G$6:$DC$253,42,FALSE) -> 131.75 | H23: =VLOOKUP($C23,'RECAP SECT'!$G$6:$DC$253,43,FALSE) -> 39% | I23: =VLOOKUP($C23,'RECAP SECT'!$G$6:$DC$253,44,FALSE) -> 9 | J23: =VLOOKUP($C23,'RECAP SECT'!$G$6:$DC$253,45,FALSE) -> 411 | K23: =VLOOKUP($C23,'RECAP SECT'!$G$6:$DC$253,46,FALSE) -> 4.61 | L23: =VLOOKUP($C23,'RECAP SECT'!$G$6:$DC$253,47,FALSE) -> 47% | M23: =VLOOKUP($C23,'RECAP SECT'!$G$6:$DC$253,48,FALSE) -> 14 | N23: =VLOOKUP($C23,'RECAP SECT'!$G$6:$DC$253,49,FALSE) -> 41% | O23: =VLOOKUP($C23,'RECAP SECT'!$G$6:$DC$253,50,FALSE) -> 26% | P23: =VLOOKUP($C23,'RECAP SECT'!$G$6:$DC$253,51,FALSE) -> 9
A24: 160 | B24: MOSELLE | C24: 42 | D24: MOSELLE EST | E24: =VLOOKUP($C24,'RECAP SECT'!$G$6:$DC$253,3,FALSE) -> 72.5 | F24: =VLOOKUP($C24,'RECAP SECT'!$G$6:$DC$253,41,FALSE) -> 8,616 | G24: =VLOOKUP($C24,'RECAP SECT'!$G$6:$DC$253,42,FALSE) -> 118.85 | H24: =VLOOKUP($C24,'RECAP SECT'!$G$6:$DC$253,43,FALSE) -> 45% | I24: =VLOOKUP($C24,'RECAP SECT'!$G$6:$DC$253,44,FALSE) -> 10 | J24: =VLOOKUP($C24,'RECAP SECT'!$G$6:$DC$253,45,FALSE) -> 420 | K24: =VLOOKUP($C24,'RECAP SECT'!$G$6:$DC$253,46,FALSE) -> 5.79 | L24: =VLOOKUP($C24,'RECAP SECT'!$G$6:$DC$253,47,FALSE) -> 33% | M24: =VLOOKUP($C24,'RECAP SECT'!$G$6:$DC$253,48,FALSE) -> 8 | N24: =VLOOKUP($C24,'RECAP SECT'!$G$6:$DC$253,49,FALSE) -> 42% | O24: =VLOOKUP($C24,'RECAP SECT'!$G$6:$DC$253,50,FALSE) -> 26% | P24: =VLOOKUP($C24,'RECAP SECT'!$G$6:$DC$253,51,FALSE) -> 10
A25: 160 | B25: MOSELLE | C25: 44 | D25: MOSELLE NORD | E25: =VLOOKUP($C25,'RECAP SECT'!$G$6:$DC$253,3,FALSE) -> 74.2 | F25: =VLOOKUP($C25,'RECAP SECT'!$G$6:$DC$253,41,FALSE) -> 11,540 | G25: =VLOOKUP($C25,'RECAP SECT'!$G$6:$DC$253,42,FALSE) -> 155.61 | H25: =VLOOKUP($C25,'RECAP SECT'!$G$6:$DC$253,43,FALSE) -> 28% | I25: =VLOOKUP($C25,'RECAP SECT'!$G$6:$DC$253,44,FALSE) -> 6 | J25: =VLOOKUP($C25,'RECAP SECT'!$G$6:$DC$253,45,FALSE) -> 314 | K25: =VLOOKUP($C25,'RECAP SECT'!$G$6:$DC$253,46,FALSE) -> 4.23 | L25: =VLOOKUP($C25,'RECAP SECT'!$G$6:$DC$253,47,FALSE) -> 51% | M25: =VLOOKUP($C25,'RECAP SECT'!$G$6:$DC$253,48,FALSE) -> 16 | N25: =VLOOKUP($C25,'RECAP SECT'!$G$6:$DC$253,49,FALSE) -> 35% | O25: =VLOOKUP($C25,'RECAP SECT'!$G$6:$DC$253,50,FALSE) -> 20% | P25: =VLOOKUP($C25,'RECAP SECT'!$G$6:$DC$253,51,FALSE) -> 8
A26: 80 | B26: VOSGES | C26: 57 | D26: EPINAL | E26: =VLOOKUP($C26,'RECAP SECT'!$G$6:$DC$253,3,FALSE) -> 61.5 | F26: =VLOOKUP($C26,'RECAP SECT'!$G$6:$DC$253,41,FALSE) -> 13,313 | G26: =VLOOKUP($C26,'RECAP SECT'!$G$6:$DC$253,42,FALSE) -> 216.64 | H26: =VLOOKUP($C26,'RECAP SECT'!$G$6:$DC$253,43,FALSE) -> 0% | I26: =VLOOKUP($C26,'RECAP SECT'!$G$6:$DC$253,44,FALSE) -> 1 | J26: =VLOOKUP($C26,'RECAP SECT'!$G$6:$DC$253,45,FALSE) -> 216 | K26: =VLOOKUP($C26,'RECAP SECT'!$G$6:$DC$253,46,FALSE) -> 3.52 | L26: =VLOOKUP($C26,'RECAP SECT'!$G$6:$DC$253,47,FALSE) -> 59% | M26: =VLOOKUP($C26,'RECAP SECT'!$G$6:$DC$253,48,FALSE) -> 18 | N26: =VLOOKUP($C26,'RECAP SECT'!$G$6:$DC$253,49,FALSE) -> 18% | O26: =VLOOKUP($C26,'RECAP SECT'!$G$6:$DC$253,50,FALSE) -> 2% | P26: =VLOOKUP($C26,'RECAP SECT'!$G$6:$DC$253,51,FALSE) -> 2
A27: 80 | B27: VOSGES | C27: 55 | D27: SAINT DIE | E27: =VLOOKUP($C27,'RECAP SECT'!$G$6:$DC$253,3,FALSE) -> 50.2 | F27: =VLOOKUP($C27,'RECAP SECT'!$G$6:$DC$253,41,FALSE) -> 9,437 | G27: =VLOOKUP($C27,'RECAP SECT'!$G$6:$DC$253,42,FALSE) -> 187.83 | H27: =VLOOKUP($C27,'RECAP SECT'!$G$6:$DC$253,43,FALSE) -> 13% | I27: =VLOOKUP($C27,'RECAP SECT'!$G$6:$DC$253,44,FALSE) -> 3 | J27: =VLOOKUP($C27,'RECAP SECT'!$G$6:$DC$253,45,FALSE) -> 211 | K27: =VLOOKUP($C27,'RECAP SECT'!$G$6:$DC$253,46,FALSE) -> 4.20 | L27: =VLOOKUP($C27,'RECAP SECT'!$G$6:$DC$253,47,FALSE) -> 52% | M27: =VLOOKUP($C27,'RECAP SECT'!$G$6:$DC$253,48,FALSE) -> 17 | N27: =VLOOKUP($C27,'RECAP SECT'!$G$6:$DC$253,49,FALSE) -> 25% | O27: =VLOOKUP($C27,'RECAP SECT'!$G$6:$DC$253,50,FALSE) -> 9% | P27: =VLOOKUP($C27,'RECAP SECT'!$G$6:$DC$253,51,FALSE) -> 5
A28: Total CEGEE Directions Régionales | E28: =SUM(E10:E27) -> 1186

Sheet SE_CREDIT
B1: Accueil | F1: BAROMETRE BDD - TERRITOIRES
F2: CREDITS
F3: =ACCUEIL!F7 -> 2021-02-28
F7: Engagements et ventes accessoires pondérés Immo | J7: Engagements et ventes accessoires pondérés Conso | N7: Ventes sur client non détenteur de l’univers | R7: Total Crédits
F8: =DATEMAJ!C18 -> au 28/02 | H8: coef | I8: ='RECAP DIRCOM'!BM4 -> 8% | J8: =DATEMAJ!C19 -> au 28/02 | L8: coef | M8: ='RECAP DIRCOM'!BQ4 -> 6% | N8: =DATEMAJ!C20 -> au 28/02 | P8: coef | Q8: ='RECAP DIRCOM'!BU4 -> 6% | S8: coef | T8: ='RECAP DIRCOM'!BX4 -> 20%
B9: Direction | C9: eds | D9: Territoire | E9: ="ETP perf "&DATEMAJ!$C$28 -> ETP perf 31-janv | F9: PNB | G9: PNB / ETP | H9: % Ecart au 1er | I9: Rang | J9: PNB | K9: PNB / ETP | L9: % Ecart au 1er | M9: Rang | N9: VB | O9: VB / ETP | P9: % Ecart au 1er | Q9: Rang | R9: Moyenne ecart au 1er | S9: % Ecart au 1er | T9: Rang CEGEE
A10: 50 | B10: AUBE HAUTE MARNE | C10: 21 | D10: CHAUMONT | E10: =VLOOKUP($C10,'RECAP SECT'!$G$6:$DC$253,3,FALSE) -> 34.0 | F10: =VLOOKUP($C10,'RECAP SECT'!$G$6:$DC$253,56,FALSE) -> 272 | G10: =VLOOKUP($C10,'RECAP SECT'!$G$6:$DC$253,57,FALSE) -> 8.01 | H10: =VLOOKUP($C10,'RECAP SECT'!$G$6:$DC$253,58,FALSE) -> 73% | I10: =VLOOKUP($C10,'RECAP SECT'!$G$6:$DC$253,59,FALSE) -> 15 | J10: =VLOOKUP($C10,'RECAP SECT'!$G$6:$DC$253,60,FALSE) -> 398 | K10: =VLOOKUP($C10,'RECAP SECT'!$G$6:$DC$253,61,FALSE) -> 11.70 | L10: =VLOOKUP($C10,'RECAP SECT'!$G$6:$DC$253,62,FALSE) -> 0% | M10: =VLOOKUP($C10,'RECAP SECT'!$G$6:$DC$253,63,FALSE) -> 1 | N10: =VLOOKUP($C10,'RECAP SECT'!$G$6:$DC$253,64,FALSE) -> 121 | O10: =VLOOKUP($C10,'RECAP SECT'!$G$6:$DC$253,65,FALSE) -> 3.56 | P10: =VLOOKUP($C10,'RECAP SECT'!$G$6:$DC$253,66,FALSE) -> 39% | Q10: =VLOOKUP($C10,'RECAP SECT'!$G$6:$DC$253,67,FALSE) -> 8 | R10: =VLOOKUP($C10,'RECAP SECT'!$G$6:$DC$253,68,FALSE) -> 41% | S10: =VLOOKUP($C10,'RECAP SECT'!$G$6:$DC$253,69,FALSE) -> 32% | T10: =VLOOKUP($C10,'RECAP SECT'!$G$6:$DC$253,70,FALSE) -> 10
A11: 50 | B11: AUBE HAUTE MARNE | C11: 14 | D11: TROYES | E11: =VLOOKUP($C11,'RECAP SECT'!$G$6:$DC$253,3,FALSE) -> 68.9 | F11: =VLOOKUP($C11,'RECAP SECT'!$G$6:$DC$253,56,FALSE) -> 706 | G11: =VLOOKUP($C11,'RECAP SECT'!$G$6:$DC$253,57,FALSE) -> 10.26 | H11: =VLOOKUP($C11,'RECAP SECT'!$G$6:$DC$253,58,FALSE) -> 65% | I11: =VLOOKUP($C11,'RECAP SECT'!$G$6:$DC$253,59,FALSE) -> 12 | J11: =VLOOKUP($C11,'RECAP SECT'!$G$6:$DC$253,60,FALSE) -> 623 | K11: =VLOOKUP($C11,'RECAP SECT'!$G$6:$DC$253,61,FALSE) -> 9.05 | L11: =VLOOKUP($C11,'RECAP SECT'!$G$6:$DC$253,62,FALSE) -> 23% | M11: =VLOOKUP($C11,'RECAP SECT'!$G$6:$DC$253,63,FALSE) -> 11 | N11: =VLOOKUP($C11,'RECAP SECT'!$G$6:$DC$253,64,FALSE) -> 225 | O11: =VLOOKUP($C11,'RECAP SECT'!$G$6:$DC$253,65,FALSE) -> 3.27 | P11: =VLOOKUP($C11,'RECAP SECT'!$G$6:$DC$253,66,FALSE) -> 44% | Q11: =VLOOKUP($C11,'RECAP SECT'!$G$6:$DC$253,67,FALSE) -> 11 | R11: =VLOOKUP($C11,'RECAP SECT'!$G$6:$DC$253,68,FALSE) -> 46% | S11: =VLOOKUP($C11,'RECAP SECT'!$G$6:$DC$253,69,FALSE) -> 38% | T11: =VLOOKUP($C11,'RECAP SECT'!$G$6:$DC$253,70,FALSE) -> 13
A12: 262 | B12: BAS-RHIN | C12: 5060 | D12: HAGUENAU | E12: =VLOOKUP($C12,'RECAP SECT'!$G$6:$DC$253,3,FALSE) -> 74.1 | F12: =VLOOKUP($C12,'RECAP SECT'!$G$6:$DC$253,56,FALSE) -> 835 | G12: =VLOOKUP($C12,'RECAP SECT'!$G$6:$DC$253,57,FALSE) -> 11.27 | H12: =VLOOKUP($C12,'RECAP SECT'!$G$6:$DC$253,58,FALSE) -> 61% | I12: =VLOOKUP($C12,'RECAP SECT'!$G$6:$DC$253,59,FALSE) -> 11 | J12: =VLOOKUP($C12,'RECAP SECT'!$G$6:$DC$253,60,FALSE) -> 744 | K12: =VLOOKUP($C12,'RECAP SECT'!$G$6:$DC$253,61,FALSE) -> 10.04 | L12: =VLOOKUP($C12,'RECAP SECT'!$G$6:$DC$253,62,FALSE) -> 14% | M12: =VLOOKUP($C12,'RECAP SECT'!$G$6:$DC$253,63,FALSE) -> 3 | N12: =VLOOKUP($C12,'RECAP SECT'!$G$6:$DC$253,64,FALSE) -> 194 | O12: =VLOOKUP($C12,'RECAP SECT'!$G$6:$DC$253,65,FALSE) -> 2.62 | P12: =VLOOKUP($C12,'RECAP SECT'!$G$6:$DC$253,66,FALSE) -> 55% | Q12: =VLOOKUP($C12,'RECAP SECT'!$G$6:$DC$253,67,FALSE) -> 16 | R12: =VLOOKUP($C12,'RECAP SECT'!$G$6:$DC$253,68,FALSE) -> 45% | S12: =VLOOKUP($C12,'RECAP SECT'!$G$6:$DC$253,69,FALSE) -> 37% | T12: =VLOOKUP($C12,'RECAP SECT'!$G$6:$DC$253,70,FALSE) -> 12
A13: 262 | B13: BAS-RHIN | C13: 5101 | D13: SELESTAT | E13: =VLOOKUP($C13,'RECAP SECT'!$G$6:$DC$253,3,FALSE) -> 63.5 | F13: =VLOOKUP($C13,'RECAP SECT'!$G$6:$DC$253,56,FALSE) -> 590 | G13: =VLOOKUP($C13,'RECAP SECT'!$G$6:$DC$253,57,FALSE) -> 9.30 | H13: =VLOOKUP($C13,'RECAP SECT'!$G$6:$DC$253,58,FALSE) -> 68% | I13: =VLOOKUP($C13,'RECAP SECT'!$G$6:$DC$253,59,FALSE) -> 14 | J13: =VLOOKUP($C13,'RECAP SECT'!$G$6:$DC$253,60,FALSE) -> 624 | K13: =VLOOKUP($C13,'RECAP SECT'!$G$6:$DC$253,61,FALSE) -> 9.83 | L13: =VLOOKUP($C13,'RECAP SECT'!$G$6:$DC$253,62,FALSE) -> 16% | M13: =VLOOKUP($C13,'RECAP SECT'!$G$6:$DC$253,63,FALSE) -> 6 | N13: =VLOOKUP($C13,'RECAP SECT'!$G$6:$DC$253,64,FALSE) -> 183 | O13: =VLOOKUP($C13,'RECAP SECT'!$G$6:$DC$253,65,FALSE) -> 2.88 | P13: =VLOOKUP($C13,'RECAP SECT'!$G$6:$DC$253,66,FALSE) -> 51% | Q13: =VLOOKUP($C13,'RECAP SECT'!$G$6:$DC$253,67,FALSE) -> 13 | R13: =VLOOKUP($C13,'RECAP SECT'!$G$6:$DC$253,68,FALSE) -> 47% | S13: =VLOOKUP($C13,'RECAP SECT'!$G$6:$DC$253,69,FALSE) -> 39% | T13: =VLOOKUP($C13,'RECAP SECT'!$G$6:$DC$253,70,FALSE) -> 14
A14: 262 | B14: BAS-RHIN | C14: 5006 | D14: STRASBOURG | E14: =VLOOKUP($C14,'RECAP SECT'!$G$6:$DC$253,3,FALSE) -> 83.0 | F14: =VLOOKUP($C14,'RECAP SECT'!$G$6:$DC$253,56,FALSE) -> 1,170 | G14: =VLOOKUP($C14,'RECAP SECT'!$G$6:$DC$253,57,FALSE) -> 14.09 | H14: =VLOOKUP($C14,'RECAP SECT'!$G$6:$DC$253,58,FALSE) -> 52% | I14: =VLOOKUP($C14,'RECAP SECT'!$G$6:$DC$253,59,FALSE) -> 8 | J14: =VLOOKUP($C14,'RECAP SECT'!$G$6:$DC$253,60,FALSE) -> 706 | K14: =VLOOKUP($C14,'RECAP SECT'!$G$6:$DC$253,61,FALSE) -> 8.50 | L14: =VLOOKUP($C14,'RECAP SECT'!$G$6:$DC$253,62,FALSE) -> 27% | M14: =VLOOKUP($C14,'RECAP SECT'!$G$6:$DC$253,63,FALSE) -> 12 | N14: =VLOOKUP($C14,'RECAP SECT'!$G$6:$DC$253,64,FALSE) -> 280 | O14: =VLOOKUP($C14,'RECAP SECT'!$G$6:$DC$253,65,FALSE) -> 3.37 | P14: =VLOOKUP($C14,'RECAP SECT'!$G$6:$DC$253,66,FALSE) -> 42% | Q14: =VLOOKUP($C14,'RECAP SECT'!$G$6:$DC$253,67,FALSE) -> 10 | R14: =VLOOKUP($C14,'RECAP SECT'!$G$6:$DC$253,68,FALSE) -> 42% | S14: =VLOOKUP($C14,'RECAP SECT'!$G$6:$DC$253,69,FALSE) -> 33% | T14: =VLOOKUP($C14,'RECAP SECT'!$G$6:$DC$253,70,FALSE) -> 11
A15: 264 | B15: HAUT-RHIN | C15: 5130 | D15: COLMAR | E15: =VLOOKUP($C15,'RECAP SECT'!$G$6:$DC$253,3,FALSE) -> 65.1 | F15: =VLOOKUP($C15,'RECAP SECT'!$G$6:$DC$253,56,FALSE) -> 428 | G15: =VLOOKUP($C15,'RECAP SECT'!$G$6:$DC$253,57,FALSE) -> 6.58 | H15: =VLOOKUP($C15,'RECAP SECT'!$G$6:$DC$253,58,FALSE) -> 78% | I15: =VLOOKUP($C15,'RECAP SECT'!$G$6:$DC$253,59,FALSE) -> 17 | J15: =VLOOKUP($C15,'RECAP SECT'!$G$6:$DC$253,60,FALSE) -> 473 | K15: =VLOOKUP($C15,'RECAP SECT'!$G$6:$DC$253,61,FALSE) -> 7.27 | L15: =VLOOKUP($C15,'RECAP SECT'!$G$6:$DC$253,62,FALSE) -> 38% | M15: =VLOOKUP($C15,'RECAP SECT'!$G$6:$DC$253,63,FALSE) -> 18 | N15: =VLOOKUP($C15,'RECAP SECT'!$G$6:$DC$253,64,FALSE) -> 140 | O15: =VLOOKUP($C15,'RECAP SECT'!$G$6:$DC$253,65,FALSE) -> 2.15 | P15: =VLOOKUP($C15,'RECAP SECT'!$G$6:$DC$253,66,FALSE) -> 63% | Q15: =VLOOKUP($C15,'RECAP SECT'!$G$6:$DC$253,67,FALSE) -> 18 | R15: =VLOOKUP($C15,'RECAP SECT'!$G$6:$DC$253,68,FALSE) -> 61% | S15: =VLOOKUP($C15,'RECAP SECT'!$G$6:$DC$253,69,FALSE) -> 53% | T15: =VLOOKUP($C15,'RECAP SECT'!$G$6:$DC$253,70,FALSE) -> 18
A16: 264 | B16: HAUT-RHIN | C16: 5169 | D16: MULHOUSE | E16: =VLOOKUP($C16,'RECAP SECT'!$G$6:$DC$253,3,FALSE) -> 61.5 | F16: =VLOOKUP($C16,'RECAP SECT'!$G$6:$DC$253,56,FALSE) -> 399 | G16: =VLOOKUP($C16,'RECAP SECT'!$G$6:$DC$253,57,FALSE) -> 6.49 | H16: =VLOOKUP($C16,'RECAP SECT'!$G$6:$DC$253,58,FALSE) -> 78% | I16: =VLOOKUP($C16,'RECAP SECT'!$G$6:$DC$253,59,FALSE) -> 18 | J16: =VLOOKUP($C16,'RECAP SECT'!$G$6:$DC$253,60,FALSE) -> 569 | K16: =VLOOKUP($C16,'RECAP SECT'!$G$6:$DC$253,61,FALSE) -> 9.25 | L16: =VLOOKUP($C16,'RECAP SECT'!$G$6:$DC$253,62,FALSE) -> 21% | M16: =VLOOKUP($C16,'RECAP SECT'!$G$6:$DC$253,63,FALSE) -> 9 | N16: =VLOOKUP($C16,'RECAP SECT'!$G$6:$DC$253,64,FALSE) -> 147 | O16: =VLOOKUP($C16,'RECAP SECT'!$G$6:$DC$253,65,FALSE) -> 2.39 | P16: =VLOOKUP($C16,'RECAP SECT'!$G$6:$DC$253,66,FALSE) -> 59% | Q16: =VLOOKUP($C16,'RECAP SECT'!$G$6:$DC$253,67,FALSE) -> 17 | R16: =VLOOKUP($C16,'RECAP SECT'!$G$6:$DC$253,68,FALSE) -> 55% | S16: =VLOOKUP($C16,'RECAP SECT'!$G$6:$DC$253,69,FALSE) -> 47% | T16: =VLOOKUP($C16,'RECAP SECT'!$G$6:$DC$253,70,FALSE) -> 17
A17: 30 | B17: MARNE-ARDENNES | C17: 6 | D17: CHALONS EN CHAMPAGNE | E17: =VLOOKUP($C17,'RECAP SECT'!$G$6:$DC$253,3,FALSE) -> 45.4 | F17: =VLOOKUP($C17,'RECAP SECT'!$G$6:$DC$253,56,FALSE) -> 655 | G17: =VLOOKUP($C17,'RECAP SECT'!$G$6:$DC$253,57,FALSE) -> 14.43 | H17: =VLOOKUP($C17,'RECAP SECT'!$G$6:$DC$253,58,FALSE) -> 51% | I17: =VLOOKUP($C17,'RECAP SECT'!$G$6:$DC$253,59,FALSE) -> 7 | J17: =VLOOKUP($C17,'RECAP SECT'!$G$6:$DC$253,60,FALSE) -> 369 | K17: =VLOOKUP($C17,'RECAP SECT'!$G$6:$DC$253,61,FALSE) -> 8.13 | L17: =VLOOKUP($C17,'RECAP SECT'!$G$6:$DC$253,62,FALSE) -> 31% | M17: =VLOOKUP($C17,'RECAP SECT'!$G$6:$DC$253,63,FALSE) -> 16 | N17: =VLOOKUP($C17,'RECAP SECT'!$G$6:$DC$253,64,FALSE) -> 176 | O17: =VLOOKUP($C17,'RECAP SECT'!$G$6:$DC$253,65,FALSE) -> 3.88 | P17: =VLOOKUP($C17,'RECAP SECT'!$G$6:$DC$253,66,FALSE) -> 34% | Q17: =VLOOKUP($C17,'RECAP SECT'!$G$6:$DC$253,67,FALSE) -> 5 | R17: =VLOOKUP($C17,'RECAP SECT'!$G$6:$DC$253,68,FALSE) -> 40% | S17: =VLOOKUP($C17,'RECAP SECT'!$G$6:$DC$253,69,FALSE) -> 31% | T17: =VLOOKUP($C17,'RECAP SECT'!$G$6:$DC$253,70,FALSE) -> 7
A18: 30 | B18: MARNE-ARDENNES | C18: 2 | D18: CHARLEVILLE MEZIERES | E18: =VLOOKUP($C18,'RECAP SECT'!$G$6:$DC$253,3,FALSE) -> 56.0 | F18: =VLOOKUP($C18,'RECAP SECT'!$G$6:$DC$253,56,FALSE) -> 1,323 | G18: =VLOOKUP($C18,'RECAP SECT'!$G$6:$DC$253,57,FALSE) -> 23.64 | H18: =VLOOKUP($C18,'RECAP SECT'!$G$6:$DC$253,58,FALSE) -> 19% | I18: =VLOOKUP($C18,'RECAP SECT'!$G$6:$DC$253,59,FALSE) -> 3 | J18: =VLOOKUP($C18,'RECAP SECT'!$G$6:$DC$253,60,FALSE) -> 468 | K18: =VLOOKUP($C18,'RECAP SECT'!$G$6:$DC$253,61,FALSE) -> 8.36 | L18: =VLOOKUP($C18,'RECAP SECT'!$G$6:$DC$253,62,FALSE) -> 29% | M18: =VLOOKUP($C18,'RECAP SECT'!$G$6:$DC$253,63,FALSE) -> 14 | N18: =VLOOKUP($C18,'RECAP SECT'!$G$6:$DC$253,64,FALSE) -> 241 | O18: =VLOOKUP($C18,'RECAP SECT'!$G$6:$DC$253,65,FALSE) -> 4.31 | P18: =VLOOKUP($C18,'RECAP SECT'!$G$6:$DC$253,66,FALSE) -> 27% | Q18: =VLOOKUP($C18,'RECAP SECT'!$G$6:$DC$253,67,FALSE) -> 3 | R18: =VLOOKUP($C18,'RECAP SECT'!$G$6:$DC$253,68,FALSE) -> 24% | S18: =VLOOKUP($C18,'RECAP SECT'!$G$6:$DC$253,69,FALSE) -> 16% | T18: =VLOOKUP($C18,'RECAP SECT'!$G$6:$DC$253,70,FALSE) -> 4
A19: 30 | B19: MARNE-ARDENNES | C19: 11 | D19: REIMS | E19: =VLOOKUP($C19,'RECAP SECT'!$G$6:$DC$253,3,FALSE) -> 83.2 | F19: =VLOOKUP($C19,'RECAP SECT'!$G$6:$DC$253,56,FALSE) -> 1,786 | G19: =VLOOKUP($C19,'RECAP SECT'!$G$6:$DC$253,57,FALSE) -> 21.47 | H19: =VLOOKUP($C19,'RECAP SECT'!$G$6:$DC$253,58,FALSE) -> 27% | I19: =VLOOKUP($C19,'RECAP SECT'!$G$6:$DC$253,59,FALSE) -> 4 | J19: =VLOOKUP($C19,'RECAP SECT'!$G$6:$DC$253,60,FALSE) -> 834 | K19: =VLOOKUP($C19,'RECAP SECT'!$G$6:$DC$253,61,FALSE) -> 10.03 | L19: =VLOOKUP($C19,'RECAP SECT'!$G$6:$DC$253,62,FALSE) -> 14% | M19: =VLOOKUP($C19,'RECAP SECT'!$G$6:$DC$253,63,FALSE) -> 4 | N19: =VLOOKUP($C19,'RECAP SECT'!$G$6:$DC$253,64,FALSE) -> 337 | O19: =VLOOKUP($C19,'RECAP SECT'!$G$6:$DC$253,65,FALSE) -> 4.05 | P19: =VLOOKUP($C19,'RECAP SECT'!$G$6:$DC$253,66,FALSE) -> 31% | Q19: =VLOOKUP($C19,'RECAP SECT'!$G$6:$DC$253,67,FALSE) -> 4 | R19: =VLOOKUP($C19,'RECAP SECT'!$G$6:$DC$253,68,FALSE) -> 24% | S19: =VLOOKUP($C19,'RECAP SECT'!$G$6:$DC$253,69,FALSE) -> 16% | T19: =VLOOKUP($C19,'RECAP SECT'!$G$6:$DC$253,70,FALSE) -> 3
A20: 110 | B20: MEURTHE ET MOSELLE MEUSE | C20: 26 | D20: NANCY | E20: =VLOOKUP($C20,'RECAP SECT'!$G$6:$DC$253,3,FALSE) -> 67.6 | F20: =VLOOKUP($C20,'RECAP SECT'!$G$6:$DC$253,56,FALSE) -> 1,977 | G20: =VLOOKUP($C20,'RECAP SECT'!$G$6:$DC$253,57,FALSE) -> 29.26 | H20: =VLOOKUP($C20,'RECAP SECT'!$G$6:$DC$253,58,FALSE) -> 0% | I20: =VLOOKUP($C20,'RECAP SECT'!$G$6:$DC$253,59,FALSE) -> 1 | J20: =VLOOKUP($C20,'RECAP SECT'!$G$6:$DC$253,60,FALSE) -> 570 | K20: =VLOOKUP($C20,'RECAP SECT'!$G$6:$DC$253,61,FALSE) -> 8.44 | L20: =VLOOKUP($C20,'RECAP SECT'!$G$6:$DC$253,62,FALSE) -> 28% | M20: =VLOOKUP($C20,'RECAP SECT'!$G$6:$DC$253,63,FALSE) -> 13 | N20: =VLOOKUP($C20,'RECAP SECT'!$G$6:$DC$253,64,FALSE) -> 396 | O20: =VLOOKUP($C20,'RECAP SECT'!$G$6:$DC$253,65,FALSE) -> 5.86 | P20: =VLOOKUP($C20,'RECAP SECT'!$G$6:$DC$253,66,FALSE) -> 0% | Q20: =VLOOKUP($C20,'RECAP SECT'!$G$6:$DC$253,67,FALSE) -> 1 | R20: =VLOOKUP($C20,'RECAP SECT'!$G$6:$DC$253,68,FALSE) -> 8% | S20: =VLOOKUP($C20,'RECAP SECT'!$G$6:$DC$253,69,FALSE) -> 0% | T20: =VLOOKUP($C20,'RECAP SECT'!$G$6:$DC$253,70,FALSE) -> 1
A21: 110 | B21: MEURTHE ET MOSELLE MEUSE | C21: 27 | D21: PONT A MOUSSON | E21: =VLOOKUP($C21,'RECAP SECT'!$G$6:$DC$253,3,FALSE) -> 77.5 | F21: =VLOOKUP($C21,'RECAP SECT'!$G$6:$DC$253,56,FALSE) -> 2,127 | G21: =VLOOKUP($C21,'RECAP SECT'!$G$6:$DC$253,57,FALSE) -> 27.44 | H21: =VLOOKUP($C21,'RECAP SECT'!$G$6:$DC$253,58,FALSE) -> 6% | I21: =VLOOKUP($C21,'RECAP SECT'!$G$6:$DC$253,59,FALSE) -> 2 | J21: =VLOOKUP($C21,'RECAP SECT'!$G$6:$DC$253,60,FALSE) -> 714 | K21: =VLOOKUP($C21,'RECAP SECT'!$G$6:$DC$253,61,FALSE) -> 9.21 | L21: =VLOOKUP($C21,'RECAP SECT'!$G$6:$DC$253,62,FALSE) -> 21% | M21: =VLOOKUP($C21,'RECAP SECT'!$G$6:$DC$253,63,FALSE) -> 10 | N21: =VLOOKUP($C21,'RECAP SECT'!$G$6:$DC$253,64,FALSE) -> 372 | O21: =VLOOKUP($C21,'RECAP SECT'!$G$6:$DC$253,65,FALSE) -> 4.80 | P21: =VLOOKUP($C21,'RECAP SECT'!$G$6:$DC$253,66,FALSE) -> 18% | Q21: =VLOOKUP($C21,'RECAP SECT'!$G$6:$DC$253,67,FALSE) -> 2 | R21: =VLOOKUP($C21,'RECAP SECT'!$G$6:$DC$253,68,FALSE) -> 14% | S21: =VLOOKUP($C21,'RECAP SECT'!$G$6:$DC$253,69,FALSE) -> 6% | T21: =VLOOKUP($C21,'RECAP SECT'!$G$6:$DC$253,70,FALSE) -> 2
A22: 110 | B22: MEURTHE ET MOSELLE MEUSE | C22: 31 | D22: VERDUN | E22: =VLOOKUP($C22,'RECAP SECT'!$G$6:$DC$253,3,FALSE) -> 58.4 | F22: =VLOOKUP($C22,'RECAP SECT'!$G$6:$DC$253,56,FALSE) -> 952 | G22: =VLOOKUP($C22,'RECAP SECT'!$G$6:$DC$253,57,FALSE) -> 16.30 | H22: =VLOOKUP($C22,'RECAP SECT'!$G$6:$DC$253,58,FALSE) -> 44% | I22: =VLOOKUP($C22,'RECAP SECT'!$G$6:$DC$253,59,FALSE) -> 5 | J22: =VLOOKUP($C22,'RECAP SECT'!$G$6:$DC$253,60,FALSE) -> 570 | K22: =VLOOKUP($C22,'RECAP SECT'!$G$6:$DC$253,61,FALSE) -> 9.76 | L22: =VLOOKUP($C22,'RECAP SECT'!$G$6:$DC$253,62,FALSE) -> 17% | M22: =VLOOKUP($C22,'RECAP SECT'!$G$6:$DC$253,63,FALSE) -> 7 | N22: =VLOOKUP($C22,'RECAP SECT'!$G$6:$DC$253,64,FALSE) -> 208 | O22: =VLOOKUP($C22,'RECAP SECT'!$G$6:$DC$253,65,FALSE) -> 3.56 | P22: =VLOOKUP($C22,'RECAP SECT'!$G$6:$DC$253,66,FALSE) -> 39% | Q22: =VLOOKUP($C22,'RECAP SECT'!$G$6:$DC$253,67,FALSE) -> 7 | R22: =VLOOKUP($C22,'RECAP SECT'!$G$6:$DC$253,68,FALSE) -> 34% | S22: =VLOOKUP($C22,'RECAP SECT'!$G$6:$DC$253,69,FALSE) -> 26% | T22: =VLOOKUP($C22,'RECAP SECT'!$G$6:$DC$253,70,FALSE) -> 5
A23: 160 | B23: MOSELLE | C23: 45 | D23: METZ | E23: =VLOOKUP($C23,'RECAP SECT'!$G$6:$DC$253,3,FALSE) -> 89.1 | F23: =VLOOKUP($C23,'RECAP SECT'!$G$6:$DC$253,56,FALSE) -> 1,183 | G23: =VLOOKUP($C23,'RECAP SECT'!$G$6:$DC$253,57,FALSE) -> 13.28 | H23: =VLOOKUP($C23,'RECAP SECT'!$G$6:$DC$253,58,FALSE) -> 55% | I23: =VLOOKUP($C23,'RECAP SECT'!$G$6:$DC$253,59,FALSE) -> 10 | J23: =VLOOKUP($C23,'RECAP SECT'!$G$6:$DC$253,60,FALSE) -> 858 | K23: =VLOOKUP($C23,'RECAP SECT'!$G$6:$DC$253,61,FALSE) -> 9.63 | L23: =VLOOKUP($C23,'RECAP SECT'!$G$6:$DC$253,62,FALSE) -> 18% | M23: =VLOOKUP($C23,'RECAP SECT'!$G$6:$DC$253,63,FALSE) -> 8 | N23: =VLOOKUP($C23,'RECAP SECT'!$G$6:$DC$253,64,FALSE) -> 302 | O23: =VLOOKUP($C23,'RECAP SECT'!$G$6:$DC$253,65,FALSE) -> 3.39 | P23: =VLOOKUP($C23,'RECAP SECT'!$G$6:$DC$253,66,FALSE) -> 42% | Q23: =VLOOKUP($C23,'RECAP SECT'!$G$6:$DC$253,67,FALSE) -> 9 | R23: =VLOOKUP($C23,'RECAP SECT'!$G$6:$DC$253,68,FALSE) -> 40% | S23: =VLOOKUP($C23,'RECAP SECT'!$G$6:$DC$253,69,FALSE) -> 31% | T23: =VLOOKUP($C23,'RECAP SECT'!$G$6:$DC$253,70,FALSE) -> 8
A24: 160 | B24: MOSELLE | C24: 42 | D24: MOSELLE EST | E24: =VLOOKUP($C24,'RECAP SECT'!$G$6:$DC$253,3,FALSE) -> 72.5 | F24: =VLOOKUP($C24,'RECAP SECT'!$G$6:$DC$253,56,FALSE) -> 526 | G24: =VLOOKUP($C24,'RECAP SECT'!$G$6:$DC$253,57,FALSE) -> 7.25 | H24: =VLOOKUP($C24,'RECAP SECT'!$G$6:$DC$253,58,FALSE) -> 75% | I24: =VLOOKUP($C24,'RECAP SECT'!$G$6:$DC$253,59,FALSE) -> 16 | J24: =VLOOKUP($C24,'RECAP SECT'!$G$6:$DC$253,60,FALSE) -> 773 | K24: =VLOOKUP($C24,'RECAP SECT'!$G$6:$DC$253,61,FALSE) -> 10.66 | L24: =VLOOKUP($C24,'RECAP SECT'!$G$6:$DC$253,62,FALSE) -> 9% | M24: =VLOOKUP($C24,'RECAP SECT'!$G$6:$DC$253,63,FALSE) -> 2 | N24: =VLOOKUP($C24,'RECAP SECT'!$G$6:$DC$253,64,FALSE) -> 203 | O24: =VLOOKUP($C24,'RECAP SECT'!$G$6:$DC$253,65,FALSE) -> 2.80 | P24: =VLOOKUP($C24,'RECAP SECT'!$G$6:$DC$253,66,FALSE) -> 52% | Q24: =VLOOKUP($C24,'RECAP SECT'!$G$6:$DC$253,67,FALSE) -> 14 | R24: =VLOOKUP($C24,'RECAP SECT'!$G$6:$DC$253,68,FALSE) -> 48% | S24: =VLOOKUP($C24,'RECAP SECT'!$G$6:$DC$253,69,FALSE) -> 40% | T24: =VLOOKUP($C24,'RECAP SECT'!$G$6:$DC$253,70,FALSE) -> 15
A25: 160 | B25: MOSELLE | C25: 44 | D25: MOSELLE NORD | E25: =VLOOKUP($C25,'RECAP SECT'!$G$6:$DC$253,3,FALSE) -> 74.2 | F25: =VLOOKUP($C25,'RECAP SECT'!$G$6:$DC$253,56,FALSE) -> 1,086 | G25: =VLOOKUP($C25,'RECAP SECT'!$G$6:$DC$253,57,FALSE) -> 14.65 | H25: =VLOOKUP($C25,'RECAP SECT'!$G$6:$DC$253,58,FALSE) -> 50% | I25: =VLOOKUP($C25,'RECAP SECT'!$G$6:$DC$253,59,FALSE) -> 6 | J25: =VLOOKUP($C25,'RECAP SECT'!$G$6:$DC$253,60,FALSE) -> 738 | K25: =VLOOKUP($C25,'RECAP SECT'!$G$6:$DC$253,61,FALSE) -> 9.94 | L25: =VLOOKUP($C25,'RECAP SECT'!$G$6:$DC$253,62,FALSE) -> 15% | M25: =VLOOKUP($C25,'RECAP SECT'!$G$6:$DC$253,63,FALSE) -> 5 | N25: =VLOOKUP($C25,'RECAP SECT'!$G$6:$DC$253,64,FALSE) -> 232 | O25: =VLOOKUP($C25,'RECAP SECT'!$G$6:$DC$253,65,FALSE) -> 3.13 | P25: =VLOOKUP($C25,'RECAP SECT'!$G$6:$DC$253,66,FALSE) -> 47% | Q25: =VLOOKUP($C25,'RECAP SECT'!$G$6:$DC$253,67,FALSE) -> 12 | R25: =VLOOKUP($C25,'RECAP SECT'!$G$6:$DC$253,68,FALSE) -> 38% | S25: =VLOOKUP($C25,'RECAP SECT'!$G$6:$DC$253,69,FALSE) -> 30% | T25: =VLOOKUP($C25,'RECAP SECT'!$G$6:$DC$253,70,FALSE) -> 6
A26: 80 | B26: VOSGES | C26: 57 | D26: EPINAL | E26: =VLOOKUP($C26,'RECAP SECT'!$G$6:$DC$253,3,FALSE) -> 61.5 | F26: =VLOOKUP($C26,'RECAP SECT'!$G$6:$DC$253,56,FALSE) -> 863 | G26: =VLOOKUP($C26,'RECAP SECT'!$G$6:$DC$253,57,FALSE) -> 14.05 | H26: =VLOOKUP($C26,'RECAP SECT'!$G$6:$DC$253,58,FALSE) -> 52% | I26: =VLOOKUP($C26,'RECAP SECT'!$G$6:$DC$253,59,FALSE) -> 9 | J26: =VLOOKUP($C26,'RECAP SECT'!$G$6:$DC$253,60,FALSE) -> 501 | K26: =VLOOKUP($C26,'RECAP SECT'!$G$6:$DC$253,61,FALSE) -> 8.15 | L26: =VLOOKUP($C26,'RECAP SECT'!$G$6:$DC$253,62,FALSE) -> 30% | M26: =VLOOKUP($C26,'RECAP SECT'!$G$6:$DC$253,63,FALSE) -> 15 | N26: =VLOOKUP($C26,'RECAP SECT'!$G$6:$DC$253,64,FALSE) -> 233 | O26: =VLOOKUP($C26,'RECAP SECT'!$G$6:$DC$253,65,FALSE) -> 3.79 | P26: =VLOOKUP($C26,'RECAP SECT'!$G$6:$DC$253,66,FALSE) -> 35% | Q26: =VLOOKUP($C26,'RECAP SECT'!$G$6:$DC$253,67,FALSE) -> 6 | R26: =VLOOKUP($C26,'RECAP SECT'!$G$6:$DC$253,68,FALSE) -> 40% | S26: =VLOOKUP($C26,'RECAP SECT'!$G$6:$DC$253,69,FALSE) -> 32% | T26: =VLOOKUP($C26,'RECAP SECT'!$G$6:$DC$253,70,FALSE) -> 9
A27: 80 | B27: VOSGES | C27: 55 | D27: SAINT DIE | E27: =VLOOKUP($C27,'RECAP SECT'!$G$6:$DC$253,3,FALSE) -> 50.2 | F27: =VLOOKUP($C27,'RECAP SECT'!$G$6:$DC$253,56,FALSE) -> 492 | G27: =VLOOKUP($C27,'RECAP SECT'!$G$6:$DC$253,57,FALSE) -> 9.79 | H27: =VLOOKUP($C27,'RECAP SECT'!$G$6:$DC$253,58,FALSE) -> 67% | I27: =VLOOKUP($C27,'RECAP SECT'!$G$6:$DC$253,59,FALSE) -> 13 | J27: =VLOOKUP($C27,'RECAP SECT'!$G$6:$DC$253,60,FALSE) -> 382 | K27: =VLOOKUP($C27,'RECAP SECT'!$G$6:$DC$253,61,FALSE) -> 7.60 | L27: =VLOOKUP($C27,'RECAP SECT'!$G$6:$DC$253,62,FALSE) -> 35% | M27: =VLOOKUP($C27,'RECAP SECT'!$G$6:$DC$253,63,FALSE) -> 17 | N27: =VLOOKUP($C27,'RECAP SECT'!$G$6:$DC$253,64,FALSE) -> 136 | O27: =VLOOKUP($C27,'RECAP SECT'!$G$6:$DC$253,65,FALSE) -> 2.71 | P27: =VLOOKUP($C27,'RECAP SECT'!$G$6:$DC$253,66,FALSE) -> 54% | Q27: =VLOOKUP($C27,'RECAP SECT'!$G$6:$DC$253,67,FALSE) -> 15 | R27: =VLOOKUP($C27,'RECAP SECT'!$G$6:$DC$253,68,FALSE) -> 53% | S27: =VLOOKUP($C27,'RECAP SECT'!$G$6:$DC$253,69,FALSE) -> 45% | T27: =VLOOKUP($C27,'RECAP SECT'!$G$6:$DC$253,70,FALSE) -> 16
A28: Total CEGEE Directions Régionales | E28: =SUM(E10:E27) -> 1186

Sheet SE_IARD
B1: Accueil | F1: BAROMETRE BDD - TERRITOIRES
F2: IARD ET PREVOYANCE
F3: =ACCUEIL!F7 -> 2021-02-28
F7: Ventes Nettes produits pondérés | J7: Ventes sur client non détenteur de l’univers | N7: Total IARD Prévoyance
F8: =DATEMAJ!C23 -> au 28/02 | H8: coef | I8: ='RECAP DIRCOM'!CF4 -> 14% | J8: =DATEMAJ!C24 -> au 28/02 | L8: coef | M8: ='RECAP DIRCOM'!CJ4 -> 6% | O8: coef | P8: ='RECAP DIRCOM'!CM4 -> 20%
B9: Direction | C9: eds | D9: Territoire | E9: ="ETP perf "&DATEMAJ!$C$28 -> ETP perf 31-janv | F9: VN | G9: VN / ETP | H9: % Ecart au 1er | I9: Rang | J9: VB | K9: VB / ETP | L9: % Ecart au 1er | M9: Rang | N9: Moyenne ecart au 1er | O9: % Ecart au 1er | P9: Rang CEGEE
A10: 50 | B10: AUBE HAUTE MARNE | C10: 21 | D10: CHAUMONT | E10: =VLOOKUP($C10,'RECAP SECT'!$G$6:$DC$253,3,FALSE) -> 34.0 | F10: =VLOOKUP($C10,'RECAP SECT'!$G$6:$DC$253,75,FALSE) -> 1,995 | G10: =VLOOKUP($C10,'RECAP SECT'!$G$6:$DC$253,76,FALSE) -> 58.66 | H10: =VLOOKUP($C10,'RECAP SECT'!$G$6:$DC$253,77,FALSE) -> 12% | I10: =VLOOKUP($C10,'RECAP SECT'!$G$6:$DC$253,78,FALSE) -> 4 | J10: =VLOOKUP($C10,'RECAP SECT'!$G$6:$DC$253,79,FALSE) -> 351 | K10: =VLOOKUP($C10,'RECAP SECT'!$G$6:$DC$253,80,FALSE) -> 10.32 | L10: =VLOOKUP($C10,'RECAP SECT'!$G$6:$DC$253,81,FALSE) -> 11% | M10: =VLOOKUP($C10,'RECAP SECT'!$G$6:$DC$253,82,FALSE) -> 3 | N10: =VLOOKUP($C10,'RECAP SECT'!$G$6:$DC$253,83,FALSE) -> 12% | O10: =VLOOKUP($C10,'RECAP SECT'!$G$6:$DC$253,84,FALSE) -> 12% | P10: =VLOOKUP($C10,'RECAP SECT'!$G$6:$DC$253,85,FALSE) -> 2
A11: 50 | B11: AUBE HAUTE MARNE | C11: 14 | D11: TROYES | E11: =VLOOKUP($C11,'RECAP SECT'!$G$6:$DC$253,3,FALSE) -> 68.9 | F11: =VLOOKUP($C11,'RECAP SECT'!$G$6:$DC$253,75,FALSE) -> 2,438 | G11: =VLOOKUP($C11,'RECAP SECT'!$G$6:$DC$253,76,FALSE) -> 35.41 | H11: =VLOOKUP($C11,'RECAP SECT'!$G$6:$DC$253,77,FALSE) -> 47% | I11: =VLOOKUP($C11,'RECAP SECT'!$G$6:$DC$253,78,FALSE) -> 15 | J11: =VLOOKUP($C11,'RECAP SECT'!$G$6:$DC$253,79,FALSE) -> 540 | K11: =VLOOKUP($C11,'RECAP SECT'!$G$6:$DC$253,80,FALSE) -> 7.84 | L11: =VLOOKUP($C11,'RECAP SECT'!$G$6:$DC$253,81,FALSE) -> 32% | M11: =VLOOKUP($C11,'RECAP SECT'!$G$6:$DC$253,82,FALSE) -> 14 | N11: =VLOOKUP($C11,'RECAP SECT'!$G$6:$DC$253,83,FALSE) -> 42% | O11: =VLOOKUP($C11,'RECAP SECT'!$G$6:$DC$253,84,FALSE) -> 42% | P11: =VLOOKUP($C11,'RECAP SECT'!$G$6:$DC$253,85,FALSE) -> 15
A12: 262 | B12: BAS-RHIN | C12: 5060 | D12: HAGUENAU | E12: =VLOOKUP($C12,'RECAP SECT'!$G$6:$DC$253,3,FALSE) -> 74.1 | F12: =VLOOKUP($C12,'RECAP SECT'!$G$6:$DC$253,75,FALSE) -> 3,780 | G12: =VLOOKUP($C12,'RECAP SECT'!$G$6:$DC$253,76,FALSE) -> 51.02 | H12: =VLOOKUP($C12,'RECAP SECT'!$G$6:$DC$253,77,FALSE) -> 23% | I12: =VLOOKUP($C12,'RECAP SECT'!$G$6:$DC$253,78,FALSE) -> 8 | J12: =VLOOKUP($C12,'RECAP SECT'!$G$6:$DC$253,79,FALSE) -> 602 | K12: =VLOOKUP($C12,'RECAP SECT'!$G$6:$DC$253,80,FALSE) -> 8.13 | L12: =VLOOKUP($C12,'RECAP SECT'!$G$6:$DC$253,81,FALSE) -> 30% | M12: =VLOOKUP($C12,'RECAP SECT'!$G$6:$DC$253,82,FALSE) -> 10 | N12: =VLOOKUP($C12,'RECAP SECT'!$G$6:$DC$253,83,FALSE) -> 25% | O12: =VLOOKUP($C12,'RECAP SECT'!$G$6:$DC$253,84,FALSE) -> 25% | P12: =VLOOKUP($C12,'RECAP SECT'!$G$6:$DC$253,85,FALSE) -> 8
A13: 262 | B13: BAS-RHIN | C13: 5101 | D13: SELESTAT | E13: =VLOOKUP($C13,'RECAP SECT'!$G$6:$DC$253,3,FALSE) -> 63.5 | F13: =VLOOKUP($C13,'RECAP SECT'!$G$6:$DC$253,75,FALSE) -> 3,841 | G13: =VLOOKUP($C13,'RECAP SECT'!$G$6:$DC$253,76,FALSE) -> 60.53 | H13: =VLOOKUP($C13,'RECAP SECT'!$G$6:$DC$253,77,FALSE) -> 9% | I13: =VLOOKUP($C13,'RECAP SECT'!$G$6:$DC$253,78,FALSE) -> 2 | J13: =VLOOKUP($C13,'RECAP SECT'!$G$6:$DC$253,79,FALSE) -> 579 | K13: =VLOOKUP($C13,'RECAP SECT'!$G$6:$DC$253,80,FALSE) -> 9.12 | L13: =VLOOKUP($C13,'RECAP SECT'!$G$6:$DC$253,81,FALSE) -> 21% | M13: =VLOOKUP($C13,'RECAP SECT'!$G$6:$DC$253,82,FALSE) -> 5 | N13: =VLOOKUP($C13,'RECAP SECT'!$G$6:$DC$253,83,FALSE) -> 13% | O13: =VLOOKUP($C13,'RECAP SECT'!$G$6:$DC$253,84,FALSE) -> 13% | P13: =VLOOKUP($C13,'RECAP SECT'!$G$6:$DC$253,85,FALSE) -> 3
A14: 262 | B14: BAS-RHIN | C14: 5006 | D14: STRASBOURG | E14: =VLOOKUP($C14,'RECAP SECT'!$G$6:$DC$253,3,FALSE) -> 83.0 | F14: =VLOOKUP($C14,'RECAP SECT'!$G$6:$DC$253,75,FALSE) -> 4,642 | G14: =VLOOKUP($C14,'RECAP SECT'!$G$6:$DC$253,76,FALSE) -> 55.90 | H14: =VLOOKUP($C14,'RECAP SECT'!$G$6:$DC$253,77,FALSE) -> 16% | I14: =VLOOKUP($C14,'RECAP SECT'!$G$6:$DC$253,78,FALSE) -> 5 | J14: =VLOOKUP($C14,'RECAP SECT'!$G$6:$DC$253,79,FALSE) -> 818 | K14: =VLOOKUP($C14,'RECAP SECT'!$G$6:$DC$253,80,FALSE) -> 9.85 | L14: =VLOOKUP($C14,'RECAP SECT'!$G$6:$DC$253,81,FALSE) -> 15% | M14: =VLOOKUP($C14,'RECAP SECT'!$G$6:$DC$253,82,FALSE) -> 4 | N14: =VLOOKUP($C14,'RECAP SECT'!$G$6:$DC$253,83,FALSE) -> 16% | O14: =VLOOKUP($C14,'RECAP SECT'!$G$6:$DC$253,84,FALSE) -> 16% | P14: =VLOOKUP($C14,'RECAP SECT'!$G$6:$DC$253,85,FALSE) -> 4
A15: 264 | B15: HAUT-RHIN | C15: 5130 | D15: COLMAR | E15: =VLOOKUP($C15,'RECAP SECT'!$G$6:$DC$253,3,FALSE) -> 65.1 | F15: =VLOOKUP($C15,'RECAP SECT'!$G$6:$DC$253,75,FALSE) -> 3,841 | G15: =VLOOKUP($C15,'RECAP SECT'!$G$6:$DC$253,76,FALSE) -> 59.01 | H15: =VLOOKUP($C15,'RECAP SECT'!$G$6:$DC$253,77,FALSE) -> 11% | I15: =VLOOKUP($C15,'RECAP SECT'!$G$6:$DC$253,78,FALSE) -> 3 | J15: =VLOOKUP($C15,'RECAP SECT'!$G$6:$DC$253,79,FALSE) -> 463 | K15: =VLOOKUP($C15,'RECAP SECT'!$G$6:$DC$253,80,FALSE) -> 7.11 | L15: =VLOOKUP($C15,'RECAP SECT'!$G$6:$DC$253,81,FALSE) -> 38% | M15: =VLOOKUP($C15,'RECAP SECT'!$G$6:$DC$253,82,FALSE) -> 17 | N15: =VLOOKUP($C15,'RECAP SECT'!$G$6:$DC$253,83,FALSE) -> 20% | O15: =VLOOKUP($C15,'RECAP SECT'!$G$6:$DC$253,84,FALSE) -> 20% | P15: =VLOOKUP($C15,'RECAP SECT'!$G$6:$DC$253,85,FALSE) -> 6
A16: 264 | B16: HAUT-RHIN | C16: 5169 | D16: MULHOUSE | E16: =VLOOKUP($C16,'RECAP SECT'!$G$6:$DC$253,3,FALSE) -> 61.5 | F16: =VLOOKUP($C16,'RECAP SECT'!$G$6:$DC$253,75,FALSE) -> 1,949 | G16: =VLOOKUP($C16,'RECAP SECT'!$G$6:$DC$253,76,FALSE) -> 31.67 | H16: =VLOOKUP($C16,'RECAP SECT'!$G$6:$DC$253,77,FALSE) -> 52% | I16: =VLOOKUP($C16,'RECAP SECT'!$G$6:$DC$253,78,FALSE) -> 18 | J16: =VLOOKUP($C16,'RECAP SECT'!$G$6:$DC$253,79,FALSE) -> 495 | K16: =VLOOKUP($C16,'RECAP SECT'!$G$6:$DC$253,80,FALSE) -> 8.04 | L16: =VLOOKUP($C16,'RECAP SECT'!$G$6:$DC$253,81,FALSE) -> 30% | M16: =VLOOKUP($C16,'RECAP SECT'!$G$6:$DC$253,82,FALSE) -> 11 | N16: =VLOOKUP($C16,'RECAP SECT'!$G$6:$DC$253,83,FALSE) -> 46% | O16: =VLOOKUP($C16,'RECAP SECT'!$G$6:$DC$253,84,FALSE) -> 46% | P16: =VLOOKUP($C16,'RECAP SECT'!$G$6:$DC$253,85,FALSE) -> 17
A17: 30 | B17: MARNE-ARDENNES | C17: 6 | D17: CHALONS EN CHAMPAGNE | E17: =VLOOKUP($C17,'RECAP SECT'!$G$6:$DC$253,3,FALSE) -> 45.4 | F17: =VLOOKUP($C17,'RECAP SECT'!$G$6:$DC$253,75,FALSE) -> 1,440 | G17: =VLOOKUP($C17,'RECAP SECT'!$G$6:$DC$253,76,FALSE) -> 31.70 | H17: =VLOOKUP($C17,'RECAP SECT'!$G$6:$DC$253,77,FALSE) -> 52% | I17: =VLOOKUP($C17,'RECAP SECT'!$G$6:$DC$253,78,FALSE) -> 17 | J17: =VLOOKUP($C17,'RECAP SECT'!$G$6:$DC$253,79,FALSE) -> 357 | K17: =VLOOKUP($C17,'RECAP SECT'!$G$6:$DC$253,80,FALSE) -> 7.86 | L17: =VLOOKUP($C17,'RECAP SECT'!$G$6:$DC$253,81,FALSE) -> 32% | M17: =VLOOKUP($C17,'RECAP SECT'!$G$6:$DC$253,82,FALSE) -> 13 | N17: =VLOOKUP($C17,'RECAP SECT'!$G$6:$DC$253,83,FALSE) -> 46% | O17: =VLOOKUP($C17,'RECAP SECT'!$G$6:$DC$253,84,FALSE) -> 46% | P17: =VLOOKUP($C17,'RECAP SECT'!$G$6:$DC$253,85,FALSE) -> 18
A18: 30 | B18: MARNE-ARDENNES | C18: 2 | D18: CHARLEVILLE MEZIERES | E18: =VLOOKUP($C18,'RECAP SECT'!$G$6:$DC$253,3,FALSE) -> 56.0 | F18: =VLOOKUP($C18,'RECAP SECT'!$G$6:$DC$253,75,FALSE) -> 1,951 | G18: =VLOOKUP($C18,'RECAP SECT'!$G$6:$DC$253,76,FALSE) -> 34.86 | H18: =VLOOKUP($C18,'RECAP SECT'!$G$6:$DC$253,77,FALSE) -> 48% | I18: =VLOOKUP($C18,'RECAP SECT'!$G$6:$DC$253,78,FALSE) -> 16 | J18: =VLOOKUP($C18,'RECAP SECT'!$G$6:$DC$253,79,FALSE) -> 429 | K18: =VLOOKUP($C18,'RECAP SECT'!$G$6:$DC$253,80,FALSE) -> 7.66 | L18: =VLOOKUP($C18,'RECAP SECT'!$G$6:$DC$253,81,FALSE) -> 34% | M18: =VLOOKUP($C18,'RECAP SECT'!$G$6:$DC$253,82,FALSE) -> 15 | N18: =VLOOKUP($C18,'RECAP SECT'!$G$6:$DC$253,83,FALSE) -> 43% | O18: =VLOOKUP($C18,'RECAP SECT'!$G$6:$DC$253,84,FALSE) -> 43% | P18: =VLOOKUP($C18,'RECAP SECT'!$G$6:$DC$253,85,FALSE) -> 16
A19: 30 | B19: MARNE-ARDENNES | C19: 11 | D19: REIMS | E19: =VLOOKUP($C19,'RECAP SECT'!$G$6:$DC$253,3,FALSE) -> 83.2 | F19: =VLOOKUP($C19,'RECAP SECT'!$G$6:$DC$253,75,FALSE) -> 3,032 | G19: =VLOOKUP($C19,'RECAP SECT'!$G$6:$DC$253,76,FALSE) -> 36.45 | H19: =VLOOKUP($C19,'RECAP SECT'!$G$6:$DC$253,77,FALSE) -> 45% | I19: =VLOOKUP($C19,'RECAP SECT'!$G$6:$DC$253,78,FALSE) -> 14 | J19: =VLOOKUP($C19,'RECAP SECT'!$G$6:$DC$253,79,FALSE) -> 668 | K19: =VLOOKUP($C19,'RECAP SECT'!$G$6:$DC$253,80,FALSE) -> 8.03 | L19: =VLOOKUP($C19,'RECAP SECT'!$G$6:$DC$253,81,FALSE) -> 31% | M19: =VLOOKUP($C19,'RECAP SECT'!$G$6:$DC$253,82,FALSE) -> 12 | N19: =VLOOKUP($C19,'RECAP SECT'!$G$6:$DC$253,83,FALSE) -> 41% | O19: =VLOOKUP($C19,'RECAP SECT'!$G$6:$DC$253,84,FALSE) -> 41% | P19: =VLOOKUP($C19,'RECAP SECT'!$G$6:$DC$253,85,FALSE) -> 14
A20: 110 | B20: MEURTHE ET MOSELLE MEUSE | C20: 26 | D20: NANCY | E20: =VLOOKUP($C20,'RECAP SECT'!$G$6:$DC$253,3,FALSE) -> 67.6 | F20: =VLOOKUP($C20,'RECAP SECT'!$G$6:$DC$253,75,FALSE) -> 4,501 | G20: =VLOOKUP($C20,'RECAP SECT'!$G$6:$DC$253,76,FALSE) -> 66.61 | H20: =VLOOKUP($C20,'RECAP SECT'!$G$6:$DC$253,77,FALSE) -> 0% | I20: =VLOOKUP($C20,'RECAP SECT'!$G$6:$DC$253,78,FALSE) -> 1 | J20: =VLOOKUP($C20,'RECAP SECT'!$G$6:$DC$253,79,FALSE) -> 781 | K20: =VLOOKUP($C20,'RECAP SECT'!$G$6:$DC$253,80,FALSE) -> 11.56 | L20: =VLOOKUP($C20,'RECAP SECT'!$G$6:$DC$253,81,FALSE) -> 0% | M20: =VLOOKUP($C20,'RECAP SECT'!$G$6:$DC$253,82,FALSE) -> 1 | N20: =VLOOKUP($C20,'RECAP SECT'!$G$6:$DC$253,83,FALSE) -> 0% | O20: =VLOOKUP($C20,'RECAP SECT'!$G$6:$DC$253,84,FALSE) -> 0% | P20: =VLOOKUP($C20,'RECAP SECT'!$G$6:$DC$253,85,FALSE) -> 1
A21: 110 | B21: MEURTHE ET MOSELLE MEUSE | C21: 27 | D21: PONT A MOUSSON | E21: =VLOOKUP($C21,'RECAP SECT'!$G$6:$DC$253,3,FALSE) -> 77.5 | F21: =VLOOKUP($C21,'RECAP SECT'!$G$6:$DC$253,75,FALSE) -> 3,936 | G21: =VLOOKUP($C21,'RECAP SECT'!$G$6:$DC$253,76,FALSE) -> 50.78 | H21: =VLOOKUP($C21,'RECAP SECT'!$G$6:$DC$253,77,FALSE) -> 24% | I21: =VLOOKUP($C21,'RECAP SECT'!$G$6:$DC$253,78,FALSE) -> 9 | J21: =VLOOKUP($C21,'RECAP SECT'!$G$6:$DC$253,79,FALSE) -> 836 | K21: =VLOOKUP($C21,'RECAP SECT'!$G$6:$DC$253,80,FALSE) -> 10.79 | L21: =VLOOKUP($C21,'RECAP SECT'!$G$6:$DC$253,81,FALSE) -> 7% | M21: =VLOOKUP($C21,'RECAP SECT'!$G$6:$DC$253,82,FALSE) -> 2 | N21: =VLOOKUP($C21,'RECAP SECT'!$G$6:$DC$253,83,FALSE) -> 19% | O21: =VLOOKUP($C21,'RECAP SECT'!$G$6:$DC$253,84,FALSE) -> 19% | P21: =VLOOKUP($C21,'RECAP SECT'!$G$6:$DC$253,85,FALSE) -> 5
A22: 110 | B22: MEURTHE ET MOSELLE MEUSE | C22: 31 | D22: VERDUN | E22: =VLOOKUP($C22,'RECAP SECT'!$G$6:$DC$253,3,FALSE) -> 58.4 | F22: =VLOOKUP($C22,'RECAP SECT'!$G$6:$DC$253,75,FALSE) -> 2,890 | G22: =VLOOKUP($C22,'RECAP SECT'!$G$6:$DC$253,76,FALSE) -> 49.50 | H22: =VLOOKUP($C22,'RECAP SECT'!$G$6:$DC$253,77,FALSE) -> 26% | I22: =VLOOKUP($C22,'RECAP SECT'!$G$6:$DC$253,78,FALSE) -> 10 | J22: =VLOOKUP($C22,'RECAP SECT'!$G$6:$DC$253,79,FALSE) -> 504 | K22: =VLOOKUP($C22,'RECAP SECT'!$G$6:$DC$253,80,FALSE) -> 8.63 | L22: =VLOOKUP($C22,'RECAP SECT'!$G$6:$DC$253,81,FALSE) -> 25% | M22: =VLOOKUP($C22,'RECAP SECT'!$G$6:$DC$253,82,FALSE) -> 8 | N22: =VLOOKUP($C22,'RECAP SECT'!$G$6:$DC$253,83,FALSE) -> 26% | O22: =VLOOKUP($C22,'RECAP SECT'!$G$6:$DC$253,84,FALSE) -> 26% | P22: =VLOOKUP($C22,'RECAP SECT'!$G$6:$DC$253,85,FALSE) -> 9
A23: 160 | B23: MOSELLE | C23: 45 | D23: METZ | E23: =VLOOKUP($C23,'RECAP SECT'!$G$6:$DC$253,3,FALSE) -> 89.1 | F23: =VLOOKUP($C23,'RECAP SECT'!$G$6:$DC$253,75,FALSE) -> 4,206 | G23: =VLOOKUP($C23,'RECAP SECT'!$G$6:$DC$253,76,FALSE) -> 47.21 | H23: =VLOOKUP($C23,'RECAP SECT'!$G$6:$DC$253,77,FALSE) -> 29% | I23: =VLOOKUP($C23,'RECAP SECT'!$G$6:$DC$253,78,FALSE) -> 11 | J23: =VLOOKUP($C23,'RECAP SECT'!$G$6:$DC$253,79,FALSE) -> 750 | K23: =VLOOKUP($C23,'RECAP SECT'!$G$6:$DC$253,80,FALSE) -> 8.42 | L23: =VLOOKUP($C23,'RECAP SECT'!$G$6:$DC$253,81,FALSE) -> 27% | M23: =VLOOKUP($C23,'RECAP SECT'!$G$6:$DC$253,82,FALSE) -> 9 | N23: =VLOOKUP($C23,'RECAP SECT'!$G$6:$DC$253,83,FALSE) -> 29% | O23: =VLOOKUP($C23,'RECAP SECT'!$G$6:$DC$253,84,FALSE) -> 29% | P23: =VLOOKUP($C23,'RECAP SECT'!$G$6:$DC$253,85,FALSE) -> 12
A24: 160 | B24: MOSELLE | C24: 42 | D24: MOSELLE EST | E24: =VLOOKUP($C24,'RECAP SECT'!$G$6:$DC$253,3,FALSE) -> 72.5 | F24: =VLOOKUP($C24,'RECAP SECT'!$G$6:$DC$253,75,FALSE) -> 3,129 | G24: =VLOOKUP($C24,'RECAP SECT'!$G$6:$DC$253,76,FALSE) -> 43.17 | H24: =VLOOKUP($C24,'RECAP SECT'!$G$6:$DC$253,77,FALSE) -> 35% | I24: =VLOOKUP($C24,'RECAP SECT'!$G$6:$DC$253,78,FALSE) -> 13 | J24: =VLOOKUP($C24,'RECAP SECT'!$G$6:$DC$253,79,FALSE) -> 523 | K24: =VLOOKUP($C24,'RECAP SECT'!$G$6:$DC$253,80,FALSE) -> 7.21 | L24: =VLOOKUP($C24,'RECAP SECT'!$G$6:$DC$253,81,FALSE) -> 38% | M24: =VLOOKUP($C24,'RECAP SECT'!$G$6:$DC$253,82,FALSE) -> 16 | N24: =VLOOKUP($C24,'RECAP SECT'!$G$6:$DC$253,83,FALSE) -> 36% | O24: =VLOOKUP($C24,'RECAP SECT'!$G$6:$DC$253,84,FALSE) -> 36% | P24: =VLOOKUP($C24,'RECAP SECT'!$G$6:$DC$253,85,FALSE) -> 13
A25: 160 | B25: MOSELLE | C25: 44 | D25: MOSELLE NORD | E25: =VLOOKUP($C25,'RECAP SECT'!$G$6:$DC$253,3,FALSE) -> 74.2 | F25: =VLOOKUP($C25,'RECAP SECT'!$G$6:$DC$253,75,FALSE) -> 3,972 | G25: =VLOOKUP($C25,'RECAP SECT'!$G$6:$DC$253,76,FALSE) -> 53.56 | H25: =VLOOKUP($C25,'RECAP SECT'!$G$6:$DC$253,77,FALSE) -> 20% | I25: =VLOOKUP($C25,'RECAP SECT'!$G$6:$DC$253,78,FALSE) -> 6 | J25: =VLOOKUP($C25,'RECAP SECT'!$G$6:$DC$253,79,FALSE) -> 656 | K25: =VLOOKUP($C25,'RECAP SECT'!$G$6:$DC$253,80,FALSE) -> 8.85 | L25: =VLOOKUP($C25,'RECAP SECT'!$G$6:$DC$253,81,FALSE) -> 23% | M25: =VLOOKUP($C25,'RECAP SECT'!$G$6:$DC$253,82,FALSE) -> 6 | N25: =VLOOKUP($C25,'RECAP SECT'!$G$6:$DC$253,83,FALSE) -> 21% | O25: =VLOOKUP($C25,'RECAP SECT'!$G$6:$DC$253,84,FALSE) -> 21% | P25: =VLOOKUP($C25,'RECAP SECT'!$G$6:$DC$253,85,FALSE) -> 7
A26: 80 | B26: VOSGES | C26: 57 | D26: EPINAL | E26: =VLOOKUP($C26,'RECAP SECT'!$G$6:$DC$253,3,FALSE) -> 61.5 | F26: =VLOOKUP($C26,'RECAP SECT'!$G$6:$DC$253,75,FALSE) -> 2,870 | G26: =VLOOKUP($C26,'RECAP SECT'!$G$6:$DC$253,76,FALSE) -> 46.70 | H26: =VLOOKUP($C26,'RECAP SECT'!$G$6:$DC$253,77,FALSE) -> 30% | I26: =VLOOKUP($C26,'RECAP SECT'!$G$6:$DC$253,78,FALSE) -> 12 | J26: =VLOOKUP($C26,'RECAP SECT'!$G$6:$DC$253,79,FALSE) -> 534 | K26: =VLOOKUP($C26,'RECAP SECT'!$G$6:$DC$253,80,FALSE) -> 8.69 | L26: =VLOOKUP($C26,'RECAP SECT'!$G$6:$DC$253,81,FALSE) -> 25% | M26: =VLOOKUP($C26,'RECAP SECT'!$G$6:$DC$253,82,FALSE) -> 7 | N26: =VLOOKUP($C26,'RECAP SECT'!$G$6:$DC$253,83,FALSE) -> 28% | O26: =VLOOKUP($C26,'RECAP SECT'!$G$6:$DC$253,84,FALSE) -> 28% | P26: =VLOOKUP($C26,'RECAP SECT'!$G$6:$DC$253,85,FALSE) -> 10
A27: 80 | B27: VOSGES | C27: 55 | D27: SAINT DIE | E27: =VLOOKUP($C27,'RECAP SECT'!$G$6:$DC$253,3,FALSE) -> 50.2 | F27: =VLOOKUP($C27,'RECAP SECT'!$G$6:$DC$253,75,FALSE) -> 2,603 | G27: =VLOOKUP($C27,'RECAP SECT'!$G$6:$DC$253,76,FALSE) -> 51.81 | H27: =VLOOKUP($C27,'RECAP SECT'!$G$6:$DC$253,77,FALSE) -> 22% | I27: =VLOOKUP($C27,'RECAP SECT'!$G$6:$DC$253,78,FALSE) -> 7 | J27: =VLOOKUP($C27,'RECAP SECT'!$G$6:$DC$253,79,FALSE) -> 330 | K27: =VLOOKUP($C27,'RECAP SECT'!$G$6:$DC$253,80,FALSE) -> 6.57 | L27: =VLOOKUP($C27,'RECAP SECT'!$G$6:$DC$253,81,FALSE) -> 43% | M27: =VLOOKUP($C27,'RECAP SECT'!$G$6:$DC$253,82,FALSE) -> 18 | N27: =VLOOKUP($C27,'RECAP SECT'!$G$6:$DC$253,83,FALSE) -> 29% | O27: =VLOOKUP($C27,'RECAP SECT'!$G$6:$DC$253,84,FALSE) -> 29% | P27: =VLOOKUP($C27,'RECAP SECT'!$G$6:$DC$253,85,FALSE) -> 11
A28: Total CEGEE Directions Régionales | E28: =SUM(E10:E27) -> 1186

Sheet SE_SATISFACTION
B1: Accueil | F1: BAROMETRE BDD - TERRITOIRES
F2: SATISFACTION
F3: =ACCUEIL!F7 -> 2021-02-28
F7: NPS à froid (SAE) | I7: NPS à chaud (QHD) | L7: Total Satisfaction Clients
F8: =DATEMAJ!C4 -> au 31/12 | G8: coef | H8: ='RECAP DIRCOM'!M4 -> 10% | I8: =DATEMAJ!C5 -> au 31/12 | J8: coef | K8: ='RECAP DIRCOM'!P4 -> 10% | M8: coef | N8: ='RECAP DIRCOM'!S4 -> 20%
B9: Direction | C9: eds | D9: Territoire | E9: ="ETP perf "&DATEMAJ!$C$28 -> ETP perf 31-janv | G9: % Ecart au 1er | H9: Rang | J9: % Ecart au 1er | K9: Rang | L9: Moyenne ecart au 1er | M9: % Ecart au 1er | N9: Rang CEGEE
A10: 50 | B10: AUBE HAUTE MARNE | C10: 21 | D10: CHAUMONT | E10: =VLOOKUP($C10,'RECAP SECT'!$G$6:$DC$253,3,FALSE) -> 34.0 | F10: =VLOOKUP($C10,'RECAP SECT'!$G$6:$DC$253,5,FALSE) -> -3 | G10: =VLOOKUP($C10,'RECAP SECT'!$G$6:$DC$253,6,FALSE) -> 0% | H10: =VLOOKUP($C10,'RECAP SECT'!$G$6:$DC$253,7,FALSE) -> 1 | I10: =VLOOKUP($C10,'RECAP SECT'!$G$6:$DC$253,8,FALSE) -> 46% | J10: =VLOOKUP($C10,'RECAP SECT'!$G$6:$DC$253,9,FALSE) -> 29% | K10: =VLOOKUP($C10,'RECAP SECT'!$G$6:$DC$253,10,FALSE) -> 11 | L10: =VLOOKUP($C10,'RECAP SECT'!$G$6:$DC$253,11,FALSE) -> 14% | M10: =VLOOKUP($C10,'RECAP SECT'!$G$6:$DC$253,12,FALSE) -> 14% | N10: =VLOOKUP($C10,'RECAP SECT'!$G$6:$DC$253,13,FALSE) -> 3
A11: 50 | B11: AUBE HAUTE MARNE | C11: 14 | D11: TROYES | E11: =VLOOKUP($C11,'RECAP SECT'!$G$6:$DC$253,3,FALSE) -> 68.9 | F11: =VLOOKUP($C11,'RECAP SECT'!$G$6:$DC$253,5,FALSE) -> -15 | G11: =VLOOKUP($C11,'RECAP SECT'!$G$6:$DC$253,6,FALSE) -> 78% | H11: =VLOOKUP($C11,'RECAP SECT'!$G$6:$DC$253,7,FALSE) -> 13 | I11: =VLOOKUP($C11,'RECAP SECT'!$G$6:$DC$253,8,FALSE) -> 43% | J11: =VLOOKUP($C11,'RECAP SECT'!$G$6:$DC$253,9,FALSE) -> 34% | K11: =VLOOKUP($C11,'RECAP SECT'!$G$6:$DC$253,10,FALSE) -> 14 | L11: =VLOOKUP($C11,'RECAP SECT'!$G$6:$DC$253,11,FALSE) -> 56% | M11: =VLOOKUP($C11,'RECAP SECT'!$G$6:$DC$253,12,FALSE) -> 56% | N11: =VLOOKUP($C11,'RECAP SECT'!$G$6:$DC$253,13,FALSE) -> 13
A12: 262 | B12: BAS-RHIN | C12: 5060 | D12: HAGUENAU | E12: =VLOOKUP($C12,'RECAP SECT'!$G$6:$DC$253,3,FALSE) -> 74.1 | F12: =VLOOKUP($C12,'RECAP SECT'!$G$6:$DC$253,5,FALSE) -> -13 | G12: =VLOOKUP($C12,'RECAP SECT'!$G$6:$DC$253,6,FALSE) -> 65% | H12: =VLOOKUP($C12,'RECAP SECT'!$G$6:$DC$253,7,FALSE) -> 10 | I12: =VLOOKUP($C12,'RECAP SECT'!$G$6:$DC$253,8,FALSE) -> 49% | J12: =VLOOKUP($C12,'RECAP SECT'!$G$6:$DC$253,9,FALSE) -> 23% | K12: =VLOOKUP($C12,'RECAP SECT'!$G$6:$DC$253,10,FALSE) -> 8 | L12: =VLOOKUP($C12,'RECAP SECT'!$G$6:$DC$253,11,FALSE) -> 44% | M12: =VLOOKUP($C12,'RECAP SECT'!$G$6:$DC$253,12,FALSE) -> 44% | N12: =VLOOKUP($C12,'RECAP SECT'!$G$6:$DC$253,13,FALSE) -> 11
A13: 262 | B13: BAS-RHIN | C13: 5101 | D13: SELESTAT | E13: =VLOOKUP($C13,'RECAP SECT'!$G$6:$DC$253,3,FALSE) -> 63.5 | F13: =VLOOKUP($C13,'RECAP SECT'!$G$6:$DC$253,5,FALSE) -> -22 | G13: =VLOOKUP($C13,'RECAP SECT'!$G$6:$DC$253,6,FALSE) -> 124% | H13: =VLOOKUP($C13,'RECAP SECT'!$G$6:$DC$253,7,FALSE) -> 15 | I13: =VLOOKUP($C13,'RECAP SECT'!$G$6:$DC$253,8,FALSE) -> 42% | J13: =VLOOKUP($C13,'RECAP SECT'!$G$6:$DC$253,9,FALSE) -> 35% | K13: =VLOOKUP($C13,'RECAP SECT'!$G$6:$DC$253,10,FALSE) -> 15 | L13: =VLOOKUP($C13,'RECAP SECT'!$G$6:$DC$253,11,FALSE) -> 79% | M13: =VLOOKUP($C13,'RECAP SECT'!$G$6:$DC$253,12,FALSE) -> 79% | N13: =VLOOKUP($C13,'RECAP SECT'!$G$6:$DC$253,13,FALSE) -> 15
A14: 262 | B14: BAS-RHIN | C14: 5006 | D14: STRASBOURG | E14: =VLOOKUP($C14,'RECAP SECT'!$G$6:$DC$253,3,FALSE) -> 83.0 | F14: =VLOOKUP($C14,'RECAP SECT'!$G$6:$DC$253,5,FALSE) -> -26 | G14: =VLOOKUP($C14,'RECAP SECT'!$G$6:$DC$253,6,FALSE) -> 150% | H14: =VLOOKUP($C14,'RECAP SECT'!$G$6:$DC$253,7,FALSE) -> 17 | I14: =VLOOKUP($C14,'RECAP SECT'!$G$6:$DC$253,8,FALSE) -> 34% | J14: =VLOOKUP($C14,'RECAP SECT'!$G$6:$DC$253,9,FALSE) -> 46% | K14: =VLOOKUP($C14,'RECAP SECT'!$G$6:$DC$253,10,FALSE) -> 17 | L14: =VLOOKUP($C14,'RECAP SECT'!$G$6:$DC$253,11,FALSE) -> 98% | M14: =VLOOKUP($C14,'RECAP SECT'!$G$6:$DC$253,12,FALSE) -> 98% | N14: =VLOOKUP($C14,'RECAP SECT'!$G$6:$DC$253,13,FALSE) -> 17
A15: 264 | B15: HAUT-RHIN | C15: 5130 | D15: COLMAR | E15: =VLOOKUP($C15,'RECAP SECT'!$G$6:$DC$253,3,FALSE) -> 65.1 | F15: =VLOOKUP($C15,'RECAP SECT'!$G$6:$DC$253,5,FALSE) -> -19 | G15: =VLOOKUP($C15,'RECAP SECT'!$G$6:$DC$253,6,FALSE) -> 104% | H15: =VLOOKUP($C15,'RECAP SECT'!$G$6:$DC$253,7,FALSE) -> 14 | I15: =VLOOKUP($C15,'RECAP SECT'!$G$6:$DC$253,8,FALSE) -> 46% | J15: =VLOOKUP($C15,'RECAP SECT'!$G$6:$DC$253,9,FALSE) -> 29% | K15: =VLOOKUP($C15,'RECAP SECT'!$G$6:$DC$253,10,FALSE) -> 12 | L15: =VLOOKUP($C15,'RECAP SECT'!$G$6:$DC$253,11,FALSE) -> 66% | M15: =VLOOKUP($C15,'RECAP SECT'!$G$6:$DC$253,12,FALSE) -> 66% | N15: =VLOOKUP($C15,'RECAP SECT'!$G$6:$DC$253,13,FALSE) -> 14
A16: 264 | B16: HAUT-RHIN | C16: 5169 | D16: MULHOUSE | E16: =VLOOKUP($C16,'RECAP SECT'!$G$6:$DC$253,3,FALSE) -> 61.5 | F16: =VLOOKUP($C16,'RECAP SECT'!$G$6:$DC$253,5,FALSE) -> -26 | G16: =VLOOKUP($C16,'RECAP SECT'!$G$6:$DC$253,6,FALSE) -> 150% | H16: =VLOOKUP($C16,'RECAP SECT'!$G$6:$DC$253,7,FALSE) -> 17 | I16: =VLOOKUP($C16,'RECAP SECT'!$G$6:$DC$253,8,FALSE) -> 33% | J16: =VLOOKUP($C16,'RECAP SECT'!$G$6:$DC$253,9,FALSE) -> 48% | K16: =VLOOKUP($C16,'RECAP SECT'!$G$6:$DC$253,10,FALSE) -> 18 | L16: =VLOOKUP($C16,'RECAP SECT'!$G$6:$DC$253,11,FALSE) -> 99% | M16: =VLOOKUP($C16,'RECAP SECT'!$G$6:$DC$253,12,FALSE) -> 99% | N16: =VLOOKUP($C16,'RECAP SECT'!$G$6:$DC$253,13,FALSE) -> 18
A17: 30 | B17: MARNE-ARDENNES | C17: 6 | D17: CHALONS EN CHAMPAGNE | E17: =VLOOKUP($C17,'RECAP SECT'!$G$6:$DC$253,3,FALSE) -> 45.4 | F17: =VLOOKUP($C17,'RECAP SECT'!$G$6:$DC$253,5,FALSE) -> -3 | G17: =VLOOKUP($C17,'RECAP SECT'!$G$6:$DC$253,6,FALSE) -> 0% | H17: =VLOOKUP($C17,'RECAP SECT'!$G$6:$DC$253,7,FALSE) -> 1 | I17: =VLOOKUP($C17,'RECAP SECT'!$G$6:$DC$253,8,FALSE) -> 64% | J17: =VLOOKUP($C17,'RECAP SECT'!$G$6:$DC$253,9,FALSE) -> 0% | K17: =VLOOKUP($C17,'RECAP SECT'!$G$6:$DC$253,10,FALSE) -> 1 | L17: =VLOOKUP($C17,'RECAP SECT'!$G$6:$DC$253,11,FALSE) -> 0% | M17: =VLOOKUP($C17,'RECAP SECT'!$G$6:$DC$253,12,FALSE) -> 0% | N17: =VLOOKUP($C17,'RECAP SECT'!$G$6:$DC$253,13,FALSE) -> 1
A18: 30 | B18: MARNE-ARDENNES | C18: 2 | D18: CHARLEVILLE MEZIERES | E18: =VLOOKUP($C18,'RECAP SECT'!$G$6:$DC$253,3,FALSE) -> 56.0 | F18: =VLOOKUP($C18,'RECAP SECT'!$G$6:$DC$253,5,FALSE) -> -10 | G18: =VLOOKUP($C18,'RECAP SECT'!$G$6:$DC$253,6,FALSE) -> 46% | H18: =VLOOKUP($C18,'RECAP SECT'!$G$6:$DC$253,7,FALSE) -> 8 | I18: =VLOOKUP($C18,'RECAP SECT'!$G$6:$DC$253,8,FALSE) -> 58% | J18: =VLOOKUP($C18,'RECAP SECT'!$G$6:$DC$253,9,FALSE) -> 10% | K18: =VLOOKUP($C18,'RECAP SECT'!$G$6:$DC$253,10,FALSE) -> 2 | L18: =VLOOKUP($C18,'RECAP SECT'!$G$6:$DC$253,11,FALSE) -> 28% | M18: =VLOOKUP($C18,'RECAP SECT'!$G$6:$DC$253,12,FALSE) -> 28% | N18: =VLOOKUP($C18,'RECAP SECT'!$G$6:$DC$253,13,FALSE) -> 7
A19: 30 | B19: MARNE-ARDENNES | C19: 11 | D19: REIMS | E19: =VLOOKUP($C19,'RECAP SECT'!$G$6:$DC$253,3,FALSE) -> 83.2 | F19: =VLOOKUP($C19,'RECAP SECT'!$G$6:$DC$253,5,FALSE) -> -7 | G19: =VLOOKUP($C19,'RECAP SECT'!$G$6:$DC$253,6,FALSE) -> 26% | H19: =VLOOKUP($C19,'RECAP SECT'!$G$6:$DC$253,7,FALSE) -> 4 | I19: =VLOOKUP($C19,'RECAP SECT'!$G$6:$DC$253,8,FALSE) -> 54% | J19: =VLOOKUP($C19,'RECAP SECT'!$G$6:$DC$253,9,FALSE) -> 17% | K19: =VLOOKUP($C19,'RECAP SECT'!$G$6:$DC$253,10,FALSE) -> 6 | L19: =VLOOKUP($C19,'RECAP SECT'!$G$6:$DC$253,11,FALSE) -> 21% | M19: =VLOOKUP($C19,'RECAP SECT'!$G$6:$DC$253,12,FALSE) -> 21% | N19: =VLOOKUP($C19,'RECAP SECT'!$G$6:$DC$253,13,FALSE) -> 4
A20: 110 | B20: MEURTHE ET MOSELLE MEUSE | C20: 26 | D20: NANCY | E20: =VLOOKUP($C20,'RECAP SECT'!$G$6:$DC$253,3,FALSE) -> 67.6 | F20: =VLOOKUP($C20,'RECAP SECT'!$G$6:$DC$253,5,FALSE) -> -12 | G20: =VLOOKUP($C20,'RECAP SECT'!$G$6:$DC$253,6,FALSE) -> 59% | H20: =VLOOKUP($C20,'RECAP SECT'!$G$6:$DC$253,7,FALSE) -> 9 | I20: =VLOOKUP($C20,'RECAP SECT'!$G$6:$DC$253,8,FALSE) -> 48% | J20: =VLOOKUP($C20,'RECAP SECT'!$G$6:$DC$253,9,FALSE) -> 25% | K20: =VLOOKUP($C20,'RECAP SECT'!$G$6:$DC$253,10,FALSE) -> 9 | L20: =VLOOKUP($C20,'RECAP SECT'!$G$6:$DC$253,11,FALSE) -> 42% | M20: =VLOOKUP($C20,'RECAP SECT'!$G$6:$DC$253,12,FALSE) -> 42% | N20: =VLOOKUP($C20,'RECAP SECT'!$G$6:$DC$253,13,FALSE) -> 10
A21: 110 | B21: MEURTHE ET MOSELLE MEUSE | C21: 27 | D21: PONT A MOUSSON | E21: =VLOOKUP($C21,'RECAP SECT'!$G$6:$DC$253,3,FALSE) -> 77.5 | F21: =VLOOKUP($C21,'RECAP SECT'!$G$6:$DC$253,5,FALSE) -> -14 | G21: =VLOOKUP($C21,'RECAP SECT'!$G$6:$DC$253,6,FALSE) -> 72% | H21: =VLOOKUP($C21,'RECAP SECT'!$G$6:$DC$253,7,FALSE) -> 12 | I21: =VLOOKUP($C21,'RECAP SECT'!$G$6:$DC$253,8,FALSE) -> 44% | J21: =VLOOKUP($C21,'RECAP SECT'!$G$6:$DC$253,9,FALSE) -> 31% | K21: =VLOOKUP($C21,'RECAP SECT'!$G$6:$DC$253,10,FALSE) -> 13 | L21: =VLOOKUP($C21,'RECAP SECT'!$G$6:$DC$253,11,FALSE) -> 51% | M21: =VLOOKUP($C21,'RECAP SECT'!$G$6:$DC$253,12,FALSE) -> 51% | N21: =VLOOKUP($C21,'RECAP SECT'!$G$6:$DC$253,13,FALSE) -> 12
A22: 110 | B22: MEURTHE ET MOSELLE MEUSE | C22: 31 | D22: VERDUN | E22: =VLOOKUP($C22,'RECAP SECT'!$G$6:$DC$253,3,FALSE) -> 58.4 | F22: =VLOOKUP($C22,'RECAP SECT'!$G$6:$DC$253,5,FALSE) -> -5 | G22: =VLOOKUP($C22,'RECAP SECT'!$G$6:$DC$253,6,FALSE) -> 13% | H22: =VLOOKUP($C22,'RECAP SECT'!$G$6:$DC$253,7,FALSE) -> 3 | I22: =VLOOKUP($C22,'RECAP SECT'!$G$6:$DC$253,8,FALSE) -> 57% | J22: =VLOOKUP($C22,'RECAP SECT'!$G$6:$DC$253,9,FALSE) -> 11% | K22: =VLOOKUP($C22,'RECAP SECT'!$G$6:$DC$253,10,FALSE) -> 3 | L22: =VLOOKUP($C22,'RECAP SECT'!$G$6:$DC$253,11,FALSE) -> 12% | M22: =VLOOKUP($C22,'RECAP SECT'!$G$6:$DC$253,12,FALSE) -> 12% | N22: =VLOOKUP($C22,'RECAP SECT'!$G$6:$DC$253,13,FALSE) -> 2
A23: 160 | B23: MOSELLE | C23: 45 | D23: METZ | E23: =VLOOKUP($C23,'RECAP SECT'!$G$6:$DC$253,3,FALSE) -> 89.1 | F23: =VLOOKUP($C23,'RECAP SECT'!$G$6:$DC$253,5,FALSE) -> -7 | G23: =VLOOKUP($C23,'RECAP SECT'!$G$6:$DC$253,6,FALSE) -> 26% | H23: =VLOOKUP($C23,'RECAP SECT'!$G$6:$DC$253,7,FALSE) -> 4 | I23: =VLOOKUP($C23,'RECAP SECT'!$G$6:$DC$253,8,FALSE) -> 53% | J23: =VLOOKUP($C23,'RECAP SECT'!$G$6:$DC$253,9,FALSE) -> 18% | K23: =VLOOKUP($C23,'RECAP SECT'!$G$6:$DC$253,10,FALSE) -> 7 | L23: =VLOOKUP($C23,'RECAP SECT'!$G$6:$DC$253,11,FALSE) -> 22% | M23: =VLOOKUP($C23,'RECAP SECT'!$G$6:$DC$253,12,FALSE) -> 22% | N23: =VLOOKUP($C23,'RECAP SECT'!$G$6:$DC$253,13,FALSE) -> 5
A24: 160 | B24: MOSELLE | C24: 42 | D24: MOSELLE EST | E24: =VLOOKUP($C24,'RECAP SECT'!$G$6:$DC$253,3,FALSE) -> 72.5 | F24: =VLOOKUP($C24,'RECAP SECT'!$G$6:$DC$253,5,FALSE) -> -9 | G24: =VLOOKUP($C24,'RECAP SECT'!$G$6:$DC$253,6,FALSE) -> 39% | H24: =VLOOKUP($C24,'RECAP SECT'!$G$6:$DC$253,7,FALSE) -> 6 | I24: =VLOOKUP($C24,'RECAP SECT'!$G$6:$DC$253,8,FALSE) -> 48% | J24: =VLOOKUP($C24,'RECAP SECT'!$G$6:$DC$253,9,FALSE) -> 26% | K24: =VLOOKUP($C24,'RECAP SECT'!$G$6:$DC$253,10,FALSE) -> 10 | L24: =VLOOKUP($C24,'RECAP SECT'!$G$6:$DC$253,11,FALSE) -> 33% | M24: =VLOOKUP($C24,'RECAP SECT'!$G$6:$DC$253,12,FALSE) -> 33% | N24: =VLOOKUP($C24,'RECAP SECT'!$G$6:$DC$253,13,FALSE) -> 8
A25: 160 | B25: MOSELLE | C25: 44 | D25: MOSELLE NORD | E25: =VLOOKUP($C25,'RECAP SECT'!$G$6:$DC$253,3,FALSE) -> 74.2 | F25: =VLOOKUP($C25,'RECAP SECT'!$G$6:$DC$253,5,FALSE) -> -22 | G25: =VLOOKUP($C25,'RECAP SECT'!$G$6:$DC$253,6,FALSE) -> 124% | H25: =VLOOKUP($C25,'RECAP SECT'!$G$6:$DC$253,7,FALSE) -> 15 | I25: =VLOOKUP($C25,'RECAP SECT'!$G$6:$DC$253,8,FALSE) -> 38% | J25: =VLOOKUP($C25,'RECAP SECT'!$G$6:$DC$253,9,FALSE) -> 42% | K25: =VLOOKUP($C25,'RECAP SECT'!$G$6:$DC$253,10,FALSE) -> 16 | L25: =VLOOKUP($C25,'RECAP SECT'!$G$6:$DC$253,11,FALSE) -> 83% | M25: =VLOOKUP($C25,'RECAP SECT'!$G$6:$DC$253,12,FALSE) -> 83% | N25: =VLOOKUP($C25,'RECAP SECT'!$G$6:$DC$253,13,FALSE) -> 16
A26: 80 | B26: VOSGES | C26: 57 | D26: EPINAL | E26: =VLOOKUP($C26,'RECAP SECT'!$G$6:$DC$253,3,FALSE) -> 61.5 | F26: =VLOOKUP($C26,'RECAP SECT'!$G$6:$DC$253,5,FALSE) -> -13 | G26: =VLOOKUP($C26,'RECAP SECT'!$G$6:$DC$253,6,FALSE) -> 65% | H26: =VLOOKUP($C26,'RECAP SECT'!$G$6:$DC$253,7,FALSE) -> 10 | I26: =VLOOKUP($C26,'RECAP SECT'!$G$6:$DC$253,8,FALSE) -> 56% | J26: =VLOOKUP($C26,'RECAP SECT'!$G$6:$DC$253,9,FALSE) -> 13% | K26: =VLOOKUP($C26,'RECAP SECT'!$G$6:$DC$253,10,FALSE) -> 5 | L26: =VLOOKUP($C26,'RECAP SECT'!$G$6:$DC$253,11,FALSE) -> 39% | M26: =VLOOKUP($C26,'RECAP SECT'!$G$6:$DC$253,12,FALSE) -> 39% | N26: =VLOOKUP($C26,'RECAP SECT'!$G$6:$DC$253,13,FALSE) -> 9
A27: 80 | B27: VOSGES | C27: 55 | D27: SAINT DIE | E27: =VLOOKUP($C27,'RECAP SECT'!$G$6:$DC$253,3,FALSE) -> 50.2 | F27: =VLOOKUP($C27,'RECAP SECT'!$G$6:$DC$253,5,FALSE) -> -9 | G27: =VLOOKUP($C27,'RECAP SECT'!$G$6:$DC$253,6,FALSE) -> 39% | H27: =VLOOKUP($C27,'RECAP SECT'!$G$6:$DC$253,7,FALSE) -> 6 | I27: =VLOOKUP($C27,'RECAP SECT'!$G$6:$DC$253,8,FALSE) -> 56% | J27: =VLOOKUP($C27,'RECAP SECT'!$G$6:$DC$253,9,FALSE) -> 12% | K27: =VLOOKUP($C27,'RECAP SECT'!$G$6:$DC$253,10,FALSE) -> 4 | L27: =VLOOKUP($C27,'RECAP SECT'!$G$6:$DC$253,11,FALSE) -> 26% | M27: =VLOOKUP($C27,'RECAP SECT'!$G$6:$DC$253,12,FALSE) -> 26% | N27: =VLOOKUP($C27,'RECAP SECT'!$G$6:$DC$253,13,FALSE) -> 6
A28: Total CEGEE Directions Régionales | E28: =SUM(E10:E27) -> 1186

Sheet AG_CLASS
B1: Accueil | H1: BAROMETRE BDD - AGENCES
H2: CLASSEMENTS
H3: =ACCUEIL!F7 -> 2021-02-28
H8: CLASSEMENT GENERAL | I8: CRITERE Satisfaction Clients | J8: NPS à froid (SAE) | K8: NPS à chaud (QHD) | L8: CRITERE BANCARISATION | M8: Ventes Nettes produits pondérés | N8: Ventes sur client non détenteur de l’univers | O8: Mobilité Macron | P8: Remises commerciales | Q8: CRITERE EPARGNE | R8: Excédent Epargne y/c DAV pondéré | S8: Ventes sur client non détenteur de l’univers | T8: CRITERE IARD PREVOYANCE | U8: Ventes Nettes produits pondérés | V8: Ventes sur client non détenteur de l’univers | W8: CRITERE CREDITS | X8: Engagements et ventes accessoires pondérés Immo | Y8: Engagements et ventes accessoires pondérés Conso | Z8: Ventes sur client non détenteur de l’univers
B9: Direction | C9: eds | D9: Territoire | E9: eds | F9: Agence | G9: ="ETP perf "&DATEMAJ!$C$28 -> ETP perf 31-janv | H9: Rang | I9: Rang | J9: Rang | K9: Rang | L9: Rang | M9: Rang | N9: Rang | O9: Rang | P9: Rang | Q9: Rang | R9: Rang | S9: Rang | T9: Rang | U9: Rang | V9: Rang | W9: Rang | X9: Rang | Y9: Rang | Z9: Rang
A10: 50 | B10: MEURTHE ET MOSELLE MEUSE | C10: 26 | D10: NANCY | E10: 454481 | F10: NANCY PLACE DOMBASLE | G10: 12.3 | H10: 1 | I10: 179 | J10: 168 | K10: 176 | L10: 1 | M10: 6 | N10: 2 | O10: 1 | P10: 206 | Q10: 13 | R10: 61 | S10: 3 | T10: 2 | U10: 2 | V10: 3 | W10: 4 | X10: 4 | Y10: 103 | Z10: 2
A11: 50 | B11: MEURTHE ET MOSELLE MEUSE | C11: 27 | D11: PONT A MOUSSON | E11: 554531 | F11: POMPEY | G11: 3.0 | H11: 2 | I11: 90 | J11: 106 | K11: 65 | L11: 2 | M11: 3 | N11: 4 | O11: 5 | P11: 17 | Q11: 15 | R11: 60 | S11: 7 | T11: 15 | U11: 21 | V11: 9 | W11: 5 | X11: 5 | Y11: 19 | Z11: 11
A12: 50 | B12: BAS-RHIN | C12: 5101 | D12: SELESTAT | E12: 4113 | F12: BARR | G12: 3.0 | H12: 3 | I12: 21 | J12: 38 | K12: 8 | L12: 5 | M12: 2 | N12: 68 | O12: 17 | P12: 129 | Q12: 3 | R12: 5 | S12: 4 | T12: 8 | U12: 4 | V12: 40 | W12: 204 | X12: 157 | Y12: 220 | Z12: 153
A13: 50 | B13: MEURTHE ET MOSELLE MEUSE | C13: 26 | D13: NANCY | E13: 554356 | F13: JARVILLE LA MALGRANGE | G13: 4.0 | H13: 4 | I13: 109 | J13: 79 | K13: 143 | L13: 6 | M13: 12 | N13: 8 | O13: 2 | P13: 102 | Q13: 147 | R13: 148 | S13: 168 | T13: 7 | U13: 6 | V13: 11 | W13: 2 | X13: 1 | Y13: 105 | Z13: 3
A14: 50 | B14: VOSGES | C14: 57 | D14: EPINAL | E14: 488288 | F14: EPINAL LEOPOLD BOURG | G14: 1.8 | H14: 5 | I14: 2 | J14: 8 | K14: 2 | L14: 9 | M14: 5 | N14: 13 | O14: 24 | P14: 261 | Q14: 131 | R14: 77 | S14: 262 | T14: 69 | U14: 72 | V14: 73 | W14: 3 | X14: 6 | Y14: 1 | Z14: 6
A15: 50 | B15: MEURTHE ET MOSELLE MEUSE | C15: 27 | D15: PONT A MOUSSON | E15: 454651 | F15: TOUL REPUBLIQUE | G15: 9.6 | H15: 6 | I15: 250 | J15: 237 | K15: 251 | L15: 4 | M15: 9 | N15: 1 | O15: 3 | P15: 180 | Q15: 56 | R15: 69 | S15: 63 | T15: 11 | U15: 17 | V15: 4 | W15: 1 | X15: 2 | Y15: 7 | Z15: 1
A16: 50 | B16: BAS-RHIN | C16: 5101 | D16: SELESTAT | E16: 4120 | F16: WASSELONNE | G16: 2.9 | H16: 7 | I16: 165 | J16: 188 | K16: 123 | L16: 44 | M16: 44 | N16: 39 | O16: 155 | P16: 168 | Q16: 1 | R16: 3 | S16: 5 | T16: 3 | U16: 3 | V16: 16 | W16: 23 | X16: 78 | Y16: 3 | Z16: 94
A17: 50 | B17: MEURTHE ET MOSELLE MEUSE | C17: 26 | D17: NANCY | E17: 554636 | F17: TOMBLAINE | G17: 2.0 | H17: 8 | I17: 34 | J17: 70 | K17: 9 | L17: 181 | M17: 208 | N17: 15 | O17: 259 | P17: 214 | Q17: 40 | R17: 38 | S17: 98 | T17: 4 | U17: 13 | V17: 1 | W17: 33 | X17: 163 | Y17: 64 | Z17: 4
A18: 50 | B18: MARNE-ARDENNES | C18: 6 | D18: CHALONS EN CHAMPAGNE | E18: 451115 | F18: MOURMELON suippes | G18: 3.0 | H18: 9 | I18: 82 | J18: 116 | K18: 52 | L18: 103 | M18: 165 | N18: 86 | O18: 5 | P18: 133 | Q18: 8 | R18: 110 | S18: 1 | T18: 21 | U18: 25 | V18: 28 | W18: 25 | X18: 51 | Y18: 40 | Z18: 19
A19: 50 | B19: MOSELLE | C19: 44 | D19: MOSELLE NORD | E19: 557508 | F19: NILVANGE | G19: 2.1 | H19: 10 | I19: 100 | J19: 75 | K19: 133 | L19: 50 | M19: 35 | N19: 79 | O19: 115 | P19: 218 | Q19: 49 | R19: 79 | S19: 19 | T19: 6 | U19: 8 | V19: 5 | W19: 64 | X19: 54 | Y19: 102 | Z19: 65
A20: 50 | B20: MARNE-ARDENNES | C20: 2 | D20: CHARLEVILLE MEZIERES | E20: 408862 | F20: REVIN | G20: 3.6 | H20: 11 | I20: 67 | J20: 130 | K20: 11 | L20: 12 | M20: 25 | N20: 5 | O20: 65 | P20: 35 | Q20: 14 | R20: 47 | S20: 9 | T20: 111 | U20: 94 | V20: 150 | W20: 38 | X20: 46 | Y20: 163 | Z20: 8
A21: 50 | B21: MARNE-ARDENNES | C21: 11 | D21: REIMS | E21: 551310 | F21: REIMS CHATILLONS | G21: 3.7 | H21: 12 | I21: 124 | J21: 87 | K21: 165 | L21: 7 | M21: 10 | N21: 62 | O21: 26 | P21: 64 | Q21: 53 | R21: 44 | S21: 123 | T21: 64 | U21: 55 | V21: 119 | W21: 20 | X21: 27 | Y21: 12 | Z21: 53
A22: 50 | B22: BAS-RHIN | C22: 5060 | D22: HAGUENAU | E22: 4092 | F22: HOCHFELDEN | G22: 1.8 | H22: 13 | I22: 40 | J22: 20 | K22: 86 | L22: 24 | M22: 27 | N22: 23 | O22: 99 | P22: 205 | Q22: 184 | R22: 231 | S22: 28 | T22: 39 | U22: 63 | V22: 10 | W22: 13 | X22: 22 | Y22: 10 | Z22: 61
A23: 50 | B23: MEURTHE ET MOSELLE MEUSE | C23: 27 | D23: PONT A MOUSSON | E23: 554321 | F23: FROUARD | G23: 3.0 | H23: 14 | I23: 57 | J23: 53 | K23: 61 | L23: 107 | M23: 97 | N23: 125 | O23: 127 | P23: 139 | Q23: 2 | R23: 1 | S23: 71 | T23: 84 | U23: 127 | V23: 20 | W23: 79 | X23: 31 | Y23: 195 | Z23: 50
A24: 50 | B24: MOSELLE | C24: 45 | D24: METZ | E24: 557447 | F24: METZ SAINT MAXIMIN | G24: 3.0 | H24: 15 | I24: 78 | J24: 75 | K24: 87 | L24: 17 | M24: 124 | N24: 3 | O24: 7 | P24: 19 | Q24: 47 | R24: 32 | S24: 161 | T24: 63 | U24: 85 | V24: 37 | W24: 18 | X24: 15 | Y24: 157 | Z24: 7
A25: 50 | B25: BAS-RHIN | C25: 5101 | D25: SELESTAT | E25: 4107 | F25: VILLE | G25: 2.9 | H25: 16 | I25: 175 | J25: 221 | K25: 91 | L25: 3 | M25: 1 | N25: 65 | O25: 93 | P25: 1 | Q25: 72 | R25: 83 | S25: 75 | T25: 25 | U25: 15 | V25: 144 | W25: 162 | X25: 222 | Y25: 51 | Z25: 237
A26: 50 | B26: MEURTHE ET MOSELLE MEUSE | C26: 27 | D26: PONT A MOUSSON | E26: 554416 | F26: LUDRES | G26: 4.0 | H26: 17 | I26: 3 | J26: 8 | K26: 3 | L26: 113 | M26: 132 | N26: 41 | O26: 29 | P26: 221 | Q26: 29 | R26: 35 | S26: 68 | T26: 202 | U26: 210 | V26: 160 | W26: 49 | X26: 80 | Y26: 86 | Z26: 28
A27: 50 | B27: MARNE-ARDENNES | C27: 2 | D27: CHARLEVILLE MEZIERES | E27: 508820 | F27: VOUZIERS | G27: 2.9 | H27: 18 | I27: 236 | J27: 255 | K27: 191 | L27: 11 | M27: 16 | N27: 9 | O27: 70 | P27: 68 | Q27: 37 | R27: 49 | S27: 58 | T27: 29 | U27: 41 | V27: 19 | W27: 7 | X27: 18 | Y27: 17 | Z27: 9
A28: 50 | B28: AUBE HAUTE MARNE | C28: 21 | D28: CHAUMONT | E28: 510590 | F28: CHAUMONT REPUBLIQUE | G28: 3.9 | H28: 19 | I28: 162 | J28: 79 | K28: 237 | L28: 41 | M28: 74 | N28: 25 | O28: 90 | P28: 76 | Q28: 77 | R28: 73 | S28: 110 | T28: 12 | U28: 10 | V28: 30 | W28: 26 | X28: 108 | Y28: 6 | Z28: 36
A29: 50 | B29: MARNE-ARDENNES | C29: 2 | D29: CHARLEVILLE MEZIERES | E29: 408822 | F29: CHARLEVILLE MEZIERES | G29: 4.4 | H29: 20 | I29: 108 | J29: 127 | K29: 69 | L29: 89 | M29: 156 | N29: 44 | O29: 21 | P29: 42 | Q29: 20 | R29: 75 | S29: 6 | T29: 30 | U29: 30 | V29: 59 | W29: 50 | X29: 11 | Y29: 266 | Z29: 35
A30: 50 | B30: MARNE-ARDENNES | C30: 11 | D30: REIMS | E30: 551349 | F30: REIMS SAINT REMI | G30: 2.9 | H30: 21 | I30: 61 | J30: 53 | K30: 74 | L30: 27 | M30: 40 | N30: 17 | O30: 13 | P30: 242 | Q30: 50 | R30: 82 | S30: 17 | T30: 127 | U30: 184 | V30: 31 | W30: 34 | X30: 44 | Y30: 41 | Z30: 55
A31: 50 | B31: MOSELLE | C31: 42 | D31: MOSELLE EST | E31: 557250 | F31: CREUTZWALD | G31: 2.9 | H31: 22 | I31: 39 | J31: 40 | K31: 48 | L31: 244 | M31: 247 | N31: 211 | O31: 192 | P31: 111 | Q31: 4 | R31: 8 | S31: 8 | T31: 101 | U31: 84 | V31: 141 | W31: 59 | X31: 105 | Y31: 22 | Z31: 126
A32: 262 | B32: MARNE-ARDENNES | C32: 11 | D32: REIMS | E32: 551340 | F32: BETHENY | G32: 3.0 | H32: 23 | I32: 58 | J32: 106 | K32: 13 | L32: 32 | M32: 60 | N32: 11 | O32: 14 | P32: 191 | Q32: 94 | R32: 109 | S32: 53 | T32: 233 | U32: 247 | V32: 145 | W32: 6 | X32: 17 | Y32: 5 | Z32: 12
A33: 262 | B33: VOSGES | C33: 55 | D33: SAINT DIE | E33: 488246 | F33: CORNIMONT LA BRESSE | G33: 2.9 | H33: 24 | I33: 69 | J33: 70 | K33: 73 | L33: 75 | M33: 91 | N33: 90 | O33: 191 | P33: 28 | Q33: 91 | R33: 92 | S33: 103 | T33: 24 | U33: 16 | V33: 117 | W33: 80 | X33: 121 | Y33: 57 | Z33: 99
A34: 262 | B34: MARNE-ARDENNES | C34: 6 | D34: CHALONS EN CHAMPAGNE | E34: 551110 | F34: CHALONS ROOSEVELT | G34: 5.0 | H34: 25 | I34: 8 | J34: 15 | K34: 7 | L34: 65 | M34: 120 | N34: 43 | O34: 42 | P34: 56 | Q34: 54 | R34: 101 | S34: 14 | T34: 184 | U34: 166 | V34: 228 | W34: 113 | X34: 81 | Y34: 135 | Z34: 128
A35: 262 | B35: BAS-RHIN | C35: 5101 | D35: SELESTAT | E35: 4121 | F35: SCHIRMECK | G35: 3.8 | H35: 26 | I35: 32 | J35: 62 | K35: 10 | L35: 137 | M35: 135 | N35: 229 | O35: 88 | P35: 45 | Q35: 90 | R35: 67 | S35: 180 | T35: 67 | U35: 52 | V35: 129 | W35: 66 | X35: 132 | Y35: 72 | Z35: 34
A36: 262 | B36: MOSELLE | C36: 42 | D36: MOSELLE EST | E36: 457163 | F36: BEHREN LES FORBACH | G36: 2.5 | H36: 27 | I36: 50 | J36: 20 | K36: 128 | L36: 52 | M36: 57 | N36: 19 | O36: 231 | P36: 162 | Q36: 76 | R36: 127 | S36: 22 | T36: 102 | U36: 131 | V36: 43 | W36: 85 | X36: 273 | Y36: 9 | Z36: 90
A37: 262 | B37: MOSELLE | C37: 45 | D37: METZ | E37: 457453 | F37: MONTIGNY CENTRALE | G37: 8.0 | H37: 28 | I37: 23 | J37: 31 | K37: 36 | L37: 33 | M37: 21 | N37: 157 | O37: 56 | P37: 225 | Q37: 135 | R37: 186 | S37: 30 | T37: 150 | U37: 119 | V37: 237 | W37: 72 | X37: 62 | Y37: 113 | Z37: 66
A38: 262 | B38: AUBE HAUTE MARNE | C38: 21 | D38: CHAUMONT | E38: 410560 | F38: BOURBONNE LES BAINS | G38: 2.0 | H38: 29 | I38: 7 | J38: 3 | K38: 55 | L38: 153 | M38: 140 | N38: 254 | O38: 212 | P38: 7 | Q38: 88 | R38: 93 | S38: 98 | T38: 50 | U38: 46 | V38: 78 | W38: 241 | X38: 262 | Y38: 159 | Z38: 226
A39: 262 | B39: MOSELLE | C39: 44 | D39: MOSELLE NORD | E39: 557347 | F39: GUENANGE | G39: 2.6 | H39: 30 | I39: 81 | J39: 62 | K39: 118 | L39: 78 | M39: 98 | N39: 71 | O39: 85 | P39: 107 | Q39: 101 | R39: 76 | S39: 165 | T39: 151 | U39: 202 | V39: 38 | W39: 10 | X39: 8 | Y39: 84 | Z39: 14
A40: 262 | B40: MOSELLE | C40: 45 | D40: METZ | E40: 557444 | F40: METZ SAINT JULIEN | G40: 5.6 | H40: 31 | I40: 131 | J40: 106 | K40: 153 | L40: 95 | M40: 63 | N40: 138 | O40: 137 | P40: 171 | Q40: 100 | R40: 78 | S40: 159 | T40: 23 | U40: 29 | V40: 25 | W40: 51 | X40: 127 | Y40: 15 | Z40: 103
A41: 262 | B41: BAS-RHIN | C41: 5060 | D41: HAGUENAU | E41: 4082 | F41: BOUXWILLER | G41: 2.9 | H41: 32 | I41: 83 | J41: 62 | K41: 126 | L41: 227 | M41: 182 | N41: 205 | O41: 259 | P41: 230 | Q41: 7 | R41: 7 | S41: 18 | T41: 53 | U41: 62 | V41: 47 | W41: 114 | X41: 142 | Y41: 66 | Z41: 176
A42: 262 | B42: MARNE-ARDENNES | C42: 11 | D42: REIMS | E42: 551309 | F42: REIMS EUROPE | G42: 3.0 | H42: 33 | I42: 14 | J42: 8 | K42: 54 | L42: 203 | M42: 199 | N42: 141 | O42: 100 | P42: 237 | Q42: 34 | R42: 59 | S42: 26 | T42: 115 | U42: 132 | V42: 60 | W42: 131 | X42: 110 | Y42: 97 | Z42: 206
A43: 262 | B43: MARNE-ARDENNES | C43: 6 | D43: CHALONS EN CHAMPAGNE | E43: 551330 | F43: MONTMIRAIL | G43: 3.0 | H43: 34 | I43: 56 | J43: 75 | K43: 41 | L43: 145 | M43: 178 | N43: 186 | O43: 29 | P43: 27 | Q43: 33 | R43: 42 | S43: 64 | T43: 124 | U43: 141 | V43: 69 | W43: 52 | X43: 55 | Y43: 96 | Z43: 39
A44: 262 | B44: VOSGES | C44: 57 | D44: EPINAL | E44: 588631 | F44: THAON LES VOSGES | G44: 5.4 | H44: 35 | I44: 62 | J44: 62 | K44: 57 | L44: 28 | M44: 30 | N44: 56 | O44: 53 | P44: 157 | Q44: 189 | R44: 161 | S44: 240 | T44: 32 | U44: 36 | V44: 46 | W44: 144 | X44: 176 | Y44: 95 | Z44: 144
A45: 262 | B45: MARNE-ARDENNES | C45: 11 | D45: REIMS | E45: 551367 | F45: AY CHAMPAGNE | G45: 3.0 | H45: 36 | I45: 85 | J45: 79 | K45: 94 | L45: 8 | M45: 13 | N45: 14 | O45: 8 | P45: 128 | Q45: 146 | R45: 169 | S45: 87 | T45: 188 | U45: 213 | V45: 102 | W45: 39 | X45: 20 | Y45: 206 | Z45: 32
A46: 262 | B46: HAUT-RHIN | C46: 5130 | D46: COLMAR | E46: 4153 | F46: ROUFFACH | G46: 3.7 | H46: 37 | I46: 120 | J46: 106 | K46: 134 | L46: 101 | M46: 65 | N46: 109 | O46: 207 | P46: 186 | Q46: 219 | R46: 244 | S46: 32 | T46: 10 | U46: 7 | V46: 32 | W46: 53 | X46: 95 | Y46: 21 | Z46: 123
A47: 262 | B47: AUBE HAUTE MARNE | C47: 14 | D47: TROYES | E47: 510511 | F47: TROYES BROSSOLETTE | G47: 3.0 | H47: 38 | I47: 125 | J47: 175 | K47: 53 | L47: 54 | M47: 87 | N47: 34 | O47: 127 | P47: 46 | Q47: 6 | R47: 4 | S47: 87 | T47: 123 | U47: 123 | V47: 115 | W47: 172 | X47: 213 | Y47: 89 | Z47: 185
A48: 262 | B48: MOSELLE | C48: 45 | D48: METZ | E48: 457443 | F48: METZ REPUBLIQUE | G48: 4.2 | H48: 39 | I48: 1 | J48: 1 | K48: 5 | L48: 219 | M48: 169 | N48: 236 | O48: 255 | P48: 226 | Q48: 140 | R48: 138 | S48: 153 | T48: 229 | U48: 238 | V48: 165 | W48: 102 | X48: 122 | Y48: 160 | Z48: 38
A49: 262 | B49: MOSELLE | C49: 44 | D49: MOSELLE NORD | E49: 457348 | F49: HAGONDANGE | G49: 8.6 | H49: 40 | I49: 195 | J49: 188 | K49: 200 | L49: 16 | M49: 17 | N49: 154 | O49: 69 | P49: 25 | Q49: 95 | R49: 66 | S49: 188 | T49: 44 | U49: 35 | V49: 109 | W49: 46 | X49: 48 | Y49: 75 | Z49: 63
A50: 262 | B50: VOSGES | C50: 57 | D50: EPINAL | E50: 588716 | F50: XERTIGNY | G50: 3.0 | H50: 41 | I50: 64 | J50: 87 | K50: 43 | L50: 188 | M50: 159 | N50: 249 | O50: 239 | P50: 73 | Q50: 65 | R50: 58 | S50: 137 | T50: 17 | U50: 11 | V50: 57 | W50: 221 | X50: 188 | Y50: 225 | Z50: 151
A51: 262 | B51: MEURTHE ET MOSELLE MEUSE | C51: 31 | D51: VERDUN | E51: 455298 | F51: ETAIN | G51: 1.7 | H51: 42 | I51: 48 | J51: 70 | K51: 31 | L51: 269 | M51: 270 | N51: 196 | O51: 202 | P51: 178 | Q51: 257 | R51: 247 | S51: 251 | T51: 1 | U51: 1 | V51: 6 | W51: 93 | X51: 67 | Y51: 101 | Z51: 157
A52: 262 | B52: BAS-RHIN | C52: 5006 | D52: STRASBOURG | E52: 4037 | F52: MUNDOLSHEIM | G52: 4.4 | H52: 43 | I52: 152 | J52: 183 | K52: 101 | L52: 10 | M52: 7 | N52: 58 | O52: 145 | P52: 119 | Q52: 113 | R52: 125 | S52: 73 | T52: 37 | U52: 37 | V52: 56 | W52: 223 | X52: 227 | Y52: 194 | Z52: 158
A53: 262 | B53: MEURTHE ET MOSELLE MEUSE | C53: 31 | D53: VERDUN | E53: 455231 | F53: COMMERCY | G53: 4.4 | H53: 44 | I53: 178 | J53: 159 | K53: 182 | L53: 53 | M53: 80 | N53: 28 | O53: 73 | P53: 131 | Q53: 185 | R53: 174 | S53: 183 | T53: 27 | U53: 24 | V53: 113 | W53: 22 | X53: 40 | Y53: 18 | Z53: 31
A54: 262 | B54: BAS-RHIN | C54: 5060 | D54: HAGUENAU | E54: 4066 | F54: NIEDERBRONN LES BAINS | G54: 6.1 | H54: 45 | I54: 27 | J54: 40 | K54: 30 | L54: 162 | M54: 163 | N54: 149 | O54: 114 | P54: 91 | Q54: 92 | R54: 48 | S54: 260 | T54: 109 | U54: 83 | V54: 175 | W54: 101 | X54: 49 | Y54: 121 | Z54: 197
A55: 262 | B55: MARNE-ARDENNES | C55: 11 | D55: REIMS | E55: 551314 | F55: FISMES | G55: 3.0 | H55: 46 | I55: 63 | J55: 116 | K55: 17 | L55: 63 | M55: 137 | N55: 53 | O55: 9 | P55: 88 | Q55: 109 | R55: 175 | S55: 15 | T55: 145 | U55: 142 | V55: 145 | W55: 56 | X55: 38 | Y55: 120 | Z55: 50
A56: 262 | B56: MOSELLE | C56: 44 | D56: MOSELLE NORD | E56: 557113 | F56: AUDUN LE TICHE | G56: 2.2 | H56: 47 | I56: 238 | J56: 265 | K56: 162 | L56: 22 | M56: 29 | N56: 7 | O56: 227 | P56: 235 | Q56: 60 | R56: 70 | S56: 65 | T56: 48 | U56: 43 | V56: 75 | W56: 15 | X56: 14 | Y56: 165 | Z56: 5
A57: 262 | B57: MEURTHE ET MOSELLE MEUSE | C57: 26 | D57: NANCY | E57: 554266 | F57: DOMBASLE SUR MEURTHE | G57: 3.7 | H57: 48 | I57: 168 | J57: 175 | K57: 149 | L57: 183 | M57: 185 | N57: 130 | O57: 20 | P57: 247 | Q57: 9 | R57: 12 | S57: 39 | T57: 60 | U57: 79 | V57: 34 | W57: 48 | X57: 73 | Y57: 69 | Z57: 46
A58: 262 | B58: MEURTHE ET MOSELLE MEUSE | C58: 31 | D58: VERDUN | E58: 554412 | F58: LONGUYON | G58: 3.0 | H58: 49 | I58: 16 | J58: 17 | K58: 28 | L58: 186 | M58: 202 | N58: 125 | O58: 46 | P58: 209 | Q58: 202 | R58: 183 | S58: 235 | T58: 54 | U58: 53 | V58: 60 | W58: 108 | X58: 50 | Y58: 124 | Z58: 206
A59: 262 | B59: MEURTHE ET MOSELLE MEUSE | C59: 31 | D59: VERDUN | E59: 555679 | F59: VERDUN MAZEL | G59: 4.0 | H59: 50 | I59: 25 | J59: 40 | K59: 20 | L59: 118 | M59: 144 | N59: 106 | O59: 43 | P59: 106 | Q59: 73 | R59: 88 | S59: 68 | T59: 130 | U59: 125 | V59: 145 | W59: 160 | X59: 94 | Y59: 232 | Z59: 83
A60: 262 | B60: MARNE-ARDENNES | C60: 2 | D60: CHARLEVILLE MEZIERES | E60: 508815 | F60: CARIGNAN | G60: 3.0 | H60: 51 | I60: 76 | J60: 106 | K60: 44 | L60: 62 | M60: 133 | N60: 16 | O60: 100 | P60: 13 | Q60: 27 | R60: 43 | S60: 40 | T60: 211 | U60: 222 | V60: 167 | W60: 70 | X60: 35 | Y60: 106 | Z60: 134
A61: 262 | B61: MEURTHE ET MOSELLE MEUSE | C61: 26 | D61: NANCY | E61: 554476 | F61: NANCY ARTEM | G61: 2.6 | H61: 52 | I61: 137 | J61: 168 | K61: 80 | L61: 94 | M61: 38 | N61: 46 | O61: 19 | P61: 271 | Q61: 86 | R61: 85 | S61: 105 | T61: 66 | U61: 86 | V61: 41 | W61: 41 | X61: 56 | Y61: 109 | Z61: 16
A62: 262 | B62: MARNE-ARDENNES | C62: 2 | D62: CHARLEVILLE MEZIERES | E62: 508819 | F62: MOUZON | G62: 2.0 | H62: 53 | I62: 53 | J62: 47 | K62: 70 | L62: 109 | M62: 116 | N62: 52 | O62: 72 | P62: 187 | Q62: 25 | R62: 26 | S62: 115 | T62: 268 | U62: 270 | V62: 142 | W62: 16 | X62: 32 | Y62: 28 | Z62: 17
A63: 262 | B63: MARNE-ARDENNES | C63: 11 | D63: REIMS | E63: 551305 | F63: REIMS HIPPODROME | G63: 3.8 | H63: 54 | I63: 19 | J63: 14 | K63: 51 | L63: 88 | M63: 89 | N63: 51 | O63: 4 | P63: 267 | Q63: 253 | R63: 263 | S63: 38 | T63: 146 | U63: 183 | V63: 58 | W63: 29 | X63: 24 | Y63: 127 | Z63: 27
A64: 262 | B64: VOSGES | C64: 55 | D64: SAINT DIE | E64: 488556 | F64: RAON L ETAPE | G64: 2.7 | H64: 55 | I64: 24 | J64: 27 | K64: 46 | L64: 106 | M64: 96 | N64: 115 | O64: 64 | P64: 188 | Q64: 156 | R64: 130 | S64: 242 | T64: 160 | U64: 136 | V64: 215 | W64: 74 | X64: 63 | Y64: 85 | Z64: 108
A65: 262 | B65: VOSGES | C65: 57 | D65: EPINAL | E65: 488706 | F65: VITTEL | G65: 3.5 | H65: 56 | I65: 47 | J65: 62 | K65: 38 | L65: 201 | M65: 212 | N65: 225 | O65: 144 | P65: 70 | Q65: 21 | R65: 13 | S65: 196 | T65: 155 | U65: 158 | V65: 137 | W65: 96 | X65: 90 | Y65: 134 | Z65: 74
A66: 262 | B66: VOSGES | C66: 57 | D66: EPINAL | E66: 588336 | F66: GOLBEY | G66: 3.3 | H66: 57 | I66: 96 | J66: 87 | K66: 99 | L66: 169 | M66: 184 | N66: 83 | O66: 89 | P66: 165 | Q66: 22 | R66: 22 | S66: 121 | T66: 165 | U66: 143 | V66: 211 | W66: 45 | X66: 30 | Y66: 181 | Z66: 20
A67: 262 | B67: MEURTHE ET MOSELLE MEUSE | C67: 31 | D67: VERDUN | E67: 454414 | F67: LONGWY HAUT | G67: 4.0 | H67: 58 | I67: 141 | J67: 145 | K67: 121 | L67: 43 | M67: 71 | N67: 31 | O67: 110 | P67: 49 | Q67: 69 | R67: 90 | S67: 57 | T67: 38 | U67: 47 | V67: 22 | W67: 207 | X67: 193 | Y67: 188 | Z67: 178
A68: 262 | B68: MEURTHE ET MOSELLE MEUSE | C68: 27 | D68: PONT A MOUSSON | E68: 554357 | F68: JOEUF MAIRIE | G68: 4.0 | H68: 59 | I68: 134 | J68: 95 | K68: 178 | L68: 138 | M68: 197 | N68: 34 | O68: 60 | P68: 112 | Q68: 206 | R68: 222 | S68: 90 | T68: 42 | U68: 44 | V68: 36 | W68: 21 | X68: 23 | Y68: 54 | Z68: 39
A69: 262 | B69: MARNE-ARDENNES | C69: 11 | D69: REIMS | E69: 551369 | F69: DAMERY | G69: 3.0 | H69: 60 | I69: 30 | J69: 13 | K69: 140 | L69: 216 | M69: 191 | N69: 108 | O69: 58 | P69: 262 | Q69: 75 | R69: 45 | S69: 252 | T69: 74 | U69: 82 | V69: 55 | W69: 164 | X69: 119 | Y69: 219 | Z69: 83
A70: 262 | B70: MARNE-ARDENNES | C70: 2 | D70: CHARLEVILLE MEZIERES | E70: 408801 | F70: CHARLEVILLE JEAN JAURES | G70: 9.7 | H70: 61 | I70: 142 | J70: 145 | K70: 123 | L70: 30 | M70: 64 | N70: 40 | O70: 10 | P70: 86 | Q70: 99 | R70: 143 | S70: 29 | T70: 207 | U70: 216 | V70: 161 | W70: 24 | X70: 13 | Y70: 166 | Z70: 15
A71: 262 | B71: HAUT-RHIN | C71: 5169 | D71: MULHOUSE | E71: 4181 | F71: WITTELSHEIM | G71: 3.5 | H71: 62 | I71: 115 | J71: 79 | K71: 152 | L71: 196 | M71: 179 | N71: 82 | O71: 97 | P71: 251 | Q71: 132 | R71: 141 | S71: 120 | T71: 95 | U71: 95 | V71: 98 | W71: 12 | X71: 58 | Y71: 2 | Z71: 37
A72: 262 | B72: VOSGES | C72: 55 | D72: SAINT DIE | E72: 588186 | F72: BRUYERES | G72: 3.7 | H72: 63 | I72: 86 | J72: 87 | K72: 85 | L72: 76 | M72: 79 | N72: 84 | O72: 152 | P72: 122 | Q72: 192 | R72: 185 | S72: 162 | T72: 51 | U72: 39 | V72: 135 | W72: 89 | X72: 116 | Y72: 80 | Z72: 102
A73: 262 | B73: BAS-RHIN | C73: 5006 | D73: STRASBOURG | E73: 4043 | F73: STRASBOURG HALLES | G73: 8.9 | H73: 64 | I73: 170 | J73: 183 | K73: 144 | L73: 20 | M73: 41 | N73: 10 | O73: 22 | P73: 163 | Q73: 87 | R73: 71 | S73: 146 | T73: 103 | U73: 120 | V73: 72 | W73: 86 | X73: 53 | Y73: 162 | Z73: 80
A74: 262 | B74: VOSGES | C74: 55 | D74: SAINT DIE | E74: 488326 | F74: GERARDMER | G74: 5.9 | H74: 65 | I74: 15 | J74: 28 | K74: 6 | L74: 160 | M74: 111 | N74: 250 | O74: 108 | P74: 181 | Q74: 41 | R74: 16 | S74: 257 | T74: 206 | U74: 179 | V74: 257 | W74: 222 | X74: 147 | Y74: 222 | Z74: 203
A75: 262 | B75: MARNE-ARDENNES | C75: 2 | D75: CHARLEVILLE MEZIERES | E75: 508802 | F75: CHARLEVILLE NEVERS | G75: 3.0 | H75: 66 | I75: 9 | J75: 5 | K75: 66 | L75: 199 | M75: 221 | N75: 186 | O75: 29 | P75: 154 | Q75: 241 | R75: 252 | S75: 40 | T75: 61 | U75: 53 | V75: 102 | W75: 145 | X75: 146 | Y75: 126 | Z75: 134
A76: 262 | B76: MEURTHE ET MOSELLE MEUSE | C76: 27 | D76: PONT A MOUSSON | E76: 554257 | F76: DIEULOUARD | G76: 3.4 | H76: 67 | I76: 66 | J76: 40 | K76: 125 | L76: 146 | M76: 193 | N76: 150 | O76: 49 | P76: 20 | Q76: 149 | R76: 146 | S76: 175 | T76: 72 | U76: 69 | V76: 87 | W76: 106 | X76: 64 | Y76: 192 | Z76: 67
A77: 262 | B77: HAUT-RHIN | C77: 5130 | D77: COLMAR | E77: 4157 | F77: NEUF BRISACH | G77: 3.8 | H77: 68 | I77: 210 | J77: 221 | K77: 205 | L77: 213 | M77: 226 | N77: 197 | O77: 251 | P77: 29 | Q77: 16 | R77: 19 | S77: 51 | T77: 22 | U77: 12 | V77: 114 | W77: 99 | X77: 138 | Y77: 55 | Z77: 165
A78: 262 | B78: BAS-RHIN | C78: 5006 | D78: STRASBOURG | E78: 4038 | F78: OBERHAUSBERGEN | G78: 5.0 | H78: 69 | I78: 173 | J78: 175 | K78: 153 | L78: 23 | M78: 15 | N78: 47 | O78: 48 | P78: 255 | Q78: 79 | R78: 111 | S78: 36 | T78: 149 | U78: 135 | V78: 185 | W78: 58 | X78: 33 | Y78: 91 | Z78: 111
A79: 262 | B79: MARNE-ARDENNES | C79: 11 | D79: REIMS | E79: 551365 | F79: DORMANS | G79: 2.8 | H79: 70 | I79: 5 | J79: 2 | K79: 77 | L79: 218 | M79: 255 | N79: 233 | O79: 11 | P79: 135 | Q79: 127 | R79: 160 | S79: 47 | T79: 225 | U79: 217 | V79: 234 | W79: 116 | X79: 52 | Y79: 229 | Z79: 73
A80: 262 | B80: VOSGES | C80: 57 | D80: EPINAL | E80: 588501 | F80: NEUFCHATEAU | G80: 5.0 | H80: 71 | I80: 59 | J80: 87 | K80: 34 | L80: 184 | M80: 207 | N80: 127 | O80: 29 | P80: 202 | Q80: 57 | R80: 46 | S80: 179 | T80: 223 | U80: 233 | V80: 170 | W80: 37 | X80: 102 | Y80: 25 | Z80: 39
A81: 262 | B81: MOSELLE | C81: 42 | D81: MOSELLE EST | E81: 457165 | F81: BITCHE | G81: 2.1 | H81: 72 | I81: 110 | J81: 130 | K81: 62 | L81: 46 | M81: 22 | N81: 161 | O81: 218 | P81: 232 | Q81: 269 | R81: 270 | S81: 45 | T81: 14 | U81: 14 | V81: 26 | W81: 111 | X81: 228 | Y81: 52 | Z81: 95
A82: 262 | B82: MEURTHE ET MOSELLE MEUSE | C82: 26 | D82: NANCY | E82: 454426 | F82: LUNEVILLE CARNOT | G82: 9.6 | H82: 73 | I82: 171 | J82: 137 | K82: 192 | L82: 74 | M82: 69 | N82: 92 | O82: 68 | P82: 189 | Q82: 150 | R82: 150 | S82: 169 | T82: 47 | U82: 48 | V82: 51 | W82: 57 | X82: 41 | Y82: 117 | Z82: 45
A83: 264 | B83: BAS-RHIN | C83: 5101 | D83: SELESTAT | E83: 4119 | F83: OBERNAI | G83: 4.3 | H83: 74 | I83: 219 | J83: 237 | K83: 196 | L83: 26 | M83: 14 | N83: 114 | O83: 169 | P83: 227 | Q83: 82 | R83: 158 | S83: 12 | T83: 13 | U83: 9 | V83: 49 | W83: 231 | X83: 237 | Y83: 164 | Z83: 233
A84: 264 | B84: MARNE-ARDENNES | C84: 6 | D84: CHALONS EN CHAMPAGNE | E84: 451101 | F84: CHALONS VIVIERS | G84: 8.6 | H84: 75 | I84: 36 | J84: 58 | K84: 18 | L84: 42 | M84: 36 | N84: 96 | O84: 57 | P84: 194 | Q84: 158 | R84: 235 | S84: 10 | T84: 234 | U84: 254 | V84: 132 | W84: 87 | X84: 99 | Y84: 118 | Z84: 54
A85: 264 | B85: MOSELLE | C85: 42 | D85: MOSELLE EST | E85: 557503 | F85: NEUNKIRCH | G85: 4.2 | H85: 76 | I85: 10 | J85: 11 | K85: 37 | L85: 70 | M85: 70 | N85: 174 | O85: 254 | P85: 10 | Q85: 160 | R85: 128 | S85: 245 | T85: 217 | U85: 197 | V85: 253 | W85: 211 | X85: 206 | Y85: 144 | Z85: 229
A86: 264 | B86: BAS-RHIN | C86: 5060 | D86: HAGUENAU | E86: 4071 | F86: WISSEMBOURG | G86: 8.7 | H86: 77 | I86: 43 | J86: 31 | K86: 68 | L86: 182 | M86: 186 | N86: 207 | O86: 189 | P86: 55 | Q86: 89 | R86: 80 | S86: 118 | T86: 100 | U86: 102 | V86: 92 | W86: 210 | X86: 258 | Y86: 129 | Z86: 177
A87: 264 | B87: MARNE-ARDENNES | C87: 6 | D87: CHALONS EN CHAMPAGNE | E87: 451120 | F87: SARRY | G87: 2.5 | H87: 78 | I87: 41 | J87: 53 | K87: 32 | L87: 83 | M87: 154 | N87: 128 | O87: 18 | P87: 5 | Q87: 67 | R87: 89 | S87: 59 | T87: 249 | U87: 246 | V87: 229 | W87: 123 | X87: 115 | Y87: 139 | Z87: 113
A88: 264 | B88: MEURTHE ET MOSELLE MEUSE | C88: 26 | D88: NANCY | E88: 454671 | F88: VANDOEUVRE LES NANCY | G88: 4.6 | H88: 79 | I88: 93 | J88: 47 | K88: 172 | L88: 69 | M88: 93 | N88: 38 | O88: 25 | P88: 213 | Q88: 245 | R88: 236 | S88: 250 | T88: 118 | U88: 124 | V88: 91 | W88: 31 | X88: 7 | Y88: 260 | Z88: 30
A89: 264 | B89: MOSELLE | C89: 42 | D89: MOSELLE EST | E89: 457308 | F89: FORBACH CENTRALE | G89: 12.0 | H89: 80 | I89: 159 | J89: 145 | K89: 163 | L89: 37 | M89: 31 | N89: 158 | O89: 150 | P89: 44 | Q89: 110 | R89: 113 | S89: 91 | T89: 138 | U89: 118 | V89: 212 | W89: 78 | X89: 150 | Y89: 35 | Z89: 92
A90: 264 | B90: BAS-RHIN | C90: 5060 | D90: HAGUENAU | E90: 4087 | F90: SAVERNE | G90: 8.4 | H90: 81 | I90: 242 | J90: 237 | K90: 234 | L90: 61 | M90: 43 | N90: 102 | O90: 67 | P90: 231 | Q90: 58 | R90: 53 | S90: 145 | T90: 36 | U90: 38 | V90: 50 | W90: 67 | X90: 77 | Y90: 62 | Z90: 115
A91: 264 | B91: BAS-RHIN | C91: 5006 | D91: STRASBOURG | E91: 4047 | F91: STRASBOURG CRONENBOURG | G91: 6.7 | H91: 82 | I91: 51 | J91: 79 | K91: 24 | L91: 148 | M91: 147 | N91: 107 | O91: 41 | P91: 219 | Q91: 175 | R91: 195 | S91: 77 | T91: 82 | U91: 60 | V91: 155 | W91: 192 | X91: 85 | Y91: 258 | Z91: 138
A92: 264 | B92: MEURTHE ET MOSELLE MEUSE | C92: 27 | D92: PONT A MOUSSON | E92: 554376 | F92: LAXOU LA SAPINIERE | G92: 2.9 | H92: 83 | I92: 181 | J92: 195 | K92: 145 | L92: 143 | M92: 131 | N92: 60 | O92: 96 | P92: 236 | Q92: 119 | R92: 149 | S92: 48 | T92: 79 | U92: 80 | V92: 62 | W92: 32 | X92: 39 | Y92: 31 | Z92: 81
A93: 264 | B93: VOSGES | C93: 55 | D93: SAINT DIE | E93: 588587 | F93: SAINT DIE CATHEDRALE | G93: 4.0 | H93: 84 | I93: 54 | J93: 37 | K93: 97 | L93: 170 | M93: 128 | N93: 235 | O93: 212 | P93: 136 | Q93: 51 | R93: 37 | S93: 155 | T93: 132 | U93: 126 | V93: 145 | W93: 242 | X93: 158 | Y93: 262 | Z93: 213
A94: 264 | B94: MOSELLE | C94: 42 | D94: MOSELLE EST | E94: 557305 | F94: FAULQUEMONT | G94: 2.1 | H94: 85 | I94: 107 | J94: 116 | K94: 79 | L94: 152 | M94: 142 | N94: 112 | O94: 218 | P94: 125 | Q94: 121 | R94: 173 | S94: 24 | T94: 59 | U94: 93 | V94: 24 | W94: 174 | X94: 264 | Y94: 32 | Z94: 230
A95: 264 | B95: MOSELLE | C95: 44 | D95: MOSELLE NORD | E95: 557660 | F95: UCKANGE JEANNE D ARC | G95: 2.1 | H95: 86 | I95: 188 | J95: 137 | K95: 231 | L95: 237 | M95: 235 | N95: 216 | O95: 218 | P95: 132 | Q95: 122 | R95: 74 | S95: 249 | T95: 16 | U95: 20 | V95: 12 | W95: 71 | X95: 117 | Y95: 20 | Z95: 167
A96: 264 | B96: MARNE-ARDENNES | C96: 11 | D96: REIMS | E96: 451361 | F96: PIERRY LECLERC | G96: 2.0 | H96: 87 | I96: 6 | J96: 4 | K96: 50 | L96: 124 | M96: 189 | N96: 49 | O96: 75 | P96: 38 | Q96: 258 | R96: 243 | S96: 269 | T96: 85 | U96: 70 | V96: 133 | W96: 250 | X96: 218 | Y96: 204 | Z96: 265
A97: 264 | B97: MEURTHE ET MOSELLE MEUSE | C97: 26 | D97: NANCY | E97: 554491 | F97: NANCY SAINT SEBASTIEN | G97: 3.9 | H97: 88 | I97: 38 | J97: 17 | K97: 113 | L97: 236 | M97: 237 | N97: 204 | O97: 158 | P97: 144 | Q97: 43 | R97: 34 | S97: 132 | T97: 166 | U97: 154 | V97: 183 | W97: 199 | X97: 209 | Y97: 172 | Z97: 169
A98: 264 | B98: BAS-RHIN | C98: 5060 | D98: HAGUENAU | E98: 4079 | F98: SOULTZ SOUS FORETS | G98: 1.6 | H98: 89 | I98: 49 | J98: 31 | K98: 88 | L98: 177 | M98: 123 | N98: 134 | O98: 50 | P98: 264 | Q98: 228 | R98: 245 | S98: 61 | T98: 242 | U98: 249 | V98: 186 | W98: 9 | X98: 12 | Y98: 30 | Z98: 24
A99: 264 | B99: AUBE HAUTE MARNE | C99: 21 | D99: CHAUMONT | E99: 451154 | F99: JOINVILLE | G99: 2.0 | H99: 90 | I99: 31 | J99: 11 | K99: 147 | L99: 197 | M99: 204 | N99: 117 | O99: 212 | P99: 166 | Q99: 230 | R99: 210 | S99: 248 | T99: 89 | U99: 91 | V99: 95 | W99: 110 | X99: 234 | Y99: 38 | Z99: 118
A100: 264 | B100: MOSELLE | C100: 44 | D100: MOSELLE NORD | E100: 457192 | F100: CATTENOM | G100: 2.9 | H100: 91 | I100: 140 | J100: 95 | K100: 189 | L100: 98 | M100: 77 | N100: 192 | O100: 238 | P100: 33 | Q100: 42 | R100: 28 | S100: 171 | T100: 140 | U100: 103 | V100: 245 | W100: 176 | X100: 89 | Y100: 196 | Z100: 198
A101: 264 | B101: BAS-RHIN | C101: 5101 | D101: SELESTAT | E101: 4109 | F101: MARCKOLSHEIM | G101: 3.0 | H101: 92 | I101: 177 | J101: 175 | K101: 167 | L101: 13 | M101: 8 | N101: 176 | O101: 194 | P101: 123 | Q101: 193 | R101: 227 | S101: 40 | T101: 125 | U101: 137 | V101: 78 | W101: 115 | X101: 180 | Y101: 93 | Z101: 70
A102: 264 | B102: BAS-RHIN | C102: 5060 | D102: HAGUENAU | E102: 4057 | F102: BISCHWILLER | G102: 6.8 | H102: 93 | I102: 166 | J102: 195 | K102: 116 | L102: 168 | M102: 143 | N102: 213 | O102: 228 | P102: 84 | Q102: 169 | R102: 177 | S102: 133 | T102: 20 | U102: 19 | V102: 39 | W102: 135 | X102: 168 | Y102: 53 | Z102: 232
A103: 264 | B103: MEURTHE ET MOSELLE MEUSE | C103: 27 | D103: PONT A MOUSSON | E103: 454535 | F103: PONT A MOUSSON CENTRALE | G103: 8.1 | H103: 94 | I103: 207 | J103: 195 | K103: 220 | L103: 36 | M103: 37 | N103: 77 | O103: 40 | P103: 153 | Q103: 128 | R103: 123 | S103: 119 | T103: 52 | U103: 50 | V103: 65 | W103: 107 | X103: 36 | Y103: 203 | Z103: 124
A104: 264 | B104: MOSELLE | C104: 45 | D104: METZ | E104: 457574 | F104: ROMBAS | G104: 4.2 | H104: 95 | I104: 75 | J104: 116 | K104: 40 | L104: 64 | M104: 62 | N104: 206 | O104: 222 | P104: 3 | Q104: 180 | R104: 176 | S104: 163 | T104: 104 | U104: 75 | V104: 199 | W104: 226 | X104: 223 | Y104: 167 | Z104: 218
A105: 264 | B105: MARNE-ARDENNES | C105: 11 | D105: REIMS | E105: 451370 | F105: EPERNAY VERRON | G105: 11.7 | H105: 96 | I105: 65 | J105: 70 | K105: 58 | L105: 59 | M105: 45 | N105: 110 | O105: 71 | P105: 215 | Q105: 217 | R105: 212 | S105: 166 | T105: 136 | U105: 111 | V105: 223 | W105: 148 | X105: 162 | Y105: 136 | Z105: 101
A106: 264 | B106: MOSELLE | C106: 42 | D106: MOSELLE EST | E106: 557523 | F106: PHALSBOURG | G106: 2.3 | H106: 97 | I106: 87 | J106: 40 | K106: 174 | L106: 231 | M106: 209 | N106: 85 | O106: 130 | P106: 259 | Q106: 30 | R106: 27 | S106: 108 | T106: 190 | U106: 189 | V106: 187 | W106: 88 | X106: 202 | Y106: 50 | Z106: 64
A107: 264 | B107: BAS-RHIN | C107: 5006 | D107: STRASBOURG | E107: 4024 | F107: STRASBOURG AUSTERLITZ | G107: 2.0 | H107: 98 | I107: 263 | J107: 258 | K107: 256 | L107: 18 | M107: 18 | N107: 41 | O107: 162 | P107: 147 | Q107: 18 | R107: 18 | S107: 81 | T107: 73 | U107: 128 | V107: 15 | W107: 109 | X107: 173 | Y107: 92 | Z107: 58
A108: 30 | B108: MEURTHE ET MOSELLE MEUSE | C108: 27 | D108: PONT A MOUSSON | E108: 554533 | F108: PONT A MOUSSON BREUIL | G108: 2.9 | H108: 99 | I108: 99 | J108: 123 | K108: 59 | L108: 140 | M108: 167 | N108: 67 | O108: 94 | P108: 103 | Q108: 154 | R108: 134 | S108: 209 | T108: 135 | U108: 138 | V108: 124 | W108: 83 | X108: 26 | Y108: 230 | Z108: 79
A109: 30 | B109: MOSELLE | C109: 45 | D109: METZ | E109: 457446 | F109: METZ SAINT LOUIS | G109: 7.3 | H109: 100 | I109: 102 | J109: 106 | K109: 82 | L109: 195 | M109: 181 | N109: 201 | O109: 124 | P109: 182 | Q109: 98 | R109: 84 | S109: 129 | T109: 107 | U109: 116 | V109: 81 | W109: 127 | X109: 124 | Y109: 119 | Z109: 152
A110: 30 | B110: BAS-RHIN | C110: 5006 | D110: STRASBOURG | E110: 4033 | F110: LA WANTZENAU | G110: 1.2 | H110: 101 | I110: 136 | J110: 183 | K110: 60 | L110: 258 | M110: 250 | N110: 140 | O110: 95 | P110: 258 | Q110: 31 | R110: 20 | S110: 210 | T110: 198 | U110: 185 | V110: 225 | W110: 17 | X110: 10 | Y110: 73 | Z110: 69
A111: 30 | B111: VOSGES | C111: 57 | D111: EPINAL | E111: 488281 | F111: ELOYES | G111: 4.8 | H111: 102 | I111: 84 | J111: 106 | K111: 56 | L111: 165 | M111: 164 | N111: 152 | O111: 201 | P111: 62 | Q111: 195 | R111: 178 | S111: 217 | T111: 94 | U111: 89 | V111: 122 | W111: 95 | X111: 60 | Y111: 115 | Z111: 163
A112: 30 | B112: MEURTHE ET MOSELLE MEUSE | C112: 31 | D112: VERDUN | E112: 455151 | F112: BAR LE DUC | G112: 9.7 | H112: 103 | I112: 113 | J112: 106 | K112: 105 | L112: 130 | M112: 129 | N112: 168 | O112: 82 | P112: 100 | Q112: 176 | R112: 145 | S112: 244 | T112: 121 | U112: 114 | V112: 134 | W112: 82 | X112: 120 | Y112: 63 | Z112: 97
A113: 30 | B113: MOSELLE | C113: 45 | D113: METZ | E113: 557712 | F113: WOIPPY BONNE FONTAINE | G113: 5.1 | H113: 104 | I113: 206 | J113: 159 | K113: 241 | L113: 86 | M113: 92 | N113: 20 | O113: 141 | P113: 217 | Q113: 190 | R113: 159 | S113: 247 | T113: 18 | U113: 26 | V113: 17 | W113: 146 | X113: 125 | Y113: 168 | Z113: 116
A114: 30 | B114: VOSGES | C114: 57 | D114: EPINAL | E114: 488561 | F114: REMIREMONT | G114: 6.4 | H114: 105 | I114: 103 | J114: 116 | K114: 78 | L114: 212 | M114: 198 | N114: 224 | O114: 182 | P114: 160 | Q114: 59 | R114: 64 | S114: 92 | T114: 117 | U114: 96 | V114: 169 | W114: 152 | X114: 113 | Y114: 207 | Z114: 78
A115: 30 | B115: MARNE-ARDENNES | C115: 11 | D115: REIMS | E115: 451336 | F115: TINQUEUX | G115: 5.9 | H115: 106 | I115: 126 | J115: 137 | K115: 89 | L115: 68 | M115: 81 | N115: 73 | O115: 55 | P115: 161 | Q115: 129 | R115: 124 | S115: 135 | T115: 231 | U115: 239 | V115: 162 | W115: 40 | X115: 16 | Y115: 189 | Z115: 77
A116: 30 | B116: BAS-RHIN | C116: 5101 | D116: SELESTAT | E116: 4101 | F116: SELESTAT CENTRE | G116: 8.5 | H116: 107 | I116: 229 | J116: 227 | K116: 224 | L116: 31 | M116: 28 | N116: 74 | O116: 104 | P116: 142 | Q116: 96 | R116: 99 | S116: 101 | T116: 55 | U116: 65 | V116: 48 | W116: 143 | X116: 111 | Y116: 138 | Z116: 161
A117: 30 | B117: MEURTHE ET MOSELLE MEUSE | C117: 31 | D117: VERDUN | E117: 555624 | F117: STENAY | G117: 3.0 | H117: 108 | I117: 169 | J117: 188 | K117: 136 | L117: 110 | M117: 101 | N117: 141 | O117: 194 | P117: 66 | Q117: 153 | R117: 168 | S117: 109 | T117: 65 | U117: 51 | V117: 127 | W117: 90 | X117: 167 | Y117: 43 | Z117: 109
A118: 30 | B118: AUBE HAUTE MARNE | C118: 21 | D118: CHAUMONT | E118: 410541 | F118: LANGRES | G118: 6.7 | H118: 109 | I118: 44 | J118: 20 | K118: 93 | L118: 178 | M118: 173 | N118: 199 | O118: 140 | P118: 104 | Q118: 218 | R118: 219 | S118: 138 | T118: 113 | U118: 122 | V118: 83 | W118: 161 | X118: 229 | Y118: 83 | Z118: 156
A119: 30 | B119: MEURTHE ET MOSELLE MEUSE | C119: 31 | D119: VERDUN | E119: 455456 | F119: MONTMEDY | G119: 1.8 | H119: 110 | I119: 157 | J119: 106 | K119: 211 | L119: 67 | M119: 85 | N119: 45 | O119: 147 | P119: 114 | Q119: 246 | R119: 240 | S119: 213 | T119: 56 | U119: 66 | V119: 52 | W119: 62 | X119: 45 | Y119: 171 | Z119: 26
A120: 30 | B120: AUBE HAUTE MARNE | C120: 14 | D120: TROYES | E120: 410571 | F120: ROMILLY ORMES | G120: 6.1 | H120: 111 | I120: 88 | J120: 137 | K120: 39 | L120: 51 | M120: 55 | N120: 59 | O120: 84 | P120: 158 | Q120: 220 | R120: 225 | S120: 130 | T120: 183 | U120: 187 | V120: 174 | W120: 91 | X120: 93 | Y120: 151 | Z120: 43
A121: 30 | B121: AUBE HAUTE MARNE | C121: 21 | D121: CHAUMONT | E121: 410566 | F121: CHAUMONT HOTEL DE VILLE | G121: 7.6 | H121: 112 | I121: 123 | J121: 70 | K121: 187 | L121: 96 | M121: 103 | N121: 91 | O121: 154 | P121: 63 | Q121: 159 | R121: 172 | S121: 122 | T121: 96 | U121: 110 | V121: 71 | W121: 167 | X121: 200 | Y121: 87 | Z121: 194
A122: 30 | B122: MOSELLE | C122: 45 | D122: METZ | E122: 557440 | F122: METZ MOZART | G122: 3.1 | H122: 113 | I122: 114 | J122: 51 | K122: 202 | L122: 200 | M122: 195 | N122: 183 | O122: 106 | P122: 196 | Q122: 28 | R122: 17 | S122: 206 | T122: 120 | U122: 108 | V122: 139 | W122: 229 | X122: 217 | Y122: 147 | Z122: 246
A123: 30 | B123: MOSELLE | C123: 45 | D123: METZ | E123: 557105 | F123: ARS SUR MOSELLE | G123: 4.2 | H123: 114 | I123: 139 | J123: 145 | K123: 114 | L123: 127 | M123: 127 | N123: 175 | O123: 118 | P123: 83 | Q123: 163 | R123: 151 | S123: 192 | T123: 147 | U123: 144 | V123: 153 | W123: 42 | X123: 43 | Y123: 48 | Z123: 96
A124: 30 | B124: MOSELLE | C124: 44 | D124: MOSELLE NORD | E124: 557303 | F124: FAMECK | G124: 3.8 | H124: 115 | I124: 77 | J124: 20 | K124: 195 | L124: 235 | M124: 225 | N124: 66 | O124: 253 | P124: 244 | Q124: 35 | R124: 21 | S124: 212 | T124: 220 | U124: 234 | V124: 159 | W124: 103 | X124: 164 | Y124: 59 | Z124: 131
A125: 30 | B125: MOSELLE | C125: 45 | D125: METZ | E125: 557434 | F125: MARLY | G125: 4.0 | H125: 116 | I125: 18 | J125: 20 | K125: 15 | L125: 158 | M125: 166 | N125: 198 | O125: 184 | P125: 11 | Q125: 137 | R125: 107 | S125: 232 | T125: 199 | U125: 182 | V125: 233 | W125: 256 | X125: 203 | Y125: 250 | Z125: 251
A126: 30 | B126: BAS-RHIN | C126: 5006 | D126: STRASBOURG | E126: 4054 | F126: STRASBOURG MONTAGNE VERTE | G126: 2.8 | H126: 117 | I126: 232 | J126: 242 | K126: 215 | L126: 163 | M126: 183 | N126: 18 | O126: 119 | P126: 238 | Q126: 229 | R126: 217 | S126: 229 | T126: 9 | U126: 18 | V126: 2 | W126: 63 | X126: 133 | Y126: 68 | Z126: 33
A127: 30 | B127: BAS-RHIN | C127: 5006 | D127: STRASBOURG | E127: 4006 | F127: STRASBOURG NEUDORF | G127: 9.0 | H127: 118 | I127: 158 | J127: 183 | K127: 115 | L127: 34 | M127: 53 | N127: 30 | O127: 52 | P127: 101 | Q127: 148 | R127: 155 | S127: 149 | T127: 80 | U127: 76 | V127: 88 | W127: 233 | X127: 153 | Y127: 244 | Z127: 196
A128: 30 | B128: MARNE-ARDENNES | C128: 2 | D128: CHARLEVILLE MEZIERES | E128: 508833 | F128: VILLERS SEMEUSE CORA | G128: 3.6 | H128: 119 | I128: 160 | J128: 168 | K128: 141 | L128: 207 | M128: 261 | N128: 36 | O128: 120 | P128: 59 | Q128: 74 | R128: 154 | S128: 11 | T128: 110 | U128: 115 | V128: 93 | W128: 69 | X128: 61 | Y128: 111 | Z128: 57
A129: 30 | B129: MEURTHE ET MOSELLE MEUSE | C129: 31 | D129: VERDUN | E129: 455678 | F129: VERDUN CENTRALE | G129: 11.1 | H129: 120 | I129: 42 | J129: 58 | K129: 26 | L129: 151 | M129: 180 | N129: 104 | O129: 28 | P129: 143 | Q129: 248 | R129: 250 | S129: 154 | T129: 180 | U129: 196 | V129: 131 | W129: 73 | X129: 29 | Y129: 182 | Z129: 75
A130: 30 | B130: MEURTHE ET MOSELLE MEUSE | C130: 26 | D130: NANCY | E130: 554486 | F130: NANCY POINT CENTRAL | G130: 5.0 | H130: 121 | I130: 98 | J130: 87 | K130: 102 | L130: 166 | M130: 210 | N130: 111 | O130: 75 | P130: 32 | Q130: 104 | R130: 95 | S130: 141 | T130: 192 | U130: 203 | V130: 140 | W130: 105 | X130: 79 | Y130: 237 | Z130: 22
A131: 30 | B131: MARNE-ARDENNES | C131: 11 | D131: REIMS | E131: 451350 | F131: REIMS CENTRE VILLE | G131: 7.6 | H131: 122 | I131: 183 | J131: 188 | K131: 168 | L131: 134 | M131: 113 | N131: 33 | O131: 35 | P131: 266 | Q131: 114 | R131: 118 | S131: 93 | T131: 157 | U131: 178 | V131: 100 | W131: 30 | X131: 25 | Y131: 94 | Z131: 48
A132: 30 | B132: VOSGES | C132: 55 | D132: SAINT DIE | E132: 488586 | F132: SAINT DIE | G132: 11.6 | H132: 123 | I132: 164 | J132: 183 | K132: 134 | L132: 122 | M132: 94 | N132: 145 | O132: 190 | P132: 179 | Q132: 36 | R132: 41 | S132: 82 | T132: 116 | U132: 81 | V132: 206 | W132: 215 | X132: 171 | Y132: 224 | Z132: 150
A133: 30 | B133: BAS-RHIN | C133: 5101 | D133: SELESTAT | E133: 4129 | F133: MARLENHEIM | G133: 1.9 | H133: 124 | I133: 151 | J133: 168 | K133: 127 | L133: 71 | M133: 61 | N133: 167 | O133: 209 | P133: 39 | Q133: 151 | R133: 187 | S133: 50 | T133: 176 | U133: 169 | V133: 193 | W133: 61 | X133: 96 | Y133: 34 | Z133: 106
A134: 30 | B134: AUBE HAUTE MARNE | C134: 21 | D134: CHAUMONT | E134: 451151 | F134: WASSY | G134: 2.0 | H134: 125 | I134: 197 | J134: 214 | K134: 174 | L134: 135 | M134: 149 | N134: 131 | O134: 75 | P134: 94 | Q134: 247 | R134: 267 | S134: 16 | T134: 31 | U134: 31 | V134: 66 | W134: 28 | X134: 233 | Y134: 4 | Z134: 28
A135: 30 | B135: VOSGES | C135: 55 | D135: SAINT DIE | E135: 588551 | F135: RAMBERVILLERS | G135: 4.0 | H135: 126 | I135: 13 | J135: 15 | K135: 21 | L135: 254 | M135: 246 | N135: 262 | O135: 138 | P135: 203 | Q135: 165 | R135: 140 | S135: 235 | T135: 172 | U135: 167 | V135: 181 | W135: 198 | X135: 230 | Y135: 100 | Z135: 236
A136: 30 | B136: MOSELLE | C136: 44 | D136: MOSELLE NORD | E136: 557352 | F136: HETTANGE GRANDE | G136: 4.3 | H136: 127 | I136: 256 | J136: 253 | K136: 242 | L136: 15 | M136: 11 | N136: 72 | O136: 170 | P136: 124 | Q136: 115 | R136: 96 | S136: 181 | T136: 87 | U136: 88 | V136: 80 | W136: 84 | X136: 159 | Y136: 11 | Z136: 209
A137: 30 | B137: MARNE-ARDENNES | C137: 2 | D137: CHARLEVILLE MEZIERES | E137: 508817 | F137: CHARLEVILLE MOHON | G137: 3.1 | H137: 128 | I137: 22 | J137: 31 | K137: 29 | L137: 241 | M137: 229 | N137: 194 | O137: 259 | P137: 159 | Q137: 212 | R137: 200 | S137: 189 | T137: 141 | U137: 155 | V137: 97 | W137: 149 | X137: 84 | Y137: 183 | Z137: 162
A138: 30 | B138: HAUT-RHIN | C138: 5130 | D138: COLMAR | E138: 4135 | F138: COLMAR SAINTE MARIE | G138: 7.3 | H138: 129 | I138: 154 | J138: 130 | K138: 177 | L138: 156 | M138: 136 | N138: 173 | O138: 125 | P138: 145 | Q138: 83 | R138: 94 | S138: 89 | T138: 70 | U138: 61 | V138: 111 | W138: 205 | X138: 141 | Y138: 231 | Z138: 154
A139: 30 | B139: MARNE-ARDENNES | C139: 6 | D139: CHALONS EN CHAMPAGNE | E139: 551354 | F139: VERTUS | G139: 2.5 | H139: 130 | I139: 4 | J139: 6 | K139: 4 | L139: 214 | M139: 162 | N139: 258 | O139: 181 | P139: 220 | Q139: 264 | R139: 268 | S139: 70 | T139: 133 | U139: 157 | V139: 63 | W139: 220 | X139: 216 | Y139: 205 | Z139: 146
A140: 30 | B140: VOSGES | C140: 57 | D140: EPINAL | E140: 588206 | F140: CHARMES | G140: 2.8 | H140: 131 | I140: 196 | J140: 188 | K140: 204 | L140: 157 | M140: 110 | N140: 88 | O140: 151 | P140: 250 | Q140: 62 | R140: 39 | S140: 228 | T140: 68 | U140: 99 | V140: 27 | W140: 140 | X140: 198 | Y140: 114 | Z140: 88
A141: 30 | B141: BAS-RHIN | C141: 5060 | D141: HAGUENAU | E141: 4095 | F141: SARRE UNION | G141: 5.0 | H141: 132 | I141: 118 | J141: 87 | K141: 155 | L141: 114 | M141: 104 | N141: 232 | O141: 123 | P141: 41 | Q141: 70 | R141: 62 | S141: 147 | T141: 222 | U141: 229 | V141: 192 | W141: 125 | X141: 192 | Y141: 46 | Z141: 201
A142: 30 | B142: BAS-RHIN | C142: 5006 | D142: STRASBOURG | E142: 4010 | F142: STRASBOURG MEINAU | G142: 4.0 | H142: 133 | I142: 235 | J142: 214 | K142: 249 | L142: 25 | M142: 48 | N142: 29 | O142: 51 | P142: 89 | Q142: 249 | R142: 264 | S142: 21 | T142: 19 | U142: 28 | V142: 14 | W142: 112 | X142: 236 | Y142: 42 | Z142: 104
A143: 30 | B143: BAS-RHIN | C143: 5006 | D143: STRASBOURG | E143: 4020 | F143: STRASBOURG ROBERTSAU | G143: 5.7 | H143: 134 | I143: 156 | J143: 137 | K143: 170 | L143: 56 | M143: 67 | N143: 133 | O143: 33 | P143: 95 | Q143: 80 | R143: 104 | S143: 52 | T143: 197 | U143: 190 | V143: 203 | W143: 150 | X143: 103 | Y143: 199 | Z143: 93
A144: 30 | B144: AUBE HAUTE MARNE | C144: 14 | D144: TROYES | E144: 510523 | F144: LA CHAPELLE ST LUC | G144: 5.7 | H144: 135 | I144: 198 | J144: 212 | K144: 181 | L144: 57 | M144: 49 | N144: 123 | O144: 153 | P144: 126 | Q144: 183 | R144: 205 | S144: 60 | T144: 41 | U144: 56 | V144: 18 | W144: 189 | X144: 182 | Y144: 137 | Z144: 187
A145: 30 | B145: HAUT-RHIN | C145: 5169 | D145: MULHOUSE | E145: 4180 | F145: RIEDISHEIM | G145: 3.1 | H145: 136 | I145: 143 | J145: 153 | K145: 108 | L145: 204 | M145: 220 | N145: 119 | O145: 83 | P145: 224 | Q145: 10 | R145: 24 | S145: 13 | T145: 154 | U145: 172 | V145: 110 | W145: 239 | X145: 221 | Y145: 187 | Z145: 243
A146: 30 | B146: AUBE HAUTE MARNE | C146: 21 | D146: CHAUMONT | E146: 551157 | F146: SAINT DIZIER EUROPE | G146: 2.8 | H146: 137 | I146: 138 | J146: 130 | K146: 138 | L146: 121 | M146: 150 | N146: 124 | O146: 27 | P146: 116 | Q146: 244 | R146: 253 | S146: 49 | T146: 112 | U146: 173 | V146: 21 | W146: 36 | X146: 75 | Y146: 79 | Z146: 18
A147: 30 | B147: MEURTHE ET MOSELLE MEUSE | C147: 31 | D147: VERDUN | E147: 554700 | F147: VILLERUPT | G147: 2.8 | H147: 138 | I147: 17 | J147: 17 | K147: 33 | L147: 60 | M147: 83 | N147: 55 | O147: 149 | P147: 53 | Q147: 231 | R147: 221 | S147: 226 | T147: 264 | U147: 264 | V147: 221 | W147: 179 | X147: 264 | Y147: 44 | Z147: 217
A148: 30 | B148: MEURTHE ET MOSELLE MEUSE | C148: 27 | D148: PONT A MOUSSON | E148: 554496 | F148: NANCY TROIS MAISONS | G148: 2.3 | H148: 139 | I148: 135 | J148: 127 | K148: 142 | L148: 119 | M148: 108 | N148: 160 | O148: 132 | P148: 130 | Q148: 204 | R148: 202 | S148: 156 | T148: 83 | U148: 100 | V148: 45 | W148: 134 | X148: 128 | Y148: 78 | Z148: 238
A149: 110 | B149: BAS-RHIN | C149: 5101 | D149: SELESTAT | E149: 4007 | F149: ILLKIRCH CENTRE | G149: 7.0 | H149: 140 | I149: 199 | J149: 153 | K149: 233 | L149: 14 | M149: 4 | N149: 147 | O149: 131 | P149: 268 | Q149: 198 | R149: 214 | S149: 83 | T149: 76 | U149: 73 | V149: 86 | W149: 217 | X149: 210 | Y149: 156 | Z149: 224
A150: 110 | B150: BAS-RHIN | C150: 5006 | D150: STRASBOURG | E150: 4027 | F150: SCHILTIGHEIM CENTRE | G150: 3.8 | H150: 141 | I150: 260 | J150: 175 | K150: 272 | L150: 38 | M150: 47 | N150: 12 | O150: 15 | P150: 256 | Q150: 32 | R150: 56 | S150: 31 | T150: 163 | U150: 186 | V150: 105 | W150: 35 | X150: 37 | Y150: 56 | Z150: 56
A151: 110 | B151: MEURTHE ET MOSELLE MEUSE | C151: 31 | D151: VERDUN | E151: 455566 | F151: REVIGNY SUR ORNAIN | G151: 3.9 | H151: 142 | I151: 46 | J151: 31 | K151: 82 | L151: 91 | M151: 99 | N151: 195 | O151: 211 | P151: 2 | Q151: 252 | R151: 246 | S151: 231 | T151: 182 | U151: 170 | V151: 205 | W151: 139 | X151: 197 | Y151: 77 | Z151: 173
A152: 110 | B152: VOSGES | C152: 57 | D152: EPINAL | E152: 488286 | F152: EPINAL ARISTIDE BRIAND | G152: 9.4 | H152: 143 | I152: 222 | J152: 221 | K152: 227 | L152: 40 | M152: 59 | N152: 32 | O152: 38 | P152: 167 | Q152: 106 | R152: 72 | S152: 199 | T152: 78 | U152: 77 | V152: 67 | W152: 175 | X152: 100 | Y152: 241 | Z152: 98
A153: 110 | B153: MOSELLE | C153: 44 | D153: MOSELLE NORD | E153: 557622 | F153: SIERCK LES BAINS | G153: 2.1 | H153: 144 | I153: 144 | J153: 101 | K153: 184 | L153: 116 | M153: 138 | N153: 143 | O153: 37 | P153: 90 | Q153: 144 | R153: 119 | S153: 215 | T153: 177 | U153: 193 | V153: 130 | W153: 98 | X153: 42 | Y153: 264 | Z153: 23
A154: 110 | B154: MOSELLE | C154: 44 | D154: MOSELLE NORD | E154: 457306 | F154: FLORANGE | G154: 3.9 | H154: 145 | I154: 262 | J154: 266 | K154: 247 | L154: 48 | M154: 46 | N154: 75 | O154: 109 | P154: 146 | Q154: 46 | R154: 50 | S154: 76 | T154: 62 | U154: 58 | V154: 85 | W154: 118 | X154: 74 | Y154: 130 | Z154: 175
A155: 110 | B155: AUBE HAUTE MARNE | C155: 14 | D155: TROYES | E155: 510570 | F155: NOGENT SUR SEINE | G155: 4.8 | H155: 146 | I155: 11 | J155: 6 | K155: 49 | L155: 245 | M155: 254 | N155: 248 | O155: 174 | P155: 61 | Q155: 208 | R155: 191 | S155: 217 | T155: 251 | U155: 223 | V155: 273 | W155: 128 | X155: 137 | Y155: 104 | Z155: 163
A156: 110 | B156: MOSELLE | C156: 42 | D156: MOSELLE EST | E156: 557210 | F156: CHATEAU SALINS | G156: 2.1 | H156: 147 | I156: 172 | J156: 137 | K156: 194 | L156: 144 | M156: 109 | N156: 112 | O156: 259 | P156: 197 | Q156: 68 | R156: 68 | S156: 106 | T156: 228 | U156: 211 | V156: 254 | W156: 60 | X156: 88 | Y156: 29 | Z156: 133
A157: 110 | B157: MARNE-ARDENNES | C157: 2 | D157: CHARLEVILLE MEZIERES | E157: 508839 | F157: GIVET | G157: 3.5 | H157: 148 | I157: 55 | J157: 28 | K157: 120 | L157: 161 | M157: 177 | N157: 116 | O157: 171 | P157: 60 | Q157: 197 | R157: 216 | S157: 74 | T157: 215 | U157: 218 | V157: 201 | W157: 142 | X157: 70 | Y157: 178 | Z157: 190
A158: 110 | B158: BAS-RHIN | C158: 5101 | D158: SELESTAT | E158: 4126 | F158: MUTZIG | G158: 3.0 | H158: 149 | I158: 193 | J158: 188 | K158: 193 | L158: 79 | M158: 86 | N158: 100 | O158: 46 | P158: 164 | Q158: 254 | R158: 261 | S158: 46 | T158: 128 | U158: 134 | V158: 115 | W158: 14 | X158: 34 | Y158: 13 | Z158: 25
A159: 110 | B159: AUBE HAUTE MARNE | C159: 14 | D159: TROYES | E159: 510520 | F159: SAINT ANDRE LES VERGERS | G159: 4.4 | H159: 150 | I159: 247 | J159: 221 | K159: 254 | L159: 21 | M159: 34 | N159: 26 | O159: 44 | P159: 121 | Q159: 117 | R159: 126 | S159: 78 | T159: 97 | U159: 117 | V159: 64 | W159: 132 | X159: 152 | Y159: 110 | Z159: 130
A160: 110 | B160: MOSELLE | C160: 45 | D160: METZ | E160: 557441 | F160: METZ PLAPPEVILLE | G160: 4.1 | H160: 151 | I160: 112 | J160: 101 | K160: 117 | L160: 233 | M160: 158 | N160: 259 | O160: 217 | P160: 245 | Q160: 66 | R160: 29 | S160: 261 | T160: 196 | U160: 165 | V160: 251 | W160: 126 | X160: 191 | Y160: 76 | Z160: 145
A161: 110 | B161: MOSELLE | C161: 45 | D161: METZ | E161: 557436 | F161: METZ CATHEDRALE | G161: 4.0 | H161: 152 | I161: 149 | J161: 123 | K161: 179 | L161: 206 | M161: 200 | N161: 54 | O161: 112 | P161: 253 | Q161: 107 | R161: 65 | S161: 243 | T161: 173 | U161: 195 | V161: 108 | W161: 75 | X161: 112 | Y161: 47 | Z161: 107
A162: 110 | B162: HAUT-RHIN | C162: 5130 | D162: COLMAR | E162: 4144 | F162: RIBEAUVILLE | G162: 3.0 | H162: 153 | I162: 214 | J162: 225 | K162: 213 | L162: 58 | M162: 42 | N162: 186 | O162: 162 | P162: 85 | Q162: 78 | R162: 112 | S162: 34 | T162: 45 | U162: 27 | V162: 208 | W162: 264 | X162: 196 | Y162: 268 | Z162: 258
A163: 110 | B163: MOSELLE | C163: 44 | D163: MOSELLE NORD | E163: 457158 | F163: YUTZ | G163: 4.8 | H163: 154 | I163: 230 | J163: 251 | K163: 183 | L163: 159 | M163: 141 | N163: 253 | O163: 173 | P163: 18 | Q163: 173 | R163: 153 | S163: 214 | T163: 40 | U163: 34 | V163: 76 | W163: 81 | X163: 107 | Y163: 61 | Z163: 114
A164: 110 | B164: MOSELLE | C164: 44 | D164: MOSELLE NORD | E164: 557628 | F164: TERVILLE | G164: 1.9 | H164: 155 | I164: 223 | J164: 195 | K164: 243 | L164: 129 | M164: 151 | N164: 48 | O164: 157 | P164: 120 | Q164: 233 | R164: 230 | S164: 203 | T164: 108 | U164: 105 | V164: 120 | W164: 11 | X164: 19 | Y164: 14 | Z164: 49
A165: 110 | B165: MARNE-ARDENNES | C165: 11 | D165: REIMS | E165: 451308 | F165: REIMS SAINT THOMAS | G165: 8.4 | H165: 156 | I165: 217 | J165: 195 | K165: 239 | L165: 132 | M165: 115 | N165: 63 | O165: 103 | P165: 241 | Q165: 116 | R165: 91 | S165: 193 | T165: 204 | U165: 215 | V165: 151 | W165: 19 | X165: 21 | Y165: 33 | Z165: 76
A166: 110 | B166: MOSELLE | C166: 42 | D166: MOSELLE EST | E166: 457258 | F166: DIEUZE | G166: 3.1 | H166: 157 | I166: 45 | J166: 31 | K166: 71 | L166: 149 | M166: 168 | N166: 183 | O166: 133 | P166: 12 | Q166: 210 | R166: 193 | S166: 206 | T166: 167 | U166: 161 | V166: 163 | W166: 253 | X166: 245 | Y166: 221 | Z166: 246
A167: 110 | B167: VOSGES | C167: 57 | D167: EPINAL | E167: 488291 | F167: EPINAL AVRINSART | G167: 1.8 | H167: 158 | I167: 28 | J167: 53 | K167: 14 | L167: 257 | M167: 243 | N167: 189 | O167: 61 | P167: 257 | Q167: 171 | R167: 133 | S167: 254 | T167: 208 | U167: 220 | V167: 179 | W167: 130 | X167: 177 | Y167: 133 | Z167: 60
A168: 110 | B168: MEURTHE ET MOSELLE MEUSE | C168: 27 | D168: PONT A MOUSSON | E168: 554184 | F168: BRIEY CENTRALE | G168: 4.8 | H168: 159 | I168: 180 | J168: 145 | K168: 201 | L168: 194 | M168: 224 | N168: 144 | O168: 86 | P168: 110 | Q168: 26 | R168: 23 | S168: 140 | T168: 212 | U168: 208 | V168: 213 | W168: 97 | X168: 57 | Y168: 128 | Z168: 149
A169: 110 | B169: MOSELLE | C169: 42 | D169: MOSELLE EST | E169: 457617 | F169: SARREGUEMINES CENTRALE | G169: 7.9 | H169: 160 | I169: 194 | J169: 153 | K169: 226 | L169: 77 | M169: 54 | N169: 148 | O169: 136 | P169: 183 | Q169: 120 | R169: 147 | S169: 54 | T169: 126 | U169: 113 | V169: 171 | W169: 190 | X169: 160 | Y169: 176 | Z169: 166
A170: 110 | B170: MOSELLE | C170: 44 | D170: MOSELLE NORD | E170: 557307 | F170: FONTOY | G170: 2.7 | H170: 161 | I170: 29 | J170: 47 | K170: 27 | L170: 223 | M170: 241 | N170: 237 | O170: 259 | P170: 6 | Q170: 134 | R170: 105 | S170: 239 | T170: 235 | U170: 258 | V170: 118 | W170: 216 | X170: 98 | Y170: 214 | Z170: 252
A171: 110 | B171: BAS-RHIN | C171: 5101 | D171: SELESTAT | E171: 4116 | F171: MOLSHEIM | G171: 5.1 | H171: 162 | I171: 211 | J171: 195 | K171: 230 | L171: 172 | M171: 72 | N171: 155 | O171: 180 | P171: 270 | Q171: 17 | R171: 14 | S171: 79 | T171: 179 | U171: 176 | V171: 184 | W171: 136 | X171: 155 | Y171: 116 | Z171: 132
A172: 110 | B172: BAS-RHIN | C172: 5060 | D172: HAGUENAU | E172: 4030 | F172: BRUMATH | G172: 6.0 | H172: 163 | I172: 218 | J172: 227 | K172: 212 | L172: 84 | M172: 50 | N172: 181 | O172: 111 | P172: 211 | Q172: 38 | R172: 63 | S172: 27 | T172: 156 | U172: 133 | V172: 210 | W172: 184 | X172: 184 | Y172: 150 | Z172: 155
A173: 110 | B173: BAS-RHIN | C173: 5101 | D173: SELESTAT | E173: 4127 | F173: ROSHEIM | G173: 1.5 | H173: 164 | I173: 163 | J173: 168 | K173: 148 | L173: 49 | M173: 33 | N173: 99 | O173: 193 | P173: 170 | Q173: 162 | R173: 218 | S173: 23 | T173: 105 | U173: 109 | V173: 101 | W173: 260 | X173: 264 | Y173: 246 | Z173: 184
A174: 110 | B174: MARNE-ARDENNES | C174: 2 | D174: CHARLEVILLE MEZIERES | E174: 408806 | F174: SEDAN LA HALLE | G174: 8.6 | H174: 165 | I174: 52 | J174: 62 | K174: 45 | L174: 192 | M174: 192 | N174: 244 | O174: 156 | P174: 50 | Q174: 201 | R174: 182 | S174: 224 | T174: 244 | U174: 232 | V174: 256 | W174: 124 | X174: 114 | Y174: 155 | Z174: 105
A175: 110 | B175: MEURTHE ET MOSELLE MEUSE | C175: 27 | D175: PONT A MOUSSON | E175: 554196 | F175: CHAMPIGNEULLES | G175: 3.6 | H175: 166 | I175: 74 | J175: 53 | K175: 109 | L175: 226 | M175: 219 | N175: 239 | O175: 98 | P175: 177 | Q175: 177 | R175: 198 | S175: 62 | T175: 153 | U175: 177 | V175: 94 | W175: 197 | X175: 68 | Y175: 254 | Z175: 215
A176: 110 | B176: VOSGES | C176: 57 | D176: EPINAL | E176: 488451 | F176: MIRECOURT | G176: 5.0 | H176: 167 | I176: 248 | J176: 261 | K176: 209 | L176: 117 | M176: 152 | N176: 49 | O176: 54 | P176: 117 | Q176: 39 | R176: 25 | S176: 211 | T176: 92 | U176: 92 | V176: 90 | W176: 165 | X176: 97 | Y176: 210 | Z176: 128
A177: 110 | B177: MARNE-ARDENNES | C177: 6 | D177: CHALONS EN CHAMPAGNE | E177: 451166 | F177: VITRY LE FRANCOIS | G177: 7.3 | H177: 168 | I177: 97 | J177: 79 | K177: 119 | L177: 115 | M177: 145 | N177: 146 | O177: 36 | P177: 47 | Q177: 207 | R177: 234 | S177: 56 | T177: 213 | U177: 206 | V177: 218 | W177: 158 | X177: 72 | Y177: 248 | Z177: 86
A178: 110 | B178: MARNE-ARDENNES | C178: 6 | D178: CHALONS EN CHAMPAGNE | E178: 451381 | F178: SEZANNE CHAMP BENOIST | G178: 6.7 | H178: 169 | I178: 130 | J178: 130 | K178: 112 | L178: 100 | M178: 126 | N178: 118 | O178: 39 | P178: 67 | Q178: 196 | R178: 197 | S178: 128 | T178: 189 | U178: 168 | V178: 235 | W178: 168 | X178: 139 | Y178: 190 | Z178: 112
A179: 110 | B179: HAUT-RHIN | C179: 5130 | D179: COLMAR | E179: 4141 | F179: HORBOURG WIHR | G179: 6.0 | H179: 170 | I179: 185 | J179: 210 | K179: 160 | L179: 222 | M179: 188 | N179: 209 | O179: 194 | P179: 233 | Q179: 64 | R179: 52 | S179: 186 | T179: 98 | U179: 78 | V179: 157 | W179: 183 | X179: 151 | Y179: 173 | Z179: 170
A180: 110 | B180: MOSELLE | C180: 44 | D180: MOSELLE NORD | E180: 457449 | F180: METZERVISSE | G180: 3.1 | H180: 171 | I180: 167 | J180: 153 | K180: 173 | L180: 215 | M180: 236 | N180: 243 | O180: 244 | P180: 8 | Q180: 81 | R180: 40 | S180: 265 | T180: 71 | U180: 49 | V180: 163 | W180: 244 | X180: 247 | Y180: 223 | Z180: 191
A181: 110 | B181: MEURTHE ET MOSELLE MEUSE | C181: 27 | D181: PONT A MOUSSON | E181: 554516 | F181: PAGNY SUR MOSELLE | G181: 3.0 | H181: 172 | I181: 72 | J181: 58 | K181: 95 | L181: 250 | M181: 245 | N181: 251 | O181: 242 | P181: 140 | Q181: 24 | R181: 10 | S181: 252 | T181: 260 | U181: 263 | V181: 167 | W181: 202 | X181: 224 | Y181: 132 | Z181: 206
A182: 110 | B182: BAS-RHIN | C182: 5006 | D182: STRASBOURG | E182: 4023 | F182: STRASBOURG VOSGES | G182: 3.1 | H182: 173 | I182: 270 | J182: 258 | K182: 270 | L182: 19 | M182: 23 | N182: 21 | O182: 62 | P182: 222 | Q182: 55 | R182: 87 | S182: 35 | T182: 119 | U182: 112 | V182: 128 | W182: 68 | X182: 59 | Y182: 125 | Z182: 47
A183: 110 | B183: MOSELLE | C183: 42 | D183: MOSELLE EST | E183: 457614 | F183: SARREBOURG | G183: 9.3 | H183: 174 | I183: 148 | J183: 95 | K183: 210 | L183: 150 | M183: 106 | N183: 191 | O183: 185 | P183: 190 | Q183: 161 | R183: 166 | S183: 134 | T183: 137 | U183: 101 | V183: 243 | W183: 181 | X183: 220 | Y183: 90 | Z183: 204
A184: 110 | B184: MOSELLE | C184: 45 | D184: METZ | E184: 557224 | F184: CLOUANGE | G184: 3.0 | H184: 175 | I184: 127 | J184: 130 | K184: 104 | L184: 232 | M184: 234 | N184: 165 | O184: 241 | P184: 134 | Q184: 250 | R184: 242 | S184: 201 | T184: 57 | U184: 67 | V184: 54 | W184: 117 | X184: 130 | Y184: 70 | Z184: 205
A185: 110 | B185: BAS-RHIN | C185: 5101 | D185: SELESTAT | E185: 4111 | F185: BENFELD | G185: 4.4 | H185: 176 | I185: 261 | J185: 232 | K185: 265 | L185: 105 | M185: 58 | N185: 193 | O185: 259 | P185: 137 | Q185: 52 | R185: 51 | S185: 96 | T185: 33 | U185: 32 | V185: 68 | W185: 235 | X185: 256 | Y185: 141 | Z185: 235
A186: 110 | B186: VOSGES | C186: 55 | D186: SAINT DIE | E186: 588386 | F186: LE THILLOT | G186: 3.0 | H186: 177 | I186: 132 | J186: 145 | K186: 99 | L186: 193 | M186: 194 | N186: 254 | O186: 242 | P186: 16 | Q186: 214 | R186: 213 | S186: 141 | T186: 34 | U186: 22 | V186: 200 | W186: 263 | X186: 264 | Y186: 212 | Z186: 258
A187: 110 | B187: MEURTHE ET MOSELLE MEUSE | C187: 26 | D187: NANCY | E187: 554296 | F187: ESSEY LES NANCY | G187: 4.0 | H187: 178 | I187: 116 | J187: 101 | K187: 131 | L187: 154 | M187: 121 | N187: 180 | O187: 162 | P187: 169 | Q187: 215 | R187: 206 | S187: 178 | T187: 186 | U187: 175 | V187: 202 | W187: 129 | X187: 69 | Y187: 198 | Z187: 118
A188: 110 | B188: MARNE-ARDENNES | C188: 6 | D188: CHALONS EN CHAMPAGNE | E188: 551128 | F188: SAINTE MENEHOULD | G188: 4.0 | H188: 179 | I188: 92 | J188: 79 | K188: 103 | L188: 108 | M188: 130 | N188: 169 | O188: 134 | P188: 4 | Q188: 84 | R188: 100 | S188: 66 | T188: 224 | U188: 212 | V188: 238 | W188: 270 | X188: 225 | Y188: 269 | Z188: 264
A189: 110 | B189: AUBE HAUTE MARNE | C189: 14 | D189: TROYES | E189: 510522 | F189: TROYES CHARTREUX | G189: 3.0 | H189: 180 | I189: 224 | J189: 212 | K189: 238 | L189: 73 | M189: 73 | N189: 68 | O189: 194 | P189: 118 | Q189: 188 | R189: 165 | S189: 219 | T189: 49 | U189: 42 | V189: 102 | W189: 194 | X189: 235 | Y189: 180 | Z189: 109
A190: 110 | B190: BAS-RHIN | C190: 5060 | D190: HAGUENAU | E190: 4067 | F190: PFAFFENHOFFEN | G190: 3.0 | H190: 181 | I190: 73 | J190: 79 | K190: 64 | L190: 253 | M190: 258 | N190: 226 | O190: 127 | P190: 174 | Q190: 85 | R190: 54 | S190: 235 | T190: 200 | U190: 199 | V190: 188 | W190: 230 | X190: 249 | Y190: 209 | Z190: 134
A191: 110 | B191: MOSELLE | C191: 42 | D191: MOSELLE EST | E191: 557668 | F191: VALMONT | G191: 4.6 | H191: 182 | I191: 20 | J191: 20 | K191: 22 | L191: 248 | M191: 253 | N191: 241 | O191: 256 | P191: 82 | Q191: 186 | R191: 162 | S191: 227 | T191: 238 | U191: 235 | V191: 240 | W191: 237 | X191: 214 | Y191: 177 | Z191: 250
A192: 110 | B192: AUBE HAUTE MARNE | C192: 14 | D192: TROYES | E192: 410512 | F192: TROYES ZOLA | G192: 4.3 | H192: 183 | I192: 246 | J192: 188 | K192: 262 | L192: 112 | M192: 117 | N192: 93 | O192: 142 | P192: 98 | Q192: 102 | R192: 102 | S192: 97 | T192: 122 | U192: 130 | V192: 82 | W192: 92 | X192: 131 | Y192: 65 | Z192: 141
A193: 110 | B193: HAUT-RHIN | C193: 5130 | D193: COLMAR | E193: 4139 | F193: INGERSHEIM | G193: 8.2 | H193: 184 | I193: 26 | J193: 47 | K193: 23 | L193: 211 | M193: 172 | N193: 227 | O193: 235 | P193: 208 | Q193: 213 | R193: 196 | S193: 194 | T193: 161 | U193: 139 | V193: 209 | W193: 267 | X193: 261 | Y193: 259 | Z193: 254
A194: 110 | B194: MOSELLE | C194: 45 | D194: METZ | E194: 557559 | F194: REMILLY | G194: 4.0 | H194: 185 | I194: 215 | J194: 214 | K194: 222 | L194: 72 | M194: 95 | N194: 94 | O194: 139 | P194: 36 | Q194: 136 | R194: 117 | S194: 197 | T194: 143 | U194: 148 | V194: 125 | W194: 122 | X194: 166 | Y194: 107 | Z194: 87
A195: 110 | B195: MOSELLE | C195: 42 | D195: MOSELLE EST | E195: 457583 | F195: SAINT AVOLD | G195: 8.0 | H195: 186 | I195: 225 | J195: 195 | K195: 245 | L195: 104 | M195: 107 | N195: 153 | O195: 87 | P195: 54 | Q195: 45 | R195: 31 | S195: 152 | T195: 169 | U195: 180 | V195: 123 | W195: 196 | X195: 187 | Y195: 158 | Z195: 202
A196: 110 | B196: BAS-RHIN | C196: 5006 | D196: STRASBOURG | E196: 4028 | F196: BISCHHEIM | G196: 3.5 | H196: 187 | I196: 161 | J196: 123 | K196: 197 | L196: 66 | M196: 56 | N196: 95 | O196: 172 | P196: 148 | Q196: 211 | R196: 199 | S196: 187 | T196: 134 | U196: 146 | V196: 89 | W196: 227 | X196: 178 | Y196: 201 | Z196: 211
A197: 110 | B197: MOSELLE | C197: 45 | D197: METZ | E197: 557445 | F197: METZ SAINT LIVIER | G197: 3.1 | H197: 188 | I197: 70 | J197: 75 | K197: 63 | L197: 230 | M197: 239 | N197: 257 | O197: 167 | P197: 21 | Q197: 142 | R197: 121 | S197: 204 | T197: 257 | U197: 244 | V197: 259 | W197: 119 | X197: 86 | Y197: 228 | Z197: 42
A198: 110 | B198: MEURTHE ET MOSELLE MEUSE | C198: 27 | D198: PONT A MOUSSON | E198: 554381 | F198: LAXOU ARISTIDE BRIAND | G198: 4.4 | H198: 189 | I198: 186 | J198: 195 | K198: 169 | L198: 136 | M198: 119 | N198: 139 | O198: 105 | P198: 184 | Q198: 174 | R198: 211 | S198: 37 | T198: 77 | U198: 74 | V198: 77 | W198: 232 | X198: 140 | Y198: 267 | Z198: 159
A199: 160 | B199: MOSELLE | C199: 45 | D199: METZ | E199: 557439 | F199: METZ POMPIDOU | G199: 3.9 | H199: 190 | I199: 101 | J199: 62 | K199: 150 | L199: 208 | M199: 217 | N199: 132 | O199: 92 | P199: 210 | Q199: 103 | R199: 108 | S199: 72 | T199: 247 | U199: 240 | V199: 236 | W199: 178 | X199: 189 | Y199: 213 | Z199: 52
A200: 160 | B200: MOSELLE | C200: 42 | D200: MOSELLE EST | E200: 457435 | F200: MERLEBACH | G200: 4.4 | H200: 191 | I200: 191 | J200: 195 | K200: 180 | L200: 99 | M200: 114 | N200: 97 | O200: 126 | P200: 40 | Q200: 226 | R200: 224 | S200: 177 | T200: 99 | U200: 87 | V200: 138 | W200: 156 | X200: 231 | Y200: 71 | Z200: 180
A201: 160 | B201: AUBE HAUTE MARNE | C201: 21 | D201: CHAUMONT | E201: 451156 | F201: SAINT DIZIER CENTRE | G201: 7.0 | H201: 192 | I201: 209 | J201: 159 | K201: 244 | L201: 141 | M201: 139 | N201: 103 | O201: 203 | P201: 96 | Q201: 138 | R201: 135 | S201: 158 | T201: 106 | U201: 98 | V201: 126 | W201: 157 | X201: 170 | Y201: 122 | Z201: 139
A202: 160 | B202: BAS-RHIN | C202: 5006 | D202: STRASBOURG | E202: 4045 | F202: STRASBOURG FRANCS BOURGEOIS | G202: 5.7 | H202: 193 | I202: 233 | J202: 232 | K202: 229 | L202: 176 | M202: 157 | N202: 220 | O202: 237 | P202: 71 | Q202: 5 | R202: 2 | S202: 234 | T202: 256 | U202: 241 | V202: 264 | W202: 151 | X202: 145 | Y202: 112 | Z202: 171
A203: 160 | B203: MEURTHE ET MOSELLE MEUSE | C203: 27 | D203: PONT A MOUSSON | E203: 554506 | F203: CHALIGNY NEUVES MAISONS | G203: 4.0 | H203: 194 | I203: 258 | J203: 244 | K203: 259 | L203: 47 | M203: 88 | N203: 81 | O203: 16 | P203: 57 | Q203: 111 | R203: 98 | S203: 164 | T203: 221 | U203: 236 | V203: 143 | W203: 27 | X203: 9 | Y203: 239 | Z203: 13
A204: 160 | B204: BAS-RHIN | C204: 5060 | D204: HAGUENAU | E204: 4031 | F204: TRUCHTERSHEIM | G204: 3.0 | H204: 195 | I204: 12 | J204: 28 | K204: 1 | L204: 262 | M204: 248 | N204: 270 | O204: 239 | P204: 193 | Q204: 181 | R204: 164 | S204: 198 | T204: 236 | U204: 204 | V204: 272 | W204: 251 | X204: 183 | Y204: 256 | Z204: 240
... 79 more rows

Sheet AG_EVOL_CLASS
B1: Accueil | D1: BAROMETRE BDD - AGENCES
D2: EVOLUTION CLASSEMENT 2020 / 2019
D3: =ACCUEIL!F7 -> 2021-02-28
H8: CLASSEMENT Général 2020 | I8: CLASSEMENT Général 2019 | J8: Evolution
A9: eds | B9: Direction | C9: eds | D9: Territoire | E9: eds | F9: Agence | G9: ="ETP perf "&DATEMAJ!$C$28 -> ETP perf 31-janv | H9: Rang | I9: Rang
A10: 50 | B10: BAS-RHIN | C10: 5006 | D10: STRASBOURG | E10: 4010 | F10: STRASBOURG MEINAU | G10: 2.6 | H10: 36 | I10: 284 | J10: 248
A11: 50 | B11: VOSGES | C11: 57 | D11: EPINAL | E11: 488561 | F11: REMIREMONT | G11: 6.2 | H11: 42 | I11: 270 | J11: 228
A12: 50 | B12: BAS-RHIN | C12: 5060 | D12: HAGUENAU | E12: 4079 | F12: SOULTZ SOUS FORETS | G12: 2.4 | H12: 56 | I12: 277 | J12: 221
A13: 50 | B13: MARNE-ARDENNES | C13: 6 | D13: CHALONS EN CHAMPAGNE | E13: 451115 | F13: MOURMELON suippes | G13: 3.0 | H13: 12 | I13: 232 | J13: 220
A14: 50 | B14: MOSELLE | C14: 44 | D14: MOSELLE NORD | E14: 557508 | F14: NILVANGE | G14: 2.6 | H14: 3 | I14: 220 | J14: 217
A15: 50 | B15: MEURTHE ET MOSELLE MEUSE | C15: 27 | D15: PONT A MOUSSON | E15: 454651 | F15: TOUL REPUBLIQUE | G15: 10.9 | H15: 1 | I15: 192 | J15: 191
A16: 50 | B16: MEURTHE ET MOSELLE MEUSE | C16: 26 | D16: NANCY | E16: 454671 | F16: VANDOEUVRE LES NANCY | G16: 4.4 | H16: 87 | I16: 276 | J16: 189
A17: 50 | B17: MEURTHE ET MOSELLE MEUSE | C17: 31 | D17: VERDUN | E17: 455456 | F17: MONTMEDY | G17: 1.7 | H17: 101 | I17: 265 | J17: 164
A18: 50 | B18: MOSELLE | C18: 44 | D18: MOSELLE NORD | E18: 457306 | F18: FLORANGE | G18: 2.8 | H18: 90 | I18: 253 | J18: 163
A19: 50 | B19: MARNE-ARDENNES | C19: 11 | D19: REIMS | E19: 451361 | F19: PIERRY LECLERC | G19: 1.9 | H19: 16 | I19: 178 | J19: 162
A20: 50 | B20: BAS-RHIN | C20: 5006 | D20: STRASBOURG | E20: 4045 | F20: STRASBOURG FRANCS BOURGEOIS | G20: 5.9 | H20: 112 | I20: 273 | J20: 161
A21: 50 | B21: MARNE-ARDENNES | C21: 6 | D21: CHALONS EN CHAMPAGNE | E21: 551128 | F21: SAINTE MENEHOULD | G21: 3.3 | H21: 94 | I21: 254 | J21: 160
A22: 50 | B22: MEURTHE ET MOSELLE MEUSE | C22: 26 | D22: NANCY | E22: 554491 | F22: NANCY SAINT SEBASTIEN | G22: 3.3 | H22: 48 | I22: 208 | J22: 160
A23: 50 | B23: MEURTHE ET MOSELLE MEUSE | C23: 26 | D23: NANCY | E23: 554471 | F23: NANCY JEAN JAURES | G23: 1.9 | H23: 93 | I23: 251 | J23: 158
A24: 50 | B24: MARNE-ARDENNES | C24: 2 | D24: CHARLEVILLE MEZIERES | E24: 508815 | F24: CARIGNAN | G24: 2.9 | H24: 40 | I24: 194 | J24: 154
A25: 50 | B25: VOSGES | C25: 57 | D25: EPINAL | E25: 588501 | F25: NEUFCHATEAU | G25: 4.7 | H25: 61 | I25: 214 | J25: 153
A26: 50 | B26: MARNE-ARDENNES | C26: 2 | D26: CHARLEVILLE MEZIERES | E26: 508839 | F26: GIVET | G26: 2.9 | H26: 25 | I26: 176 | J26: 151
A27: 50 | B27: MARNE-ARDENNES | C27: 11 | D27: REIMS | E27: 551349 | F27: REIMS SAINT REMI | G27: 2.8 | H27: 9 | I27: 158 | J27: 149
A28: 50 | B28: VOSGES | C28: 55 | D28: SAINT DIE | E28: 588551 | F28: RAMBERVILLERS | G28: 3.7 | H28: 82 | I28: 227 | J28: 145
A29: 50 | B29: MEURTHE ET MOSELLE MEUSE | C29: 26 | D29: NANCY | E29: 554356 | F29: JARVILLE LA MALGRANGE | G29: 3.6 | H29: 105 | I29: 244 | J29: 139
A30: 50 | B30: VOSGES | C30: 57 | D30: EPINAL | E30: 488706 | F30: VITTEL | G30: 3.3 | H30: 91 | I30: 229 | J30: 138
A31: 50 | B31: BAS-RHIN | C31: 5006 | D31: STRASBOURG | E31: 4047 | F31: STRASBOURG CRONENBOURG | G31: 5.6 | H31: 52 | I31: 189 | J31: 137
A32: 262 | B32: HAUT-RHIN | C32: 5130 | D32: COLMAR | E32: 4162 | F32: ENSISHEIM | G32: 4.5 | H32: 80 | I32: 212 | J32: 132
A33: 262 | B33: VOSGES | C33: 55 | D33: SAINT DIE | E33: 588587 | F33: SAINT DIE CATHEDRALE | G33: 4.0 | H33: 64 | I33: 195 | J33: 131
A34: 262 | B34: MEURTHE ET MOSELLE MEUSE | C34: 27 | D34: PONT A MOUSSON | E34: 454535 | F34: PONT A MOUSSON CENTRALE | G34: 7.6 | H34: 119 | I34: 246 | J34: 127
A35: 262 | B35: MARNE-ARDENNES | C35: 11 | D35: REIMS | E35: 551367 | F35: AY CHAMPAGNE | G35: 2.7 | H35: 55 | I35: 175 | J35: 120
A36: 262 | B36: BAS-RHIN | C36: 5101 | D36: SELESTAT | E36: 4110 | F36: SELESTAT OUEST | G36: 1.9 | H36: 69 | I36: 185 | J36: 116
A37: 262 | B37: BAS-RHIN | C37: 5006 | D37: STRASBOURG | E37: 4006 | F37: STRASBOURG NEUDORF | G37: 8.4 | H37: 146 | I37: 262 | J37: 116
A38: 262 | B38: MOSELLE | C38: 42 | D38: MOSELLE EST | E38: 457308 | F38: FORBACH CENTRALE | G38: 9.5 | H38: 122 | I38: 237 | J38: 115
A39: 262 | B39: BAS-RHIN | C39: 5060 | D39: HAGUENAU | E39: 4073 | F39: SCHWEIGHOUSE SUR MODER | G39: 2.4 | H39: 185 | I39: 290 | J39: 105
A40: 262 | B40: BAS-RHIN | C40: 5101 | D40: SELESTAT | E40: 4107 | F40: VILLE | G40: 2.1 | H40: 145 | I40: 249 | J40: 104
A41: 262 | B41: BAS-RHIN | C41: 5006 | D41: STRASBOURG | E41: 4020 | F41: STRASBOURG ROBERTSAU | G41: 4.7 | H41: 153 | I41: 257 | J41: 104
A42: 262 | B42: MEURTHE ET MOSELLE MEUSE | C42: 27 | D42: PONT A MOUSSON | E42: 554376 | F42: LAXOU LA SAPINIERE | G42: 3.0 | H42: 172 | I42: 275 | J42: 103
A43: 262 | B43: MOSELLE | C43: 42 | D43: MOSELLE EST | E43: 557305 | F43: FAULQUEMONT | G43: 2.9 | H43: 98 | I43: 201 | J43: 103
A44: 262 | B44: MEURTHE ET MOSELLE MEUSE | C44: 31 | D44: VERDUN | E44: 555624 | F44: STENAY | G44: 2.7 | H44: 143 | I44: 245 | J44: 102
A45: 262 | B45: MOSELLE | C45: 45 | D45: METZ | E45: 557712 | F45: WOIPPY BONNE FONTAINE | G45: 5.7 | H45: 180 | I45: 281 | J45: 101
A46: 262 | B46: MEURTHE ET MOSELLE MEUSE | C46: 26 | D46: NANCY | E46: 454426 | F46: LUNEVILLE CARNOT | G46: 8.5 | H46: 74 | I46: 174 | J46: 100
A47: 262 | B47: BAS-RHIN | C47: 5101 | D47: SELESTAT | E47: 4113 | F47: BARR | G47: 2.9 | H47: 46 | I47: 145 | J47: 99
A48: 262 | B48: HAUT-RHIN | C48: 5130 | D48: COLMAR | E48: 4139 | F48: INGERSHEIM | G48: 8.3 | H48: 140 | I48: 239 | J48: 99
A49: 262 | B49: HAUT-RHIN | C49: 5130 | D49: COLMAR | E49: 4144 | F49: RIBEAUVILLE | G49: 2.8 | H49: 203 | I49: 301 | J49: 98
A50: 262 | B50: BAS-RHIN | C50: 5006 | D50: STRASBOURG | E50: 4054 | F50: STRASBOURG MONTAGNE VERTE | G50: 2.7 | H50: 197 | I50: 294 | J50: 97
A51: 262 | B51: MARNE-ARDENNES | C51: 2 | D51: CHARLEVILLE MEZIERES | E51: 408814 | F51: VRIGNE AUX BOIS | G51: 0.6 | H51: 96 | I51: 193 | J51: 97
A52: 262 | B52: MEURTHE ET MOSELLE MEUSE | C52: 26 | D52: NANCY | E52: 554486 | F52: NANCY POINT CENTRAL | G52: 4.7 | H52: 113 | I52: 210 | J52: 97
A53: 262 | B53: MOSELLE | C53: 45 | D53: METZ | E53: 557432 | F53: MAIZIERES LES METZ | G53: 3.8 | H53: 123 | I53: 217 | J53: 94
A54: 262 | B54: BAS-RHIN | C54: 5006 | D54: STRASBOURG | E54: 4043 | F54: STRASBOURG HALLES | G54: 8.4 | H54: 26 | I54: 119 | J54: 93
A55: 262 | B55: MEURTHE ET MOSELLE MEUSE | C55: 31 | D55: VERDUN | E55: 455151 | F55: BAR LE DUC | G55: 9.8 | H55: 109 | I55: 197 | J55: 88
A56: 262 | B56: BAS-RHIN | C56: 5006 | D56: STRASBOURG | E56: 4039 | F56: REICHSTETT | G56: 1.4 | H56: 216 | I56: 303 | J56: 87
A57: 262 | B57: VOSGES | C57: 57 | D57: EPINAL | E57: 588206 | F57: CHARMES | G57: 2.7 | H57: 134 | I57: 221 | J57: 87
A58: 262 | B58: MARNE-ARDENNES | C58: 6 | D58: CHALONS EN CHAMPAGNE | E58: 451120 | F58: SARRY | G58: 2.5 | H58: 20 | I58: 106 | J58: 86
A59: 262 | B59: MARNE-ARDENNES | C59: 11 | D59: REIMS | E59: 451308 | F59: REIMS SAINT THOMAS | G59: 8.2 | H59: 132 | I59: 215 | J59: 83
A60: 262 | B60: BAS-RHIN | C60: 5006 | D60: STRASBOURG | E60: 4028 | F60: BISCHHEIM | G60: 2.9 | H60: 182 | I60: 263 | J60: 81
A61: 262 | B61: BAS-RHIN | C61: 5006 | D61: STRASBOURG | E61: 4024 | F61: STRASBOURG AUSTERLITZ | G61: 2.7 | H61: 213 | I61: 291 | J61: 78
A62: 262 | B62: VOSGES | C62: 55 | D62: SAINT DIE | E62: 588186 | F62: BRUYERES | G62: 2.7 | H62: 78 | I62: 155 | J62: 77
A63: 262 | B63: HAUT-RHIN | C63: 5130 | D63: COLMAR | E63: 4130 | F63: COLMAR REPUBLIQUE | G63: 7.9 | H63: 196 | I63: 272 | J63: 76
A64: 262 | B64: VOSGES | C64: 57 | D64: EPINAL | E64: 488286 | F64: EPINAL ARISTIDE BRIAND | G64: 8.8 | H64: 148 | I64: 223 | J64: 75
A65: 262 | B65: MARNE-ARDENNES | C65: 6 | D65: CHALONS EN CHAMPAGNE | E65: 451381 | F65: SEZANNE CHAMP BENOIST | G65: 6.4 | H65: 156 | I65: 230 | J65: 74
A66: 262 | B66: AUBE HAUTE MARNE | C66: 21 | D66: CHAUMONT | E66: 551157 | F66: SAINT DIZIER EUROPE | G66: 2.5 | H66: 54 | I66: 127 | J66: 73
A67: 262 | B67: HAUT-RHIN | C67: 5130 | D67: COLMAR | E67: 4148 | F67: ORBEY | G67: 3.1 | H67: 206 | I67: 279 | J67: 73
A68: 262 | B68: MARNE-ARDENNES | C68: 2 | D68: CHARLEVILLE MEZIERES | E68: 408806 | F68: SEDAN LA HALLE | G68: 8.7 | H68: 58 | I68: 129 | J68: 71
A69: 262 | B69: AUBE HAUTE MARNE | C69: 14 | D69: TROYES | E69: 510511 | F69: TROYES BROSSOLETTE | G69: 3.2 | H69: 81 | I69: 148 | J69: 67
A70: 262 | B70: BAS-RHIN | C70: 5101 | D70: SELESTAT | E70: 4120 | F70: WASSELONNE | G70: 2.5 | H70: 138 | I70: 205 | J70: 67
A71: 262 | B71: MOSELLE | C71: 44 | D71: MOSELLE NORD | E71: 557113 | F71: AUDUN LE TICHE | G71: 2.6 | H71: 166 | I71: 231 | J71: 65
A72: 262 | B72: MEURTHE ET MOSELLE MEUSE | C72: 31 | D72: VERDUN | E72: 455231 | F72: COMMERCY | G72: 4.5 | H72: 135 | I72: 199 | J72: 64
A73: 262 | B73: MEURTHE ET MOSELLE MEUSE | C73: 31 | D73: VERDUN | E73: 555679 | F73: VERDUN MAZEL | G73: 3.8 | H73: 62 | I73: 126 | J73: 64
A74: 262 | B74: MARNE-ARDENNES | C74: 2 | D74: CHARLEVILLE MEZIERES | E74: 408822 | F74: CHARLEVILLE MEZIERES | G74: 4.2 | H74: 4 | I74: 67 | J74: 63
A75: 262 | B75: VOSGES | C75: 57 | D75: EPINAL | E75: 588216 | F75: CHATENOIS | G75: 1.0 | H75: 243 | I75: 306 | J75: 63
A76: 262 | B76: VOSGES | C76: 57 | D76: EPINAL | E76: 588396 | F76: LE VAL D AJOL | G76: 2.8 | H76: 128 | I76: 191 | J76: 63
A77: 262 | B77: MOSELLE | C77: 45 | D77: METZ | E77: 557436 | F77: METZ CATHEDRALE | G77: 4.9 | H77: 103 | I77: 165 | J77: 62
A78: 262 | B78: MEURTHE ET MOSELLE MEUSE | C78: 27 | D78: PONT A MOUSSON | E78: 554686 | F78: VEZELISE | G78: 1.7 | H78: 111 | I78: 171 | J78: 60
A79: 262 | B79: VOSGES | C79: 55 | D79: SAINT DIE | E79: 488246 | F79: CORNIMONT LA BRESSE | G79: 2.9 | H79: 51 | I79: 109 | J79: 58
A80: 262 | B80: VOSGES | C80: 55 | D80: SAINT DIE | E80: 488586 | F80: SAINT DIE | G80: 10.4 | H80: 125 | I80: 183 | J80: 58
A81: 262 | B81: HAUT-RHIN | C81: 5130 | D81: COLMAR | E81: 4147 | F81: GUEBWILLER | G81: 5.9 | H81: 235 | I81: 292 | J81: 57
A82: 262 | B82: MARNE-ARDENNES | C82: 2 | D82: CHARLEVILLE MEZIERES | E82: 508820 | F82: VOUZIERS | G82: 2.8 | H82: 60 | I82: 117 | J82: 57
A83: 262 | B83: MEURTHE ET MOSELLE MEUSE | C83: 31 | D83: VERDUN | E83: 455298 | F83: ETAIN | G83: 1.9 | H83: 85 | I83: 142 | J83: 57
A84: 264 | B84: MEURTHE ET MOSELLE MEUSE | C84: 31 | D84: VERDUN | E84: 554700 | F84: VILLERUPT | G84: 2.7 | H84: 59 | I84: 116 | J84: 57
A85: 264 | B85: BAS-RHIN | C85: 5060 | D85: HAGUENAU | E85: 4071 | F85: WISSEMBOURG | G85: 8.7 | H85: 84 | I85: 140 | J85: 56
A86: 264 | B86: MEURTHE ET MOSELLE MEUSE | C86: 27 | D86: PONT A MOUSSON | E86: 554533 | F86: PONT A MOUSSON BREUIL | G86: 3.5 | H86: 151 | I86: 206 | J86: 55
A87: 264 | B87: AUBE HAUTE MARNE | C87: 14 | D87: TROYES | E87: 510513 | F87: TROYES 1er MAI | G87: 4.2 | H87: 221 | I87: 274 | J87: 53
A88: 264 | B88: VOSGES | C88: 57 | D88: EPINAL | E88: 488291 | F88: EPINAL AVRINSART | G88: 1.8 | H88: 160 | I88: 213 | J88: 53
A89: 264 | B89: MOSELLE | C89: 45 | D89: METZ | E89: 557441 | F89: METZ PLAPPEVILLE | G89: 2.6 | H89: 129 | I89: 181 | J89: 52
A90: 264 | B90: BAS-RHIN | C90: 5101 | D90: SELESTAT | E90: 4101 | F90: SELESTAT CENTRE | G90: 8.0 | H90: 245 | I90: 296 | J90: 51
A91: 264 | B91: HAUT-RHIN | C91: 5169 | D91: MULHOUSE | E91: 4181 | F91: WITTELSHEIM | G91: 4.0 | H91: 100 | I91: 150 | J91: 50
A92: 264 | B92: MOSELLE | C92: 45 | D92: METZ | E92: 457574 | F92: ROMBAS | G92: 3.3 | H92: 86 | I92: 136 | J92: 50
A93: 264 | B93: MOSELLE | C93: 44 | D93: MOSELLE NORD | E93: 557660 | F93: UCKANGE JEANNE D ARC | G93: 1.9 | H93: 14 | I93: 64 | J93: 50
A94: 264 | B94: MEURTHE ET MOSELLE MEUSE | C94: 26 | D94: NANCY | E94: 554296 | F94: ESSEY LES NANCY | G94: 3.7 | H94: 231 | I94: 278 | J94: 47
A95: 264 | B95: MEURTHE ET MOSELLE MEUSE | C95: 27 | D95: PONT A MOUSSON | E95: 554506 | F95: CHALIGNY NEUVES MAISONS | G95: 2.7 | H95: 191 | I95: 236 | J95: 45
A96: 264 | B96: MOSELLE | C96: 45 | D96: METZ | E96: 557459 | F96: MOULINS LES METZ | G96: 2.8 | H96: 167 | I96: 209 | J96: 42
A97: 264 | B97: MARNE-ARDENNES | C97: 6 | D97: CHALONS EN CHAMPAGNE | E97: 451101 | F97: CHALONS VIVIERS | G97: 9.7 | H97: 18 | I97: 58 | J97: 40
A98: 264 | B98: HAUT-RHIN | C98: 5130 | D98: COLMAR | E98: 4143 | F98: MUNSTER | G98: 5.4 | H98: 195 | I98: 234 | J98: 39
A99: 264 | B99: MOSELLE | C99: 45 | D99: METZ | E99: 557447 | F99: METZ SAINT MAXIMIN | G99: 3.0 | H99: 10 | I99: 48 | J99: 38
A100: 264 | B100: AUBE HAUTE MARNE | C100: 14 | D100: TROYES | E100: 510556 | F100: BAR SUR SEINE | G100: 3.8 | H100: 188 | I100: 225 | J100: 37
A101: 264 | B101: BAS-RHIN | C101: 5101 | D101: SELESTAT | E101: 4104 | F101: ERSTEIN | G101: 4.6 | H101: 266 | I101: 302 | J101: 36
A102: 264 | B102: AUBE HAUTE MARNE | C102: 14 | D102: TROYES | E102: 510522 | F102: TROYES CHARTREUX | G102: 2.6 | H102: 229 | I102: 264 | J102: 35
A103: 264 | B103: MARNE-ARDENNES | C103: 6 | D103: CHALONS EN CHAMPAGNE | E103: 451166 | F103: VITRY LE FRANCOIS | G103: 6.4 | H103: 193 | I103: 228 | J103: 35
A104: 264 | B104: MEURTHE ET MOSELLE MEUSE | C104: 27 | D104: PONT A MOUSSON | E104: 554321 | F104: FROUARD | G104: 2.6 | H104: 83 | I104: 118 | J104: 35
A105: 264 | B105: MOSELLE | C105: 42 | D105: MOSELLE EST | E105: 557250 | F105: CREUTZWALD | G105: 3.0 | H105: 76 | I105: 111 | J105: 35
A106: 264 | B106: MOSELLE | C106: 42 | D106: MOSELLE EST | E106: 457435 | F106: MERLEBACH | G106: 3.4 | H106: 236 | I106: 271 | J106: 35
A107: 264 | B107: MARNE-ARDENNES | C107: 2 | D107: CHARLEVILLE MEZIERES | E107: 408862 | F107: REVIN | G107: 3.9 | H107: 37 | I107: 71 | J107: 34
A108: 264 | B108: BAS-RHIN | C108: 5101 | D108: SELESTAT | E108: 4126 | F108: MUTZIG | G108: 2.6 | H108: 65 | I108: 98 | J108: 33
A109: 264 | B109: VOSGES | C109: 57 | D109: EPINAL | E109: 588716 | F109: XERTIGNY | G109: 2.6 | H109: 45 | I109: 78 | J109: 33
A110: 264 | B110: AUBE HAUTE MARNE | C110: 14 | D110: TROYES | E110: 410510 | F110: TROYES GAMBETTA | G110: 9.7 | H110: 99 | I110: 130 | J110: 31
A111: 264 | B111: HAUT-RHIN | C111: 5130 | D111: COLMAR | E111: 4153 | F111: ROUFFACH | G111: 3.7 | H111: 133 | I111: 164 | J111: 31
A112: 30 | B112: HAUT-RHIN | C112: 5169 | D112: MULHOUSE | E112: 4188 | F112: PFASTATT | G112: 3.1 | H112: 274 | I112: 305 | J112: 31
A113: 30 | B113: MEURTHE ET MOSELLE MEUSE | C113: 31 | D113: VERDUN | E113: 455678 | F113: VERDUN CENTRALE | G113: 9.2 | H113: 95 | I113: 125 | J113: 30
A114: 30 | B114: BAS-RHIN | C114: 5101 | D114: SELESTAT | E114: 4127 | F114: ROSHEIM | G114: 1.4 | H114: 260 | I114: 288 | J114: 28
A115: 30 | B115: MARNE-ARDENNES | C115: 2 | D115: CHARLEVILLE MEZIERES | E115: 508802 | F115: CHARLEVILLE NEVERS | G115: 3.6 | H115: 35 | I115: 63 | J115: 28
A116: 30 | B116: MOSELLE | C116: 45 | D116: METZ | E116: 457453 | F116: MONTIGNY CENTRALE | G116: 7.7 | H116: 77 | I116: 105 | J116: 28
A117: 30 | B117: MEURTHE ET MOSELLE MEUSE | C117: 27 | D117: PONT A MOUSSON | E117: 554416 | F117: LUDRES | G117: 3.9 | H117: 19 | I117: 45 | J117: 26
A118: 30 | B118: MOSELLE | C118: 42 | D118: MOSELLE EST | E118: 457345 | F118: GROSBLIEDERSTROFF | G118: 2.5 | H118: 120 | I118: 146 | J118: 26
A119: 30 | B119: MARNE-ARDENNES | C119: 11 | D119: REIMS | E119: 551369 | F119: DAMERY | G119: 2.9 | H119: 6 | I119: 31 | J119: 25
A120: 30 | B120: MOSELLE | C120: 45 | D120: METZ | E120: 557105 | F120: ARS SUR MOSELLE | G120: 3.8 | H120: 70 | I120: 95 | J120: 25
A121: 30 | B121: MEURTHE ET MOSELLE MEUSE | C121: 26 | D121: NANCY | E121: 454171 | F121: BLAMONT | G121: 1.1 | H121: 174 | I121: 198 | J121: 24
A122: 30 | B122: MOSELLE | C122: 45 | D122: METZ | E122: 557178 | F122: BOULAY | G122: 3.0 | H122: 244 | I122: 268 | J122: 24
A123: 30 | B123: AUBE HAUTE MARNE | C123: 14 | D123: TROYES | E123: 510530 | F123: ARCIS SUR AUBE | G123: 3.7 | H123: 246 | I123: 269 | J123: 23
A124: 30 | B124: HAUT-RHIN | C124: 5169 | D124: MULHOUSE | E124: 4183 | F124: WITTENHEIM | G124: 2.4 | H124: 257 | I124: 280 | J124: 23
A125: 30 | B125: VOSGES | C125: 55 | D125: SAINT DIE | E125: 588316 | F125: FRAIZE | G125: 4.0 | H125: 179 | I125: 202 | J125: 23
A126: 30 | B126: MOSELLE | C126: 42 | D126: MOSELLE EST | E126: 457165 | F126: BITCHE | G126: 3.3 | H126: 63 | I126: 85 | J126: 22
A127: 30 | B127: BAS-RHIN | C127: 5006 | D127: STRASBOURG | E127: 4023 | F127: STRASBOURG VOSGES | G127: 3.3 | H127: 277 | I127: 298 | J127: 21
A128: 30 | B128: BAS-RHIN | C128: 5060 | D128: HAGUENAU | E128: 4080 | F128: WOERTH | G128: 2.3 | H128: 275 | I128: 295 | J128: 20
A129: 30 | B129: VOSGES | C129: 55 | D129: SAINT DIE | E129: 488556 | F129: RAON L ETAPE | G129: 3.5 | H129: 73 | I129: 93 | J129: 20
A130: 30 | B130: MEURTHE ET MOSELLE MEUSE | C130: 27 | D130: PONT A MOUSSON | E130: 554196 | F130: CHAMPIGNEULLES | G130: 3.2 | H130: 89 | I130: 107 | J130: 18
A131: 30 | B131: MOSELLE | C131: 44 | D131: MOSELLE NORD | E131: 557307 | F131: FONTOY | G131: 3.1 | H131: 57 | I131: 75 | J131: 18
A132: 30 | B132: VOSGES | C132: 57 | D132: EPINAL | E132: 488451 | F132: MIRECOURT | G132: 4.6 | H132: 268 | I132: 286 | J132: 18
A133: 30 | B133: BAS-RHIN | C133: 5060 | D133: HAGUENAU | E133: 4082 | F133: BOUXWILLER | G133: 2.8 | H133: 118 | I133: 133 | J133: 15
A134: 30 | B134: HAUT-RHIN | C134: 5169 | D134: MULHOUSE | E134: 4174 | F134: MULHOUSE DORNACH | G134: 5.5 | H134: 278 | I134: 293 | J134: 15
A135: 30 | B135: MEURTHE ET MOSELLE MEUSE | C135: 27 | D135: PONT A MOUSSON | E135: 554381 | F135: LAXOU ARISTIDE BRIAND | G135: 4.4 | H135: 227 | I135: 242 | J135: 15
A136: 30 | B136: MOSELLE | C136: 44 | D136: MOSELLE NORD | E136: 457350 | F136: HAYANGE | G136: 9.0 | H136: 237 | I136: 252 | J136: 15
A137: 30 | B137: BAS-RHIN | C137: 5101 | D137: SELESTAT | E137: 4111 | F137: BENFELD | G137: 3.7 | H137: 273 | I137: 287 | J137: 14
A138: 30 | B138: MEURTHE ET MOSELLE MEUSE | C138: 26 | D138: NANCY | E138: 554636 | F138: TOMBLAINE | G138: 2.7 | H138: 34 | I138: 47 | J138: 13
A139: 30 | B139: AUBE HAUTE MARNE | C139: 14 | D139: TROYES | E139: 410512 | F139: TROYES ZOLA | G139: 4.5 | H139: 228 | I139: 240 | J139: 12
A140: 30 | B140: BAS-RHIN | C140: 5006 | D140: STRASBOURG | E140: 4029 | F140: SCHILTIGHEIM KLEBER | G140: 2.3 | H140: 116 | I140: 128 | J140: 12
A141: 30 | B141: MOSELLE | C141: 45 | D141: METZ | E141: 457443 | F141: METZ REPUBLIQUE | G141: 3.9 | H141: 30 | I141: 40 | J141: 10
A142: 30 | B142: MARNE-ARDENNES | C142: 2 | D142: CHARLEVILLE MEZIERES | E142: 408801 | F142: CHARLEVILLE JEAN JAURES | G142: 8.5 | H142: 71 | I142: 80 | J142: 9
A143: 30 | B143: MARNE-ARDENNES | C143: 11 | D143: REIMS | E143: 451370 | F143: EPERNAY VERRON | G143: 10.6 | H143: 41 | I143: 50 | J143: 9
A144: 30 | B144: MEURTHE ET MOSELLE MEUSE | C144: 26 | D144: NANCY | E144: 454481 | F144: NANCY PLACE DOMBASLE | G144: 10.4 | H144: 7 | I144: 16 | J144: 9
A145: 30 | B145: MEURTHE ET MOSELLE MEUSE | C145: 27 | D145: PONT A MOUSSON | E145: 554531 | F145: POMPEY | G145: 2.5 | H145: 13 | I145: 22 | J145: 9
A146: 30 | B146: MOSELLE | C146: 45 | D146: METZ | E146: 557224 | F146: CLOUANGE | G146: 3.3 | H146: 232 | I146: 241 | J146: 9
A147: 30 | B147: MOSELLE | C147: 44 | D147: MOSELLE NORD | E147: 457180 | F147: BOUSSE | G147: 2.3 | H147: 210 | I147: 219 | J147: 9
A148: 30 | B148: VOSGES | C148: 55 | D148: SAINT DIE | E148: 488326 | F148: GERARDMER | G148: 5.1 | H148: 17 | I148: 26 | J148: 9
A149: 30 | B149: BAS-RHIN | C149: 5060 | D149: HAGUENAU | E149: 4067 | F149: PFAFFENHOFFEN | G149: 2.9 | H149: 141 | I149: 149 | J149: 8
A150: 30 | B150: HAUT-RHIN | C150: 5169 | D150: MULHOUSE | E150: 4178 | F150: SAINT LOUIS | G150: 7.7 | H150: 247 | I150: 255 | J150: 8
A151: 30 | B151: MARNE-ARDENNES | C151: 11 | D151: REIMS | E151: 551365 | F151: DORMANS | G151: 2.7 | H151: 28 | I151: 36 | J151: 8
A152: 30 | B152: MEURTHE ET MOSELLE MEUSE | C152: 27 | D152: PONT A MOUSSON | E152: 554357 | F152: JOEUF MAIRIE | G152: 4.4 | H152: 211 | I152: 218 | J152: 7
A153: 30 | B153: BAS-RHIN | C153: 5101 | D153: SELESTAT | E153: 4129 | F153: MARLENHEIM | G153: 2.5 | H153: 205 | I153: 211 | J153: 6
A154: 110 | B154: HAUT-RHIN | C154: 5130 | D154: COLMAR | E154: 4134 | F154: COLMAR SAINT JOSEPH | G154: 0.9 | H154: 283 | I154: 289 | J154: 6
A155: 110 | B155: HAUT-RHIN | C155: 5169 | D155: MULHOUSE | E155: 4169 | F155: MULHOUSE ROOSEVELT | G155: 5.7 | H155: 276 | I155: 282 | J155: 6
A156: 110 | B156: MARNE-ARDENNES | C156: 11 | D156: REIMS | E156: 551314 | F156: FISMES | G156: 2.4 | H156: 43 | I156: 49 | J156: 6
A157: 110 | B157: VOSGES | C157: 57 | D157: EPINAL | E157: 488288 | F157: EPINAL LEOPOLD BOURG | G157: 1.9 | H157: 2 | I157: 8 | J157: 6
A158: 110 | B158: AUBE HAUTE MARNE | C158: 14 | D158: TROYES | E158: 510570 | F158: NOGENT SUR SEINE | G158: 3.8 | H158: 39 | I158: 43 | J158: 4
A159: 110 | B159: BAS-RHIN | C159: 5060 | D159: HAGUENAU | E159: 4031 | F159: TRUCHTERSHEIM | G159: 3.0 | H159: 29 | I159: 33 | J159: 4
A160: 110 | B160: BAS-RHIN | C160: 5060 | D160: HAGUENAU | E160: 4060 | F160: HAGUENAU HOUBLON | G160: 9.4 | H160: 224 | I160: 226 | J160: 2
A161: 110 | B161: BAS-RHIN | C161: 5006 | D161: STRASBOURG | E161: 4048 | F161: STRASBOURG KOENIGSHOFFEN | G161: 2.8 | H161: 281 | I161: 283 | J161: 2
A162: 110 | B162: VOSGES | C162: 55 | D162: SAINT DIE | E162: 488616 | F162: SENONES | G162: 1.9 | H162: 66 | I162: 66 | J162: 0
A163: 110 | B163: AUBE HAUTE MARNE | C163: 14 | D163: TROYES | E163: 510520 | F163: SAINT ANDRE LES VERGERS | G163: 4.5 | H163: 248 | I163: 247 | J163: -1
A164: 110 | B164: BAS-RHIN | C164: 5101 | D164: SELESTAT | E164: 4119 | F164: OBERNAI | G164: 5.3 | H164: 249 | I164: 248 | J164: -1
A165: 110 | B165: MOSELLE | C165: 42 | D165: MOSELLE EST | E165: 557458 | F165: MORHANGE | G165: 2.3 | H165: 170 | I165: 169 | J165: -1
A166: 110 | B166: MOSELLE | C166: 44 | D166: MOSELLE NORD | E166: 457632 | F166: THIONVILLE CENTRALE | G166: 10.8 | H166: 225 | I166: 224 | J166: -1
A167: 110 | B167: VOSGES | C167: 57 | D167: EPINAL | E167: 588336 | F167: GOLBEY | G167: 4.0 | H167: 158 | I167: 157 | J167: -1
A168: 110 | B168: AUBE HAUTE MARNE | C168: 21 | D168: CHAUMONT | E168: 410560 | F168: BOURBONNE LES BAINS | G168: 1.9 | H168: 27 | I168: 25 | J168: -2
A169: 110 | B169: BAS-RHIN | C169: 5060 | D169: HAGUENAU | E169: 4087 | F169: SAVERNE | G169: 7.7 | H169: 175 | I169: 173 | J169: -2
A170: 110 | B170: MARNE-ARDENNES | C170: 11 | D170: REIMS | E170: 551310 | F170: REIMS CHATILLONS | G170: 3.6 | H170: 5 | I170: 3 | J170: -2
A171: 110 | B171: MARNE-ARDENNES | C171: 11 | D171: REIMS | E171: 551306 | F171: REIMS SAINT MARCEAUX | G171: 4.8 | H171: 23 | I171: 21 | J171: -2
A172: 110 | B172: MEURTHE ET MOSELLE MEUSE | C172: 31 | D172: VERDUN | E172: 455566 | F172: REVIGNY SUR ORNAIN | G172: 2.9 | H172: 110 | I172: 108 | J172: -2
A173: 110 | B173: MARNE-ARDENNES | C173: 6 | D173: CHALONS EN CHAMPAGNE | E173: 551354 | F173: VERTUS | G173: 2.8 | H173: 15 | I173: 12 | J173: -3
A174: 110 | B174: MARNE-ARDENNES | C174: 11 | D174: REIMS | E174: 551340 | F174: BETHENY | G174: 3.0 | H174: 8 | I174: 5 | J174: -3
A175: 110 | B175: MARNE-ARDENNES | C175: 11 | D175: REIMS | E175: 551309 | F175: REIMS EUROPE | G175: 2.8 | H175: 21 | I175: 17 | J175: -4
A176: 110 | B176: MARNE-ARDENNES | C176: 11 | D176: REIMS | E176: 551341 | F176: REIMS JEAN JAURES | G176: 4.1 | H176: 67 | I176: 62 | J176: -5
A177: 110 | B177: BAS-RHIN | C177: 5060 | D177: HAGUENAU | E177: 4030 | F177: BRUMATH | G177: 7.3 | H177: 241 | I177: 235 | J177: -6
A178: 110 | B178: BAS-RHIN | C178: 5060 | D178: HAGUENAU | E178: 4066 | F178: NIEDERBRONN LES BAINS | G178: 5.7 | H178: 169 | I178: 163 | J178: -6
A179: 110 | B179: HAUT-RHIN | C179: 5169 | D179: MULHOUSE | E179: 4184 | F179: ILLZACH | G179: 3.2 | H179: 267 | I179: 260 | J179: -7
A180: 110 | B180: MARNE-ARDENNES | C180: 6 | D180: CHALONS EN CHAMPAGNE | E180: 551330 | F180: MONTMIRAIL | G180: 3.1 | H180: 31 | I180: 24 | J180: -7
A181: 110 | B181: MARNE-ARDENNES | C181: 2 | D181: CHARLEVILLE MEZIERES | E181: 508833 | F181: VILLERS SEMEUSE CORA | G181: 2.9 | H181: 11 | I181: 4 | J181: -7
A182: 110 | B182: BAS-RHIN | C182: 5060 | D182: HAGUENAU | E182: 4095 | F182: SARRE UNION | G182: 4.2 | H182: 161 | I182: 152 | J182: -9
A183: 110 | B183: MARNE-ARDENNES | C183: 11 | D183: REIMS | E183: 551305 | F183: REIMS HIPPODROME | G183: 3.7 | H183: 44 | I183: 35 | J183: -9
A184: 110 | B184: MOSELLE | C184: 45 | D184: METZ | E184: 557444 | F184: METZ SAINT JULIEN | G184: 6.0 | H184: 49 | I184: 39 | J184: -10
A185: 110 | B185: BAS-RHIN | C185: 5101 | D185: SELESTAT | E185: 4121 | F185: SCHIRMECK | G185: 3.0 | H185: 126 | I185: 115 | J185: -11
A186: 110 | B186: BAS-RHIN | C186: 5060 | D186: HAGUENAU | E186: 4092 | F186: HOCHFELDEN | G186: 2.4 | H186: 114 | I186: 102 | J186: -12
A187: 110 | B187: MOSELLE | C187: 42 | D187: MOSELLE EST | E187: 557503 | F187: NEUNKIRCH | G187: 2.7 | H187: 53 | I187: 41 | J187: -12
A188: 110 | B188: BAS-RHIN | C188: 5006 | D188: STRASBOURG | E188: 4027 | F188: SCHILTIGHEIM CENTRE | G188: 3.1 | H188: 217 | I188: 204 | J188: -13
A189: 110 | B189: MARNE-ARDENNES | C189: 11 | D189: REIMS | E189: 451336 | F189: TINQUEUX | G189: 5.2 | H189: 32 | I189: 18 | J189: -14
A190: 110 | B190: VOSGES | C190: 55 | D190: SAINT DIE | E190: 488346 | F190: GRANGES AUMONTZEY | G190: 1.8 | H190: 24 | I190: 10 | J190: -14
A191: 110 | B191: AUBE HAUTE MARNE | C191: 21 | D191: CHAUMONT | E191: 410541 | F191: LANGRES | G191: 6.7 | H191: 88 | I191: 73 | J191: -15
A192: 110 | B192: MOSELLE | C192: 42 | D192: MOSELLE EST | E192: 457163 | F192: BEHREN LES FORBACH | G192: 2.4 | H192: 47 | I192: 32 | J192: -15
A193: 110 | B193: HAUT-RHIN | C193: 5130 | D193: COLMAR | E193: 4164 | F193: SAINTE MARIE AUX MINES | G193: 2.8 | H193: 272 | I193: 256 | J193: -16
A194: 110 | B194: MARNE-ARDENNES | C194: 6 | D194: CHALONS EN CHAMPAGNE | E194: 551103 | F194: FAGNIERES LECLERC | G194: 2.7 | H194: 22 | I194: 6 | J194: -16
A195: 110 | B195: MARNE-ARDENNES | C195: 11 | D195: REIMS | E195: 451350 | F195: REIMS CENTRE VILLE | G195: 8.0 | H195: 136 | I195: 120 | J195: -16
A196: 110 | B196: MEURTHE ET MOSELLE MEUSE | C196: 26 | D196: NANCY | E196: 454161 | F196: BAYON | G196: 1.3 | H196: 233 | I196: 216 | J196: -17
A197: 110 | B197: MEURTHE ET MOSELLE MEUSE | C197: 27 | D197: PONT A MOUSSON | E197: 554257 | F197: DIEULOUARD | G197: 3.5 | H197: 164 | I197: 147 | J197: -17
A198: 110 | B198: MOSELLE | C198: 45 | D198: METZ | E198: 557434 | F198: MARLY | G198: 3.8 | H198: 33 | I198: 15 | J198: -18
A199: 110 | B199: MOSELLE | C199: 45 | D199: METZ | E199: 557612 | F199: SAINTE MARIE AUX CHENES | G199: 3.8 | H199: 152 | I199: 134 | J199: -18
A200: 110 | B200: HAUT-RHIN | C200: 5169 | D200: MULHOUSE | E200: 4194 | F200: THANN | G200: 8.5 | H200: 226 | I200: 207 | J200: -19
A201: 110 | B201: MOSELLE | C201: 42 | D201: MOSELLE EST | E201: 557353 | F201: HOMBOURG HAUT | G201: 2.3 | H201: 262 | I201: 243 | J201: -19
A202: 110 | B202: AUBE HAUTE MARNE | C202: 14 | D202: TROYES | E202: 410571 | F202: ROMILLY ORMES | G202: 6.6 | H202: 157 | I202: 137 | J202: -20
A203: 110 | B203: AUBE HAUTE MARNE | C203: 14 | D203: TROYES | E203: 510523 | F203: LA CHAPELLE ST LUC | G203: 5.7 | H203: 194 | I203: 172 | J203: -22
A204: 110 | B204: MOSELLE | C204: 44 | D204: MOSELLE NORD | E204: 457634 | F204: THIONVILLE LA MILLIAIRE | G204: 1.5 | H204: 280 | I204: 258 | J204: -22
... 89 more rows

Sheet AG_FICHE
A1: Accueil
A2: BAROMETRE BDD
A4: UNITE: | B4: Agence | E4: ETP perf : | F4: =VLOOKUP(A5,'RECAP AG'!$G$6:$DG$280,3,FALSE) -> 8.70
A5: =VLOOKUP(B5,LISTES!$C$6:$D$290,2,FALSE) -> 4189 | B5: ALTKIRCH
C6: Coefficient du critère | E6: Résultats | I6: Ecart au 1ier | M6: Evolution | O6: =IF(OR(A5=4017,A5=4022),"Rang estimé","Rang") -> Rang
E7: du 1ier | G7: de l'Agence | I7: Du mois | K7: Au 31/12/2019
A9: RANG au CLASSEMENT GENERAL | K9: =VLOOKUP($A$5,'RECAP AG AN'!$G$6:$FS$313,168,FALSE) -> 180 | M9: =+K9-O9 ->  | O9: =VLOOKUP($A$5,'RECAP AG'!$G$6:$DG$280,168,FALSE) -> 
A11: CRITERE CONQUETE | C11: 15% | O11: =VLOOKUP($A$5,'RECAP AG'!$G$6:$DG$280,23,FALSE) -> 4.596769307
B12: PNB Evolution nette Clients BP | C12: 4% | E12: ='RECAP AG'!#REF! ->  | G12: =VLOOKUP($A$5,'RECAP AG'!$G$6:$DG$280,6,FALSE) -> 1.0 | I12: =VLOOKUP($A$5,'RECAP AG'!$G$6:$DG$280,7,FALSE) -> 19500% | K12: =VLOOKUP($A$5,'RECAP AG AN'!$G$6:$FS$313,7,FALSE) -> 73% | M12: =+K12-I12 -> -19427% | O12: =VLOOKUP($A$5,'RECAP AG'!$G$6:$DG$280,8,FALSE) -> 0.4734
B13: PNB Evolution nette Clients PREMIUM | C13: 5% | E13: ='RECAP AG'!#REF! ->  | G13: =VLOOKUP($A$5,'RECAP AG'!$G$6:$DG$280,10,FALSE) -> 161.0 | I13: =VLOOKUP($A$5,'RECAP AG'!$G$6:$DG$280,11,FALSE) -> 70% | K13: =VLOOKUP($A$5,'RECAP AG AN'!$G$6:$FS$313,11,FALSE) -> 68% | M13: =+K13-I13 -> -2% | O13: =VLOOKUP($A$5,'RECAP AG'!$G$6:$DG$280,12,FALSE) -> 0.6817227199
B14: PNB Evolution nette Clients Jeunes Equipés | C14: 3% | E14: ='RECAP AG'!#REF! ->  | G14: =VLOOKUP($A$5,'RECAP AG'!$G$6:$DG$280,14,FALSE) -> 0.0 | I14: =VLOOKUP($A$5,'RECAP AG'!$G$6:$DG$280,15,FALSE) -> 0% | K14: =VLOOKUP($A$5,'RECAP AG AN'!$G$6:$FS$313,15,FALSE) -> 56% | M14: =+K14-I14 -> 56% | O14: =VLOOKUP($A$5,'RECAP AG'!$G$6:$DG$280,16,FALSE) -> 0
B15: PNB Evolution nette Clients Pro Actifs Equipés | C15: 3% | E15: ='RECAP AG'!W4 -> 0.0 | G15: =VLOOKUP($A$5,'RECAP AG'!$G$6:$DG$280,18,FALSE) -> 19.1 | I15: =VLOOKUP($A$5,'RECAP AG'!$G$6:$DG$280,19,FALSE) -> 219% | K15: =VLOOKUP($A$5,'RECAP AG AN'!$G$6:$FS$313,19,FALSE) -> 94% | M15: =+K15-I15 -> -125% | O15: =VLOOKUP($A$5,'RECAP AG'!$G$6:$DG$280,20,FALSE) -> 0.9440786506
A17: CRITERE BANCARISATION | C17: 15% | O17: =VLOOKUP($A$5,'RECAP AG'!$G$6:$DG$280,48,FALSE) -> 258
B18: PNB Ventes nettes forfaits | C18: 4% | E18: ='RECAP AG'!X4 -> 39.3 | G18: =VLOOKUP($A$5,'RECAP AG'!$G$6:$DG$280,31,FALSE) -> -0.3 | I18: =VLOOKUP($A$5,'RECAP AG'!$G$6:$DG$280,32,FALSE) -> 34% | K18: =VLOOKUP($A$5,'RECAP AG AN'!$G$6:$FS$313,32,FALSE) -> 52% | M18: =+K18-I18 -> 18% | O18: =VLOOKUP($A$5,'RECAP AG'!$G$6:$DG$280,33,FALSE) -> 152
B19: PNB Ventes nettes IZICARTES Débit Différé | C19: 4% | E19: ='RECAP AG'!AB4 -> 24.3 | G19: =VLOOKUP($A$5,'RECAP AG'!$G$6:$DG$280,35,FALSE) -> 0.6 | I19: =VLOOKUP($A$5,'RECAP AG'!$G$6:$DG$280,36,FALSE) -> 25100% | K19: =VLOOKUP($A$5,'RECAP AG AN'!$G$6:$FS$313,36,FALSE) -> 79% | M19: =+K19-I19 -> -25021% | O19: =VLOOKUP($A$5,'RECAP AG'!$G$6:$DG$280,37,FALSE) -> 0
B20: PNB Ventes nettes cartes HDG Débit Différé | C20: 4% | E20: ='RECAP AG'!AF4 -> 12.3 | G20: =VLOOKUP($A$5,'RECAP AG'!$G$6:$DG$280,39,FALSE) -> 0.0 | I20: =VLOOKUP($A$5,'RECAP AG'!$G$6:$DG$280,40,FALSE) -> 0% | K20: =VLOOKUP($A$5,'RECAP AG AN'!$G$6:$FS$313,40,FALSE) -> 80% | M20: =+K20-I20 -> 80% | O20: =VLOOKUP($A$5,'RECAP AG'!$G$6:$DG$280,41,FALSE) -> 171.4966275
B21: PNB Ventes nettes Forfaits Pro, Carte pro | C21: 3% | E21: ='RECAP AG'!AJ4 -> -0.1 | G21: =VLOOKUP($A$5,'RECAP AG'!$G$6:$DG$280,43,FALSE) -> 0.6 | I21: =VLOOKUP($A$5,'RECAP AG'!$G$6:$DG$280,44,FALSE) -> 20300% | K21: =VLOOKUP($A$5,'RECAP AG AN'!$G$6:$FS$313,44,FALSE) -> 76% | M21: =+K21-I21 -> -20224% | O21: =VLOOKUP($A$5,'RECAP AG'!$G$6:$DG$280,45,FALSE) -> 16
A23: CRITERE EPARGNE | C23: 10% | O23: =VLOOKUP($A$5,'RECAP AG'!$G$6:$DG$280,69,FALSE) -> 0.6902973247
B24: PNB Epargne Liquide | C24: 3% | E24: ='RECAP AG'!AU4 -> 600.2 | G24: =VLOOKUP($A$5,'RECAP AG'!$G$6:$DG$280,56,FALSE) -> 35.4 | I24: =VLOOKUP($A$5,'RECAP AG'!$G$6:$DG$280,57,FALSE) -> 406% | K24: =VLOOKUP($A$5,'RECAP AG AN'!$G$6:$FS$313,57,FALSE) -> 99% | M24: =+K24-I24 -> -308% | O24: =VLOOKUP($A$5,'RECAP AG'!$G$6:$DG$280,58,FALSE) -> 0.9477643644
B25: PNB CA UC + arbitrage | C25: 4% | E25: ='RECAP AG'!AY4 -> 20.6 | G25: =VLOOKUP($A$5,'RECAP AG'!$G$6:$DG$280,60,FALSE) -> 95.6 | I25: =VLOOKUP($A$5,'RECAP AG'!$G$6:$DG$280,61,FALSE) -> 1098% | K25: =VLOOKUP($A$5,'RECAP AG AN'!$G$6:$FS$313,61,FALSE) -> 78% | M25: =+K25-I25 -> -1020% | O25: =VLOOKUP($A$5,'RECAP AG'!$G$6:$DG$280,62,FALSE) -> 0.433921068
B26: PNB Excédent assurance vie | C26: 3% | E26: ='RECAP AG'!#REF! ->  | G26: =VLOOKUP($A$5,'RECAP AG'!$G$6:$DG$280,64,FALSE) -> 19.0 | I26: =VLOOKUP($A$5,'RECAP AG'!$G$6:$DG$280,65,FALSE) -> 218% | K26: =VLOOKUP($A$5,'RECAP AG AN'!$G$6:$FS$313,65,FALSE) -> 54% | M26: =+K26-I26 -> -165% | O26: =VLOOKUP($A$5,'RECAP AG'!$G$6:$DG$280,66,FALSE) -> 0.8289965852
A28: CRITERE CREDITS | C28: 15% | O28: =VLOOKUP($A$5,'RECAP AG'!$G$6:$DG$280,102,FALSE) -> 0.6668644579
B29: PNB crédit conso | C29: 4% | E29: ='RECAP AG'!BJ4 -> 77.8 | G29: =VLOOKUP($A$5,'RECAP AG'!$G$6:$DG$280,77,FALSE) -> 0.9 | I29: =VLOOKUP($A$5,'RECAP AG'!$G$6:$DG$280,78,FALSE) -> 25000% | K29: =VLOOKUP($A$5,'RECAP AG AN'!$G$6:$FS$313,78,FALSE) -> 35% | M29: =+K29-I29 -> -24965% | O29: =VLOOKUP($A$5,'RECAP AG'!$G$6:$DG$280,79,FALSE) -> 63
B30: PNB ADE crédit conso | C30: 1% | E30: ='RECAP AG'!#REF! ->  | G30: =VLOOKUP($A$5,'RECAP AG'!$G$6:$DG$280,81,FALSE) -> 0.7 | I30: =VLOOKUP($A$5,'RECAP AG'!$G$6:$DG$280,82,FALSE) -> 18200% | K30: =VLOOKUP($A$5,'RECAP AG AN'!$G$6:$FS$313,82,FALSE) -> 51% | M30: -18149% | O30: =VLOOKUP($A$5,'RECAP AG'!$G$6:$DG$280,83,FALSE) -> 0.8429050893
B31: PNB crédit immo | C31: 4% | E31: ='RECAP AG'!BN4 -> 19.4 | G31: =VLOOKUP($A$5,'RECAP AG'!$G$6:$DG$280,85,FALSE) -> 239.0 | I31: =VLOOKUP($A$5,'RECAP AG'!$G$6:$DG$280,86,FALSE) -> 0% | K31: =VLOOKUP($A$5,'RECAP AG AN'!$G$6:$FS$313,86,FALSE) -> 73% | M31: 73% | O31: =VLOOKUP($A$5,'RECAP AG'!$G$6:$DG$280,87,FALSE) -> 0
B32: PNB ADE crédit immo | C32: 2% | E32: ='RECAP AG'!#REF! ->  | G32: =VLOOKUP($A$5,'RECAP AG'!$G$6:$DG$280,89,FALSE) -> 0.0 | I32: =VLOOKUP($A$5,'RECAP AG'!$G$6:$DG$280,90,FALSE) -> 0% | K32: =VLOOKUP($A$5,'RECAP AG AN'!$G$6:$FS$313,90,FALSE) -> 61% | M32: 61% | O32: =VLOOKUP($A$5,'RECAP AG'!$G$6:$DG$280,91,FALSE) -> 0
B33: PNB SACCEF | C33: 2% | E33: ='RECAP AG'!#REF! ->  | G33: =VLOOKUP($A$5,'RECAP AG'!$G$6:$DG$280,93,FALSE) -> 0.0 | I33: =VLOOKUP($A$5,'RECAP AG'!$G$6:$DG$280,94,FALSE) -> 0% | K33: =VLOOKUP($A$5,'RECAP AG AN'!$G$6:$FS$313,94,FALSE) -> 71% | M33: 71% | O33: =VLOOKUP($A$5,'RECAP AG'!$G$6:$DG$280,95,FALSE) -> 0
B34: PNB Crédit MLT + Crédit Bail | C34: 2% | E34: ='RECAP AG'!BR4 -> 12.8 | G34: =VLOOKUP($A$5,'RECAP AG'!$G$6:$DG$280,97,FALSE) -> 0.0 | I34: =VLOOKUP($A$5,'RECAP AG'!$G$6:$DG$280,98,FALSE) -> 0% | K34: =VLOOKUP($A$5,'RECAP AG AN'!$G$6:$FS$313,98,FALSE) -> 96% | M34: 96% | O34: =VLOOKUP($A$5,'RECAP AG'!$G$6:$DG$280,99,FALSE) -> 0
A36: CRITERE IARD PREVOYANCE | C36: 15% | O36: =VLOOKUP($A$5,'RECAP AG'!$G$6:$DG$280,119,FALSE) -> 
B37: PNB Ventes nettes IARD | C37: 9% | E37: ='RECAP AG'!CC4 -> 161.5 | G37: =VLOOKUP($A$5,'RECAP AG'!$G$6:$DG$280,110,FALSE) ->  | I37: =VLOOKUP($A$5,'RECAP AG'!$G$6:$DG$280,111,FALSE) ->  | K37: =VLOOKUP($A$5,'RECAP AG AN'!$G$6:$FS$313,111,FALSE) -> 93% | M37: =+K37-I37 ->  | O37: =VLOOKUP($A$5,'RECAP AG'!$G$6:$DG$280,112,FALSE) -> 
B38: PNB Ventes nettes Prévoyance | C38: 6% | E38: ='RECAP AG'!CG4 -> 22.5 | G38: =VLOOKUP($A$5,'RECAP AG'!$G$6:$DG$280,114,FALSE) ->  | I38: =VLOOKUP($A$5,'RECAP AG'!$G$6:$DG$280,115,FALSE) ->  | K38: =VLOOKUP($A$5,'RECAP AG AN'!$G$6:$FS$313,115,FALSE) -> 89% | M38: =+K38-I38 ->  | O38: =VLOOKUP($A$5,'RECAP AG'!$G$6:$DG$280,116,FALSE) -> 
A40: CRITERE ACCELERATEURS PNB | C40: 15% | O40: =VLOOKUP($A$5,'RECAP AG'!$G$6:$DG$280,144,FALSE) -> 
B41: PNB Ventes brutes SED Finalisées | C41: 6% | E41: ='RECAP AG'!#REF! ->  | G41: =VLOOKUP($A$5,'RECAP AG'!$G$6:$DG$280,127,FALSE) ->  | I41: =VLOOKUP($A$5,'RECAP AG'!$G$6:$DG$280,128,FALSE) ->  | K41: =VLOOKUP($A$5,'RECAP AG AN'!$G$6:$FS$313,128,FALSE) -> 80% | M41: =+K41-I41 ->  | O41: =VLOOKUP($A$5,'RECAP AG'!$G$6:$DG$280,129,FALSE) -> 
B42: PNB clients équipés E documents | C42: 3% | E42: ='RECAP AG'!#REF! ->  | G42: =VLOOKUP($A$5,'RECAP AG'!$G$6:$DG$280,131,FALSE) ->  | I42: =VLOOKUP($A$5,'RECAP AG'!$G$6:$DG$280,132,FALSE) ->  | K42: =VLOOKUP($A$5,'RECAP AG AN'!$G$6:$FS$313,132,FALSE) -> 81% | M42: =+K42-I42 ->  | O42: =VLOOKUP($A$5,'RECAP AG'!$G$6:$DG$280,133,FALSE) -> 
B43: Economie opt'in | C43: 3% | E43: ='RECAP AG'!#REF! ->  | G43: =VLOOKUP($A$5,'RECAP AG'!$G$6:$DG$280,135,FALSE) ->  | I43: =VLOOKUP($A$5,'RECAP AG'!$G$6:$DG$280,136,FALSE) ->  | K43: =VLOOKUP($A$5,'RECAP AG AN'!$G$6:$FS$313,136,FALSE) -> 72% | M43: =+K43-I43 ->  | O43: =VLOOKUP($A$5,'RECAP AG'!$G$6:$DG$280,137,FALSE) -> 
B44: Remises commerciales | C44: 3% | E44: ='RECAP AG'!#REF! ->  | G44: =VLOOKUP($A$5,'RECAP AG'!$G$6:$DG$280,139,FALSE) ->  | I44: =VLOOKUP($A$5,'RECAP AG'!$G$6:$DG$280,140,FALSE) ->  | K44: =VLOOKUP($A$5,'RECAP AG AN'!$G$6:$FS$313,140,FALSE) -> 23% | M44: =+K44-I44 ->  | O44: =VLOOKUP($A$5,'RECAP AG'!$G$6:$DG$280,141,FALSE) -> 
A46: CRITERE Satisfaction Clients | C46: 15% | O46: =VLOOKUP($A$5,'RECAP AG'!$G$6:$DG$280,159,FALSE) -> 
B47: Objectifs NPS* | C47: 8% | E47: ='RECAP AG'!K4 -> 39 | G47: =VLOOKUP($A$5,'RECAP AG'!$G$6:$DG$280,151,FALSE) ->  | I47: =VLOOKUP($A$5,'RECAP AG'!$G$6:$DG$280,152,FALSE) ->  | K47: =VLOOKUP($A$5,'RECAP AG AN'!$G$6:$FS$313,152,FALSE) -> 78% | M47: =+K47-I47 ->  | O47: =VLOOKUP($A$5,'RECAP AG'!$G$6:$DG$280,153,FALSE) -> 
B48: Enquête Qualité Haute Définition | C48: 7% | E48: ='RECAP AG'!N4 -> 79% | G48: =VLOOKUP($A$5,'RECAP AG'!$G$6:$DG$280,154,FALSE) ->  | I48: =VLOOKUP($A$5,'RECAP AG'!$G$6:$DG$280,155,FALSE) ->  | K48: =VLOOKUP($A$5,'RECAP AG AN'!$G$6:$FS$313,155,FALSE) -> 11% | M48: =+K48-I48 ->  | O48: =VLOOKUP($A$5,'RECAP AG'!$G$6:$DG$280,156,FALSE) -> 

Sheet AG_TOTAL
B1: Accueil | H1: BAROMETRE BDD - AGENCES
H2: TOTAL GENERAL
H3: =ACCUEIL!F7 -> 2021-02-28
H7: TOTAL GENERAL | K7: Total Satisfaction Clients | N7: Total Bancarisation | Q7: Total Epargne | T7: Total IARD Prévoyance | W7: Total Crédits
I8: coef | J8: 100% | L8: coef | M8: =AG_SATISFACTION!P8 -> 20% | O8: coef | P8: =AG_BANCA!Z8 -> 20% | R8: coef | S8: =AG_EPARGNE!R8 -> 20% | U8: coef | V8: =AG_IARD!R8 -> 20% | X8: coef | Y8: =AG_CREDIT!V8 -> 20%
B9: Direction | C9: eds | D9: Territoire | E9: eds | F9: Agence | G9: ="ETP perf "&DATEMAJ!$C$28 -> ETP perf 31-janv | H9: Moyenne ecart au 1er | I9: % Ecart au 1er | J9: Rang CEGEE | K9: Moyenne ecart au 1er | L9: % Ecart au 1er | M9: Rang CEGEE | N9: Moyenne ecart au 1er | O9: % Ecart au 1er | P9: Rang CEGEE | Q9: Moyenne ecart au 1er | R9: % Ecart au 1er | S9: Rang CEGEE | T9: Moyenne ecart au 1er | U9: % Ecart au 1er | V9: Rang CEGEE | W9: Moyenne ecart au 1er | X9: % Ecart au 1er | Y9: Rang CEGEE
A10: 50 | B10: MEURTHE ET MOSELLE MEUSE | C10: 26 | D10: NANCY | E10: 454481 | F10: NANCY PLACE DOMBASLE | G10: 12.3 | H10: 23% | I10: 0% | J10: 1 | K10: 68% | L10: 66% | M10: 179 | N10: 18% | O10: 0% | P10: 1 | Q10: 36% | R10: 21% | S10: 13 | T10: 12% | U10: 3% | V10: 2 | W10: 31% | X10: 24% | Y10: 4
A11: 50 | B11: MEURTHE ET MOSELLE MEUSE | C11: 27 | D11: PONT A MOUSSON | E11: 554531 | F11: POMPEY | G11: 3.0 | H11: 27% | I11: 4% | J11: 2 | K11: 51% | L11: 49% | M11: 90 | N11: 22% | O11: 3% | P11: 2 | Q11: 37% | R11: 22% | S11: 15 | T11: 40% | U11: 32% | V11: 15 | W11: 36% | X11: 29% | Y11: 5
A12: 50 | B12: BAS-RHIN | C12: 5101 | D12: SELESTAT | E12: 4113 | F12: BARR | G12: 3.0 | H12: 29% | I12: 6% | J12: 3 | K12: 32% | L12: 30% | M12: 21 | N12: 34% | O12: 15% | P12: 5 | Q12: 21% | R12: 7% | S12: 3 | T12: 32% | U12: 24% | V12: 8 | W12: 78% | X12: 71% | Y12: 204
A13: 50 | B13: MEURTHE ET MOSELLE MEUSE | C13: 26 | D13: NANCY | E13: 554356 | F13: JARVILLE LA MALGRANGE | G13: 4.0 | H13: 31% | I13: 8% | J13: 4 | K13: 54% | L13: 52% | M13: 109 | N13: 34% | O13: 16% | P13: 6 | Q13: 60% | R13: 45% | S13: 147 | T13: 32% | U13: 24% | V13: 7 | W13: 23% | X13: 16% | Y13: 2
A14: 50 | B14: VOSGES | C14: 57 | D14: EPINAL | E14: 488288 | F14: EPINAL LEOPOLD BOURG | G14: 1.8 | H14: 31% | I14: 8% | J14: 5 | K14: 17% | L14: 15% | M14: 2 | N14: 40% | O14: 22% | P14: 9 | Q14: 57% | R14: 42% | S14: 131 | T14: 60% | U14: 51% | V14: 69 | W14: 29% | X14: 22% | Y14: 3
A15: 50 | B15: MEURTHE ET MOSELLE MEUSE | C15: 27 | D15: PONT A MOUSSON | E15: 454651 | F15: TOUL REPUBLIQUE | G15: 9.6 | H15: 31% | I15: 8% | J15: 6 | K15: 90% | L15: 88% | M15: 250 | N15: 25% | O15: 7% | P15: 4 | Q15: 48% | R15: 34% | S15: 56 | T15: 36% | U15: 28% | V15: 11 | W15: 7% | X15: 0% | Y15: 1
A16: 50 | B16: BAS-RHIN | C16: 5101 | D16: SELESTAT | E16: 4120 | F16: WASSELONNE | G16: 2.9 | H16: 33% | I16: 10% | J16: 7 | K16: 66% | L16: 64% | M16: 165 | N16: 58% | O16: 40% | P16: 44 | Q16: 15% | R16: 0% | S16: 1 | T16: 25% | U16: 17% | V16: 3 | W16: 53% | X16: 46% | Y16: 23
A17: 50 | B17: MEURTHE ET MOSELLE MEUSE | C17: 26 | D17: NANCY | E17: 554636 | F17: TOMBLAINE | G17: 2.0 | H17: 38% | I17: 15% | J17: 8 | K17: 38% | L17: 36% | M17: 34 | N17: 73% | O17: 55% | P17: 181 | Q17: 45% | R17: 30% | S17: 40 | T17: 27% | U17: 18% | V17: 4 | W17: 58% | X17: 51% | Y17: 33
A18: 50 | B18: MARNE-ARDENNES | C18: 6 | D18: CHALONS EN CHAMPAGNE | E18: 451115 | F18: MOURMELON suippes | G18: 3.0 | H18: 39% | I18: 16% | J18: 9 | K18: 50% | L18: 48% | M18: 82 | N18: 64% | O18: 46% | P18: 103 | Q18: 33% | R18: 18% | S18: 8 | T18: 44% | U18: 35% | V18: 21 | W18: 54% | X18: 48% | Y18: 25
A19: 50 | B19: MOSELLE | C19: 44 | D19: MOSELLE NORD | E19: 557508 | F19: NILVANGE | G19: 2.1 | H19: 40% | I19: 17% | J19: 10 | K19: 53% | L19: 51% | M19: 100 | N19: 59% | O19: 41% | P19: 50 | Q19: 46% | R19: 31% | S19: 49 | T19: 32% | U19: 23% | V19: 6 | W19: 63% | X19: 56% | Y19: 64
A20: 50 | B20: MARNE-ARDENNES | C20: 2 | D20: CHARLEVILLE MEZIERES | E20: 408862 | F20: REVIN | G20: 3.6 | H20: 41% | I20: 18% | J20: 11 | K20: 47% | L20: 45% | M20: 67 | N20: 44% | O20: 26% | P20: 12 | Q20: 37% | R20: 22% | S20: 14 | T20: 66% | U20: 57% | V20: 111 | W20: 60% | X20: 53% | Y20: 38
A21: 50 | B21: MARNE-ARDENNES | C21: 11 | D21: REIMS | E21: 551310 | F21: REIMS CHATILLONS | G21: 3.7 | H21: 41% | I21: 18% | J21: 12 | K21: 58% | L21: 56% | M21: 124 | N21: 40% | O21: 22% | P21: 7 | Q21: 46% | R21: 32% | S21: 53 | T21: 59% | U21: 51% | V21: 64 | W21: 52% | X21: 45% | Y21: 20
A22: 50 | B22: BAS-RHIN | C22: 5060 | D22: HAGUENAU | E22: 4092 | F22: HOCHFELDEN | G22: 1.8 | H22: 41% | I22: 18% | J22: 13 | K22: 39% | L22: 37% | M22: 40 | N22: 53% | O22: 35% | P22: 24 | Q22: 63% | R22: 48% | S22: 184 | T22: 52% | U22: 44% | V22: 39 | W22: 49% | X22: 42% | Y22: 13
A23: 50 | B23: MEURTHE ET MOSELLE MEUSE | C23: 27 | D23: PONT A MOUSSON | E23: 554321 | F23: FROUARD | G23: 3.0 | H23: 41% | I23: 18% | J23: 14 | K23: 44% | L23: 42% | M23: 57 | N23: 65% | O23: 47% | P23: 107 | Q23: 20% | R23: 6% | S23: 2 | T23: 62% | U23: 53% | V23: 84 | W23: 65% | X23: 58% | Y23: 79
A24: 50 | B24: MOSELLE | C24: 45 | D24: METZ | E24: 557447 | F24: METZ SAINT MAXIMIN | G24: 3.0 | H24: 41% | I24: 18% | J24: 15 | K24: 49% | L24: 47% | M24: 78 | N24: 50% | O24: 32% | P24: 17 | Q24: 46% | R24: 31% | S24: 47 | T24: 59% | U24: 51% | V24: 63 | W24: 51% | X24: 45% | Y24: 18
A25: 50 | B25: BAS-RHIN | C25: 5101 | D25: SELESTAT | E25: 4107 | F25: VILLE | G25: 2.9 | H25: 43% | I25: 20% | J25: 16 | K25: 68% | L25: 66% | M25: 175 | N25: 24% | O25: 5% | P25: 3 | Q25: 50% | R25: 36% | S25: 72 | T25: 48% | U25: 39% | V25: 25 | W25: 74% | X25: 67% | Y25: 162
A26: 50 | B26: MEURTHE ET MOSELLE MEUSE | C26: 27 | D26: PONT A MOUSSON | E26: 554416 | F26: LUDRES | G26: 4.0 | H26: 43% | I26: 20% | J26: 17 | K26: 18% | L26: 16% | M26: 3 | N26: 66% | O26: 48% | P26: 113 | Q26: 43% | R26: 28% | S26: 29 | T26: 78% | U26: 69% | V26: 202 | W26: 61% | X26: 55% | Y26: 49
A27: 50 | B27: MARNE-ARDENNES | C27: 2 | D27: CHARLEVILLE MEZIERES | E27: 508820 | F27: VOUZIERS | G27: 2.9 | H27: 43% | I27: 20% | J27: 18 | K27: 85% | L27: 83% | M27: 236 | N27: 44% | O27: 26% | P27: 11 | Q27: 44% | R27: 30% | S27: 37 | T27: 50% | U27: 41% | V27: 29 | W27: 43% | X27: 36% | Y27: 7
A28: 50 | B28: AUBE HAUTE MARNE | C28: 21 | D28: CHAUMONT | E28: 510590 | F28: CHAUMONT REPUBLIQUE | G28: 3.9 | H28: 44% | I28: 20% | J28: 19 | K28: 66% | L28: 64% | M28: 162 | N28: 58% | O28: 39% | P28: 41 | Q28: 51% | R28: 36% | S28: 77 | T28: 39% | U28: 30% | V28: 12 | W28: 55% | X28: 48% | Y28: 26
A29: 50 | B29: MARNE-ARDENNES | C29: 2 | D29: CHARLEVILLE MEZIERES | E29: 408822 | F29: CHARLEVILLE MEZIERES | G29: 4.4 | H29: 44% | I29: 21% | J29: 20 | K29: 54% | L29: 52% | M29: 108 | N29: 63% | O29: 45% | P29: 89 | Q29: 39% | R29: 25% | S29: 20 | T29: 50% | U29: 42% | V29: 30 | W29: 61% | X29: 55% | Y29: 50
A30: 50 | B30: MARNE-ARDENNES | C30: 11 | D30: REIMS | E30: 551349 | F30: REIMS SAINT REMI | G30: 2.9 | H30: 44% | I30: 21% | J30: 21 | K30: 45% | L30: 43% | M30: 61 | N30: 54% | O30: 36% | P30: 27 | Q30: 46% | R30: 31% | S30: 50 | T30: 69% | U30: 60% | V30: 127 | W30: 58% | X30: 51% | Y30: 34
A31: 50 | B31: MOSELLE | C31: 42 | D31: MOSELLE EST | E31: 557250 | F31: CREUTZWALD | G31: 2.9 | H31: 44% | I31: 21% | J31: 22 | K31: 39% | L31: 37% | M31: 39 | N31: 81% | O31: 63% | P31: 244 | Q31: 25% | R31: 10% | S31: 4 | T31: 65% | U31: 56% | V31: 101 | W31: 62% | X31: 56% | Y31: 59
A32: 262 | B32: MARNE-ARDENNES | C32: 11 | D32: REIMS | E32: 551340 | F32: BETHENY | G32: 3.0 | H32: 44% | I32: 21% | J32: 23 | K32: 44% | L32: 42% | M32: 58 | N32: 55% | O32: 36% | P32: 32 | Q32: 52% | R32: 37% | S32: 94 | T32: 83% | U32: 74% | V32: 233 | W32: 38% | X32: 31% | Y32: 6
A33: 262 | B33: VOSGES | C33: 55 | D33: SAINT DIE | E33: 488246 | F33: CORNIMONT LA BRESSE | G33: 2.9 | H33: 45% | I33: 22% | J33: 24 | K33: 47% | L33: 45% | M33: 69 | N33: 62% | O33: 44% | P33: 75 | Q33: 52% | R33: 37% | S33: 91 | T33: 47% | U33: 39% | V33: 24 | W33: 65% | X33: 58% | Y33: 80
A34: 262 | B34: MARNE-ARDENNES | C34: 6 | D34: CHALONS EN CHAMPAGNE | E34: 551110 | F34: CHALONS ROOSEVELT | G34: 5.0 | H34: 45% | I34: 22% | J34: 25 | K34: 24% | L34: 22% | M34: 8 | N34: 61% | O34: 43% | P34: 65 | Q34: 46% | R34: 32% | S34: 54 | T34: 76% | U34: 67% | V34: 184 | W34: 69% | X34: 62% | Y34: 113
A35: 262 | B35: BAS-RHIN | C35: 5101 | D35: SELESTAT | E35: 4121 | F35: SCHIRMECK | G35: 3.8 | H35: 46% | I35: 23% | J35: 26 | K35: 37% | L35: 35% | M35: 32 | N35: 69% | O35: 50% | P35: 137 | Q35: 52% | R35: 37% | S35: 90 | T35: 60% | U35: 51% | V35: 67 | W35: 63% | X35: 56% | Y35: 66
A36: 262 | B36: MOSELLE | C36: 42 | D36: MOSELLE EST | E36: 457163 | F36: BEHREN LES FORBACH | G36: 2.5 | H36: 46% | I36: 23% | J36: 27 | K36: 42% | L36: 40% | M36: 50 | N36: 59% | O36: 41% | P36: 52 | Q36: 51% | R36: 36% | S36: 76 | T36: 65% | U36: 56% | V36: 102 | W36: 66% | X36: 59% | Y36: 85
A37: 262 | B37: MOSELLE | C37: 45 | D37: METZ | E37: 457453 | F37: MONTIGNY CENTRALE | G37: 8.0 | H37: 46% | I37: 23% | J37: 28 | K37: 34% | L37: 32% | M37: 23 | N37: 55% | O37: 37% | P37: 33 | Q37: 58% | R37: 43% | S37: 135 | T37: 71% | U37: 63% | V37: 150 | W37: 64% | X37: 57% | Y37: 72
A38: 262 | B38: AUBE HAUTE MARNE | C38: 21 | D38: CHAUMONT | E38: 410560 | F38: BOURBONNE LES BAINS | G38: 2.0 | H38: 47% | I38: 23% | J38: 29 | K38: 22% | L38: 20% | M38: 7 | N38: 70% | O38: 52% | P38: 153 | Q38: 52% | R38: 37% | S38: 88 | T38: 57% | U38: 48% | V38: 50 | W38: 82% | X38: 75% | Y38: 241
A39: 262 | B39: MOSELLE | C39: 44 | D39: MOSELLE NORD | E39: 557347 | F39: GUENANGE | G39: 2.6 | H39: 47% | I39: 24% | J39: 30 | K39: 50% | L39: 48% | M39: 81 | N39: 63% | O39: 44% | P39: 78 | Q39: 53% | R39: 38% | S39: 101 | T39: 71% | U39: 63% | V39: 151 | W39: 46% | X39: 40% | Y39: 10
A40: 262 | B40: MOSELLE | C40: 45 | D40: METZ | E40: 557444 | F40: METZ SAINT JULIEN | G40: 5.6 | H40: 47% | I40: 24% | J40: 31 | K40: 59% | L40: 57% | M40: 131 | N40: 64% | O40: 45% | P40: 95 | Q40: 53% | R40: 38% | S40: 100 | T40: 47% | U40: 38% | V40: 23 | W40: 61% | X40: 55% | Y40: 51
A41: 262 | B41: BAS-RHIN | C41: 5060 | D41: HAGUENAU | E41: 4082 | F41: BOUXWILLER | G41: 2.9 | H41: 47% | I41: 24% | J41: 32 | K41: 50% | L41: 48% | M41: 83 | N41: 79% | O41: 60% | P41: 227 | Q41: 29% | R41: 15% | S41: 7 | T41: 57% | U41: 48% | V41: 53 | W41: 69% | X41: 62% | Y41: 114
A42: 262 | B42: MARNE-ARDENNES | C42: 11 | D42: REIMS | E42: 551309 | F42: REIMS EUROPE | G42: 3.0 | H42: 47% | I42: 24% | J42: 33 | K42: 27% | L42: 25% | M42: 14 | N42: 76% | O42: 58% | P42: 203 | Q42: 44% | R42: 29% | S42: 34 | T42: 66% | U42: 58% | V42: 115 | W42: 71% | X42: 65% | Y42: 131
A43: 262 | B43: MARNE-ARDENNES | C43: 6 | D43: CHALONS EN CHAMPAGNE | E43: 551330 | F43: MONTMIRAIL | G43: 3.0 | H43: 47% | I43: 24% | J43: 34 | K43: 43% | L43: 41% | M43: 56 | N43: 69% | O43: 51% | P43: 145 | Q43: 44% | R43: 29% | S43: 33 | T43: 68% | U43: 59% | V43: 124 | W43: 62% | X43: 55% | Y43: 52
A44: 262 | B44: VOSGES | C44: 57 | D44: EPINAL | E44: 588631 | F44: THAON LES VOSGES | G44: 5.4 | H44: 47% | I44: 24% | J44: 35 | K44: 45% | L44: 43% | M44: 62 | N44: 54% | O44: 36% | P44: 28 | Q44: 64% | R44: 49% | S44: 189 | T44: 51% | U44: 43% | V44: 32 | W44: 72% | X44: 65% | Y44: 144
A45: 262 | B45: MARNE-ARDENNES | C45: 11 | D45: REIMS | E45: 551367 | F45: AY CHAMPAGNE | G45: 3.0 | H45: 47% | I45: 24% | J45: 36 | K45: 51% | L45: 49% | M45: 85 | N45: 40% | O45: 22% | P45: 8 | Q45: 59% | R45: 45% | S45: 146 | T45: 76% | U45: 68% | V45: 188 | W45: 60% | X45: 53% | Y45: 39
A46: 262 | B46: HAUT-RHIN | C46: 5130 | D46: COLMAR | E46: 4153 | F46: ROUFFACH | G46: 3.7 | H46: 47% | I46: 24% | J46: 37 | K46: 57% | L46: 55% | M46: 120 | N46: 64% | O46: 46% | P46: 101 | Q46: 67% | R46: 53% | S46: 219 | T46: 36% | U46: 27% | V46: 10 | W46: 62% | X46: 55% | Y46: 53
A47: 262 | B47: AUBE HAUTE MARNE | C47: 14 | D47: TROYES | E47: 510511 | F47: TROYES BROSSOLETTE | G47: 3.0 | H47: 47% | I47: 24% | J47: 38 | K47: 58% | L47: 56% | M47: 125 | N47: 59% | O47: 41% | P47: 54 | Q47: 28% | R47: 14% | S47: 6 | T47: 67% | U47: 59% | V47: 123 | W47: 74% | X47: 68% | Y47: 172
A48: 262 | B48: MOSELLE | C48: 45 | D48: METZ | E48: 457443 | F48: METZ REPUBLIQUE | G48: 4.2 | H48: 48% | I48: 25% | J48: 39 | K48: 2% | L48: 0% | M48: 1 | N48: 78% | O48: 60% | P48: 219 | Q48: 58% | R48: 44% | S48: 140 | T48: 82% | U48: 74% | V48: 229 | W48: 68% | X48: 61% | Y48: 102
A49: 262 | B49: MOSELLE | C49: 44 | D49: MOSELLE NORD | E49: 457348 | F49: HAGONDANGE | G49: 8.6 | H49: 48% | I49: 25% | J49: 40 | K49: 74% | L49: 71% | M49: 195 | N49: 49% | O49: 31% | P49: 16 | Q49: 52% | R49: 38% | S49: 95 | T49: 54% | U49: 45% | V49: 44 | W49: 60% | X49: 54% | Y49: 46
A50: 262 | B50: VOSGES | C50: 57 | D50: EPINAL | E50: 588716 | F50: XERTIGNY | G50: 3.0 | H50: 48% | I50: 25% | J50: 41 | K50: 45% | L50: 43% | M50: 64 | N50: 74% | O50: 56% | P50: 188 | Q50: 49% | R50: 35% | S50: 65 | T50: 41% | U50: 33% | V50: 17 | W50: 79% | X50: 73% | Y50: 221
A51: 262 | B51: MEURTHE ET MOSELLE MEUSE | C51: 31 | D51: VERDUN | E51: 455298 | F51: ETAIN | G51: 1.7 | H51: 48% | I51: 25% | J51: 42 | K51: 41% | L51: 39% | M51: 48 | N51: 96% | O51: 78% | P51: 269 | Q51: 77% | R51: 62% | S51: 257 | T51: 9% | U51: 0% | V51: 1 | W51: 67% | X51: 61% | Y51: 93
A52: 262 | B52: BAS-RHIN | C52: 5006 | D52: STRASBOURG | E52: 4037 | F52: MUNDOLSHEIM | G52: 4.4 | H52: 48% | I52: 25% | J52: 43 | K52: 64% | L52: 62% | M52: 152 | N52: 41% | O52: 22% | P52: 10 | Q52: 55% | R52: 40% | S52: 113 | T52: 52% | U52: 43% | V52: 37 | W52: 79% | X52: 73% | Y52: 223
A53: 262 | B53: MEURTHE ET MOSELLE MEUSE | C53: 31 | D53: VERDUN | E53: 455231 | F53: COMMERCY | G53: 4.4 | H53: 48% | I53: 25% | J53: 44 | K53: 68% | L53: 66% | M53: 178 | N53: 59% | O53: 41% | P53: 53 | Q53: 63% | R53: 48% | S53: 185 | T53: 49% | U53: 40% | V53: 27 | W53: 53% | X53: 46% | Y53: 22
A54: 262 | B54: BAS-RHIN | C54: 5060 | D54: HAGUENAU | E54: 4066 | F54: NIEDERBRONN LES BAINS | G54: 6.1 | H54: 48% | I54: 25% | J54: 45 | K54: 36% | L54: 34% | M54: 27 | N54: 71% | O54: 52% | P54: 162 | Q54: 52% | R54: 37% | S54: 92 | T54: 65% | U54: 57% | V54: 109 | W54: 68% | X54: 61% | Y54: 101
A55: 262 | B55: MARNE-ARDENNES | C55: 11 | D55: REIMS | E55: 551314 | F55: FISMES | G55: 3.0 | H55: 49% | I55: 25% | J55: 46 | K55: 45% | L55: 43% | M55: 63 | N55: 61% | O55: 43% | P55: 63 | Q55: 54% | R55: 39% | S55: 109 | T55: 71% | U55: 62% | V55: 145 | W55: 62% | X55: 55% | Y55: 56
A56: 262 | B56: MOSELLE | C56: 44 | D56: MOSELLE NORD | E56: 557113 | F56: AUDUN LE TICHE | G56: 2.2 | H56: 49% | I56: 26% | J56: 47 | K56: 85% | L56: 83% | M56: 238 | N56: 53% | O56: 35% | P56: 22 | Q56: 49% | R56: 34% | S56: 60 | T56: 55% | U56: 47% | V56: 48 | W56: 51% | X56: 44% | Y56: 15
A57: 262 | B57: MEURTHE ET MOSELLE MEUSE | C57: 26 | D57: NANCY | E57: 554266 | F57: DOMBASLE SUR MEURTHE | G57: 3.7 | H57: 49% | I57: 26% | J57: 48 | K57: 67% | L57: 65% | M57: 168 | N57: 74% | O57: 55% | P57: 183 | Q57: 34% | R57: 19% | S57: 9 | T57: 59% | U57: 50% | V57: 60 | W57: 61% | X57: 54% | Y57: 48
A58: 262 | B58: MEURTHE ET MOSELLE MEUSE | C58: 31 | D58: VERDUN | E58: 554412 | F58: LONGUYON | G58: 3.0 | H58: 49% | I58: 26% | J58: 49 | K58: 29% | L58: 27% | M58: 16 | N58: 74% | O58: 56% | P58: 186 | Q58: 66% | R58: 51% | S58: 202 | T58: 57% | U58: 49% | V58: 54 | W58: 69% | X58: 62% | Y58: 108
A59: 262 | B59: MEURTHE ET MOSELLE MEUSE | C59: 31 | D59: VERDUN | E59: 555679 | F59: VERDUN MAZEL | G59: 4.0 | H59: 49% | I59: 26% | J59: 50 | K59: 35% | L59: 33% | M59: 25 | N59: 67% | O59: 49% | P59: 118 | Q59: 50% | R59: 36% | S59: 73 | T59: 69% | U59: 60% | V59: 130 | W59: 73% | X59: 67% | Y59: 160
A60: 262 | B60: MARNE-ARDENNES | C60: 2 | D60: CHARLEVILLE MEZIERES | E60: 508815 | F60: CARIGNAN | G60: 3.0 | H60: 49% | I60: 26% | J60: 51 | K60: 48% | L60: 46% | M60: 76 | N60: 61% | O60: 42% | P60: 62 | Q60: 42% | R60: 27% | S60: 27 | T60: 80% | U60: 71% | V60: 211 | W60: 64% | X60: 57% | Y60: 70
A61: 262 | B61: MEURTHE ET MOSELLE MEUSE | C61: 26 | D61: NANCY | E61: 554476 | F61: NANCY ARTEM | G61: 2.6 | H61: 49% | I61: 26% | J61: 52 | K61: 60% | L61: 58% | M61: 137 | N61: 64% | O61: 45% | P61: 94 | Q61: 52% | R61: 37% | S61: 86 | T61: 60% | U61: 51% | V61: 66 | W61: 60% | X61: 53% | Y61: 41
A62: 262 | B62: MARNE-ARDENNES | C62: 2 | D62: CHARLEVILLE MEZIERES | E62: 508819 | F62: MOUZON | G62: 2.0 | H62: 49% | I62: 26% | J62: 53 | K62: 43% | L62: 41% | M62: 53 | N62: 65% | O62: 47% | P62: 109 | Q62: 42% | R62: 27% | S62: 25 | T62: 95% | U62: 87% | V62: 268 | W62: 51% | X62: 44% | Y62: 16
A63: 262 | B63: MARNE-ARDENNES | C63: 11 | D63: REIMS | E63: 551305 | F63: REIMS HIPPODROME | G63: 3.8 | H63: 49% | I63: 26% | J63: 54 | K63: 30% | L63: 28% | M63: 19 | N63: 63% | O63: 45% | P63: 88 | Q63: 76% | R63: 61% | S63: 253 | T63: 71% | U63: 62% | V63: 146 | W63: 56% | X63: 50% | Y63: 29
A64: 262 | B64: VOSGES | C64: 55 | D64: SAINT DIE | E64: 488556 | F64: RAON L ETAPE | G64: 2.7 | H64: 49% | I64: 26% | J64: 55 | K64: 34% | L64: 32% | M64: 24 | N64: 65% | O64: 47% | P64: 106 | Q64: 60% | R64: 46% | S64: 156 | T64: 73% | U64: 64% | V64: 160 | W64: 64% | X64: 58% | Y64: 74
A65: 262 | B65: VOSGES | C65: 57 | D65: EPINAL | E65: 488706 | F65: VITTEL | G65: 3.5 | H65: 50% | I65: 27% | J65: 56 | K65: 41% | L65: 39% | M65: 47 | N65: 76% | O65: 58% | P65: 201 | Q65: 41% | R65: 27% | S65: 21 | T65: 72% | U65: 64% | V65: 155 | W65: 68% | X65: 61% | Y65: 96
A66: 262 | B66: VOSGES | C66: 57 | D66: EPINAL | E66: 588336 | F66: GOLBEY | G66: 3.3 | H66: 50% | I66: 27% | J66: 57 | K66: 52% | L66: 50% | M66: 96 | N66: 72% | O66: 53% | P66: 169 | Q66: 41% | R66: 27% | S66: 22 | T66: 73% | U66: 65% | V66: 165 | W66: 60% | X66: 53% | Y66: 45
A67: 262 | B67: MEURTHE ET MOSELLE MEUSE | C67: 31 | D67: VERDUN | E67: 454414 | F67: LONGWY HAUT | G67: 4.0 | H67: 50% | I67: 27% | J67: 58 | K67: 61% | L67: 59% | M67: 141 | N67: 58% | O67: 39% | P67: 43 | Q67: 50% | R67: 35% | S67: 69 | T67: 52% | U67: 44% | V67: 38 | W67: 78% | X67: 71% | Y67: 207
A68: 262 | B68: MEURTHE ET MOSELLE MEUSE | C68: 27 | D68: PONT A MOUSSON | E68: 554357 | F68: JOEUF MAIRIE | G68: 4.0 | H68: 50% | I68: 27% | J68: 59 | K68: 60% | L68: 58% | M68: 134 | N68: 69% | O68: 50% | P68: 138 | Q68: 66% | R68: 51% | S68: 206 | T68: 53% | U68: 44% | V68: 42 | W68: 52% | X68: 46% | Y68: 21
A69: 262 | B69: MARNE-ARDENNES | C69: 11 | D69: REIMS | E69: 551369 | F69: DAMERY | G69: 3.0 | H69: 50% | I69: 27% | J69: 60 | K69: 37% | L69: 35% | M69: 30 | N69: 78% | O69: 59% | P69: 216 | Q69: 51% | R69: 36% | S69: 75 | T69: 61% | U69: 52% | V69: 74 | W69: 74% | X69: 67% | Y69: 164
A70: 262 | B70: MARNE-ARDENNES | C70: 2 | D70: CHARLEVILLE MEZIERES | E70: 408801 | F70: CHARLEVILLE JEAN JAURES | G70: 9.7 | H70: 50% | I70: 27% | J70: 61 | K70: 61% | L70: 59% | M70: 142 | N70: 54% | O70: 36% | P70: 30 | Q70: 53% | R70: 38% | S70: 99 | T70: 79% | U70: 70% | V70: 207 | W70: 53% | X70: 46% | Y70: 24
A71: 262 | B71: HAUT-RHIN | C71: 5169 | D71: MULHOUSE | E71: 4181 | F71: WITTELSHEIM | G71: 3.5 | H71: 50% | I71: 27% | J71: 62 | K71: 55% | L71: 53% | M71: 115 | N71: 75% | O71: 57% | P71: 196 | Q71: 58% | R71: 43% | S71: 132 | T71: 64% | U71: 56% | V71: 95 | W71: 48% | X71: 41% | Y71: 12
A72: 262 | B72: VOSGES | C72: 55 | D72: SAINT DIE | E72: 588186 | F72: BRUYERES | G72: 3.7 | H72: 50% | I72: 27% | J72: 63 | K72: 51% | L72: 49% | M72: 86 | N72: 63% | O72: 44% | P72: 76 | Q72: 64% | R72: 49% | S72: 192 | T72: 57% | U72: 48% | V72: 51 | W72: 67% | X72: 60% | Y72: 89
A73: 262 | B73: BAS-RHIN | C73: 5006 | D73: STRASBOURG | E73: 4043 | F73: STRASBOURG HALLES | G73: 8.9 | H73: 50% | I73: 27% | J73: 64 | K73: 67% | L73: 65% | M73: 170 | N73: 51% | O73: 33% | P73: 20 | Q73: 52% | R73: 37% | S73: 87 | T73: 65% | U73: 57% | V73: 103 | W73: 66% | X73: 60% | Y73: 86
A74: 262 | B74: VOSGES | C74: 55 | D74: SAINT DIE | E74: 488326 | F74: GERARDMER | G74: 5.9 | H74: 50% | I74: 27% | J74: 65 | K74: 28% | L74: 26% | M74: 15 | N74: 71% | O74: 52% | P74: 160 | Q74: 45% | R74: 30% | S74: 41 | T74: 79% | U74: 70% | V74: 206 | W74: 79% | X74: 73% | Y74: 222
A75: 262 | B75: MARNE-ARDENNES | C75: 2 | D75: CHARLEVILLE MEZIERES | E75: 508802 | F75: CHARLEVILLE NEVERS | G75: 3.0 | H75: 51% | I75: 28% | J75: 66 | K75: 25% | L75: 23% | M75: 9 | N75: 76% | O75: 57% | P75: 199 | Q75: 72% | R75: 57% | S75: 241 | T75: 59% | U75: 50% | V75: 61 | W75: 72% | X75: 66% | Y75: 145
A76: 262 | B76: MEURTHE ET MOSELLE MEUSE | C76: 27 | D76: PONT A MOUSSON | E76: 554257 | F76: DIEULOUARD | G76: 3.4 | H76: 51% | I76: 28% | J76: 67 | K76: 46% | L76: 44% | M76: 66 | N76: 69% | O76: 51% | P76: 146 | Q76: 60% | R76: 45% | S76: 149 | T76: 60% | U76: 52% | V76: 72 | W76: 68% | X76: 62% | Y76: 106
A77: 262 | B77: HAUT-RHIN | C77: 5130 | D77: COLMAR | E77: 4157 | F77: NEUF BRISACH | G77: 3.8 | H77: 51% | I77: 28% | J77: 68 | K77: 78% | L77: 76% | M77: 210 | N77: 77% | O77: 59% | P77: 213 | Q77: 37% | R77: 23% | S77: 16 | T77: 44% | U77: 36% | V77: 22 | W77: 68% | X77: 61% | Y77: 99
A78: 262 | B78: BAS-RHIN | C78: 5006 | D78: STRASBOURG | E78: 4038 | F78: OBERHAUSBERGEN | G78: 5.0 | H78: 51% | I78: 28% | J78: 69 | K78: 67% | L78: 65% | M78: 173 | N78: 53% | O78: 35% | P78: 23 | Q78: 51% | R78: 36% | S78: 79 | T78: 71% | U78: 63% | V78: 149 | W78: 62% | X78: 55% | Y78: 58
A79: 262 | B79: MARNE-ARDENNES | C79: 11 | D79: REIMS | E79: 551365 | F79: DORMANS | G79: 2.8 | H79: 51% | I79: 28% | J79: 70 | K79: 20% | L79: 18% | M79: 5 | N79: 78% | O79: 60% | P79: 218 | Q79: 56% | R79: 42% | S79: 127 | T79: 81% | U79: 73% | V79: 225 | W79: 69% | X79: 63% | Y79: 116
A80: 262 | B80: VOSGES | C80: 57 | D80: EPINAL | E80: 588501 | F80: NEUFCHATEAU | G80: 5.0 | H80: 51% | I80: 28% | J80: 71 | K80: 44% | L80: 42% | M80: 59 | N80: 74% | O80: 55% | P80: 184 | Q80: 48% | R80: 34% | S80: 57 | T80: 81% | U80: 73% | V80: 223 | W80: 59% | X80: 52% | Y80: 37
A81: 262 | B81: MOSELLE | C81: 42 | D81: MOSELLE EST | E81: 457165 | F81: BITCHE | G81: 2.1 | H81: 51% | I81: 28% | J81: 72 | K81: 54% | L81: 52% | M81: 110 | N81: 58% | O81: 40% | P81: 46 | Q81: 84% | R81: 70% | S81: 269 | T81: 40% | U81: 32% | V81: 14 | W81: 69% | X81: 62% | Y81: 111
A82: 262 | B82: MEURTHE ET MOSELLE MEUSE | C82: 26 | D82: NANCY | E82: 454426 | F82: LUNEVILLE CARNOT | G82: 9.6 | H82: 51% | I82: 28% | J82: 73 | K82: 67% | L82: 65% | M82: 171 | N82: 62% | O82: 44% | P82: 74 | Q82: 60% | R82: 45% | S82: 150 | T82: 55% | U82: 47% | V82: 47 | W82: 62% | X82: 55% | Y82: 57
A83: 264 | B83: BAS-RHIN | C83: 5101 | D83: SELESTAT | E83: 4119 | F83: OBERNAI | G83: 4.3 | H83: 51% | I83: 28% | J83: 74 | K83: 81% | L83: 79% | M83: 219 | N83: 54% | O83: 36% | P83: 26 | Q83: 51% | R83: 37% | S83: 82 | T83: 40% | U83: 31% | V83: 13 | W83: 81% | X83: 74% | Y83: 231
A84: 264 | B84: MARNE-ARDENNES | C84: 6 | D84: CHALONS EN CHAMPAGNE | E84: 451101 | F84: CHALONS VIVIERS | G84: 8.6 | H84: 51% | I84: 28% | J84: 75 | K84: 38% | L84: 36% | M84: 36 | N84: 58% | O84: 39% | P84: 42 | Q84: 61% | R84: 46% | S84: 158 | T84: 84% | U84: 75% | V84: 234 | W84: 67% | X84: 60% | Y84: 87
A85: 264 | B85: MOSELLE | C85: 42 | D85: MOSELLE EST | E85: 557503 | F85: NEUNKIRCH | G85: 4.2 | H85: 51% | I85: 28% | J85: 76 | K85: 25% | L85: 23% | M85: 10 | N85: 62% | O85: 44% | P85: 70 | Q85: 61% | R85: 46% | S85: 160 | T85: 80% | U85: 72% | V85: 217 | W85: 79% | X85: 72% | Y85: 211
A86: 264 | B86: BAS-RHIN | C86: 5060 | D86: HAGUENAU | E86: 4071 | F86: WISSEMBOURG | G86: 8.7 | H86: 51% | I86: 28% | J86: 77 | K86: 39% | L86: 37% | M86: 43 | N86: 74% | O86: 55% | P86: 182 | Q86: 52% | R86: 37% | S86: 89 | T86: 64% | U86: 56% | V86: 100 | W86: 78% | X86: 72% | Y86: 210
A87: 264 | B87: MARNE-ARDENNES | C87: 6 | D87: CHALONS EN CHAMPAGNE | E87: 451120 | F87: SARRY | G87: 2.5 | H87: 52% | I87: 28% | J87: 78 | K87: 39% | L87: 37% | M87: 41 | N87: 63% | O87: 45% | P87: 83 | Q87: 50% | R87: 35% | S87: 67 | T87: 85% | U87: 77% | V87: 249 | W87: 71% | X87: 64% | Y87: 123
A88: 264 | B88: MEURTHE ET MOSELLE MEUSE | C88: 26 | D88: NANCY | E88: 454671 | F88: VANDOEUVRE LES NANCY | G88: 4.6 | H88: 52% | I88: 29% | J88: 79 | K88: 52% | L88: 50% | M88: 93 | N88: 62% | O88: 44% | P88: 69 | Q88: 73% | R88: 59% | S88: 245 | T88: 67% | U88: 58% | V88: 118 | W88: 57% | X88: 50% | Y88: 31
A89: 264 | B89: MOSELLE | C89: 42 | D89: MOSELLE EST | E89: 457308 | F89: FORBACH CENTRALE | G89: 12.0 | H89: 52% | I89: 29% | J89: 80 | K89: 65% | L89: 63% | M89: 159 | N89: 57% | O89: 38% | P89: 37 | Q89: 54% | R89: 39% | S89: 110 | T89: 70% | U89: 62% | V89: 138 | W89: 65% | X89: 58% | Y89: 78
A90: 264 | B90: BAS-RHIN | C90: 5060 | D90: HAGUENAU | E90: 4087 | F90: SAVERNE | G90: 8.4 | H90: 52% | I90: 29% | J90: 81 | K90: 86% | L90: 84% | M90: 242 | N90: 61% | O90: 42% | P90: 61 | Q90: 48% | R90: 34% | S90: 58 | T90: 52% | U90: 43% | V90: 36 | W90: 64% | X90: 57% | Y90: 67
A91: 264 | B91: BAS-RHIN | C91: 5006 | D91: STRASBOURG | E91: 4047 | F91: STRASBOURG CRONENBOURG | G91: 6.7 | H91: 52% | I91: 29% | J91: 82 | K91: 42% | L91: 40% | M91: 51 | N91: 70% | O91: 51% | P91: 148 | Q91: 62% | R91: 47% | S91: 175 | T91: 62% | U91: 53% | V91: 82 | W91: 76% | X91: 69% | Y91: 192
A92: 264 | B92: MEURTHE ET MOSELLE MEUSE | C92: 27 | D92: PONT A MOUSSON | E92: 554376 | F92: LAXOU LA SAPINIERE | G92: 2.9 | H92: 52% | I92: 29% | J92: 83 | K92: 69% | L92: 67% | M92: 181 | N92: 69% | O92: 51% | P92: 143 | Q92: 55% | R92: 41% | S92: 119 | T92: 61% | U92: 52% | V92: 79 | W92: 57% | X92: 51% | Y92: 32
A93: 264 | B93: VOSGES | C93: 55 | D93: SAINT DIE | E93: 588587 | F93: SAINT DIE CATHEDRALE | G93: 4.0 | H93: 52% | I93: 29% | J93: 84 | K93: 43% | L93: 41% | M93: 54 | N93: 72% | O93: 53% | P93: 170 | Q93: 46% | R93: 31% | S93: 51 | T93: 69% | U93: 60% | V93: 132 | W93: 82% | X93: 76% | Y93: 242
A94: 264 | B94: MOSELLE | C94: 42 | D94: MOSELLE EST | E94: 557305 | F94: FAULQUEMONT | G94: 2.1 | H94: 52% | I94: 29% | J94: 85 | K94: 54% | L94: 52% | M94: 107 | N94: 70% | O94: 52% | P94: 152 | Q94: 56% | R94: 41% | S94: 121 | T94: 58% | U94: 50% | V94: 59 | W94: 75% | X94: 68% | Y94: 174
A95: 264 | B95: MOSELLE | C95: 44 | D95: MOSELLE NORD | E95: 557660 | F95: UCKANGE JEANNE D ARC | G95: 2.1 | H95: 52% | I95: 29% | J95: 86 | K95: 72% | L95: 70% | M95: 188 | N95: 80% | O95: 62% | P95: 237 | Q95: 56% | R95: 41% | S95: 122 | T95: 41% | U95: 32% | V95: 16 | W95: 64% | X95: 57% | Y95: 71
A96: 264 | B96: MARNE-ARDENNES | C96: 11 | D96: REIMS | E96: 451361 | F96: PIERRY LECLERC | G96: 2.0 | H96: 53% | I96: 30% | J96: 87 | K96: 22% | L96: 20% | M96: 6 | N96: 68% | O96: 49% | P96: 124 | Q96: 78% | R96: 63% | S96: 258 | T96: 62% | U96: 53% | V96: 85 | W96: 84% | X96: 77% | Y96: 250
A97: 264 | B97: MEURTHE ET MOSELLE MEUSE | C97: 26 | D97: NANCY | E97: 554491 | F97: NANCY SAINT SEBASTIEN | G97: 3.9 | H97: 53% | I97: 30% | J97: 88 | K97: 38% | L97: 36% | M97: 38 | N97: 80% | O97: 62% | P97: 236 | Q97: 45% | R97: 30% | S97: 43 | T97: 73% | U97: 65% | V97: 166 | W97: 78% | X97: 71% | Y97: 199
A98: 264 | B98: BAS-RHIN | C98: 5060 | D98: HAGUENAU | E98: 4079 | F98: SOULTZ SOUS FORETS | G98: 1.6 | H98: 53% | I98: 30% | J98: 89 | K98: 41% | L98: 39% | M98: 49 | N98: 73% | O98: 55% | P98: 177 | Q98: 70% | R98: 55% | S98: 228 | T98: 84% | U98: 76% | V98: 242 | W98: 46% | X98: 39% | Y98: 9
A99: 264 | B99: AUBE HAUTE MARNE | C99: 21 | D99: CHAUMONT | E99: 451154 | F99: JOINVILLE | G99: 2.0 | H99: 53% | I99: 30% | J99: 90 | K99: 37% | L99: 35% | M99: 31 | N99: 75% | O99: 57% | P99: 197 | Q99: 70% | R99: 55% | S99: 230 | T99: 63% | U99: 55% | V99: 89 | W99: 69% | X99: 62% | Y99: 110
A100: 264 | B100: MOSELLE | C100: 44 | D100: MOSELLE NORD | E100: 457192 | F100: CATTENOM | G100: 2.9 | H100: 53% | I100: 30% | J100: 91 | K100: 61% | L100: 59% | M100: 140 | N100: 64% | O100: 46% | P100: 98 | Q100: 45% | R100: 30% | S100: 42 | T100: 70% | U100: 62% | V100: 140 | W100: 75% | X100: 68% | Y100: 176
A101: 264 | B101: BAS-RHIN | C101: 5101 | D101: SELESTAT | E101: 4109 | F101: MARCKOLSHEIM | G101: 3.0 | H101: 53% | I101: 30% | J101: 92 | K101: 68% | L101: 66% | M101: 177 | N101: 46% | O101: 27% | P101: 13 | Q101: 64% | R101: 49% | S101: 193 | T101: 68% | U101: 59% | V101: 125 | W101: 69% | X101: 63% | Y101: 115
A102: 264 | B102: BAS-RHIN | C102: 5060 | D102: HAGUENAU | E102: 4057 | F102: BISCHWILLER | G102: 6.8 | H102: 53% | I102: 30% | J102: 93 | K102: 66% | L102: 64% | M102: 166 | N102: 72% | O102: 53% | P102: 168 | Q102: 62% | R102: 47% | S102: 169 | T102: 44% | U102: 35% | V102: 20 | W102: 72% | X102: 65% | Y102: 135
A103: 264 | B103: MEURTHE ET MOSELLE MEUSE | C103: 27 | D103: PONT A MOUSSON | E103: 454535 | F103: PONT A MOUSSON CENTRALE | G103: 8.1 | H103: 53% | I103: 30% | J103: 94 | K103: 77% | L103: 75% | M103: 207 | N103: 56% | O103: 38% | P103: 36 | Q103: 56% | R103: 42% | S103: 128 | T103: 57% | U103: 48% | V103: 52 | W103: 69% | X103: 62% | Y103: 107
A104: 264 | B104: MOSELLE | C104: 45 | D104: METZ | E104: 457574 | F104: ROMBAS | G104: 4.2 | H104: 53% | I104: 30% | J104: 95 | K104: 48% | L104: 46% | M104: 75 | N104: 61% | O104: 43% | P104: 64 | Q104: 62% | R104: 48% | S104: 180 | T104: 65% | U104: 57% | V104: 104 | W104: 80% | X104: 73% | Y104: 226
A105: 264 | B105: MARNE-ARDENNES | C105: 11 | D105: REIMS | E105: 451370 | F105: EPERNAY VERRON | G105: 11.7 | H105: 53% | I105: 30% | J105: 96 | K105: 46% | L105: 44% | M105: 65 | N105: 60% | O105: 42% | P105: 59 | Q105: 67% | R105: 53% | S105: 217 | T105: 70% | U105: 62% | V105: 136 | W105: 72% | X105: 66% | Y105: 148
A106: 264 | B106: MOSELLE | C106: 42 | D106: MOSELLE EST | E106: 557523 | F106: PHALSBOURG | G106: 2.3 | H106: 53% | I106: 30% | J106: 97 | K106: 51% | L106: 49% | M106: 87 | N106: 79% | O106: 61% | P106: 231 | Q106: 43% | R106: 28% | S106: 30 | T106: 76% | U106: 68% | V106: 190 | W106: 67% | X106: 60% | Y106: 88
A107: 264 | B107: BAS-RHIN | C107: 5006 | D107: STRASBOURG | E107: 4024 | F107: STRASBOURG AUSTERLITZ | G107: 2.0 | H107: 53% | I107: 30% | J107: 98 | K107: 99% | L107: 97% | M107: 263 | N107: 50% | O107: 32% | P107: 18 | Q107: 38% | R107: 24% | S107: 18 | T107: 61% | U107: 52% | V107: 73 | W107: 69% | X107: 62% | Y107: 109
A108: 30 | B108: MEURTHE ET MOSELLE MEUSE | C108: 27 | D108: PONT A MOUSSON | E108: 554533 | F108: PONT A MOUSSON BREUIL | G108: 2.9 | H108: 53% | I108: 30% | J108: 99 | K108: 53% | L108: 51% | M108: 99 | N108: 69% | O108: 51% | P108: 140 | Q108: 60% | R108: 45% | S108: 154 | T108: 70% | U108: 61% | V108: 135 | W108: 66% | X108: 59% | Y108: 83
A109: 30 | B109: MOSELLE | C109: 45 | D109: METZ | E109: 457446 | F109: METZ SAINT LOUIS | G109: 7.3 | H109: 53% | I109: 30% | J109: 100 | K109: 53% | L109: 51% | M109: 102 | N109: 75% | O109: 57% | P109: 195 | Q109: 52% | R109: 38% | S109: 98 | T109: 65% | U109: 57% | V109: 107 | W109: 71% | X109: 64% | Y109: 127
A110: 30 | B110: BAS-RHIN | C110: 5006 | D110: STRASBOURG | E110: 4033 | F110: LA WANTZENAU | G110: 1.2 | H110: 53% | I110: 30% | J110: 101 | K110: 60% | L110: 58% | M110: 136 | N110: 85% | O110: 67% | P110: 258 | Q110: 43% | R110: 29% | S110: 31 | T110: 77% | U110: 69% | V110: 198 | W110: 51% | X110: 45% | Y110: 17
A111: 30 | B111: VOSGES | C111: 57 | D111: EPINAL | E111: 488281 | F111: ELOYES | G111: 4.8 | H111: 53% | I111: 30% | J111: 102 | K111: 51% | L111: 49% | M111: 84 | N111: 71% | O111: 53% | P111: 165 | Q111: 64% | R111: 50% | S111: 195 | T111: 64% | U111: 55% | V111: 94 | W111: 67% | X111: 61% | Y111: 95
A112: 30 | B112: MEURTHE ET MOSELLE MEUSE | C112: 31 | D112: VERDUN | E112: 455151 | F112: BAR LE DUC | G112: 9.7 | H112: 53% | I112: 30% | J112: 103 | K112: 55% | L112: 53% | M112: 113 | N112: 68% | O112: 50% | P112: 130 | Q112: 62% | R112: 47% | S112: 176 | T112: 67% | U112: 59% | V112: 121 | W112: 65% | X112: 59% | Y112: 82
A113: 30 | B113: MOSELLE | C113: 45 | D113: METZ | E113: 557712 | F113: WOIPPY BONNE FONTAINE | G113: 5.1 | H113: 54% | I113: 31% | J113: 104 | K113: 77% | L113: 75% | M113: 206 | N113: 63% | O113: 45% | P113: 86 | Q113: 64% | R113: 49% | S113: 190 | T113: 42% | U113: 34% | V113: 18 | W113: 72% | X113: 66% | Y113: 146
A114: 30 | B114: VOSGES | C114: 57 | D114: EPINAL | E114: 488561 | F114: REMIREMONT | G114: 6.4 | H114: 54% | I114: 31% | J114: 105 | K114: 53% | L114: 51% | M114: 103 | N114: 77% | O114: 59% | P114: 212 | Q114: 49% | R114: 34% | S114: 59 | T114: 67% | U114: 58% | V114: 117 | W114: 73% | X114: 66% | Y114: 152
A115: 30 | B115: MARNE-ARDENNES | C115: 11 | D115: REIMS | E115: 451336 | F115: TINQUEUX | G115: 5.9 | H115: 54% | I115: 31% | J115: 106 | K115: 58% | L115: 56% | M115: 126 | N115: 62% | O115: 44% | P115: 68 | Q115: 57% | R115: 42% | S115: 129 | T115: 82% | U115: 74% | V115: 231 | W115: 60% | X115: 53% | Y115: 40
A116: 30 | B116: BAS-RHIN | C116: 5101 | D116: SELESTAT | E116: 4101 | F116: SELESTAT CENTRE | G116: 8.5 | H116: 54% | I116: 31% | J116: 107 | K116: 82% | L116: 80% | M116: 229 | N116: 54% | O116: 36% | P116: 31 | Q116: 52% | R116: 38% | S116: 96 | T116: 57% | U116: 49% | V116: 55 | W116: 72% | X116: 65% | Y116: 143
A117: 30 | B117: MEURTHE ET MOSELLE MEUSE | C117: 31 | D117: VERDUN | E117: 555624 | F117: STENAY | G117: 3.0 | H117: 54% | I117: 31% | J117: 108 | K117: 67% | L117: 65% | M117: 169 | N117: 66% | O117: 47% | P117: 110 | Q117: 60% | R117: 45% | S117: 153 | T117: 59% | U117: 51% | V117: 65 | W117: 67% | X117: 60% | Y117: 90
A118: 30 | B118: AUBE HAUTE MARNE | C118: 21 | D118: CHAUMONT | E118: 410541 | F118: LANGRES | G118: 6.7 | H118: 54% | I118: 31% | J118: 109 | K118: 39% | L118: 37% | M118: 44 | N118: 73% | O118: 55% | P118: 178 | Q118: 67% | R118: 53% | S118: 218 | T118: 66% | U118: 58% | V118: 113 | W118: 74% | X118: 67% | Y118: 161
A119: 30 | B119: MEURTHE ET MOSELLE MEUSE | C119: 31 | D119: VERDUN | E119: 455456 | F119: MONTMEDY | G119: 1.8 | H119: 54% | I119: 31% | J119: 110 | K119: 65% | L119: 63% | M119: 157 | N119: 61% | O119: 43% | P119: 67 | Q119: 73% | R119: 59% | S119: 246 | T119: 58% | U119: 49% | V119: 56 | W119: 63% | X119: 56% | Y119: 62
A120: 30 | B120: AUBE HAUTE MARNE | C120: 14 | D120: TROYES | E120: 410571 | F120: ROMILLY ORMES | G120: 6.1 | H120: 54% | I120: 31% | J120: 111 | K120: 51% | L120: 49% | M120: 88 | N120: 59% | O120: 41% | P120: 51 | Q120: 68% | R120: 53% | S120: 220 | T120: 76% | U120: 67% | V120: 183 | W120: 67% | X120: 60% | Y120: 91
A121: 30 | B121: AUBE HAUTE MARNE | C121: 21 | D121: CHAUMONT | E121: 410566 | F121: CHAUMONT HOTEL DE VILLE | G121: 7.6 | H121: 54% | I121: 31% | J121: 112 | K121: 57% | L121: 55% | M121: 123 | N121: 64% | O121: 46% | P121: 96 | Q121: 61% | R121: 46% | S121: 159 | T121: 64% | U121: 56% | V121: 96 | W121: 74% | X121: 67% | Y121: 167
A122: 30 | B122: MOSELLE | C122: 45 | D122: METZ | E122: 557440 | F122: METZ MOZART | G122: 3.1 | H122: 54% | I122: 31% | J122: 113 | K122: 55% | L122: 53% | M122: 114 | N122: 76% | O122: 58% | P122: 200 | Q122: 42% | R122: 28% | S122: 28 | T122: 67% | U122: 58% | V122: 120 | W122: 80% | X122: 73% | Y122: 229
A123: 30 | B123: MOSELLE | C123: 45 | D123: METZ | E123: 557105 | F123: ARS SUR MOSELLE | G123: 4.2 | H123: 54% | I123: 31% | J123: 114 | K123: 60% | L123: 58% | M123: 139 | N123: 68% | O123: 50% | P123: 127 | Q123: 61% | R123: 46% | S123: 163 | T123: 71% | U123: 63% | V123: 147 | W123: 60% | X123: 53% | Y123: 42
A124: 30 | B124: MOSELLE | C124: 44 | D124: MOSELLE NORD | E124: 557303 | F124: FAMECK | G124: 3.8 | H124: 54% | I124: 31% | J124: 115 | K124: 48% | L124: 46% | M124: 77 | N124: 79% | O124: 61% | P124: 235 | Q124: 44% | R124: 29% | S124: 35 | T124: 81% | U124: 72% | V124: 220 | W124: 68% | X124: 62% | Y124: 103
A125: 30 | B125: MOSELLE | C125: 45 | D125: METZ | E125: 557434 | F125: MARLY | G125: 4.0 | H125: 54% | I125: 31% | J125: 116 | K125: 29% | L125: 27% | M125: 18 | N125: 70% | O125: 52% | P125: 158 | Q125: 58% | R125: 44% | S125: 137 | T125: 77% | U125: 69% | V125: 199 | W125: 85% | X125: 78% | Y125: 256
A126: 30 | B126: BAS-RHIN | C126: 5006 | D126: STRASBOURG | E126: 4054 | F126: STRASBOURG MONTAGNE VERTE | G126: 2.8 | H126: 54% | I126: 31% | J126: 117 | K126: 83% | L126: 81% | M126: 232 | N126: 71% | O126: 53% | P126: 163 | Q126: 70% | R126: 55% | S126: 229 | T126: 34% | U126: 25% | V126: 9 | W126: 63% | X126: 56% | Y126: 63
A127: 30 | B127: BAS-RHIN | C127: 5006 | D127: STRASBOURG | E127: 4006 | F127: STRASBOURG NEUDORF | G127: 9.0 | H127: 54% | I127: 31% | J127: 118 | K127: 65% | L127: 63% | M127: 158 | N127: 55% | O127: 37% | P127: 34 | Q127: 60% | R127: 45% | S127: 148 | T127: 61% | U127: 53% | V127: 80 | W127: 81% | X127: 74% | Y127: 233
A128: 30 | B128: MARNE-ARDENNES | C128: 2 | D128: CHARLEVILLE MEZIERES | E128: 508833 | F128: VILLERS SEMEUSE CORA | G128: 3.6 | H128: 54% | I128: 31% | J128: 119 | K128: 65% | L128: 63% | M128: 160 | N128: 77% | O128: 58% | P128: 207 | Q128: 51% | R128: 36% | S128: 74 | T128: 66% | U128: 57% | V128: 110 | W128: 64% | X128: 57% | Y128: 69
A129: 30 | B129: MEURTHE ET MOSELLE MEUSE | C129: 31 | D129: VERDUN | E129: 455678 | F129: VERDUN CENTRALE | G129: 11.1 | H129: 54% | I129: 31% | J129: 120 | K129: 39% | L129: 37% | M129: 42 | N129: 70% | O129: 52% | P129: 151 | Q129: 74% | R129: 59% | S129: 248 | T129: 75% | U129: 67% | V129: 180 | W129: 64% | X129: 57% | Y129: 73
A130: 30 | B130: MEURTHE ET MOSELLE MEUSE | C130: 26 | D130: NANCY | E130: 554486 | F130: NANCY POINT CENTRAL | G130: 5.0 | H130: 54% | I130: 31% | J130: 121 | K130: 52% | L130: 50% | M130: 98 | N130: 71% | O130: 53% | P130: 166 | Q130: 53% | R130: 39% | S130: 104 | T130: 77% | U130: 68% | V130: 192 | W130: 68% | X130: 62% | Y130: 105
A131: 30 | B131: MARNE-ARDENNES | C131: 11 | D131: REIMS | E131: 451350 | F131: REIMS CENTRE VILLE | G131: 7.6 | H131: 54% | I131: 31% | J131: 122 | K131: 70% | L131: 68% | M131: 183 | N131: 68% | O131: 50% | P131: 134 | Q131: 55% | R131: 40% | S131: 114 | T131: 72% | U131: 64% | V131: 157 | W131: 57% | X131: 50% | Y131: 30
A132: 30 | B132: VOSGES | C132: 55 | D132: SAINT DIE | E132: 488586 | F132: SAINT DIE | G132: 11.6 | H132: 55% | I132: 32% | J132: 123 | K132: 66% | L132: 64% | M132: 164 | N132: 67% | O132: 49% | P132: 122 | Q132: 44% | R132: 30% | S132: 36 | T132: 66% | U132: 58% | V132: 116 | W132: 79% | X132: 72% | Y132: 215
A133: 30 | B133: BAS-RHIN | C133: 5101 | D133: SELESTAT | E133: 4129 | F133: MARLENHEIM | G133: 1.9 | H133: 55% | I133: 32% | J133: 124 | K133: 64% | L133: 62% | M133: 151 | N133: 62% | O133: 44% | P133: 71 | Q133: 60% | R133: 45% | S133: 151 | T133: 75% | U133: 66% | V133: 176 | W133: 62% | X133: 56% | Y133: 61
A134: 30 | B134: AUBE HAUTE MARNE | C134: 21 | D134: CHAUMONT | E134: 451151 | F134: WASSY | G134: 2.0 | H134: 55% | I134: 32% | J134: 125 | K134: 74% | L134: 72% | M134: 197 | N134: 68% | O134: 50% | P134: 135 | Q134: 74% | R134: 59% | S134: 247 | T134: 51% | U134: 42% | V134: 31 | W134: 56% | X134: 49% | Y134: 28
A135: 30 | B135: VOSGES | C135: 55 | D135: SAINT DIE | E135: 588551 | F135: RAMBERVILLERS | G135: 4.0 | H135: 55% | I135: 32% | J135: 126 | K135: 27% | L135: 25% | M135: 13 | N135: 84% | O135: 66% | P135: 254 | Q135: 61% | R135: 46% | S135: 165 | T135: 74% | U135: 66% | V135: 172 | W135: 77% | X135: 71% | Y135: 198
A136: 30 | B136: MOSELLE | C136: 44 | D136: MOSELLE NORD | E136: 557352 | F136: HETTANGE GRANDE | G136: 4.3 | H136: 55% | I136: 32% | J136: 127 | K136: 92% | L136: 90% | M136: 256 | N136: 49% | O136: 30% | P136: 15 | Q136: 55% | R136: 40% | S136: 115 | T136: 63% | U136: 54% | V136: 87 | W136: 66% | X136: 59% | Y136: 84
A137: 30 | B137: MARNE-ARDENNES | C137: 2 | D137: CHARLEVILLE MEZIERES | E137: 508817 | F137: CHARLEVILLE MOHON | G137: 3.1 | H137: 55% | I137: 32% | J137: 128 | K137: 34% | L137: 32% | M137: 22 | N137: 81% | O137: 62% | P137: 241 | Q137: 67% | R137: 52% | S137: 212 | T137: 70% | U137: 62% | V137: 141 | W137: 72% | X137: 66% | Y137: 149
A138: 30 | B138: HAUT-RHIN | C138: 5130 | D138: COLMAR | E138: 4135 | F138: COLMAR SAINTE MARIE | G138: 7.3 | H138: 55% | I138: 32% | J138: 129 | K138: 64% | L138: 62% | M138: 154 | N138: 70% | O138: 52% | P138: 156 | Q138: 51% | R138: 37% | S138: 83 | T138: 60% | U138: 52% | V138: 70 | W138: 78% | X138: 71% | Y138: 205
A139: 30 | B139: MARNE-ARDENNES | C139: 6 | D139: CHALONS EN CHAMPAGNE | E139: 551354 | F139: VERTUS | G139: 2.5 | H139: 55% | I139: 32% | J139: 130 | K139: 18% | L139: 16% | M139: 4 | N139: 78% | O139: 59% | P139: 214 | Q139: 81% | R139: 66% | S139: 264 | T139: 69% | U139: 61% | V139: 133 | W139: 79% | X139: 73% | Y139: 220
A140: 30 | B140: VOSGES | C140: 57 | D140: EPINAL | E140: 588206 | F140: CHARMES | G140: 2.8 | H140: 55% | I140: 32% | J140: 131 | K140: 74% | L140: 72% | M140: 196 | N140: 70% | O140: 52% | P140: 157 | Q140: 49% | R140: 34% | S140: 62 | T140: 60% | U140: 51% | V140: 68 | W140: 72% | X140: 65% | Y140: 140
A141: 30 | B141: BAS-RHIN | C141: 5060 | D141: HAGUENAU | E141: 4095 | F141: SARRE UNION | G141: 5.0 | H141: 55% | I141: 32% | J141: 132 | K141: 56% | L141: 54% | M141: 118 | N141: 66% | O141: 48% | P141: 114 | Q141: 50% | R141: 35% | S141: 70 | T141: 81% | U141: 73% | V141: 222 | W141: 71% | X141: 64% | Y141: 125
A142: 30 | B142: BAS-RHIN | C142: 5006 | D142: STRASBOURG | E142: 4010 | F142: STRASBOURG MEINAU | G142: 4.0 | H142: 55% | I142: 32% | J142: 133 | K142: 85% | L142: 83% | M142: 235 | N142: 54% | O142: 36% | P142: 25 | Q142: 74% | R142: 59% | S142: 249 | T142: 43% | U142: 35% | V142: 19 | W142: 69% | X142: 62% | Y142: 112
A143: 30 | B143: BAS-RHIN | C143: 5006 | D143: STRASBOURG | E143: 4020 | F143: STRASBOURG ROBERTSAU | G143: 5.7 | H143: 55% | I143: 32% | J143: 134 | K143: 65% | L143: 63% | M143: 156 | N143: 60% | O143: 42% | P143: 56 | Q143: 51% | R143: 36% | S143: 80 | T143: 77% | U143: 69% | V143: 197 | W143: 72% | X143: 66% | Y143: 150
